Workbook

Sheet Infosivu
A1: Pikanäppäimiä Windows pohjaiseen Excel tiedostoon
A3: Ctrl + C | B3: Kopio
A4: Ctrl + V | B4: Liitä
A5: Ctrl + D | B5: Kopio ylempi rivi valitsemallesi alueelle
A6: Ctrl + Z | B6: Peruuta viimeisin muutos
A7: Ctrl + Y | B7: Toista viimeisin muutos
A9: Ctrl + + (plus symboli näppäimistössä) paina hiirellä rivinumeroa vasemmassa sivussa. Paina pikanäppäimiä. Tämä lisää rivin
A10: Ctrl + - (miinus symboli näppäimistössä) paina hiirellä rivinumeroa vasemmassa sivussa. Paina pikanäppäimiä. Tämä poistaa rivin
A12: Tab | B12: Siirry yksi solu oikealle
A13: Shift + Tab | B13: Siirry yksi solu vasemmalle
A14: Enter | B14: Siirry yksi solu alaspäin
A15: Shift + Enter | B15: Siirry yksi solu ylöspäin

Sheet Täyttönäkymä
C1: Referenssiventtiilin haku | H1: Tulokset | J1: Muut tiedot
A2: KRS № | B2: Huone Tila | C2: Päätelaite Mittapiste | D2: Koko Ød | E2: Paine Pa | F2: Suunniteltu l/s | G2: Merkitse RP / RT | H2: Mitattu l/s | I2: Avaus mm | J2: Kerroin k-arvo | K2: Seuranta % | L2: Tavoite l/s | M2: + | N2: - | O2: tulo | P2: poisto | Q2: ★
A3: 1 | B3: Kylpyhuone | C3: KSO | D3: 125 | E3: 20.0 | F3: 15.00 | H3: =IFERROR(IF(OR(ISBLANK(MP_REF[[#This Row],[Paine Pa]]), ISBLANK(MP_REF[[#This Row],[Kerroin k-arvo]])), "",MP_REF[[#This Row],[Kerroin k-arvo]]*SQRT(MP_REF[[#This Row],[Paine Pa]])),"") -> 17.89 | I3: 10 | J3: =IF(MP_REF[[#This Row],[Päätelaite Mittapiste]]="", "",_xlfn.XLOOKUP(1,(Hakemisto[Tyyppi]=MP_REF[[#This Row],[Päätelaite Mittapiste]])*(Hakemisto[Koko]=MP_REF[[#This Row],[Koko Ød]])*(Hakemisto[asento]=MP_REF[[#This Row],[Avaus mm]]), Hakemisto[k-arvo], "ei löydy")) -> 4 | K3: =_xlfn.LET(_xlpm.suunniteltu, INDIRECT("F"&ROW()), _xlpm.mitattu, INDIRECT("H"&ROW()), IF(OR(_xlpm.suunniteltu="", _xlpm.mitattu="", _xlpm.mitattu=0), " ", (_xlpm.mitattu/_xlpm.suunniteltu))) -> 119.3 % | L3: =IFERROR(IF(AND(MP_REF[[#This Row],[-]]="P", MP_REF[[#This Row],[+]]<>"T"), $H$28*MP_REF[[#This Row],[Suunniteltu l/s]]/100, IF(AND(MP_REF[[#This Row],[+]]="T", MP_REF[[#This Row],[-]]<>"P"), $G$28*MP_REF[[#This Row],[Suunniteltu l/s]]/100, IF(AND(MP_REF[[#This Row],[-]]="P", MP_REF[[#This Row],[+]]="T"), "T/P", "") ) ),"") -> 15.0 | M3: =IFERROR(IF(MP_REF[[#This Row],[tulo]]=TRUE,"T",""),"") ->  | N3: =IFERROR(IF(MP_REF[[#This Row],[poisto]]=TRUE,"P",""),"") -> P | O3: =IFERROR(IF( ISBLANK(MP_REF[[#This Row],[Päätelaite Mittapiste]]), "", IF( SUM( _xlfn._xlws.FILTER( (Hakemisto[Tyyppi]=MP_REF[[#This Row],[Päätelaite Mittapiste]]) * (Hakemisto[Koko]=MP_REF[[#This Row],[Koko Ød]]) * ((Hakemisto[Tulo]="x") + (Hakemisto[Tulo]=1)), (Hakemisto[Tyyppi]=MP_REF[[#This Row],[Päätelaite Mittapiste]]) ) ) > 0, TRUE, FALSE ) ),"") -> FALSE | P3: =IFERROR(IF( ISBLANK(MP_REF[[#This Row],[Päätelaite Mittapiste]]), "", IF( SUM( _xlfn._xlws.FILTER( (Hakemisto[Tyyppi]=MP_REF[[#This Row],[Päätelaite Mittapiste]]) * (Hakemisto[Koko]=MP_REF[[#This Row],[Koko Ød]]) * ((Hakemisto[Poisto]="x") + (Hakemisto[Poisto]=1)), (Hakemisto[Tyyppi]=MP_REF[[#This Row],[Päätelaite Mittapiste]]) ) ) > 0, TRUE, FALSE ) ),"") -> TRUE
A4: 1 | B4: KHH | C4: KSO | D4: 125 | E4: 25.0 | F4: 20.00 | G4: RP | H4: =IFERROR(IF(OR(ISBLANK(MP_REF[[#This Row],[Paine Pa]]), ISBLANK(MP_REF[[#This Row],[Kerroin k-arvo]])), "",MP_REF[[#This Row],[Kerroin k-arvo]]*SQRT(MP_REF[[#This Row],[Paine Pa]])),"") -> 20.00 | I4: 10 | J4: =IF(MP_REF[[#This Row],[Päätelaite Mittapiste]]="", "",_xlfn.XLOOKUP(1,(Hakemisto[Tyyppi]=MP_REF[[#This Row],[Päätelaite Mittapiste]])*(Hakemisto[Koko]=MP_REF[[#This Row],[Koko Ød]])*(Hakemisto[asento]=MP_REF[[#This Row],[Avaus mm]]), Hakemisto[k-arvo], "ei löydy")) -> 4 | K4: =_xlfn.LET(_xlpm.suunniteltu, INDIRECT("F"&ROW()), _xlpm.mitattu, INDIRECT("H"&ROW()), IF(OR(_xlpm.suunniteltu="", _xlpm.mitattu="", _xlpm.mitattu=0), " ", (_xlpm.mitattu/_xlpm.suunniteltu))) -> 100.0 % | L4: =IFERROR(IF(AND(MP_REF[[#This Row],[-]]="P", MP_REF[[#This Row],[+]]<>"T"), $H$28*MP_REF[[#This Row],[Suunniteltu l/s]]/100, IF(AND(MP_REF[[#This Row],[+]]="T", MP_REF[[#This Row],[-]]<>"P"), $G$28*MP_REF[[#This Row],[Suunniteltu l/s]]/100, IF(AND(MP_REF[[#This Row],[-]]="P", MP_REF[[#This Row],[+]]="T"), "T/P", "") ) ),"") -> 20.0 | M4: =IFERROR(IF(MP_REF[[#This Row],[tulo]]=TRUE,"T",""),"") ->  | N4: =IFERROR(IF(MP_REF[[#This Row],[poisto]]=TRUE,"P",""),"") -> P | O4: =IFERROR(IF( ISBLANK(MP_REF[[#This Row],[Päätelaite Mittapiste]]), "", IF( SUM( _xlfn._xlws.FILTER( (Hakemisto[Tyyppi]=MP_REF[[#This Row],[Päätelaite Mittapiste]]) * (Hakemisto[Koko]=MP_REF[[#This Row],[Koko Ød]]) * ((Hakemisto[Tulo]="x") + (Hakemisto[Tulo]=1)), (Hakemisto[Tyyppi]=MP_REF[[#This Row],[Päätelaite Mittapiste]]) ) ) > 0, TRUE, FALSE ) ),"") -> FALSE | P4: =IFERROR(IF( ISBLANK(MP_REF[[#This Row],[Päätelaite Mittapiste]]), "", IF( SUM( _xlfn._xlws.FILTER( (Hakemisto[Tyyppi]=MP_REF[[#This Row],[Päätelaite Mittapiste]]) * (Hakemisto[Koko]=MP_REF[[#This Row],[Koko Ød]]) * ((Hakemisto[Poisto]="x") + (Hakemisto[Poisto]=1)), (Hakemisto[Tyyppi]=MP_REF[[#This Row],[Päätelaite Mittapiste]]) ) ) > 0, TRUE, FALSE ) ),"") -> TRUE
A5: 1 | B5: Olohuone | C5: KTS | D5: 100 / 180° muovi | E5: 22.6 | F5: 15.00 | G5: RT | H5: =IFERROR(IF(OR(ISBLANK(MP_REF[[#This Row],[Paine Pa]]), ISBLANK(MP_REF[[#This Row],[Kerroin k-arvo]])), "",MP_REF[[#This Row],[Kerroin k-arvo]]*SQRT(MP_REF[[#This Row],[Paine Pa]])),"") -> 15.01 | I5: 11 | J5: =IF(MP_REF[[#This Row],[Päätelaite Mittapiste]]="", "",_xlfn.XLOOKUP(1,(Hakemisto[Tyyppi]=MP_REF[[#This Row],[Päätelaite Mittapiste]])*(Hakemisto[Koko]=MP_REF[[#This Row],[Koko Ød]])*(Hakemisto[asento]=MP_REF[[#This Row],[Avaus mm]]), Hakemisto[k-arvo], "ei löydy")) -> 3.16 | K5: =_xlfn.LET(_xlpm.suunniteltu, INDIRECT("F"&ROW()), _xlpm.mitattu, INDIRECT("H"&ROW()), IF(OR(_xlpm.suunniteltu="", _xlpm.mitattu="", _xlpm.mitattu=0), " ", (_xlpm.mitattu/_xlpm.suunniteltu))) -> 100.0 % | L5: =IFERROR(IF(AND(MP_REF[[#This Row],[-]]="P", MP_REF[[#This Row],[+]]<>"T"), $H$28*MP_REF[[#This Row],[Suunniteltu l/s]]/100, IF(AND(MP_REF[[#This Row],[+]]="T", MP_REF[[#This Row],[-]]<>"P"), $G$28*MP_REF[[#This Row],[Suunniteltu l/s]]/100, IF(AND(MP_REF[[#This Row],[-]]="P", MP_REF[[#This Row],[+]]="T"), "T/P", "") ) ),"") -> 15.0 | M5: =IFERROR(IF(MP_REF[[#This Row],[tulo]]=TRUE,"T",""),"") -> T | N5: =IFERROR(IF(MP_REF[[#This Row],[poisto]]=TRUE,"P",""),"") ->  | O5: =IFERROR(IF( ISBLANK(MP_REF[[#This Row],[Päätelaite Mittapiste]]), "", IF( SUM( _xlfn._xlws.FILTER( (Hakemisto[Tyyppi]=MP_REF[[#This Row],[Päätelaite Mittapiste]]) * (Hakemisto[Koko]=MP_REF[[#This Row],[Koko Ød]]) * ((Hakemisto[Tulo]="x") + (Hakemisto[Tulo]=1)), (Hakemisto[Tyyppi]=MP_REF[[#This Row],[Päätelaite Mittapiste]]) ) ) > 0, TRUE, FALSE ) ),"") -> TRUE | P5: =IFERROR(IF( ISBLANK(MP_REF[[#This Row],[Päätelaite Mittapiste]]), "", IF( SUM( _xlfn._xlws.FILTER( (Hakemisto[Tyyppi]=MP_REF[[#This Row],[Päätelaite Mittapiste]]) * (Hakemisto[Koko]=MP_REF[[#This Row],[Koko Ød]]) * ((Hakemisto[Poisto]="x") + (Hakemisto[Poisto]=1)), (Hakemisto[Tyyppi]=MP_REF[[#This Row],[Päätelaite Mittapiste]]) ) ) > 0, TRUE, FALSE ) ),"") -> FALSE
A6: 1 | B6: Makuuhuone | C6: KTS | D6: 100 / 180° muovi | E6: 15.0 | F6: 10.00 | H6: =IFERROR(IF(OR(ISBLANK(MP_REF[[#This Row],[Paine Pa]]), ISBLANK(MP_REF[[#This Row],[Kerroin k-arvo]])), "",MP_REF[[#This Row],[Kerroin k-arvo]]*SQRT(MP_REF[[#This Row],[Paine Pa]])),"") -> 12.24 | I6: 11 | J6: =IF(MP_REF[[#This Row],[Päätelaite Mittapiste]]="", "",_xlfn.XLOOKUP(1,(Hakemisto[Tyyppi]=MP_REF[[#This Row],[Päätelaite Mittapiste]])*(Hakemisto[Koko]=MP_REF[[#This Row],[Koko Ød]])*(Hakemisto[asento]=MP_REF[[#This Row],[Avaus mm]]), Hakemisto[k-arvo], "ei löydy")) -> 3.16 | K6: =_xlfn.LET(_xlpm.suunniteltu, INDIRECT("F"&ROW()), _xlpm.mitattu, INDIRECT("H"&ROW()), IF(OR(_xlpm.suunniteltu="", _xlpm.mitattu="", _xlpm.mitattu=0), " ", (_xlpm.mitattu/_xlpm.suunniteltu))) -> 122.4 % | L6: =IFERROR(IF(AND(MP_REF[[#This Row],[-]]="P", MP_REF[[#This Row],[+]]<>"T"), $H$28*MP_REF[[#This Row],[Suunniteltu l/s]]/100, IF(AND(MP_REF[[#This Row],[+]]="T", MP_REF[[#This Row],[-]]<>"P"), $G$28*MP_REF[[#This Row],[Suunniteltu l/s]]/100, IF(AND(MP_REF[[#This Row],[-]]="P", MP_REF[[#This Row],[+]]="T"), "T/P", "") ) ),"") -> 10.0 | M6: =IFERROR(IF(MP_REF[[#This Row],[tulo]]=TRUE,"T",""),"") -> T | N6: =IFERROR(IF(MP_REF[[#This Row],[poisto]]=TRUE,"P",""),"") ->  | O6: =IFERROR(IF( ISBLANK(MP_REF[[#This Row],[Päätelaite Mittapiste]]), "", IF( SUM( _xlfn._xlws.FILTER( (Hakemisto[Tyyppi]=MP_REF[[#This Row],[Päätelaite Mittapiste]]) * (Hakemisto[Koko]=MP_REF[[#This Row],[Koko Ød]]) * ((Hakemisto[Tulo]="x") + (Hakemisto[Tulo]=1)), (Hakemisto[Tyyppi]=MP_REF[[#This Row],[Päätelaite Mittapiste]]) ) ) > 0, TRUE, FALSE ) ),"") -> TRUE | P6: =IFERROR(IF( ISBLANK(MP_REF[[#This Row],[Päätelaite Mittapiste]]), "", IF( SUM( _xlfn._xlws.FILTER( (Hakemisto[Tyyppi]=MP_REF[[#This Row],[Päätelaite Mittapiste]]) * (Hakemisto[Koko]=MP_REF[[#This Row],[Koko Ød]]) * ((Hakemisto[Poisto]="x") + (Hakemisto[Poisto]=1)), (Hakemisto[Tyyppi]=MP_REF[[#This Row],[Päätelaite Mittapiste]]) ) ) > 0, TRUE, FALSE ) ),"") -> FALSE
B8: Minimipaine | C8: Täyttönäkymä | D8: Päätelaitteen minimipaine tarkistus laskuri | H8: Tulokset
B9: Asetus | C9: asetukset | D9: min paine | E9: l/s | F9: laite | G9: Koko | H9: k-arvo >/= | I9: avaus | J9: max ref. paine
B10: 10 | C10: Poisto | D10: 10 | E10: 15 | F10: KSO | G10: 125 | H10: =E10/SQRT(D10) -> 4.74 | I10: =säätöasento(F10,G10,E10,D10,Hakemisto[]) -> 10 | J10: =_xlfn.LET( _xlpm.karvo, IF( F10="", "", _xlfn.XLOOKUP( 1, (Hakemisto[Tyyppi]=F10)* (Hakemisto[Koko]=G10)* (Hakemisto[asento]=I10), Hakemisto[k-arvo], "ei löydy" ) ), IF( OR(_xlpm.karvo="", _xlpm.karvo="ei löydy"), "", (E10/_xlpm.karvo)^2 ) ) -> 14.1
B11: 10 | C11: Tulo | D11: 10 | E11: 10 | F11: KTS | G11: 100 / 180° muovi | H11: =E11/SQRT(D11) -> 3.16 | I11: =säätöasento(F11,G11,E11,D11,Hakemisto[]) -> 11 | J11: =_xlfn.LET( _xlpm.karvo, IF( F11="", "", _xlfn.XLOOKUP( 1, (Hakemisto[Tyyppi]=F11)* (Hakemisto[Koko]=G11)* (Hakemisto[asento]=I11), Hakemisto[k-arvo], "ei löydy" ) ), IF( OR(_xlpm.karvo="", _xlpm.karvo="ei löydy"), "", (E11/_xlpm.karvo)^2 ) ) -> 10.0
A13: Taulukko 1 | C13: Suhteellinen säätö tulo ja poisto | H13: Tulokset | J13: Muut tiedot | R13: Huomiot
A14: KRS № | B14: Huone Tila | C14: Päätelaite Mittapiste | D14: Koko Ød | E14: Paine Pa | F14: Suunniteltu l/s | G14: Lukitse avaus | H14: Mitattu l/s | I14: Avaus mm | J14: Kerroin k-arvo | K14: Seuranta % | L14: Tavoite l/s | M14: + | N14: - | O14: tulo | P14: poisto | Q14: ★ | R14: Huomio nro | S14: Näkyy huomio tulosteessa? | T14: Kuvaus
A15: 1 | B15: Olohuone | C15: KSO | D15: 125 | E15: 20.0 | F15: 25.0 | H15: =IFERROR( _xlfn.LET( _xlpm.paine, MP_1[[#This Row],[Paine Pa]], _xlpm.k, MP_1[[#This Row],[Kerroin k-arvo]], IF(OR(_xlpm.paine="", _xlpm.k=""), "", _xlpm.k*SQRT(_xlpm.paine)) ), "") -> 17.9 | I15: =IF( MP_1[[#This Row],[Lukitse avaus]]<>"", VALUE(MP_1[[#This Row],[Lukitse avaus]]), säätöasento( MP_1[[#This Row],[Päätelaite Mittapiste]], MP_1[[#This Row],[Koko Ød]], MP_1[[#This Row],[Tavoite l/s]], MP_1[[#This Row],[Paine Pa]], Hakemisto[] ) ) -> 10 | J15: =IFERROR( IF( OR( ISBLANK(MP_1[[#This Row],[Päätelaite Mittapiste]]), ISBLANK(MP_1[[#This Row],[Koko Ød]]), ISBLANK(MP_1[[#This Row],[Avaus mm]]), ISBLANK(MP_1[[#This Row],[Paine Pa]]) ), "", _xlfn.LET( _xlpm.comp, MP_1[[#This Row],[Suunniteltu l/s]]*IF( AND(MP_1[[#This Row],[-]]="P", MP_1[[#This Row],[+]]<>"T"), $H$28*MP_1[[#This Row],[Suunniteltu l/s]], IF( AND(MP_1[[#This Row],[+]]="T", MP_1[[#This Row],[-]]<>"P"), $G$28*MP_1[[#This Row],[Suunniteltu l/s]], IF(AND(MP_1[[#This Row],[-]]="P", MP_1[[#This Row],[+]]="T"), "T/P", "") ) )/SQRT(MP_1[[#This Row],[Paine Pa]]), _xlpm.filt, _xlfn._xlws.FILTER( Hakemisto[], (Hakemisto[Tyyppi]=MP_1[[#This Row],[Päätelaite Mittapiste]]) * (Hakemisto[Koko]=MP_1[[#This Row],[Koko Ød]]) * (IFERROR(--Hakemisto[asento], -1E+99) = IFERROR(--MP_1[[#This Row],[Avaus mm]], -1E+99)) ), _xlpm.colIndex, MATCH("k-arvo", Hakemisto[#Headers], 0), _xlpm.kValues, INDEX(_xlpm.filt, 0, _xlpm.colIndex), _xlpm.diffs, ABS(_xlpm.kValues - _xlpm.comp), _xlpm.minDiff, MIN(_xlpm.diffs), INDEX(_xlpm.kValues, MATCH(_xlpm.minDiff, _xlpm.diffs, 0)) ) ), "" ) -> 4.00 | K15: =_xlfn.LET(_xlpm.suunniteltu, INDIRECT("F"&ROW()), _xlpm.mitattu, INDIRECT("H"&ROW()), IF(OR(_xlpm.suunniteltu="", _xlpm.mitattu="", _xlpm.mitattu=0), " ", (_xlpm.mitattu/_xlpm.suunniteltu))) -> 71.6 % | L15: =IFERROR(IF(AND(MP_1[[#This Row],[-]]="P", MP_1[[#This Row],[+]]<>"T"), $H$28*MP_1[[#This Row],[Suunniteltu l/s]]/100, IF(AND(MP_1[[#This Row],[+]]="T", MP_1[[#This Row],[-]]<>"P"), $G$28*MP_1[[#This Row],[Suunniteltu l/s]]/100, IF(AND(MP_1[[#This Row],[-]]="P", MP_1[[#This Row],[+]]="T"), "T/P", "") ) ),"") -> 25.0 | M15: =IFERROR(IF(MP_1[[#This Row],[tulo]]=TRUE,"T",""),"") ->  | N15: =IFERROR(IF(MP_1[[#This Row],[poisto]]=TRUE,"P",""),"") -> P | O15: =IFERROR(IF( ISBLANK(MP_1[[#This Row],[Päätelaite Mittapiste]]), "", IF( SUM( _xlfn._xlws.FILTER( (Hakemisto[Tyyppi]=MP_1[[#This Row],[Päätelaite Mittapiste]]) * (Hakemisto[Koko]=MP_1[[#This Row],[Koko Ød]]) * ((Hakemisto[Tulo]="x") + (Hakemisto[Tulo]=1)), (Hakemisto[Tyyppi]=MP_1[[#This Row],[Päätelaite Mittapiste]]) ) ) > 0, TRUE, FALSE ) ),"") -> FALSE | P15: =IFERROR(IF( ISBLANK(MP_1[[#This Row],[Päätelaite Mittapiste]]), "", IF( SUM( _xlfn._xlws.FILTER( (Hakemisto[Tyyppi]=MP_1[[#This Row],[Päätelaite Mittapiste]]) * (Hakemisto[Koko]=MP_1[[#This Row],[Koko Ød]]) * ((Hakemisto[Poisto]="x") + (Hakemisto[Poisto]=1)), (Hakemisto[Tyyppi]=MP_1[[#This Row],[Päätelaite Mittapiste]]) ) ) > 0, TRUE, FALSE ) ),"") -> TRUE | R15: =IF((MP_1[[#This Row],[★]]=""),"",MP_1[[#This Row],[★]]) -> 
A16: 1 | B16: KHH | C16: ULA | D16: 125/ 180° t-haara | E16: 8.0 | F16: 25.0 | H16: =IFERROR( _xlfn.LET( _xlpm.paine, MP_1[[#This Row],[Paine Pa]], _xlpm.k, MP_1[[#This Row],[Kerroin k-arvo]], IF(OR(_xlpm.paine="", _xlpm.k=""), "", _xlpm.k*SQRT(_xlpm.paine)) ), "") -> 12.6 | I16: =IF( MP_1[[#This Row],[Lukitse avaus]]<>"", VALUE(MP_1[[#This Row],[Lukitse avaus]]), säätöasento( MP_1[[#This Row],[Päätelaite Mittapiste]], MP_1[[#This Row],[Koko Ød]], MP_1[[#This Row],[Tavoite l/s]], MP_1[[#This Row],[Paine Pa]], Hakemisto[] ) ) -> 12 | J16: =IFERROR( IF( OR( ISBLANK(MP_1[[#This Row],[Päätelaite Mittapiste]]), ISBLANK(MP_1[[#This Row],[Koko Ød]]), ISBLANK(MP_1[[#This Row],[Avaus mm]]), ISBLANK(MP_1[[#This Row],[Paine Pa]]) ), "", _xlfn.LET( _xlpm.comp, MP_1[[#This Row],[Suunniteltu l/s]]*IF( AND(MP_1[[#This Row],[-]]="P", MP_1[[#This Row],[+]]<>"T"), $H$28*MP_1[[#This Row],[Suunniteltu l/s]], IF( AND(MP_1[[#This Row],[+]]="T", MP_1[[#This Row],[-]]<>"P"), $G$28*MP_1[[#This Row],[Suunniteltu l/s]], IF(AND(MP_1[[#This Row],[-]]="P", MP_1[[#This Row],[+]]="T"), "T/P", "") ) )/SQRT(MP_1[[#This Row],[Paine Pa]]), _xlpm.filt, _xlfn._xlws.FILTER( Hakemisto[], (Hakemisto[Tyyppi]=MP_1[[#This Row],[Päätelaite Mittapiste]]) * (Hakemisto[Koko]=MP_1[[#This Row],[Koko Ød]]) * (IFERROR(--Hakemisto[asento], -1E+99) = IFERROR(--MP_1[[#This Row],[Avaus mm]], -1E+99)) ), _xlpm.colIndex, MATCH("k-arvo", Hakemisto[#Headers], 0), _xlpm.kValues, INDEX(_xlpm.filt, 0, _xlpm.colIndex), _xlpm.diffs, ABS(_xlpm.kValues - _xlpm.comp), _xlpm.minDiff, MIN(_xlpm.diffs), INDEX(_xlpm.kValues, MATCH(_xlpm.minDiff, _xlpm.diffs, 0)) ) ), "" ) -> 4.46 | K16: =_xlfn.LET(_xlpm.suunniteltu, INDIRECT("F"&ROW()), _xlpm.mitattu, INDIRECT("H"&ROW()), IF(OR(_xlpm.suunniteltu="", _xlpm.mitattu="", _xlpm.mitattu=0), " ", (_xlpm.mitattu/_xlpm.suunniteltu))) -> 50.5 % | L16: =IFERROR(IF(AND(MP_1[[#This Row],[-]]="P", MP_1[[#This Row],[+]]<>"T"), $H$28*MP_1[[#This Row],[Suunniteltu l/s]]/100, IF(AND(MP_1[[#This Row],[+]]="T", MP_1[[#This Row],[-]]<>"P"), $G$28*MP_1[[#This Row],[Suunniteltu l/s]]/100, IF(AND(MP_1[[#This Row],[-]]="P", MP_1[[#This Row],[+]]="T"), "T/P", "") ) ),"") -> 25.0 | M16: =IFERROR(IF(MP_1[[#This Row],[tulo]]=TRUE,"T",""),"") -> T | N16: =IFERROR(IF(MP_1[[#This Row],[poisto]]=TRUE,"P",""),"") ->  | O16: =IFERROR(IF( ISBLANK(MP_1[[#This Row],[Päätelaite Mittapiste]]), "", IF( SUM( _xlfn._xlws.FILTER( (Hakemisto[Tyyppi]=MP_1[[#This Row],[Päätelaite Mittapiste]]) * (Hakemisto[Koko]=MP_1[[#This Row],[Koko Ød]]) * ((Hakemisto[Tulo]="x") + (Hakemisto[Tulo]=1)), (Hakemisto[Tyyppi]=MP_1[[#This Row],[Päätelaite Mittapiste]]) ) ) > 0, TRUE, FALSE ) ),"") -> TRUE | P16: =IFERROR(IF( ISBLANK(MP_1[[#This Row],[Päätelaite Mittapiste]]), "", IF( SUM( _xlfn._xlws.FILTER( (Hakemisto[Tyyppi]=MP_1[[#This Row],[Päätelaite Mittapiste]]) * (Hakemisto[Koko]=MP_1[[#This Row],[Koko Ød]]) * ((Hakemisto[Poisto]="x") + (Hakemisto[Poisto]=1)), (Hakemisto[Tyyppi]=MP_1[[#This Row],[Päätelaite Mittapiste]]) ) ) > 0, TRUE, FALSE ) ),"") -> FALSE | R16: =IF((MP_1[[#This Row],[★]]=""),"",MP_1[[#This Row],[★]]) -> 
H17: =IFERROR( _xlfn.LET( _xlpm.paine, MP_1[[#This Row],[Paine Pa]], _xlpm.k, MP_1[[#This Row],[Kerroin k-arvo]], IF(OR(_xlpm.paine="", _xlpm.k=""), "", _xlpm.k*SQRT(_xlpm.paine)) ), "") ->  | I17: =IF( MP_1[[#This Row],[Lukitse avaus]]<>"", VALUE(MP_1[[#This Row],[Lukitse avaus]]), säätöasento( MP_1[[#This Row],[Päätelaite Mittapiste]], MP_1[[#This Row],[Koko Ød]], MP_1[[#This Row],[Tavoite l/s]], MP_1[[#This Row],[Paine Pa]], Hakemisto[] ) ) ->  | J17: =IFERROR( IF( OR( ISBLANK(MP_1[[#This Row],[Päätelaite Mittapiste]]), ISBLANK(MP_1[[#This Row],[Koko Ød]]), ISBLANK(MP_1[[#This Row],[Avaus mm]]), ISBLANK(MP_1[[#This Row],[Paine Pa]]) ), "", _xlfn.LET( _xlpm.comp, MP_1[[#This Row],[Suunniteltu l/s]]*IF( AND(MP_1[[#This Row],[-]]="P", MP_1[[#This Row],[+]]<>"T"), $H$28*MP_1[[#This Row],[Suunniteltu l/s]], IF( AND(MP_1[[#This Row],[+]]="T", MP_1[[#This Row],[-]]<>"P"), $G$28*MP_1[[#This Row],[Suunniteltu l/s]], IF(AND(MP_1[[#This Row],[-]]="P", MP_1[[#This Row],[+]]="T"), "T/P", "") ) )/SQRT(MP_1[[#This Row],[Paine Pa]]), _xlpm.filt, _xlfn._xlws.FILTER( Hakemisto[], (Hakemisto[Tyyppi]=MP_1[[#This Row],[Päätelaite Mittapiste]]) * (Hakemisto[Koko]=MP_1[[#This Row],[Koko Ød]]) * (IFERROR(--Hakemisto[asento], -1E+99) = IFERROR(--MP_1[[#This Row],[Avaus mm]], -1E+99)) ), _xlpm.colIndex, MATCH("k-arvo", Hakemisto[#Headers], 0), _xlpm.kValues, INDEX(_xlpm.filt, 0, _xlpm.colIndex), _xlpm.diffs, ABS(_xlpm.kValues - _xlpm.comp), _xlpm.minDiff, MIN(_xlpm.diffs), INDEX(_xlpm.kValues, MATCH(_xlpm.minDiff, _xlpm.diffs, 0)) ) ), "" ) ->  | K17: =_xlfn.LET(_xlpm.suunniteltu, INDIRECT("F"&ROW()), _xlpm.mitattu, INDIRECT("H"&ROW()), IF(OR(_xlpm.suunniteltu="", _xlpm.mitattu="", _xlpm.mitattu=0), " ", (_xlpm.mitattu/_xlpm.suunniteltu))) ->  | L17: =IFERROR(IF(AND(MP_1[[#This Row],[-]]="P", MP_1[[#This Row],[+]]<>"T"), $H$28*MP_1[[#This Row],[Suunniteltu l/s]]/100, IF(AND(MP_1[[#This Row],[+]]="T", MP_1[[#This Row],[-]]<>"P"), $G$28*MP_1[[#This Row],[Suunniteltu l/s]]/100, IF(AND(MP_1[[#This Row],[-]]="P", MP_1[[#This Row],[+]]="T"), "T/P", "") ) ),"") ->  | M17: =IFERROR(IF(MP_1[[#This Row],[tulo]]=TRUE,"T",""),"") ->  | N17: =IFERROR(IF(MP_1[[#This Row],[poisto]]=TRUE,"P",""),"") ->  | O17: =IFERROR(IF( ISBLANK(MP_1[[#This Row],[Päätelaite Mittapiste]]), "", IF( SUM( _xlfn._xlws.FILTER( (Hakemisto[Tyyppi]=MP_1[[#This Row],[Päätelaite Mittapiste]]) * (Hakemisto[Koko]=MP_1[[#This Row],[Koko Ød]]) * ((Hakemisto[Tulo]="x") + (Hakemisto[Tulo]=1)), (Hakemisto[Tyyppi]=MP_1[[#This Row],[Päätelaite Mittapiste]]) ) ) > 0, TRUE, FALSE ) ),"") ->  | P17: =IFERROR(IF( ISBLANK(MP_1[[#This Row],[Päätelaite Mittapiste]]), "", IF( SUM( _xlfn._xlws.FILTER( (Hakemisto[Tyyppi]=MP_1[[#This Row],[Päätelaite Mittapiste]]) * (Hakemisto[Koko]=MP_1[[#This Row],[Koko Ød]]) * ((Hakemisto[Poisto]="x") + (Hakemisto[Poisto]=1)), (Hakemisto[Tyyppi]=MP_1[[#This Row],[Päätelaite Mittapiste]]) ) ) > 0, TRUE, FALSE ) ),"") ->  | R17: =IF((MP_1[[#This Row],[★]]=""),"",MP_1[[#This Row],[★]]) -> 
H18: =IFERROR( _xlfn.LET( _xlpm.paine, MP_1[[#This Row],[Paine Pa]], _xlpm.k, MP_1[[#This Row],[Kerroin k-arvo]], IF(OR(_xlpm.paine="", _xlpm.k=""), "", _xlpm.k*SQRT(_xlpm.paine)) ), "") ->  | I18: =IF( MP_1[[#This Row],[Lukitse avaus]]<>"", VALUE(MP_1[[#This Row],[Lukitse avaus]]), säätöasento( MP_1[[#This Row],[Päätelaite Mittapiste]], MP_1[[#This Row],[Koko Ød]], MP_1[[#This Row],[Tavoite l/s]], MP_1[[#This Row],[Paine Pa]], Hakemisto[] ) ) ->  | J18: =IFERROR( IF( OR( ISBLANK(MP_1[[#This Row],[Päätelaite Mittapiste]]), ISBLANK(MP_1[[#This Row],[Koko Ød]]), ISBLANK(MP_1[[#This Row],[Avaus mm]]), ISBLANK(MP_1[[#This Row],[Paine Pa]]) ), "", _xlfn.LET( _xlpm.comp, MP_1[[#This Row],[Suunniteltu l/s]]*IF( AND(MP_1[[#This Row],[-]]="P", MP_1[[#This Row],[+]]<>"T"), $H$28*MP_1[[#This Row],[Suunniteltu l/s]], IF( AND(MP_1[[#This Row],[+]]="T", MP_1[[#This Row],[-]]<>"P"), $G$28*MP_1[[#This Row],[Suunniteltu l/s]], IF(AND(MP_1[[#This Row],[-]]="P", MP_1[[#This Row],[+]]="T"), "T/P", "") ) )/SQRT(MP_1[[#This Row],[Paine Pa]]), _xlpm.filt, _xlfn._xlws.FILTER( Hakemisto[], (Hakemisto[Tyyppi]=MP_1[[#This Row],[Päätelaite Mittapiste]]) * (Hakemisto[Koko]=MP_1[[#This Row],[Koko Ød]]) * (IFERROR(--Hakemisto[asento], -1E+99) = IFERROR(--MP_1[[#This Row],[Avaus mm]], -1E+99)) ), _xlpm.colIndex, MATCH("k-arvo", Hakemisto[#Headers], 0), _xlpm.kValues, INDEX(_xlpm.filt, 0, _xlpm.colIndex), _xlpm.diffs, ABS(_xlpm.kValues - _xlpm.comp), _xlpm.minDiff, MIN(_xlpm.diffs), INDEX(_xlpm.kValues, MATCH(_xlpm.minDiff, _xlpm.diffs, 0)) ) ), "" ) ->  | K18: =_xlfn.LET(_xlpm.suunniteltu, INDIRECT("F"&ROW()), _xlpm.mitattu, INDIRECT("H"&ROW()), IF(OR(_xlpm.suunniteltu="", _xlpm.mitattu="", _xlpm.mitattu=0), " ", (_xlpm.mitattu/_xlpm.suunniteltu))) ->  | L18: =IFERROR(IF(AND(MP_1[[#This Row],[-]]="P", MP_1[[#This Row],[+]]<>"T"), $H$28*MP_1[[#This Row],[Suunniteltu l/s]]/100, IF(AND(MP_1[[#This Row],[+]]="T", MP_1[[#This Row],[-]]<>"P"), $G$28*MP_1[[#This Row],[Suunniteltu l/s]]/100, IF(AND(MP_1[[#This Row],[-]]="P", MP_1[[#This Row],[+]]="T"), "T/P", "") ) ),"") ->  | M18: =IFERROR(IF(MP_1[[#This Row],[tulo]]=TRUE,"T",""),"") ->  | N18: =IFERROR(IF(MP_1[[#This Row],[poisto]]=TRUE,"P",""),"") ->  | O18: =IFERROR(IF( ISBLANK(MP_1[[#This Row],[Päätelaite Mittapiste]]), "", IF( SUM( _xlfn._xlws.FILTER( (Hakemisto[Tyyppi]=MP_1[[#This Row],[Päätelaite Mittapiste]]) * (Hakemisto[Koko]=MP_1[[#This Row],[Koko Ød]]) * ((Hakemisto[Tulo]="x") + (Hakemisto[Tulo]=1)), (Hakemisto[Tyyppi]=MP_1[[#This Row],[Päätelaite Mittapiste]]) ) ) > 0, TRUE, FALSE ) ),"") ->  | P18: =IFERROR(IF( ISBLANK(MP_1[[#This Row],[Päätelaite Mittapiste]]), "", IF( SUM( _xlfn._xlws.FILTER( (Hakemisto[Tyyppi]=MP_1[[#This Row],[Päätelaite Mittapiste]]) * (Hakemisto[Koko]=MP_1[[#This Row],[Koko Ød]]) * ((Hakemisto[Poisto]="x") + (Hakemisto[Poisto]=1)), (Hakemisto[Tyyppi]=MP_1[[#This Row],[Päätelaite Mittapiste]]) ) ) > 0, TRUE, FALSE ) ),"") ->  | R18: =IF((MP_1[[#This Row],[★]]=""),"",MP_1[[#This Row],[★]]) -> 
H19: =IFERROR( _xlfn.LET( _xlpm.paine, MP_1[[#This Row],[Paine Pa]], _xlpm.k, MP_1[[#This Row],[Kerroin k-arvo]], IF(OR(_xlpm.paine="", _xlpm.k=""), "", _xlpm.k*SQRT(_xlpm.paine)) ), "") ->  | I19: =IF( MP_1[[#This Row],[Lukitse avaus]]<>"", VALUE(MP_1[[#This Row],[Lukitse avaus]]), säätöasento( MP_1[[#This Row],[Päätelaite Mittapiste]], MP_1[[#This Row],[Koko Ød]], MP_1[[#This Row],[Tavoite l/s]], MP_1[[#This Row],[Paine Pa]], Hakemisto[] ) ) ->  | J19: =IFERROR( IF( OR( ISBLANK(MP_1[[#This Row],[Päätelaite Mittapiste]]), ISBLANK(MP_1[[#This Row],[Koko Ød]]), ISBLANK(MP_1[[#This Row],[Avaus mm]]), ISBLANK(MP_1[[#This Row],[Paine Pa]]) ), "", _xlfn.LET( _xlpm.comp, MP_1[[#This Row],[Suunniteltu l/s]]*IF( AND(MP_1[[#This Row],[-]]="P", MP_1[[#This Row],[+]]<>"T"), $H$28*MP_1[[#This Row],[Suunniteltu l/s]], IF( AND(MP_1[[#This Row],[+]]="T", MP_1[[#This Row],[-]]<>"P"), $G$28*MP_1[[#This Row],[Suunniteltu l/s]], IF(AND(MP_1[[#This Row],[-]]="P", MP_1[[#This Row],[+]]="T"), "T/P", "") ) )/SQRT(MP_1[[#This Row],[Paine Pa]]), _xlpm.filt, _xlfn._xlws.FILTER( Hakemisto[], (Hakemisto[Tyyppi]=MP_1[[#This Row],[Päätelaite Mittapiste]]) * (Hakemisto[Koko]=MP_1[[#This Row],[Koko Ød]]) * (IFERROR(--Hakemisto[asento], -1E+99) = IFERROR(--MP_1[[#This Row],[Avaus mm]], -1E+99)) ), _xlpm.colIndex, MATCH("k-arvo", Hakemisto[#Headers], 0), _xlpm.kValues, INDEX(_xlpm.filt, 0, _xlpm.colIndex), _xlpm.diffs, ABS(_xlpm.kValues - _xlpm.comp), _xlpm.minDiff, MIN(_xlpm.diffs), INDEX(_xlpm.kValues, MATCH(_xlpm.minDiff, _xlpm.diffs, 0)) ) ), "" ) ->  | K19: =_xlfn.LET(_xlpm.suunniteltu, INDIRECT("F"&ROW()), _xlpm.mitattu, INDIRECT("H"&ROW()), IF(OR(_xlpm.suunniteltu="", _xlpm.mitattu="", _xlpm.mitattu=0), " ", (_xlpm.mitattu/_xlpm.suunniteltu))) ->  | L19: =IFERROR(IF(AND(MP_1[[#This Row],[-]]="P", MP_1[[#This Row],[+]]<>"T"), $H$28*MP_1[[#This Row],[Suunniteltu l/s]]/100, IF(AND(MP_1[[#This Row],[+]]="T", MP_1[[#This Row],[-]]<>"P"), $G$28*MP_1[[#This Row],[Suunniteltu l/s]]/100, IF(AND(MP_1[[#This Row],[-]]="P", MP_1[[#This Row],[+]]="T"), "T/P", "") ) ),"") ->  | M19: =IFERROR(IF(MP_1[[#This Row],[tulo]]=TRUE,"T",""),"") ->  | N19: =IFERROR(IF(MP_1[[#This Row],[poisto]]=TRUE,"P",""),"") ->  | O19: =IFERROR(IF( ISBLANK(MP_1[[#This Row],[Päätelaite Mittapiste]]), "", IF( SUM( _xlfn._xlws.FILTER( (Hakemisto[Tyyppi]=MP_1[[#This Row],[Päätelaite Mittapiste]]) * (Hakemisto[Koko]=MP_1[[#This Row],[Koko Ød]]) * ((Hakemisto[Tulo]="x") + (Hakemisto[Tulo]=1)), (Hakemisto[Tyyppi]=MP_1[[#This Row],[Päätelaite Mittapiste]]) ) ) > 0, TRUE, FALSE ) ),"") ->  | P19: =IFERROR(IF( ISBLANK(MP_1[[#This Row],[Päätelaite Mittapiste]]), "", IF( SUM( _xlfn._xlws.FILTER( (Hakemisto[Tyyppi]=MP_1[[#This Row],[Päätelaite Mittapiste]]) * (Hakemisto[Koko]=MP_1[[#This Row],[Koko Ød]]) * ((Hakemisto[Poisto]="x") + (Hakemisto[Poisto]=1)), (Hakemisto[Tyyppi]=MP_1[[#This Row],[Päätelaite Mittapiste]]) ) ) > 0, TRUE, FALSE ) ),"") ->  | R19: =IF((MP_1[[#This Row],[★]]=""),"",MP_1[[#This Row],[★]]) -> 
H20: =IFERROR( _xlfn.LET( _xlpm.paine, MP_1[[#This Row],[Paine Pa]], _xlpm.k, MP_1[[#This Row],[Kerroin k-arvo]], IF(OR(_xlpm.paine="", _xlpm.k=""), "", _xlpm.k*SQRT(_xlpm.paine)) ), "") ->  | I20: =IF( MP_1[[#This Row],[Lukitse avaus]]<>"", VALUE(MP_1[[#This Row],[Lukitse avaus]]), säätöasento( MP_1[[#This Row],[Päätelaite Mittapiste]], MP_1[[#This Row],[Koko Ød]], MP_1[[#This Row],[Tavoite l/s]], MP_1[[#This Row],[Paine Pa]], Hakemisto[] ) ) ->  | J20: =IFERROR( IF( OR( ISBLANK(MP_1[[#This Row],[Päätelaite Mittapiste]]), ISBLANK(MP_1[[#This Row],[Koko Ød]]), ISBLANK(MP_1[[#This Row],[Avaus mm]]), ISBLANK(MP_1[[#This Row],[Paine Pa]]) ), "", _xlfn.LET( _xlpm.comp, MP_1[[#This Row],[Suunniteltu l/s]]*IF( AND(MP_1[[#This Row],[-]]="P", MP_1[[#This Row],[+]]<>"T"), $H$28*MP_1[[#This Row],[Suunniteltu l/s]], IF( AND(MP_1[[#This Row],[+]]="T", MP_1[[#This Row],[-]]<>"P"), $G$28*MP_1[[#This Row],[Suunniteltu l/s]], IF(AND(MP_1[[#This Row],[-]]="P", MP_1[[#This Row],[+]]="T"), "T/P", "") ) )/SQRT(MP_1[[#This Row],[Paine Pa]]), _xlpm.filt, _xlfn._xlws.FILTER( Hakemisto[], (Hakemisto[Tyyppi]=MP_1[[#This Row],[Päätelaite Mittapiste]]) * (Hakemisto[Koko]=MP_1[[#This Row],[Koko Ød]]) * (IFERROR(--Hakemisto[asento], -1E+99) = IFERROR(--MP_1[[#This Row],[Avaus mm]], -1E+99)) ), _xlpm.colIndex, MATCH("k-arvo", Hakemisto[#Headers], 0), _xlpm.kValues, INDEX(_xlpm.filt, 0, _xlpm.colIndex), _xlpm.diffs, ABS(_xlpm.kValues - _xlpm.comp), _xlpm.minDiff, MIN(_xlpm.diffs), INDEX(_xlpm.kValues, MATCH(_xlpm.minDiff, _xlpm.diffs, 0)) ) ), "" ) ->  | K20: =_xlfn.LET(_xlpm.suunniteltu, INDIRECT("F"&ROW()), _xlpm.mitattu, INDIRECT("H"&ROW()), IF(OR(_xlpm.suunniteltu="", _xlpm.mitattu="", _xlpm.mitattu=0), " ", (_xlpm.mitattu/_xlpm.suunniteltu))) ->  | L20: =IFERROR(IF(AND(MP_1[[#This Row],[-]]="P", MP_1[[#This Row],[+]]<>"T"), $H$28*MP_1[[#This Row],[Suunniteltu l/s]]/100, IF(AND(MP_1[[#This Row],[+]]="T", MP_1[[#This Row],[-]]<>"P"), $G$28*MP_1[[#This Row],[Suunniteltu l/s]]/100, IF(AND(MP_1[[#This Row],[-]]="P", MP_1[[#This Row],[+]]="T"), "T/P", "") ) ),"") ->  | M20: =IFERROR(IF(MP_1[[#This Row],[tulo]]=TRUE,"T",""),"") ->  | N20: =IFERROR(IF(MP_1[[#This Row],[poisto]]=TRUE,"P",""),"") ->  | O20: =IFERROR(IF( ISBLANK(MP_1[[#This Row],[Päätelaite Mittapiste]]), "", IF( SUM( _xlfn._xlws.FILTER( (Hakemisto[Tyyppi]=MP_1[[#This Row],[Päätelaite Mittapiste]]) * (Hakemisto[Koko]=MP_1[[#This Row],[Koko Ød]]) * ((Hakemisto[Tulo]="x") + (Hakemisto[Tulo]=1)), (Hakemisto[Tyyppi]=MP_1[[#This Row],[Päätelaite Mittapiste]]) ) ) > 0, TRUE, FALSE ) ),"") ->  | P20: =IFERROR(IF( ISBLANK(MP_1[[#This Row],[Päätelaite Mittapiste]]), "", IF( SUM( _xlfn._xlws.FILTER( (Hakemisto[Tyyppi]=MP_1[[#This Row],[Päätelaite Mittapiste]]) * (Hakemisto[Koko]=MP_1[[#This Row],[Koko Ød]]) * ((Hakemisto[Poisto]="x") + (Hakemisto[Poisto]=1)), (Hakemisto[Tyyppi]=MP_1[[#This Row],[Päätelaite Mittapiste]]) ) ) > 0, TRUE, FALSE ) ),"") ->  | R20: =IF((MP_1[[#This Row],[★]]=""),"",MP_1[[#This Row],[★]]) -> 
H21: =IFERROR( _xlfn.LET( _xlpm.paine, MP_1[[#This Row],[Paine Pa]], _xlpm.k, MP_1[[#This Row],[Kerroin k-arvo]], IF(OR(_xlpm.paine="", _xlpm.k=""), "", _xlpm.k*SQRT(_xlpm.paine)) ), "") ->  | I21: =IF( MP_1[[#This Row],[Lukitse avaus]]<>"", VALUE(MP_1[[#This Row],[Lukitse avaus]]), säätöasento( MP_1[[#This Row],[Päätelaite Mittapiste]], MP_1[[#This Row],[Koko Ød]], MP_1[[#This Row],[Tavoite l/s]], MP_1[[#This Row],[Paine Pa]], Hakemisto[] ) ) ->  | J21: =IFERROR( IF( OR( ISBLANK(MP_1[[#This Row],[Päätelaite Mittapiste]]), ISBLANK(MP_1[[#This Row],[Koko Ød]]), ISBLANK(MP_1[[#This Row],[Avaus mm]]), ISBLANK(MP_1[[#This Row],[Paine Pa]]) ), "", _xlfn.LET( _xlpm.comp, MP_1[[#This Row],[Suunniteltu l/s]]*IF( AND(MP_1[[#This Row],[-]]="P", MP_1[[#This Row],[+]]<>"T"), $H$28*MP_1[[#This Row],[Suunniteltu l/s]], IF( AND(MP_1[[#This Row],[+]]="T", MP_1[[#This Row],[-]]<>"P"), $G$28*MP_1[[#This Row],[Suunniteltu l/s]], IF(AND(MP_1[[#This Row],[-]]="P", MP_1[[#This Row],[+]]="T"), "T/P", "") ) )/SQRT(MP_1[[#This Row],[Paine Pa]]), _xlpm.filt, _xlfn._xlws.FILTER( Hakemisto[], (Hakemisto[Tyyppi]=MP_1[[#This Row],[Päätelaite Mittapiste]]) * (Hakemisto[Koko]=MP_1[[#This Row],[Koko Ød]]) * (IFERROR(--Hakemisto[asento], -1E+99) = IFERROR(--MP_1[[#This Row],[Avaus mm]], -1E+99)) ), _xlpm.colIndex, MATCH("k-arvo", Hakemisto[#Headers], 0), _xlpm.kValues, INDEX(_xlpm.filt, 0, _xlpm.colIndex), _xlpm.diffs, ABS(_xlpm.kValues - _xlpm.comp), _xlpm.minDiff, MIN(_xlpm.diffs), INDEX(_xlpm.kValues, MATCH(_xlpm.minDiff, _xlpm.diffs, 0)) ) ), "" ) ->  | K21: =_xlfn.LET(_xlpm.suunniteltu, INDIRECT("F"&ROW()), _xlpm.mitattu, INDIRECT("H"&ROW()), IF(OR(_xlpm.suunniteltu="", _xlpm.mitattu="", _xlpm.mitattu=0), " ", (_xlpm.mitattu/_xlpm.suunniteltu))) ->  | L21: =IFERROR(IF(AND(MP_1[[#This Row],[-]]="P", MP_1[[#This Row],[+]]<>"T"), $H$28*MP_1[[#This Row],[Suunniteltu l/s]]/100, IF(AND(MP_1[[#This Row],[+]]="T", MP_1[[#This Row],[-]]<>"P"), $G$28*MP_1[[#This Row],[Suunniteltu l/s]]/100, IF(AND(MP_1[[#This Row],[-]]="P", MP_1[[#This Row],[+]]="T"), "T/P", "") ) ),"") ->  | M21: =IFERROR(IF(MP_1[[#This Row],[tulo]]=TRUE,"T",""),"") ->  | N21: =IFERROR(IF(MP_1[[#This Row],[poisto]]=TRUE,"P",""),"") ->  | O21: =IFERROR(IF( ISBLANK(MP_1[[#This Row],[Päätelaite Mittapiste]]), "", IF( SUM( _xlfn._xlws.FILTER( (Hakemisto[Tyyppi]=MP_1[[#This Row],[Päätelaite Mittapiste]]) * (Hakemisto[Koko]=MP_1[[#This Row],[Koko Ød]]) * ((Hakemisto[Tulo]="x") + (Hakemisto[Tulo]=1)), (Hakemisto[Tyyppi]=MP_1[[#This Row],[Päätelaite Mittapiste]]) ) ) > 0, TRUE, FALSE ) ),"") ->  | P21: =IFERROR(IF( ISBLANK(MP_1[[#This Row],[Päätelaite Mittapiste]]), "", IF( SUM( _xlfn._xlws.FILTER( (Hakemisto[Tyyppi]=MP_1[[#This Row],[Päätelaite Mittapiste]]) * (Hakemisto[Koko]=MP_1[[#This Row],[Koko Ød]]) * ((Hakemisto[Poisto]="x") + (Hakemisto[Poisto]=1)), (Hakemisto[Tyyppi]=MP_1[[#This Row],[Päätelaite Mittapiste]]) ) ) > 0, TRUE, FALSE ) ),"") ->  | R21: =IF((MP_1[[#This Row],[★]]=""),"",MP_1[[#This Row],[★]]) -> 
H22: =IFERROR( _xlfn.LET( _xlpm.paine, MP_1[[#This Row],[Paine Pa]], _xlpm.k, MP_1[[#This Row],[Kerroin k-arvo]], IF(OR(_xlpm.paine="", _xlpm.k=""), "", _xlpm.k*SQRT(_xlpm.paine)) ), "") ->  | I22: =IF( MP_1[[#This Row],[Lukitse avaus]]<>"", VALUE(MP_1[[#This Row],[Lukitse avaus]]), säätöasento( MP_1[[#This Row],[Päätelaite Mittapiste]], MP_1[[#This Row],[Koko Ød]], MP_1[[#This Row],[Tavoite l/s]], MP_1[[#This Row],[Paine Pa]], Hakemisto[] ) ) ->  | J22: =IFERROR( IF( OR( ISBLANK(MP_1[[#This Row],[Päätelaite Mittapiste]]), ISBLANK(MP_1[[#This Row],[Koko Ød]]), ISBLANK(MP_1[[#This Row],[Avaus mm]]), ISBLANK(MP_1[[#This Row],[Paine Pa]]) ), "", _xlfn.LET( _xlpm.comp, MP_1[[#This Row],[Suunniteltu l/s]]*IF( AND(MP_1[[#This Row],[-]]="P", MP_1[[#This Row],[+]]<>"T"), $H$28*MP_1[[#This Row],[Suunniteltu l/s]], IF( AND(MP_1[[#This Row],[+]]="T", MP_1[[#This Row],[-]]<>"P"), $G$28*MP_1[[#This Row],[Suunniteltu l/s]], IF(AND(MP_1[[#This Row],[-]]="P", MP_1[[#This Row],[+]]="T"), "T/P", "") ) )/SQRT(MP_1[[#This Row],[Paine Pa]]), _xlpm.filt, _xlfn._xlws.FILTER( Hakemisto[], (Hakemisto[Tyyppi]=MP_1[[#This Row],[Päätelaite Mittapiste]]) * (Hakemisto[Koko]=MP_1[[#This Row],[Koko Ød]]) * (IFERROR(--Hakemisto[asento], -1E+99) = IFERROR(--MP_1[[#This Row],[Avaus mm]], -1E+99)) ), _xlpm.colIndex, MATCH("k-arvo", Hakemisto[#Headers], 0), _xlpm.kValues, INDEX(_xlpm.filt, 0, _xlpm.colIndex), _xlpm.diffs, ABS(_xlpm.kValues - _xlpm.comp), _xlpm.minDiff, MIN(_xlpm.diffs), INDEX(_xlpm.kValues, MATCH(_xlpm.minDiff, _xlpm.diffs, 0)) ) ), "" ) ->  | K22: =_xlfn.LET(_xlpm.suunniteltu, INDIRECT("F"&ROW()), _xlpm.mitattu, INDIRECT("H"&ROW()), IF(OR(_xlpm.suunniteltu="", _xlpm.mitattu="", _xlpm.mitattu=0), " ", (_xlpm.mitattu/_xlpm.suunniteltu))) ->  | L22: =IFERROR(IF(AND(MP_1[[#This Row],[-]]="P", MP_1[[#This Row],[+]]<>"T"), $H$28*MP_1[[#This Row],[Suunniteltu l/s]]/100, IF(AND(MP_1[[#This Row],[+]]="T", MP_1[[#This Row],[-]]<>"P"), $G$28*MP_1[[#This Row],[Suunniteltu l/s]]/100, IF(AND(MP_1[[#This Row],[-]]="P", MP_1[[#This Row],[+]]="T"), "T/P", "") ) ),"") ->  | M22: =IFERROR(IF(MP_1[[#This Row],[tulo]]=TRUE,"T",""),"") ->  | N22: =IFERROR(IF(MP_1[[#This Row],[poisto]]=TRUE,"P",""),"") ->  | O22: =IFERROR(IF( ISBLANK(MP_1[[#This Row],[Päätelaite Mittapiste]]), "", IF( SUM( _xlfn._xlws.FILTER( (Hakemisto[Tyyppi]=MP_1[[#This Row],[Päätelaite Mittapiste]]) * (Hakemisto[Koko]=MP_1[[#This Row],[Koko Ød]]) * ((Hakemisto[Tulo]="x") + (Hakemisto[Tulo]=1)), (Hakemisto[Tyyppi]=MP_1[[#This Row],[Päätelaite Mittapiste]]) ) ) > 0, TRUE, FALSE ) ),"") ->  | P22: =IFERROR(IF( ISBLANK(MP_1[[#This Row],[Päätelaite Mittapiste]]), "", IF( SUM( _xlfn._xlws.FILTER( (Hakemisto[Tyyppi]=MP_1[[#This Row],[Päätelaite Mittapiste]]) * (Hakemisto[Koko]=MP_1[[#This Row],[Koko Ød]]) * ((Hakemisto[Poisto]="x") + (Hakemisto[Poisto]=1)), (Hakemisto[Tyyppi]=MP_1[[#This Row],[Päätelaite Mittapiste]]) ) ) > 0, TRUE, FALSE ) ),"") ->  | R22: =IF((MP_1[[#This Row],[★]]=""),"",MP_1[[#This Row],[★]]) -> 
H23: =IFERROR( _xlfn.LET( _xlpm.paine, MP_1[[#This Row],[Paine Pa]], _xlpm.k, MP_1[[#This Row],[Kerroin k-arvo]], IF(OR(_xlpm.paine="", _xlpm.k=""), "", _xlpm.k*SQRT(_xlpm.paine)) ), "") ->  | I23: =IF( MP_1[[#This Row],[Lukitse avaus]]<>"", VALUE(MP_1[[#This Row],[Lukitse avaus]]), säätöasento( MP_1[[#This Row],[Päätelaite Mittapiste]], MP_1[[#This Row],[Koko Ød]], MP_1[[#This Row],[Tavoite l/s]], MP_1[[#This Row],[Paine Pa]], Hakemisto[] ) ) ->  | J23: =IFERROR( IF( OR( ISBLANK(MP_1[[#This Row],[Päätelaite Mittapiste]]), ISBLANK(MP_1[[#This Row],[Koko Ød]]), ISBLANK(MP_1[[#This Row],[Avaus mm]]), ISBLANK(MP_1[[#This Row],[Paine Pa]]) ), "", _xlfn.LET( _xlpm.comp, MP_1[[#This Row],[Suunniteltu l/s]]*IF( AND(MP_1[[#This Row],[-]]="P", MP_1[[#This Row],[+]]<>"T"), $H$28*MP_1[[#This Row],[Suunniteltu l/s]], IF( AND(MP_1[[#This Row],[+]]="T", MP_1[[#This Row],[-]]<>"P"), $G$28*MP_1[[#This Row],[Suunniteltu l/s]], IF(AND(MP_1[[#This Row],[-]]="P", MP_1[[#This Row],[+]]="T"), "T/P", "") ) )/SQRT(MP_1[[#This Row],[Paine Pa]]), _xlpm.filt, _xlfn._xlws.FILTER( Hakemisto[], (Hakemisto[Tyyppi]=MP_1[[#This Row],[Päätelaite Mittapiste]]) * (Hakemisto[Koko]=MP_1[[#This Row],[Koko Ød]]) * (IFERROR(--Hakemisto[asento], -1E+99) = IFERROR(--MP_1[[#This Row],[Avaus mm]], -1E+99)) ), _xlpm.colIndex, MATCH("k-arvo", Hakemisto[#Headers], 0), _xlpm.kValues, INDEX(_xlpm.filt, 0, _xlpm.colIndex), _xlpm.diffs, ABS(_xlpm.kValues - _xlpm.comp), _xlpm.minDiff, MIN(_xlpm.diffs), INDEX(_xlpm.kValues, MATCH(_xlpm.minDiff, _xlpm.diffs, 0)) ) ), "" ) ->  | K23: =_xlfn.LET(_xlpm.suunniteltu, INDIRECT("F"&ROW()), _xlpm.mitattu, INDIRECT("H"&ROW()), IF(OR(_xlpm.suunniteltu="", _xlpm.mitattu="", _xlpm.mitattu=0), " ", (_xlpm.mitattu/_xlpm.suunniteltu))) ->  | L23: =IFERROR(IF(AND(MP_1[[#This Row],[-]]="P", MP_1[[#This Row],[+]]<>"T"), $H$28*MP_1[[#This Row],[Suunniteltu l/s]]/100, IF(AND(MP_1[[#This Row],[+]]="T", MP_1[[#This Row],[-]]<>"P"), $G$28*MP_1[[#This Row],[Suunniteltu l/s]]/100, IF(AND(MP_1[[#This Row],[-]]="P", MP_1[[#This Row],[+]]="T"), "T/P", "") ) ),"") ->  | M23: =IFERROR(IF(MP_1[[#This Row],[tulo]]=TRUE,"T",""),"") ->  | N23: =IFERROR(IF(MP_1[[#This Row],[poisto]]=TRUE,"P",""),"") ->  | O23: =IFERROR(IF( ISBLANK(MP_1[[#This Row],[Päätelaite Mittapiste]]), "", IF( SUM( _xlfn._xlws.FILTER( (Hakemisto[Tyyppi]=MP_1[[#This Row],[Päätelaite Mittapiste]]) * (Hakemisto[Koko]=MP_1[[#This Row],[Koko Ød]]) * ((Hakemisto[Tulo]="x") + (Hakemisto[Tulo]=1)), (Hakemisto[Tyyppi]=MP_1[[#This Row],[Päätelaite Mittapiste]]) ) ) > 0, TRUE, FALSE ) ),"") ->  | P23: =IFERROR(IF( ISBLANK(MP_1[[#This Row],[Päätelaite Mittapiste]]), "", IF( SUM( _xlfn._xlws.FILTER( (Hakemisto[Tyyppi]=MP_1[[#This Row],[Päätelaite Mittapiste]]) * (Hakemisto[Koko]=MP_1[[#This Row],[Koko Ød]]) * ((Hakemisto[Poisto]="x") + (Hakemisto[Poisto]=1)), (Hakemisto[Tyyppi]=MP_1[[#This Row],[Päätelaite Mittapiste]]) ) ) > 0, TRUE, FALSE ) ),"") ->  | R23: =IF((MP_1[[#This Row],[★]]=""),"",MP_1[[#This Row],[★]]) -> 
H24: =IFERROR( _xlfn.LET( _xlpm.paine, MP_1[[#This Row],[Paine Pa]], _xlpm.k, MP_1[[#This Row],[Kerroin k-arvo]], IF(OR(_xlpm.paine="", _xlpm.k=""), "", _xlpm.k*SQRT(_xlpm.paine)) ), "") ->  | I24: =IF( MP_1[[#This Row],[Lukitse avaus]]<>"", VALUE(MP_1[[#This Row],[Lukitse avaus]]), säätöasento( MP_1[[#This Row],[Päätelaite Mittapiste]], MP_1[[#This Row],[Koko Ød]], MP_1[[#This Row],[Tavoite l/s]], MP_1[[#This Row],[Paine Pa]], Hakemisto[] ) ) ->  | J24: =IFERROR( IF( OR( ISBLANK(MP_1[[#This Row],[Päätelaite Mittapiste]]), ISBLANK(MP_1[[#This Row],[Koko Ød]]), ISBLANK(MP_1[[#This Row],[Avaus mm]]), ISBLANK(MP_1[[#This Row],[Paine Pa]]) ), "", _xlfn.LET( _xlpm.comp, MP_1[[#This Row],[Suunniteltu l/s]]*IF( AND(MP_1[[#This Row],[-]]="P", MP_1[[#This Row],[+]]<>"T"), $H$28*MP_1[[#This Row],[Suunniteltu l/s]], IF( AND(MP_1[[#This Row],[+]]="T", MP_1[[#This Row],[-]]<>"P"), $G$28*MP_1[[#This Row],[Suunniteltu l/s]], IF(AND(MP_1[[#This Row],[-]]="P", MP_1[[#This Row],[+]]="T"), "T/P", "") ) )/SQRT(MP_1[[#This Row],[Paine Pa]]), _xlpm.filt, _xlfn._xlws.FILTER( Hakemisto[], (Hakemisto[Tyyppi]=MP_1[[#This Row],[Päätelaite Mittapiste]]) * (Hakemisto[Koko]=MP_1[[#This Row],[Koko Ød]]) * (IFERROR(--Hakemisto[asento], -1E+99) = IFERROR(--MP_1[[#This Row],[Avaus mm]], -1E+99)) ), _xlpm.colIndex, MATCH("k-arvo", Hakemisto[#Headers], 0), _xlpm.kValues, INDEX(_xlpm.filt, 0, _xlpm.colIndex), _xlpm.diffs, ABS(_xlpm.kValues - _xlpm.comp), _xlpm.minDiff, MIN(_xlpm.diffs), INDEX(_xlpm.kValues, MATCH(_xlpm.minDiff, _xlpm.diffs, 0)) ) ), "" ) ->  | K24: =_xlfn.LET(_xlpm.suunniteltu, INDIRECT("F"&ROW()), _xlpm.mitattu, INDIRECT("H"&ROW()), IF(OR(_xlpm.suunniteltu="", _xlpm.mitattu="", _xlpm.mitattu=0), " ", (_xlpm.mitattu/_xlpm.suunniteltu))) ->  | L24: =IFERROR(IF(AND(MP_1[[#This Row],[-]]="P", MP_1[[#This Row],[+]]<>"T"), $H$28*MP_1[[#This Row],[Suunniteltu l/s]]/100, IF(AND(MP_1[[#This Row],[+]]="T", MP_1[[#This Row],[-]]<>"P"), $G$28*MP_1[[#This Row],[Suunniteltu l/s]]/100, IF(AND(MP_1[[#This Row],[-]]="P", MP_1[[#This Row],[+]]="T"), "T/P", "") ) ),"") ->  | M24: =IFERROR(IF(MP_1[[#This Row],[tulo]]=TRUE,"T",""),"") ->  | N24: =IFERROR(IF(MP_1[[#This Row],[poisto]]=TRUE,"P",""),"") ->  | O24: =IFERROR(IF( ISBLANK(MP_1[[#This Row],[Päätelaite Mittapiste]]), "", IF( SUM( _xlfn._xlws.FILTER( (Hakemisto[Tyyppi]=MP_1[[#This Row],[Päätelaite Mittapiste]]) * (Hakemisto[Koko]=MP_1[[#This Row],[Koko Ød]]) * ((Hakemisto[Tulo]="x") + (Hakemisto[Tulo]=1)), (Hakemisto[Tyyppi]=MP_1[[#This Row],[Päätelaite Mittapiste]]) ) ) > 0, TRUE, FALSE ) ),"") ->  | P24: =IFERROR(IF( ISBLANK(MP_1[[#This Row],[Päätelaite Mittapiste]]), "", IF( SUM( _xlfn._xlws.FILTER( (Hakemisto[Tyyppi]=MP_1[[#This Row],[Päätelaite Mittapiste]]) * (Hakemisto[Koko]=MP_1[[#This Row],[Koko Ød]]) * ((Hakemisto[Poisto]="x") + (Hakemisto[Poisto]=1)), (Hakemisto[Tyyppi]=MP_1[[#This Row],[Päätelaite Mittapiste]]) ) ) > 0, TRUE, FALSE ) ),"") ->  | R24: =IF((MP_1[[#This Row],[★]]=""),"",MP_1[[#This Row],[★]]) -> 
H25: =IFERROR( _xlfn.LET( _xlpm.paine, MP_1[[#This Row],[Paine Pa]], _xlpm.k, MP_1[[#This Row],[Kerroin k-arvo]], IF(OR(_xlpm.paine="", _xlpm.k=""), "", _xlpm.k*SQRT(_xlpm.paine)) ), "") ->  | I25: =IF( MP_1[[#This Row],[Lukitse avaus]]<>"", VALUE(MP_1[[#This Row],[Lukitse avaus]]), säätöasento( MP_1[[#This Row],[Päätelaite Mittapiste]], MP_1[[#This Row],[Koko Ød]], MP_1[[#This Row],[Tavoite l/s]], MP_1[[#This Row],[Paine Pa]], Hakemisto[] ) ) ->  | J25: =IFERROR( IF( OR( ISBLANK(MP_1[[#This Row],[Päätelaite Mittapiste]]), ISBLANK(MP_1[[#This Row],[Koko Ød]]), ISBLANK(MP_1[[#This Row],[Avaus mm]]), ISBLANK(MP_1[[#This Row],[Paine Pa]]) ), "", _xlfn.LET( _xlpm.comp, MP_1[[#This Row],[Suunniteltu l/s]]*IF( AND(MP_1[[#This Row],[-]]="P", MP_1[[#This Row],[+]]<>"T"), $H$28*MP_1[[#This Row],[Suunniteltu l/s]], IF( AND(MP_1[[#This Row],[+]]="T", MP_1[[#This Row],[-]]<>"P"), $G$28*MP_1[[#This Row],[Suunniteltu l/s]], IF(AND(MP_1[[#This Row],[-]]="P", MP_1[[#This Row],[+]]="T"), "T/P", "") ) )/SQRT(MP_1[[#This Row],[Paine Pa]]), _xlpm.filt, _xlfn._xlws.FILTER( Hakemisto[], (Hakemisto[Tyyppi]=MP_1[[#This Row],[Päätelaite Mittapiste]]) * (Hakemisto[Koko]=MP_1[[#This Row],[Koko Ød]]) * (IFERROR(--Hakemisto[asento], -1E+99) = IFERROR(--MP_1[[#This Row],[Avaus mm]], -1E+99)) ), _xlpm.colIndex, MATCH("k-arvo", Hakemisto[#Headers], 0), _xlpm.kValues, INDEX(_xlpm.filt, 0, _xlpm.colIndex), _xlpm.diffs, ABS(_xlpm.kValues - _xlpm.comp), _xlpm.minDiff, MIN(_xlpm.diffs), INDEX(_xlpm.kValues, MATCH(_xlpm.minDiff, _xlpm.diffs, 0)) ) ), "" ) ->  | K25: =_xlfn.LET(_xlpm.suunniteltu, INDIRECT("F"&ROW()), _xlpm.mitattu, INDIRECT("H"&ROW()), IF(OR(_xlpm.suunniteltu="", _xlpm.mitattu="", _xlpm.mitattu=0), " ", (_xlpm.mitattu/_xlpm.suunniteltu))) ->  | L25: =IFERROR(IF(AND(MP_1[[#This Row],[-]]="P", MP_1[[#This Row],[+]]<>"T"), $H$28*MP_1[[#This Row],[Suunniteltu l/s]]/100, IF(AND(MP_1[[#This Row],[+]]="T", MP_1[[#This Row],[-]]<>"P"), $G$28*MP_1[[#This Row],[Suunniteltu l/s]]/100, IF(AND(MP_1[[#This Row],[-]]="P", MP_1[[#This Row],[+]]="T"), "T/P", "") ) ),"") ->  | M25: =IFERROR(IF(MP_1[[#This Row],[tulo]]=TRUE,"T",""),"") ->  | N25: =IFERROR(IF(MP_1[[#This Row],[poisto]]=TRUE,"P",""),"") ->  | O25: =IFERROR(IF( ISBLANK(MP_1[[#This Row],[Päätelaite Mittapiste]]), "", IF( SUM( _xlfn._xlws.FILTER( (Hakemisto[Tyyppi]=MP_1[[#This Row],[Päätelaite Mittapiste]]) * (Hakemisto[Koko]=MP_1[[#This Row],[Koko Ød]]) * ((Hakemisto[Tulo]="x") + (Hakemisto[Tulo]=1)), (Hakemisto[Tyyppi]=MP_1[[#This Row],[Päätelaite Mittapiste]]) ) ) > 0, TRUE, FALSE ) ),"") ->  | P25: =IFERROR(IF( ISBLANK(MP_1[[#This Row],[Päätelaite Mittapiste]]), "", IF( SUM( _xlfn._xlws.FILTER( (Hakemisto[Tyyppi]=MP_1[[#This Row],[Päätelaite Mittapiste]]) * (Hakemisto[Koko]=MP_1[[#This Row],[Koko Ød]]) * ((Hakemisto[Poisto]="x") + (Hakemisto[Poisto]=1)), (Hakemisto[Tyyppi]=MP_1[[#This Row],[Päätelaite Mittapiste]]) ) ) > 0, TRUE, FALSE ) ),"") ->  | R25: =IF((MP_1[[#This Row],[★]]=""),"",MP_1[[#This Row],[★]]) -> 
E26: =IFERROR( _xlfn.LET( _xlpm.mit, SUMIFS( MP_1[Mitattu l/s], MP_1[-], "P" ), _xlpm.suu, SUMIFS( MP_1[Suunniteltu l/s], MP_1[-], "P" ), _xlpm.diff, IF(_xlpm.suu<>0, (_xlpm.mit / _xlpm.suu), ""), _xlpm.r, ROUND(_xlpm.diff*100, 1), IF(_xlpm.r<>"", _xlpm.r & " (P%)", "") ), "" ) -> 71,6 (P%) | F26: =IFERROR( _xlfn.LET( _xlpm.s, SUMIFS( MP_1[Suunniteltu l/s], MP_1[-], "P" ), _xlpm.r, ROUND(_xlpm.s, 1), IF(_xlpm.r>0, _xlpm.r & " l/s (Poisto suunnit.)", "") ), "" ) -> 25 l/s (Poisto suunnit.) | H26: =IFERROR( _xlfn.LET( _xlpm.s, SUMIFS( MP_1[Mitattu l/s], MP_1[-], "P" ), _xlpm.r, ROUND(_xlpm.s, 1), IF(_xlpm.r>0, _xlpm.r & " l/s (Poisto mitattu)", "") ), "" ) -> 17,9 l/s (Poisto mitattu)
B27: 1 | C27: ↑ | D27: =IFERROR( _xlfn.LET( _xlpm.s, SUMIFS( MP_1[Mitattu l/s], MP_1[+], "", MP_1[-], "" ) + SUMIFS( MP_1[Mitattu l/s], MP_1[+], "T", MP_1[-], "P" ), _xlpm.r, ROUND(_xlpm.s, 1), IF(_xlpm.r>0, "tarkista T/P " & _xlpm.r & " l/s", "") ), "" ) ->  | E27: =IFERROR( _xlfn.LET( _xlpm.mit, SUMIFS( MP_1[Mitattu l/s], MP_1[+], "T" ), _xlpm.suu, SUMIFS( MP_1[Suunniteltu l/s], MP_1[+], "T" ), _xlpm.diff, IF(_xlpm.suu<>0, (_xlpm.mit / _xlpm.suu), ""), _xlpm.r, ROUND(_xlpm.diff*100, 1), IF(_xlpm.r<>"", _xlpm.r & " (T%)", "") ), "" ) -> 50,5 (T%) | F27: =IFERROR( _xlfn.LET( _xlpm.s, SUMIFS( MP_1[Suunniteltu l/s], MP_1[+], "T" ), _xlpm.r, ROUND(_xlpm.s, 1), IF(_xlpm.r>0, _xlpm.r & " l/s (Tulo suunnit.)", "") ), "" ) -> 25 l/s (Tulo suunnit.) | H27: =IFERROR( _xlfn.LET( _xlpm.s, SUMIFS( MP_1[Mitattu l/s], MP_1[+], "T" ), _xlpm.r, ROUND(_xlpm.s, 1), IF(_xlpm.r>0, _xlpm.r & " l/s (Tulo mitattu)", "") ), "" ) -> 12,6 l/s (Tulo mitattu)
F28: Tavoite tulo % | G28: =IFERROR(INDEX(MP_REF[Seuranta %]*100, MATCH("RT", MP_REF[Merkitse RP / RT], 0)),"100") -> 100.0 | H28: =IFERROR(INDEX(MP_REF[Seuranta %]*100, MATCH("RP", MP_REF[Merkitse RP / RT], 0)),"100") -> 100.0 | I28: Tavoite poisto %
C30: Referenssiventtiilin haku | H30: Tulokset | J30: Muut tiedot
A31: KRS № | B31: Huone Tila | C31: Päätelaite Mittapiste | D31: Koko Ød | E31: Paine Pa | F31: Suunniteltu l/s | G31: Merkitse RP / RT | H31: Mitattu l/s | I31: Avaus mm | J31: Kerroin k-arvo | K31: Seuranta % | L31: Tavoite l/s | M31: + | N31: - | O31: tulo | P31: poisto | Q31: ★
A32: 1 | B32: Kylpyhuone | H32: =IFERROR(IF(OR(ISBLANK(MP_REF2[[#This Row],[Paine Pa]]), ISBLANK(MP_REF2[[#This Row],[Kerroin k-arvo]])), "",MP_REF2[[#This Row],[Kerroin k-arvo]]*SQRT(MP_REF2[[#This Row],[Paine Pa]])),"") ->  | J32: =IF(MP_REF2[[#This Row],[Päätelaite Mittapiste]]="", "",_xlfn.XLOOKUP(1,(Hakemisto[Tyyppi]=MP_REF2[[#This Row],[Päätelaite Mittapiste]])*(Hakemisto[Koko]=MP_REF2[[#This Row],[Koko Ød]])*(Hakemisto[asento]=MP_REF2[[#This Row],[Avaus mm]]), Hakemisto[k-arvo], "ei löydy")) ->  | K32: =_xlfn.LET(_xlpm.suunniteltu, INDIRECT("F"&ROW()), _xlpm.mitattu, INDIRECT("H"&ROW()), IF(OR(_xlpm.suunniteltu="", _xlpm.mitattu="", _xlpm.mitattu=0), " ", (_xlpm.mitattu/_xlpm.suunniteltu))) ->  | L32: =IFERROR(IF(AND(MP_REF2[[#This Row],[-]]="P", MP_REF2[[#This Row],[+]]<>"T"), $H$58*MP_REF2[[#This Row],[Suunniteltu l/s]]/100, IF(AND(MP_REF2[[#This Row],[+]]="T", MP_REF2[[#This Row],[-]]<>"P"), $G$58*MP_REF2[[#This Row],[Suunniteltu l/s]]/100, IF(AND(MP_REF2[[#This Row],[-]]="P", MP_REF2[[#This Row],[+]]="T"), "T/P", "") ) ),"") ->  | M32: =IFERROR(IF(MP_REF2[[#This Row],[tulo]]=TRUE,"T",""),"") ->  | N32: =IFERROR(IF(MP_REF2[[#This Row],[poisto]]=TRUE,"P",""),"") ->  | O32: =IFERROR(IF( ISBLANK(MP_REF2[[#This Row],[Päätelaite Mittapiste]]), "", IF( SUM( _xlfn._xlws.FILTER( (Hakemisto[Tyyppi]=MP_REF2[[#This Row],[Päätelaite Mittapiste]]) * (Hakemisto[Koko]=MP_REF2[[#This Row],[Koko Ød]]) * ((Hakemisto[Tulo]="x") + (Hakemisto[Tulo]=1)), (Hakemisto[Tyyppi]=MP_REF2[[#This Row],[Päätelaite Mittapiste]]) ) ) > 0, TRUE, FALSE ) ),"") ->  | P32: =IFERROR(IF( ISBLANK(MP_REF2[[#This Row],[Päätelaite Mittapiste]]), "", IF( SUM( _xlfn._xlws.FILTER( (Hakemisto[Tyyppi]=MP_REF2[[#This Row],[Päätelaite Mittapiste]]) * (Hakemisto[Koko]=MP_REF2[[#This Row],[Koko Ød]]) * ((Hakemisto[Poisto]="x") + (Hakemisto[Poisto]=1)), (Hakemisto[Tyyppi]=MP_REF2[[#This Row],[Päätelaite Mittapiste]]) ) ) > 0, TRUE, FALSE ) ),"") -> 
A33: 1 | B33: KHH | H33: =IFERROR(IF(OR(ISBLANK(MP_REF2[[#This Row],[Paine Pa]]), ISBLANK(MP_REF2[[#This Row],[Kerroin k-arvo]])), "",MP_REF2[[#This Row],[Kerroin k-arvo]]*SQRT(MP_REF2[[#This Row],[Paine Pa]])),"") ->  | J33: =IF(MP_REF2[[#This Row],[Päätelaite Mittapiste]]="", "",_xlfn.XLOOKUP(1,(Hakemisto[Tyyppi]=MP_REF2[[#This Row],[Päätelaite Mittapiste]])*(Hakemisto[Koko]=MP_REF2[[#This Row],[Koko Ød]])*(Hakemisto[asento]=MP_REF2[[#This Row],[Avaus mm]]), Hakemisto[k-arvo], "ei löydy")) ->  | K33: =_xlfn.LET(_xlpm.suunniteltu, INDIRECT("F"&ROW()), _xlpm.mitattu, INDIRECT("H"&ROW()), IF(OR(_xlpm.suunniteltu="", _xlpm.mitattu="", _xlpm.mitattu=0), " ", (_xlpm.mitattu/_xlpm.suunniteltu))) ->  | L33: =IFERROR(IF(AND(MP_REF2[[#This Row],[-]]="P", MP_REF2[[#This Row],[+]]<>"T"), $H$58*MP_REF2[[#This Row],[Suunniteltu l/s]]/100, IF(AND(MP_REF2[[#This Row],[+]]="T", MP_REF2[[#This Row],[-]]<>"P"), $G$58*MP_REF2[[#This Row],[Suunniteltu l/s]]/100, IF(AND(MP_REF2[[#This Row],[-]]="P", MP_REF2[[#This Row],[+]]="T"), "T/P", "") ) ),"") ->  | M33: =IFERROR(IF(MP_REF2[[#This Row],[tulo]]=TRUE,"T",""),"") ->  | N33: =IFERROR(IF(MP_REF2[[#This Row],[poisto]]=TRUE,"P",""),"") ->  | O33: =IFERROR(IF( ISBLANK(MP_REF2[[#This Row],[Päätelaite Mittapiste]]), "", IF( SUM( _xlfn._xlws.FILTER( (Hakemisto[Tyyppi]=MP_REF2[[#This Row],[Päätelaite Mittapiste]]) * (Hakemisto[Koko]=MP_REF2[[#This Row],[Koko Ød]]) * ((Hakemisto[Tulo]="x") + (Hakemisto[Tulo]=1)), (Hakemisto[Tyyppi]=MP_REF2[[#This Row],[Päätelaite Mittapiste]]) ) ) > 0, TRUE, FALSE ) ),"") ->  | P33: =IFERROR(IF( ISBLANK(MP_REF2[[#This Row],[Päätelaite Mittapiste]]), "", IF( SUM( _xlfn._xlws.FILTER( (Hakemisto[Tyyppi]=MP_REF2[[#This Row],[Päätelaite Mittapiste]]) * (Hakemisto[Koko]=MP_REF2[[#This Row],[Koko Ød]]) * ((Hakemisto[Poisto]="x") + (Hakemisto[Poisto]=1)), (Hakemisto[Tyyppi]=MP_REF2[[#This Row],[Päätelaite Mittapiste]]) ) ) > 0, TRUE, FALSE ) ),"") -> 
A34: 1 | B34: Olohuone | H34: =IFERROR(IF(OR(ISBLANK(MP_REF2[[#This Row],[Paine Pa]]), ISBLANK(MP_REF2[[#This Row],[Kerroin k-arvo]])), "",MP_REF2[[#This Row],[Kerroin k-arvo]]*SQRT(MP_REF2[[#This Row],[Paine Pa]])),"") ->  | J34: =IF(MP_REF2[[#This Row],[Päätelaite Mittapiste]]="", "",_xlfn.XLOOKUP(1,(Hakemisto[Tyyppi]=MP_REF2[[#This Row],[Päätelaite Mittapiste]])*(Hakemisto[Koko]=MP_REF2[[#This Row],[Koko Ød]])*(Hakemisto[asento]=MP_REF2[[#This Row],[Avaus mm]]), Hakemisto[k-arvo], "ei löydy")) ->  | K34: =_xlfn.LET(_xlpm.suunniteltu, INDIRECT("F"&ROW()), _xlpm.mitattu, INDIRECT("H"&ROW()), IF(OR(_xlpm.suunniteltu="", _xlpm.mitattu="", _xlpm.mitattu=0), " ", (_xlpm.mitattu/_xlpm.suunniteltu))) ->  | L34: =IFERROR(IF(AND(MP_REF2[[#This Row],[-]]="P", MP_REF2[[#This Row],[+]]<>"T"), $H$58*MP_REF2[[#This Row],[Suunniteltu l/s]]/100, IF(AND(MP_REF2[[#This Row],[+]]="T", MP_REF2[[#This Row],[-]]<>"P"), $G$58*MP_REF2[[#This Row],[Suunniteltu l/s]]/100, IF(AND(MP_REF2[[#This Row],[-]]="P", MP_REF2[[#This Row],[+]]="T"), "T/P", "") ) ),"") ->  | M34: =IFERROR(IF(MP_REF2[[#This Row],[tulo]]=TRUE,"T",""),"") ->  | N34: =IFERROR(IF(MP_REF2[[#This Row],[poisto]]=TRUE,"P",""),"") ->  | O34: =IFERROR(IF( ISBLANK(MP_REF2[[#This Row],[Päätelaite Mittapiste]]), "", IF( SUM( _xlfn._xlws.FILTER( (Hakemisto[Tyyppi]=MP_REF2[[#This Row],[Päätelaite Mittapiste]]) * (Hakemisto[Koko]=MP_REF2[[#This Row],[Koko Ød]]) * ((Hakemisto[Tulo]="x") + (Hakemisto[Tulo]=1)), (Hakemisto[Tyyppi]=MP_REF2[[#This Row],[Päätelaite Mittapiste]]) ) ) > 0, TRUE, FALSE ) ),"") ->  | P34: =IFERROR(IF( ISBLANK(MP_REF2[[#This Row],[Päätelaite Mittapiste]]), "", IF( SUM( _xlfn._xlws.FILTER( (Hakemisto[Tyyppi]=MP_REF2[[#This Row],[Päätelaite Mittapiste]]) * (Hakemisto[Koko]=MP_REF2[[#This Row],[Koko Ød]]) * ((Hakemisto[Poisto]="x") + (Hakemisto[Poisto]=1)), (Hakemisto[Tyyppi]=MP_REF2[[#This Row],[Päätelaite Mittapiste]]) ) ) > 0, TRUE, FALSE ) ),"") -> 
A35: 1 | B35: Makuuhuone | H35: =IFERROR(IF(OR(ISBLANK(MP_REF2[[#This Row],[Paine Pa]]), ISBLANK(MP_REF2[[#This Row],[Kerroin k-arvo]])), "",MP_REF2[[#This Row],[Kerroin k-arvo]]*SQRT(MP_REF2[[#This Row],[Paine Pa]])),"") ->  | J35: =IF(MP_REF2[[#This Row],[Päätelaite Mittapiste]]="", "",_xlfn.XLOOKUP(1,(Hakemisto[Tyyppi]=MP_REF2[[#This Row],[Päätelaite Mittapiste]])*(Hakemisto[Koko]=MP_REF2[[#This Row],[Koko Ød]])*(Hakemisto[asento]=MP_REF2[[#This Row],[Avaus mm]]), Hakemisto[k-arvo], "ei löydy")) ->  | K35: =_xlfn.LET(_xlpm.suunniteltu, INDIRECT("F"&ROW()), _xlpm.mitattu, INDIRECT("H"&ROW()), IF(OR(_xlpm.suunniteltu="", _xlpm.mitattu="", _xlpm.mitattu=0), " ", (_xlpm.mitattu/_xlpm.suunniteltu))) ->  | L35: =IFERROR(IF(AND(MP_REF2[[#This Row],[-]]="P", MP_REF2[[#This Row],[+]]<>"T"), $H$58*MP_REF2[[#This Row],[Suunniteltu l/s]]/100, IF(AND(MP_REF2[[#This Row],[+]]="T", MP_REF2[[#This Row],[-]]<>"P"), $G$58*MP_REF2[[#This Row],[Suunniteltu l/s]]/100, IF(AND(MP_REF2[[#This Row],[-]]="P", MP_REF2[[#This Row],[+]]="T"), "T/P", "") ) ),"") ->  | M35: =IFERROR(IF(MP_REF2[[#This Row],[tulo]]=TRUE,"T",""),"") ->  | N35: =IFERROR(IF(MP_REF2[[#This Row],[poisto]]=TRUE,"P",""),"") ->  | O35: =IFERROR(IF( ISBLANK(MP_REF2[[#This Row],[Päätelaite Mittapiste]]), "", IF( SUM( _xlfn._xlws.FILTER( (Hakemisto[Tyyppi]=MP_REF2[[#This Row],[Päätelaite Mittapiste]]) * (Hakemisto[Koko]=MP_REF2[[#This Row],[Koko Ød]]) * ((Hakemisto[Tulo]="x") + (Hakemisto[Tulo]=1)), (Hakemisto[Tyyppi]=MP_REF2[[#This Row],[Päätelaite Mittapiste]]) ) ) > 0, TRUE, FALSE ) ),"") ->  | P35: =IFERROR(IF( ISBLANK(MP_REF2[[#This Row],[Päätelaite Mittapiste]]), "", IF( SUM( _xlfn._xlws.FILTER( (Hakemisto[Tyyppi]=MP_REF2[[#This Row],[Päätelaite Mittapiste]]) * (Hakemisto[Koko]=MP_REF2[[#This Row],[Koko Ød]]) * ((Hakemisto[Poisto]="x") + (Hakemisto[Poisto]=1)), (Hakemisto[Tyyppi]=MP_REF2[[#This Row],[Päätelaite Mittapiste]]) ) ) > 0, TRUE, FALSE ) ),"") -> 
B37: Minimipaine | C37: Täyttönäkymä | D37: Päätelaitteen minimipaine tarkistus laskuri | H37: Tulokset
B38: Asetus | C38: asetukset | D38: min paine | E38: l/s | F38: laite | G38: Koko | H38: k-arvo >/= | I38: avaus | J38: max ref. paine
B39: 10 | C39: Poisto | D39: 10 | E39: 15 | F39: KSO | G39: 125 | H39: =E39/SQRT(D39) -> 4.74 | I39: =säätöasento(F39,G39,E39,D39,Hakemisto[]) -> 10 | J39: =_xlfn.LET( _xlpm.karvo, IF( F39="", "", _xlfn.XLOOKUP( 1, (Hakemisto[Tyyppi]=F39)* (Hakemisto[Koko]=G39)* (Hakemisto[asento]=I39), Hakemisto[k-arvo], "ei löydy" ) ), IF( OR(_xlpm.karvo="", _xlpm.karvo="ei löydy"), "", (E39/_xlpm.karvo)^2 ) ) -> 14.1
B40: 10 | C40: Tulo | D40: 10 | E40: 10 | F40: KTS | G40: 100 / 180° muovi | H40: =E40/SQRT(D40) -> 3.16 | I40: =säätöasento(F40,G40,E40,D40,Hakemisto[]) -> 11 | J40: =_xlfn.LET( _xlpm.karvo, IF( F40="", "", _xlfn.XLOOKUP( 1, (Hakemisto[Tyyppi]=F40)* (Hakemisto[Koko]=G40)* (Hakemisto[asento]=I40), Hakemisto[k-arvo], "ei löydy" ) ), IF( OR(_xlpm.karvo="", _xlpm.karvo="ei löydy"), "", (E40/_xlpm.karvo)^2 ) ) -> 10.0
A43: Taulukko 2 | C43: Suhteellinen säätö tulo ja poisto | H43: Tulokset | J43: Muut tiedot | R43: Huomiot
A44: KRS № | B44: Huone Tila | C44: Päätelaite Mittapiste | D44: Koko Ød | E44: Paine Pa | F44: Suunniteltu l/s | G44: Lukitse avaus | H44: Mitattu l/s | I44: Avaus mm | J44: Kerroin k-arvo | K44: Seuranta % | L44: Tavoite l/s | M44: + | N44: - | O44: tulo | P44: poisto | Q44: ★ | R44: Huomio nro | S44: Näkyy huomio tulosteessa? | T44: Kuvaus
H45: =IFERROR( _xlfn.LET( _xlpm.paine, MP_2[[#This Row],[Paine Pa]], _xlpm.k, MP_2[[#This Row],[Kerroin k-arvo]], IF(OR(_xlpm.paine="", _xlpm.k=""), "", _xlpm.k*SQRT(_xlpm.paine)) ), "") ->  | I45: =IF( MP_2[[#This Row],[Lukitse avaus]]<>"", VALUE(MP_2[[#This Row],[Lukitse avaus]]), säätöasento( MP_2[[#This Row],[Päätelaite Mittapiste]], MP_2[[#This Row],[Koko Ød]], MP_2[[#This Row],[Tavoite l/s]], MP_2[[#This Row],[Paine Pa]], Hakemisto[] ) ) ->  | J45: =IFERROR( IF( OR( ISBLANK(MP_2[[#This Row],[Päätelaite Mittapiste]]), ISBLANK(MP_2[[#This Row],[Koko Ød]]), ISBLANK(MP_2[[#This Row],[Avaus mm]]), ISBLANK(MP_2[[#This Row],[Paine Pa]]) ), "", _xlfn.LET( _xlpm.comp, MP_2[[#This Row],[Suunniteltu l/s]]*IF( AND(MP_2[[#This Row],[-]]="P", MP_2[[#This Row],[+]]<>"T"), $H$58*MP_2[[#This Row],[Suunniteltu l/s]], IF( AND(MP_2[[#This Row],[+]]="T", MP_2[[#This Row],[-]]<>"P"), $G$58*MP_2[[#This Row],[Suunniteltu l/s]], IF(AND(MP_2[[#This Row],[-]]="P", MP_2[[#This Row],[+]]="T"), "T/P", "") ) )/SQRT(MP_2[[#This Row],[Paine Pa]]), _xlpm.filt, _xlfn._xlws.FILTER( Hakemisto[], (Hakemisto[Tyyppi]=MP_2[[#This Row],[Päätelaite Mittapiste]]) * (Hakemisto[Koko]=MP_2[[#This Row],[Koko Ød]]) * (IFERROR(--Hakemisto[asento], -1E+99) = IFERROR(--MP_2[[#This Row],[Avaus mm]], -1E+99)) ), _xlpm.colIndex, MATCH("k-arvo", Hakemisto[#Headers], 0), _xlpm.kValues, INDEX(_xlpm.filt, 0, _xlpm.colIndex), _xlpm.diffs, ABS(_xlpm.kValues - _xlpm.comp), _xlpm.minDiff, MIN(_xlpm.diffs), INDEX(_xlpm.kValues, MATCH(_xlpm.minDiff, _xlpm.diffs, 0)) ) ), "" ) ->  | K45: =_xlfn.LET(_xlpm.suunniteltu, INDIRECT("F"&ROW()), _xlpm.mitattu, INDIRECT("H"&ROW()), IF(OR(_xlpm.suunniteltu="", _xlpm.mitattu="", _xlpm.mitattu=0), " ", (_xlpm.mitattu/_xlpm.suunniteltu))) ->  | L45: =IFERROR(IF(AND(MP_2[[#This Row],[-]]="P", MP_2[[#This Row],[+]]<>"T"), $H$58*MP_2[[#This Row],[Suunniteltu l/s]]/100, IF(AND(MP_2[[#This Row],[+]]="T", MP_2[[#This Row],[-]]<>"P"), $G$58*MP_2[[#This Row],[Suunniteltu l/s]]/100, IF(AND(MP_2[[#This Row],[-]]="P", MP_2[[#This Row],[+]]="T"), "T/P", "") ) ),"") ->  | M45: =IFERROR(IF(MP_2[[#This Row],[tulo]]=TRUE,"T",""),"") ->  | N45: =IFERROR(IF(MP_2[[#This Row],[poisto]]=TRUE,"P",""),"") ->  | O45: =IFERROR(IF( ISBLANK(MP_2[[#This Row],[Päätelaite Mittapiste]]), "", IF( SUM( _xlfn._xlws.FILTER( (Hakemisto[Tyyppi]=MP_2[[#This Row],[Päätelaite Mittapiste]]) * (Hakemisto[Koko]=MP_2[[#This Row],[Koko Ød]]) * ((Hakemisto[Tulo]="x") + (Hakemisto[Tulo]=1)), (Hakemisto[Tyyppi]=MP_2[[#This Row],[Päätelaite Mittapiste]]) ) ) > 0, TRUE, FALSE ) ),"") ->  | P45: =IFERROR(IF( ISBLANK(MP_2[[#This Row],[Päätelaite Mittapiste]]), "", IF( SUM( _xlfn._xlws.FILTER( (Hakemisto[Tyyppi]=MP_2[[#This Row],[Päätelaite Mittapiste]]) * (Hakemisto[Koko]=MP_2[[#This Row],[Koko Ød]]) * ((Hakemisto[Poisto]="x") + (Hakemisto[Poisto]=1)), (Hakemisto[Tyyppi]=MP_2[[#This Row],[Päätelaite Mittapiste]]) ) ) > 0, TRUE, FALSE ) ),"") ->  | R45: =IF((MP_2[[#This Row],[★]]=""),"",MP_2[[#This Row],[★]]) -> 
H46: =IFERROR( _xlfn.LET( _xlpm.paine, MP_2[[#This Row],[Paine Pa]], _xlpm.k, MP_2[[#This Row],[Kerroin k-arvo]], IF(OR(_xlpm.paine="", _xlpm.k=""), "", _xlpm.k*SQRT(_xlpm.paine)) ), "") ->  | I46: =IF( MP_2[[#This Row],[Lukitse avaus]]<>"", VALUE(MP_2[[#This Row],[Lukitse avaus]]), säätöasento( MP_2[[#This Row],[Päätelaite Mittapiste]], MP_2[[#This Row],[Koko Ød]], MP_2[[#This Row],[Tavoite l/s]], MP_2[[#This Row],[Paine Pa]], Hakemisto[] ) ) ->  | J46: =IFERROR( IF( OR( ISBLANK(MP_2[[#This Row],[Päätelaite Mittapiste]]), ISBLANK(MP_2[[#This Row],[Koko Ød]]), ISBLANK(MP_2[[#This Row],[Avaus mm]]), ISBLANK(MP_2[[#This Row],[Paine Pa]]) ), "", _xlfn.LET( _xlpm.comp, MP_2[[#This Row],[Suunniteltu l/s]]*IF( AND(MP_2[[#This Row],[-]]="P", MP_2[[#This Row],[+]]<>"T"), $H$58*MP_2[[#This Row],[Suunniteltu l/s]], IF( AND(MP_2[[#This Row],[+]]="T", MP_2[[#This Row],[-]]<>"P"), $G$58*MP_2[[#This Row],[Suunniteltu l/s]], IF(AND(MP_2[[#This Row],[-]]="P", MP_2[[#This Row],[+]]="T"), "T/P", "") ) )/SQRT(MP_2[[#This Row],[Paine Pa]]), _xlpm.filt, _xlfn._xlws.FILTER( Hakemisto[], (Hakemisto[Tyyppi]=MP_2[[#This Row],[Päätelaite Mittapiste]]) * (Hakemisto[Koko]=MP_2[[#This Row],[Koko Ød]]) * (IFERROR(--Hakemisto[asento], -1E+99) = IFERROR(--MP_2[[#This Row],[Avaus mm]], -1E+99)) ), _xlpm.colIndex, MATCH("k-arvo", Hakemisto[#Headers], 0), _xlpm.kValues, INDEX(_xlpm.filt, 0, _xlpm.colIndex), _xlpm.diffs, ABS(_xlpm.kValues - _xlpm.comp), _xlpm.minDiff, MIN(_xlpm.diffs), INDEX(_xlpm.kValues, MATCH(_xlpm.minDiff, _xlpm.diffs, 0)) ) ), "" ) ->  | K46: =_xlfn.LET(_xlpm.suunniteltu, INDIRECT("F"&ROW()), _xlpm.mitattu, INDIRECT("H"&ROW()), IF(OR(_xlpm.suunniteltu="", _xlpm.mitattu="", _xlpm.mitattu=0), " ", (_xlpm.mitattu/_xlpm.suunniteltu))) ->  | L46: =IFERROR(IF(AND(MP_2[[#This Row],[-]]="P", MP_2[[#This Row],[+]]<>"T"), $H$58*MP_2[[#This Row],[Suunniteltu l/s]]/100, IF(AND(MP_2[[#This Row],[+]]="T", MP_2[[#This Row],[-]]<>"P"), $G$58*MP_2[[#This Row],[Suunniteltu l/s]]/100, IF(AND(MP_2[[#This Row],[-]]="P", MP_2[[#This Row],[+]]="T"), "T/P", "") ) ),"") ->  | M46: =IFERROR(IF(MP_2[[#This Row],[tulo]]=TRUE,"T",""),"") ->  | N46: =IFERROR(IF(MP_2[[#This Row],[poisto]]=TRUE,"P",""),"") ->  | O46: =IFERROR(IF( ISBLANK(MP_2[[#This Row],[Päätelaite Mittapiste]]), "", IF( SUM( _xlfn._xlws.FILTER( (Hakemisto[Tyyppi]=MP_2[[#This Row],[Päätelaite Mittapiste]]) * (Hakemisto[Koko]=MP_2[[#This Row],[Koko Ød]]) * ((Hakemisto[Tulo]="x") + (Hakemisto[Tulo]=1)), (Hakemisto[Tyyppi]=MP_2[[#This Row],[Päätelaite Mittapiste]]) ) ) > 0, TRUE, FALSE ) ),"") ->  | P46: =IFERROR(IF( ISBLANK(MP_2[[#This Row],[Päätelaite Mittapiste]]), "", IF( SUM( _xlfn._xlws.FILTER( (Hakemisto[Tyyppi]=MP_2[[#This Row],[Päätelaite Mittapiste]]) * (Hakemisto[Koko]=MP_2[[#This Row],[Koko Ød]]) * ((Hakemisto[Poisto]="x") + (Hakemisto[Poisto]=1)), (Hakemisto[Tyyppi]=MP_2[[#This Row],[Päätelaite Mittapiste]]) ) ) > 0, TRUE, FALSE ) ),"") ->  | R46: =IF((MP_2[[#This Row],[★]]=""),"",MP_2[[#This Row],[★]]) -> 
H47: =IFERROR( _xlfn.LET( _xlpm.paine, MP_2[[#This Row],[Paine Pa]], _xlpm.k, MP_2[[#This Row],[Kerroin k-arvo]], IF(OR(_xlpm.paine="", _xlpm.k=""), "", _xlpm.k*SQRT(_xlpm.paine)) ), "") ->  | I47: =IF( MP_2[[#This Row],[Lukitse avaus]]<>"", VALUE(MP_2[[#This Row],[Lukitse avaus]]), säätöasento( MP_2[[#This Row],[Päätelaite Mittapiste]], MP_2[[#This Row],[Koko Ød]], MP_2[[#This Row],[Tavoite l/s]], MP_2[[#This Row],[Paine Pa]], Hakemisto[] ) ) ->  | J47: =IFERROR( IF( OR( ISBLANK(MP_2[[#This Row],[Päätelaite Mittapiste]]), ISBLANK(MP_2[[#This Row],[Koko Ød]]), ISBLANK(MP_2[[#This Row],[Avaus mm]]), ISBLANK(MP_2[[#This Row],[Paine Pa]]) ), "", _xlfn.LET( _xlpm.comp, MP_2[[#This Row],[Suunniteltu l/s]]*IF( AND(MP_2[[#This Row],[-]]="P", MP_2[[#This Row],[+]]<>"T"), $H$58*MP_2[[#This Row],[Suunniteltu l/s]], IF( AND(MP_2[[#This Row],[+]]="T", MP_2[[#This Row],[-]]<>"P"), $G$58*MP_2[[#This Row],[Suunniteltu l/s]], IF(AND(MP_2[[#This Row],[-]]="P", MP_2[[#This Row],[+]]="T"), "T/P", "") ) )/SQRT(MP_2[[#This Row],[Paine Pa]]), _xlpm.filt, _xlfn._xlws.FILTER( Hakemisto[], (Hakemisto[Tyyppi]=MP_2[[#This Row],[Päätelaite Mittapiste]]) * (Hakemisto[Koko]=MP_2[[#This Row],[Koko Ød]]) * (IFERROR(--Hakemisto[asento], -1E+99) = IFERROR(--MP_2[[#This Row],[Avaus mm]], -1E+99)) ), _xlpm.colIndex, MATCH("k-arvo", Hakemisto[#Headers], 0), _xlpm.kValues, INDEX(_xlpm.filt, 0, _xlpm.colIndex), _xlpm.diffs, ABS(_xlpm.kValues - _xlpm.comp), _xlpm.minDiff, MIN(_xlpm.diffs), INDEX(_xlpm.kValues, MATCH(_xlpm.minDiff, _xlpm.diffs, 0)) ) ), "" ) ->  | K47: =_xlfn.LET(_xlpm.suunniteltu, INDIRECT("F"&ROW()), _xlpm.mitattu, INDIRECT("H"&ROW()), IF(OR(_xlpm.suunniteltu="", _xlpm.mitattu="", _xlpm.mitattu=0), " ", (_xlpm.mitattu/_xlpm.suunniteltu))) ->  | L47: =IFERROR(IF(AND(MP_2[[#This Row],[-]]="P", MP_2[[#This Row],[+]]<>"T"), $H$58*MP_2[[#This Row],[Suunniteltu l/s]]/100, IF(AND(MP_2[[#This Row],[+]]="T", MP_2[[#This Row],[-]]<>"P"), $G$58*MP_2[[#This Row],[Suunniteltu l/s]]/100, IF(AND(MP_2[[#This Row],[-]]="P", MP_2[[#This Row],[+]]="T"), "T/P", "") ) ),"") ->  | M47: =IFERROR(IF(MP_2[[#This Row],[tulo]]=TRUE,"T",""),"") ->  | N47: =IFERROR(IF(MP_2[[#This Row],[poisto]]=TRUE,"P",""),"") ->  | O47: =IFERROR(IF( ISBLANK(MP_2[[#This Row],[Päätelaite Mittapiste]]), "", IF( SUM( _xlfn._xlws.FILTER( (Hakemisto[Tyyppi]=MP_2[[#This Row],[Päätelaite Mittapiste]]) * (Hakemisto[Koko]=MP_2[[#This Row],[Koko Ød]]) * ((Hakemisto[Tulo]="x") + (Hakemisto[Tulo]=1)), (Hakemisto[Tyyppi]=MP_2[[#This Row],[Päätelaite Mittapiste]]) ) ) > 0, TRUE, FALSE ) ),"") ->  | P47: =IFERROR(IF( ISBLANK(MP_2[[#This Row],[Päätelaite Mittapiste]]), "", IF( SUM( _xlfn._xlws.FILTER( (Hakemisto[Tyyppi]=MP_2[[#This Row],[Päätelaite Mittapiste]]) * (Hakemisto[Koko]=MP_2[[#This Row],[Koko Ød]]) * ((Hakemisto[Poisto]="x") + (Hakemisto[Poisto]=1)), (Hakemisto[Tyyppi]=MP_2[[#This Row],[Päätelaite Mittapiste]]) ) ) > 0, TRUE, FALSE ) ),"") ->  | R47: =IF((MP_2[[#This Row],[★]]=""),"",MP_2[[#This Row],[★]]) -> 
H48: =IFERROR( _xlfn.LET( _xlpm.paine, MP_2[[#This Row],[Paine Pa]], _xlpm.k, MP_2[[#This Row],[Kerroin k-arvo]], IF(OR(_xlpm.paine="", _xlpm.k=""), "", _xlpm.k*SQRT(_xlpm.paine)) ), "") ->  | I48: =IF( MP_2[[#This Row],[Lukitse avaus]]<>"", VALUE(MP_2[[#This Row],[Lukitse avaus]]), säätöasento( MP_2[[#This Row],[Päätelaite Mittapiste]], MP_2[[#This Row],[Koko Ød]], MP_2[[#This Row],[Tavoite l/s]], MP_2[[#This Row],[Paine Pa]], Hakemisto[] ) ) ->  | J48: =IFERROR( IF( OR( ISBLANK(MP_2[[#This Row],[Päätelaite Mittapiste]]), ISBLANK(MP_2[[#This Row],[Koko Ød]]), ISBLANK(MP_2[[#This Row],[Avaus mm]]), ISBLANK(MP_2[[#This Row],[Paine Pa]]) ), "", _xlfn.LET( _xlpm.comp, MP_2[[#This Row],[Suunniteltu l/s]]*IF( AND(MP_2[[#This Row],[-]]="P", MP_2[[#This Row],[+]]<>"T"), $H$58*MP_2[[#This Row],[Suunniteltu l/s]], IF( AND(MP_2[[#This Row],[+]]="T", MP_2[[#This Row],[-]]<>"P"), $G$58*MP_2[[#This Row],[Suunniteltu l/s]], IF(AND(MP_2[[#This Row],[-]]="P", MP_2[[#This Row],[+]]="T"), "T/P", "") ) )/SQRT(MP_2[[#This Row],[Paine Pa]]), _xlpm.filt, _xlfn._xlws.FILTER( Hakemisto[], (Hakemisto[Tyyppi]=MP_2[[#This Row],[Päätelaite Mittapiste]]) * (Hakemisto[Koko]=MP_2[[#This Row],[Koko Ød]]) * (IFERROR(--Hakemisto[asento], -1E+99) = IFERROR(--MP_2[[#This Row],[Avaus mm]], -1E+99)) ), _xlpm.colIndex, MATCH("k-arvo", Hakemisto[#Headers], 0), _xlpm.kValues, INDEX(_xlpm.filt, 0, _xlpm.colIndex), _xlpm.diffs, ABS(_xlpm.kValues - _xlpm.comp), _xlpm.minDiff, MIN(_xlpm.diffs), INDEX(_xlpm.kValues, MATCH(_xlpm.minDiff, _xlpm.diffs, 0)) ) ), "" ) ->  | K48: =_xlfn.LET(_xlpm.suunniteltu, INDIRECT("F"&ROW()), _xlpm.mitattu, INDIRECT("H"&ROW()), IF(OR(_xlpm.suunniteltu="", _xlpm.mitattu="", _xlpm.mitattu=0), " ", (_xlpm.mitattu/_xlpm.suunniteltu))) ->  | L48: =IFERROR(IF(AND(MP_2[[#This Row],[-]]="P", MP_2[[#This Row],[+]]<>"T"), $H$58*MP_2[[#This Row],[Suunniteltu l/s]]/100, IF(AND(MP_2[[#This Row],[+]]="T", MP_2[[#This Row],[-]]<>"P"), $G$58*MP_2[[#This Row],[Suunniteltu l/s]]/100, IF(AND(MP_2[[#This Row],[-]]="P", MP_2[[#This Row],[+]]="T"), "T/P", "") ) ),"") ->  | M48: =IFERROR(IF(MP_2[[#This Row],[tulo]]=TRUE,"T",""),"") ->  | N48: =IFERROR(IF(MP_2[[#This Row],[poisto]]=TRUE,"P",""),"") ->  | O48: =IFERROR(IF( ISBLANK(MP_2[[#This Row],[Päätelaite Mittapiste]]), "", IF( SUM( _xlfn._xlws.FILTER( (Hakemisto[Tyyppi]=MP_2[[#This Row],[Päätelaite Mittapiste]]) * (Hakemisto[Koko]=MP_2[[#This Row],[Koko Ød]]) * ((Hakemisto[Tulo]="x") + (Hakemisto[Tulo]=1)), (Hakemisto[Tyyppi]=MP_2[[#This Row],[Päätelaite Mittapiste]]) ) ) > 0, TRUE, FALSE ) ),"") ->  | P48: =IFERROR(IF( ISBLANK(MP_2[[#This Row],[Päätelaite Mittapiste]]), "", IF( SUM( _xlfn._xlws.FILTER( (Hakemisto[Tyyppi]=MP_2[[#This Row],[Päätelaite Mittapiste]]) * (Hakemisto[Koko]=MP_2[[#This Row],[Koko Ød]]) * ((Hakemisto[Poisto]="x") + (Hakemisto[Poisto]=1)), (Hakemisto[Tyyppi]=MP_2[[#This Row],[Päätelaite Mittapiste]]) ) ) > 0, TRUE, FALSE ) ),"") ->  | R48: =IF((MP_2[[#This Row],[★]]=""),"",MP_2[[#This Row],[★]]) -> 
H49: =IFERROR( _xlfn.LET( _xlpm.paine, MP_2[[#This Row],[Paine Pa]], _xlpm.k, MP_2[[#This Row],[Kerroin k-arvo]], IF(OR(_xlpm.paine="", _xlpm.k=""), "", _xlpm.k*SQRT(_xlpm.paine)) ), "") ->  | I49: =IF( MP_2[[#This Row],[Lukitse avaus]]<>"", VALUE(MP_2[[#This Row],[Lukitse avaus]]), säätöasento( MP_2[[#This Row],[Päätelaite Mittapiste]], MP_2[[#This Row],[Koko Ød]], MP_2[[#This Row],[Tavoite l/s]], MP_2[[#This Row],[Paine Pa]], Hakemisto[] ) ) ->  | J49: =IFERROR( IF( OR( ISBLANK(MP_2[[#This Row],[Päätelaite Mittapiste]]), ISBLANK(MP_2[[#This Row],[Koko Ød]]), ISBLANK(MP_2[[#This Row],[Avaus mm]]), ISBLANK(MP_2[[#This Row],[Paine Pa]]) ), "", _xlfn.LET( _xlpm.comp, MP_2[[#This Row],[Suunniteltu l/s]]*IF( AND(MP_2[[#This Row],[-]]="P", MP_2[[#This Row],[+]]<>"T"), $H$58*MP_2[[#This Row],[Suunniteltu l/s]], IF( AND(MP_2[[#This Row],[+]]="T", MP_2[[#This Row],[-]]<>"P"), $G$58*MP_2[[#This Row],[Suunniteltu l/s]], IF(AND(MP_2[[#This Row],[-]]="P", MP_2[[#This Row],[+]]="T"), "T/P", "") ) )/SQRT(MP_2[[#This Row],[Paine Pa]]), _xlpm.filt, _xlfn._xlws.FILTER( Hakemisto[], (Hakemisto[Tyyppi]=MP_2[[#This Row],[Päätelaite Mittapiste]]) * (Hakemisto[Koko]=MP_2[[#This Row],[Koko Ød]]) * (IFERROR(--Hakemisto[asento], -1E+99) = IFERROR(--MP_2[[#This Row],[Avaus mm]], -1E+99)) ), _xlpm.colIndex, MATCH("k-arvo", Hakemisto[#Headers], 0), _xlpm.kValues, INDEX(_xlpm.filt, 0, _xlpm.colIndex), _xlpm.diffs, ABS(_xlpm.kValues - _xlpm.comp), _xlpm.minDiff, MIN(_xlpm.diffs), INDEX(_xlpm.kValues, MATCH(_xlpm.minDiff, _xlpm.diffs, 0)) ) ), "" ) ->  | K49: =_xlfn.LET(_xlpm.suunniteltu, INDIRECT("F"&ROW()), _xlpm.mitattu, INDIRECT("H"&ROW()), IF(OR(_xlpm.suunniteltu="", _xlpm.mitattu="", _xlpm.mitattu=0), " ", (_xlpm.mitattu/_xlpm.suunniteltu))) ->  | L49: =IFERROR(IF(AND(MP_2[[#This Row],[-]]="P", MP_2[[#This Row],[+]]<>"T"), $H$58*MP_2[[#This Row],[Suunniteltu l/s]]/100, IF(AND(MP_2[[#This Row],[+]]="T", MP_2[[#This Row],[-]]<>"P"), $G$58*MP_2[[#This Row],[Suunniteltu l/s]]/100, IF(AND(MP_2[[#This Row],[-]]="P", MP_2[[#This Row],[+]]="T"), "T/P", "") ) ),"") ->  | M49: =IFERROR(IF(MP_2[[#This Row],[tulo]]=TRUE,"T",""),"") ->  | N49: =IFERROR(IF(MP_2[[#This Row],[poisto]]=TRUE,"P",""),"") ->  | O49: =IFERROR(IF( ISBLANK(MP_2[[#This Row],[Päätelaite Mittapiste]]), "", IF( SUM( _xlfn._xlws.FILTER( (Hakemisto[Tyyppi]=MP_2[[#This Row],[Päätelaite Mittapiste]]) * (Hakemisto[Koko]=MP_2[[#This Row],[Koko Ød]]) * ((Hakemisto[Tulo]="x") + (Hakemisto[Tulo]=1)), (Hakemisto[Tyyppi]=MP_2[[#This Row],[Päätelaite Mittapiste]]) ) ) > 0, TRUE, FALSE ) ),"") ->  | P49: =IFERROR(IF( ISBLANK(MP_2[[#This Row],[Päätelaite Mittapiste]]), "", IF( SUM( _xlfn._xlws.FILTER( (Hakemisto[Tyyppi]=MP_2[[#This Row],[Päätelaite Mittapiste]]) * (Hakemisto[Koko]=MP_2[[#This Row],[Koko Ød]]) * ((Hakemisto[Poisto]="x") + (Hakemisto[Poisto]=1)), (Hakemisto[Tyyppi]=MP_2[[#This Row],[Päätelaite Mittapiste]]) ) ) > 0, TRUE, FALSE ) ),"") ->  | R49: =IF((MP_2[[#This Row],[★]]=""),"",MP_2[[#This Row],[★]]) -> 
H50: =IFERROR( _xlfn.LET( _xlpm.paine, MP_2[[#This Row],[Paine Pa]], _xlpm.k, MP_2[[#This Row],[Kerroin k-arvo]], IF(OR(_xlpm.paine="", _xlpm.k=""), "", _xlpm.k*SQRT(_xlpm.paine)) ), "") ->  | I50: =IF( MP_2[[#This Row],[Lukitse avaus]]<>"", VALUE(MP_2[[#This Row],[Lukitse avaus]]), säätöasento( MP_2[[#This Row],[Päätelaite Mittapiste]], MP_2[[#This Row],[Koko Ød]], MP_2[[#This Row],[Tavoite l/s]], MP_2[[#This Row],[Paine Pa]], Hakemisto[] ) ) ->  | J50: =IFERROR( IF( OR( ISBLANK(MP_2[[#This Row],[Päätelaite Mittapiste]]), ISBLANK(MP_2[[#This Row],[Koko Ød]]), ISBLANK(MP_2[[#This Row],[Avaus mm]]), ISBLANK(MP_2[[#This Row],[Paine Pa]]) ), "", _xlfn.LET( _xlpm.comp, MP_2[[#This Row],[Suunniteltu l/s]]*IF( AND(MP_2[[#This Row],[-]]="P", MP_2[[#This Row],[+]]<>"T"), $H$58*MP_2[[#This Row],[Suunniteltu l/s]], IF( AND(MP_2[[#This Row],[+]]="T", MP_2[[#This Row],[-]]<>"P"), $G$58*MP_2[[#This Row],[Suunniteltu l/s]], IF(AND(MP_2[[#This Row],[-]]="P", MP_2[[#This Row],[+]]="T"), "T/P", "") ) )/SQRT(MP_2[[#This Row],[Paine Pa]]), _xlpm.filt, _xlfn._xlws.FILTER( Hakemisto[], (Hakemisto[Tyyppi]=MP_2[[#This Row],[Päätelaite Mittapiste]]) * (Hakemisto[Koko]=MP_2[[#This Row],[Koko Ød]]) * (IFERROR(--Hakemisto[asento], -1E+99) = IFERROR(--MP_2[[#This Row],[Avaus mm]], -1E+99)) ), _xlpm.colIndex, MATCH("k-arvo", Hakemisto[#Headers], 0), _xlpm.kValues, INDEX(_xlpm.filt, 0, _xlpm.colIndex), _xlpm.diffs, ABS(_xlpm.kValues - _xlpm.comp), _xlpm.minDiff, MIN(_xlpm.diffs), INDEX(_xlpm.kValues, MATCH(_xlpm.minDiff, _xlpm.diffs, 0)) ) ), "" ) ->  | K50: =_xlfn.LET(_xlpm.suunniteltu, INDIRECT("F"&ROW()), _xlpm.mitattu, INDIRECT("H"&ROW()), IF(OR(_xlpm.suunniteltu="", _xlpm.mitattu="", _xlpm.mitattu=0), " ", (_xlpm.mitattu/_xlpm.suunniteltu))) ->  | L50: =IFERROR(IF(AND(MP_2[[#This Row],[-]]="P", MP_2[[#This Row],[+]]<>"T"), $H$58*MP_2[[#This Row],[Suunniteltu l/s]]/100, IF(AND(MP_2[[#This Row],[+]]="T", MP_2[[#This Row],[-]]<>"P"), $G$58*MP_2[[#This Row],[Suunniteltu l/s]]/100, IF(AND(MP_2[[#This Row],[-]]="P", MP_2[[#This Row],[+]]="T"), "T/P", "") ) ),"") ->  | M50: =IFERROR(IF(MP_2[[#This Row],[tulo]]=TRUE,"T",""),"") ->  | N50: =IFERROR(IF(MP_2[[#This Row],[poisto]]=TRUE,"P",""),"") ->  | O50: =IFERROR(IF( ISBLANK(MP_2[[#This Row],[Päätelaite Mittapiste]]), "", IF( SUM( _xlfn._xlws.FILTER( (Hakemisto[Tyyppi]=MP_2[[#This Row],[Päätelaite Mittapiste]]) * (Hakemisto[Koko]=MP_2[[#This Row],[Koko Ød]]) * ((Hakemisto[Tulo]="x") + (Hakemisto[Tulo]=1)), (Hakemisto[Tyyppi]=MP_2[[#This Row],[Päätelaite Mittapiste]]) ) ) > 0, TRUE, FALSE ) ),"") ->  | P50: =IFERROR(IF( ISBLANK(MP_2[[#This Row],[Päätelaite Mittapiste]]), "", IF( SUM( _xlfn._xlws.FILTER( (Hakemisto[Tyyppi]=MP_2[[#This Row],[Päätelaite Mittapiste]]) * (Hakemisto[Koko]=MP_2[[#This Row],[Koko Ød]]) * ((Hakemisto[Poisto]="x") + (Hakemisto[Poisto]=1)), (Hakemisto[Tyyppi]=MP_2[[#This Row],[Päätelaite Mittapiste]]) ) ) > 0, TRUE, FALSE ) ),"") ->  | R50: =IF((MP_2[[#This Row],[★]]=""),"",MP_2[[#This Row],[★]]) -> 
H51: =IFERROR( _xlfn.LET( _xlpm.paine, MP_2[[#This Row],[Paine Pa]], _xlpm.k, MP_2[[#This Row],[Kerroin k-arvo]], IF(OR(_xlpm.paine="", _xlpm.k=""), "", _xlpm.k*SQRT(_xlpm.paine)) ), "") ->  | I51: =IF( MP_2[[#This Row],[Lukitse avaus]]<>"", VALUE(MP_2[[#This Row],[Lukitse avaus]]), säätöasento( MP_2[[#This Row],[Päätelaite Mittapiste]], MP_2[[#This Row],[Koko Ød]], MP_2[[#This Row],[Tavoite l/s]], MP_2[[#This Row],[Paine Pa]], Hakemisto[] ) ) ->  | J51: =IFERROR( IF( OR( ISBLANK(MP_2[[#This Row],[Päätelaite Mittapiste]]), ISBLANK(MP_2[[#This Row],[Koko Ød]]), ISBLANK(MP_2[[#This Row],[Avaus mm]]), ISBLANK(MP_2[[#This Row],[Paine Pa]]) ), "", _xlfn.LET( _xlpm.comp, MP_2[[#This Row],[Suunniteltu l/s]]*IF( AND(MP_2[[#This Row],[-]]="P", MP_2[[#This Row],[+]]<>"T"), $H$58*MP_2[[#This Row],[Suunniteltu l/s]], IF( AND(MP_2[[#This Row],[+]]="T", MP_2[[#This Row],[-]]<>"P"), $G$58*MP_2[[#This Row],[Suunniteltu l/s]], IF(AND(MP_2[[#This Row],[-]]="P", MP_2[[#This Row],[+]]="T"), "T/P", "") ) )/SQRT(MP_2[[#This Row],[Paine Pa]]), _xlpm.filt, _xlfn._xlws.FILTER( Hakemisto[], (Hakemisto[Tyyppi]=MP_2[[#This Row],[Päätelaite Mittapiste]]) * (Hakemisto[Koko]=MP_2[[#This Row],[Koko Ød]]) * (IFERROR(--Hakemisto[asento], -1E+99) = IFERROR(--MP_2[[#This Row],[Avaus mm]], -1E+99)) ), _xlpm.colIndex, MATCH("k-arvo", Hakemisto[#Headers], 0), _xlpm.kValues, INDEX(_xlpm.filt, 0, _xlpm.colIndex), _xlpm.diffs, ABS(_xlpm.kValues - _xlpm.comp), _xlpm.minDiff, MIN(_xlpm.diffs), INDEX(_xlpm.kValues, MATCH(_xlpm.minDiff, _xlpm.diffs, 0)) ) ), "" ) ->  | K51: =_xlfn.LET(_xlpm.suunniteltu, INDIRECT("F"&ROW()), _xlpm.mitattu, INDIRECT("H"&ROW()), IF(OR(_xlpm.suunniteltu="", _xlpm.mitattu="", _xlpm.mitattu=0), " ", (_xlpm.mitattu/_xlpm.suunniteltu))) ->  | L51: =IFERROR(IF(AND(MP_2[[#This Row],[-]]="P", MP_2[[#This Row],[+]]<>"T"), $H$58*MP_2[[#This Row],[Suunniteltu l/s]]/100, IF(AND(MP_2[[#This Row],[+]]="T", MP_2[[#This Row],[-]]<>"P"), $G$58*MP_2[[#This Row],[Suunniteltu l/s]]/100, IF(AND(MP_2[[#This Row],[-]]="P", MP_2[[#This Row],[+]]="T"), "T/P", "") ) ),"") ->  | M51: =IFERROR(IF(MP_2[[#This Row],[tulo]]=TRUE,"T",""),"") ->  | N51: =IFERROR(IF(MP_2[[#This Row],[poisto]]=TRUE,"P",""),"") ->  | O51: =IFERROR(IF( ISBLANK(MP_2[[#This Row],[Päätelaite Mittapiste]]), "", IF( SUM( _xlfn._xlws.FILTER( (Hakemisto[Tyyppi]=MP_2[[#This Row],[Päätelaite Mittapiste]]) * (Hakemisto[Koko]=MP_2[[#This Row],[Koko Ød]]) * ((Hakemisto[Tulo]="x") + (Hakemisto[Tulo]=1)), (Hakemisto[Tyyppi]=MP_2[[#This Row],[Päätelaite Mittapiste]]) ) ) > 0, TRUE, FALSE ) ),"") ->  | P51: =IFERROR(IF( ISBLANK(MP_2[[#This Row],[Päätelaite Mittapiste]]), "", IF( SUM( _xlfn._xlws.FILTER( (Hakemisto[Tyyppi]=MP_2[[#This Row],[Päätelaite Mittapiste]]) * (Hakemisto[Koko]=MP_2[[#This Row],[Koko Ød]]) * ((Hakemisto[Poisto]="x") + (Hakemisto[Poisto]=1)), (Hakemisto[Tyyppi]=MP_2[[#This Row],[Päätelaite Mittapiste]]) ) ) > 0, TRUE, FALSE ) ),"") ->  | R51: =IF((MP_2[[#This Row],[★]]=""),"",MP_2[[#This Row],[★]]) -> 
H52: =IFERROR( _xlfn.LET( _xlpm.paine, MP_2[[#This Row],[Paine Pa]], _xlpm.k, MP_2[[#This Row],[Kerroin k-arvo]], IF(OR(_xlpm.paine="", _xlpm.k=""), "", _xlpm.k*SQRT(_xlpm.paine)) ), "") ->  | I52: =IF( MP_2[[#This Row],[Lukitse avaus]]<>"", VALUE(MP_2[[#This Row],[Lukitse avaus]]), säätöasento( MP_2[[#This Row],[Päätelaite Mittapiste]], MP_2[[#This Row],[Koko Ød]], MP_2[[#This Row],[Tavoite l/s]], MP_2[[#This Row],[Paine Pa]], Hakemisto[] ) ) ->  | J52: =IFERROR( IF( OR( ISBLANK(MP_2[[#This Row],[Päätelaite Mittapiste]]), ISBLANK(MP_2[[#This Row],[Koko Ød]]), ISBLANK(MP_2[[#This Row],[Avaus mm]]), ISBLANK(MP_2[[#This Row],[Paine Pa]]) ), "", _xlfn.LET( _xlpm.comp, MP_2[[#This Row],[Suunniteltu l/s]]*IF( AND(MP_2[[#This Row],[-]]="P", MP_2[[#This Row],[+]]<>"T"), $H$58*MP_2[[#This Row],[Suunniteltu l/s]], IF( AND(MP_2[[#This Row],[+]]="T", MP_2[[#This Row],[-]]<>"P"), $G$58*MP_2[[#This Row],[Suunniteltu l/s]], IF(AND(MP_2[[#This Row],[-]]="P", MP_2[[#This Row],[+]]="T"), "T/P", "") ) )/SQRT(MP_2[[#This Row],[Paine Pa]]), _xlpm.filt, _xlfn._xlws.FILTER( Hakemisto[], (Hakemisto[Tyyppi]=MP_2[[#This Row],[Päätelaite Mittapiste]]) * (Hakemisto[Koko]=MP_2[[#This Row],[Koko Ød]]) * (IFERROR(--Hakemisto[asento], -1E+99) = IFERROR(--MP_2[[#This Row],[Avaus mm]], -1E+99)) ), _xlpm.colIndex, MATCH("k-arvo", Hakemisto[#Headers], 0), _xlpm.kValues, INDEX(_xlpm.filt, 0, _xlpm.colIndex), _xlpm.diffs, ABS(_xlpm.kValues - _xlpm.comp), _xlpm.minDiff, MIN(_xlpm.diffs), INDEX(_xlpm.kValues, MATCH(_xlpm.minDiff, _xlpm.diffs, 0)) ) ), "" ) ->  | K52: =_xlfn.LET(_xlpm.suunniteltu, INDIRECT("F"&ROW()), _xlpm.mitattu, INDIRECT("H"&ROW()), IF(OR(_xlpm.suunniteltu="", _xlpm.mitattu="", _xlpm.mitattu=0), " ", (_xlpm.mitattu/_xlpm.suunniteltu))) ->  | L52: =IFERROR(IF(AND(MP_2[[#This Row],[-]]="P", MP_2[[#This Row],[+]]<>"T"), $H$58*MP_2[[#This Row],[Suunniteltu l/s]]/100, IF(AND(MP_2[[#This Row],[+]]="T", MP_2[[#This Row],[-]]<>"P"), $G$58*MP_2[[#This Row],[Suunniteltu l/s]]/100, IF(AND(MP_2[[#This Row],[-]]="P", MP_2[[#This Row],[+]]="T"), "T/P", "") ) ),"") ->  | M52: =IFERROR(IF(MP_2[[#This Row],[tulo]]=TRUE,"T",""),"") ->  | N52: =IFERROR(IF(MP_2[[#This Row],[poisto]]=TRUE,"P",""),"") ->  | O52: =IFERROR(IF( ISBLANK(MP_2[[#This Row],[Päätelaite Mittapiste]]), "", IF( SUM( _xlfn._xlws.FILTER( (Hakemisto[Tyyppi]=MP_2[[#This Row],[Päätelaite Mittapiste]]) * (Hakemisto[Koko]=MP_2[[#This Row],[Koko Ød]]) * ((Hakemisto[Tulo]="x") + (Hakemisto[Tulo]=1)), (Hakemisto[Tyyppi]=MP_2[[#This Row],[Päätelaite Mittapiste]]) ) ) > 0, TRUE, FALSE ) ),"") ->  | P52: =IFERROR(IF( ISBLANK(MP_2[[#This Row],[Päätelaite Mittapiste]]), "", IF( SUM( _xlfn._xlws.FILTER( (Hakemisto[Tyyppi]=MP_2[[#This Row],[Päätelaite Mittapiste]]) * (Hakemisto[Koko]=MP_2[[#This Row],[Koko Ød]]) * ((Hakemisto[Poisto]="x") + (Hakemisto[Poisto]=1)), (Hakemisto[Tyyppi]=MP_2[[#This Row],[Päätelaite Mittapiste]]) ) ) > 0, TRUE, FALSE ) ),"") ->  | R52: =IF((MP_2[[#This Row],[★]]=""),"",MP_2[[#This Row],[★]]) -> 
H53: =IFERROR( _xlfn.LET( _xlpm.paine, MP_2[[#This Row],[Paine Pa]], _xlpm.k, MP_2[[#This Row],[Kerroin k-arvo]], IF(OR(_xlpm.paine="", _xlpm.k=""), "", _xlpm.k*SQRT(_xlpm.paine)) ), "") ->  | I53: =IF( MP_2[[#This Row],[Lukitse avaus]]<>"", VALUE(MP_2[[#This Row],[Lukitse avaus]]), säätöasento( MP_2[[#This Row],[Päätelaite Mittapiste]], MP_2[[#This Row],[Koko Ød]], MP_2[[#This Row],[Tavoite l/s]], MP_2[[#This Row],[Paine Pa]], Hakemisto[] ) ) ->  | J53: =IFERROR( IF( OR( ISBLANK(MP_2[[#This Row],[Päätelaite Mittapiste]]), ISBLANK(MP_2[[#This Row],[Koko Ød]]), ISBLANK(MP_2[[#This Row],[Avaus mm]]), ISBLANK(MP_2[[#This Row],[Paine Pa]]) ), "", _xlfn.LET( _xlpm.comp, MP_2[[#This Row],[Suunniteltu l/s]]*IF( AND(MP_2[[#This Row],[-]]="P", MP_2[[#This Row],[+]]<>"T"), $H$58*MP_2[[#This Row],[Suunniteltu l/s]], IF( AND(MP_2[[#This Row],[+]]="T", MP_2[[#This Row],[-]]<>"P"), $G$58*MP_2[[#This Row],[Suunniteltu l/s]], IF(AND(MP_2[[#This Row],[-]]="P", MP_2[[#This Row],[+]]="T"), "T/P", "") ) )/SQRT(MP_2[[#This Row],[Paine Pa]]), _xlpm.filt, _xlfn._xlws.FILTER( Hakemisto[], (Hakemisto[Tyyppi]=MP_2[[#This Row],[Päätelaite Mittapiste]]) * (Hakemisto[Koko]=MP_2[[#This Row],[Koko Ød]]) * (IFERROR(--Hakemisto[asento], -1E+99) = IFERROR(--MP_2[[#This Row],[Avaus mm]], -1E+99)) ), _xlpm.colIndex, MATCH("k-arvo", Hakemisto[#Headers], 0), _xlpm.kValues, INDEX(_xlpm.filt, 0, _xlpm.colIndex), _xlpm.diffs, ABS(_xlpm.kValues - _xlpm.comp), _xlpm.minDiff, MIN(_xlpm.diffs), INDEX(_xlpm.kValues, MATCH(_xlpm.minDiff, _xlpm.diffs, 0)) ) ), "" ) ->  | K53: =_xlfn.LET(_xlpm.suunniteltu, INDIRECT("F"&ROW()), _xlpm.mitattu, INDIRECT("H"&ROW()), IF(OR(_xlpm.suunniteltu="", _xlpm.mitattu="", _xlpm.mitattu=0), " ", (_xlpm.mitattu/_xlpm.suunniteltu))) ->  | L53: =IFERROR(IF(AND(MP_2[[#This Row],[-]]="P", MP_2[[#This Row],[+]]<>"T"), $H$58*MP_2[[#This Row],[Suunniteltu l/s]]/100, IF(AND(MP_2[[#This Row],[+]]="T", MP_2[[#This Row],[-]]<>"P"), $G$58*MP_2[[#This Row],[Suunniteltu l/s]]/100, IF(AND(MP_2[[#This Row],[-]]="P", MP_2[[#This Row],[+]]="T"), "T/P", "") ) ),"") ->  | M53: =IFERROR(IF(MP_2[[#This Row],[tulo]]=TRUE,"T",""),"") ->  | N53: =IFERROR(IF(MP_2[[#This Row],[poisto]]=TRUE,"P",""),"") ->  | O53: =IFERROR(IF( ISBLANK(MP_2[[#This Row],[Päätelaite Mittapiste]]), "", IF( SUM( _xlfn._xlws.FILTER( (Hakemisto[Tyyppi]=MP_2[[#This Row],[Päätelaite Mittapiste]]) * (Hakemisto[Koko]=MP_2[[#This Row],[Koko Ød]]) * ((Hakemisto[Tulo]="x") + (Hakemisto[Tulo]=1)), (Hakemisto[Tyyppi]=MP_2[[#This Row],[Päätelaite Mittapiste]]) ) ) > 0, TRUE, FALSE ) ),"") ->  | P53: =IFERROR(IF( ISBLANK(MP_2[[#This Row],[Päätelaite Mittapiste]]), "", IF( SUM( _xlfn._xlws.FILTER( (Hakemisto[Tyyppi]=MP_2[[#This Row],[Päätelaite Mittapiste]]) * (Hakemisto[Koko]=MP_2[[#This Row],[Koko Ød]]) * ((Hakemisto[Poisto]="x") + (Hakemisto[Poisto]=1)), (Hakemisto[Tyyppi]=MP_2[[#This Row],[Päätelaite Mittapiste]]) ) ) > 0, TRUE, FALSE ) ),"") ->  | R53: =IF((MP_2[[#This Row],[★]]=""),"",MP_2[[#This Row],[★]]) -> 
H54: =IFERROR( _xlfn.LET( _xlpm.paine, MP_2[[#This Row],[Paine Pa]], _xlpm.k, MP_2[[#This Row],[Kerroin k-arvo]], IF(OR(_xlpm.paine="", _xlpm.k=""), "", _xlpm.k*SQRT(_xlpm.paine)) ), "") ->  | I54: =IF( MP_2[[#This Row],[Lukitse avaus]]<>"", VALUE(MP_2[[#This Row],[Lukitse avaus]]), säätöasento( MP_2[[#This Row],[Päätelaite Mittapiste]], MP_2[[#This Row],[Koko Ød]], MP_2[[#This Row],[Tavoite l/s]], MP_2[[#This Row],[Paine Pa]], Hakemisto[] ) ) ->  | J54: =IFERROR( IF( OR( ISBLANK(MP_2[[#This Row],[Päätelaite Mittapiste]]), ISBLANK(MP_2[[#This Row],[Koko Ød]]), ISBLANK(MP_2[[#This Row],[Avaus mm]]), ISBLANK(MP_2[[#This Row],[Paine Pa]]) ), "", _xlfn.LET( _xlpm.comp, MP_2[[#This Row],[Suunniteltu l/s]]*IF( AND(MP_2[[#This Row],[-]]="P", MP_2[[#This Row],[+]]<>"T"), $H$58*MP_2[[#This Row],[Suunniteltu l/s]], IF( AND(MP_2[[#This Row],[+]]="T", MP_2[[#This Row],[-]]<>"P"), $G$58*MP_2[[#This Row],[Suunniteltu l/s]], IF(AND(MP_2[[#This Row],[-]]="P", MP_2[[#This Row],[+]]="T"), "T/P", "") ) )/SQRT(MP_2[[#This Row],[Paine Pa]]), _xlpm.filt, _xlfn._xlws.FILTER( Hakemisto[], (Hakemisto[Tyyppi]=MP_2[[#This Row],[Päätelaite Mittapiste]]) * (Hakemisto[Koko]=MP_2[[#This Row],[Koko Ød]]) * (IFERROR(--Hakemisto[asento], -1E+99) = IFERROR(--MP_2[[#This Row],[Avaus mm]], -1E+99)) ), _xlpm.colIndex, MATCH("k-arvo", Hakemisto[#Headers], 0), _xlpm.kValues, INDEX(_xlpm.filt, 0, _xlpm.colIndex), _xlpm.diffs, ABS(_xlpm.kValues - _xlpm.comp), _xlpm.minDiff, MIN(_xlpm.diffs), INDEX(_xlpm.kValues, MATCH(_xlpm.minDiff, _xlpm.diffs, 0)) ) ), "" ) ->  | K54: =_xlfn.LET(_xlpm.suunniteltu, INDIRECT("F"&ROW()), _xlpm.mitattu, INDIRECT("H"&ROW()), IF(OR(_xlpm.suunniteltu="", _xlpm.mitattu="", _xlpm.mitattu=0), " ", (_xlpm.mitattu/_xlpm.suunniteltu))) ->  | L54: =IFERROR(IF(AND(MP_2[[#This Row],[-]]="P", MP_2[[#This Row],[+]]<>"T"), $H$58*MP_2[[#This Row],[Suunniteltu l/s]]/100, IF(AND(MP_2[[#This Row],[+]]="T", MP_2[[#This Row],[-]]<>"P"), $G$58*MP_2[[#This Row],[Suunniteltu l/s]]/100, IF(AND(MP_2[[#This Row],[-]]="P", MP_2[[#This Row],[+]]="T"), "T/P", "") ) ),"") ->  | M54: =IFERROR(IF(MP_2[[#This Row],[tulo]]=TRUE,"T",""),"") ->  | N54: =IFERROR(IF(MP_2[[#This Row],[poisto]]=TRUE,"P",""),"") ->  | O54: =IFERROR(IF( ISBLANK(MP_2[[#This Row],[Päätelaite Mittapiste]]), "", IF( SUM( _xlfn._xlws.FILTER( (Hakemisto[Tyyppi]=MP_2[[#This Row],[Päätelaite Mittapiste]]) * (Hakemisto[Koko]=MP_2[[#This Row],[Koko Ød]]) * ((Hakemisto[Tulo]="x") + (Hakemisto[Tulo]=1)), (Hakemisto[Tyyppi]=MP_2[[#This Row],[Päätelaite Mittapiste]]) ) ) > 0, TRUE, FALSE ) ),"") ->  | P54: =IFERROR(IF( ISBLANK(MP_2[[#This Row],[Päätelaite Mittapiste]]), "", IF( SUM( _xlfn._xlws.FILTER( (Hakemisto[Tyyppi]=MP_2[[#This Row],[Päätelaite Mittapiste]]) * (Hakemisto[Koko]=MP_2[[#This Row],[Koko Ød]]) * ((Hakemisto[Poisto]="x") + (Hakemisto[Poisto]=1)), (Hakemisto[Tyyppi]=MP_2[[#This Row],[Päätelaite Mittapiste]]) ) ) > 0, TRUE, FALSE ) ),"") ->  | R54: =IF((MP_2[[#This Row],[★]]=""),"",MP_2[[#This Row],[★]]) -> 
H55: =IFERROR( _xlfn.LET( _xlpm.paine, MP_2[[#This Row],[Paine Pa]], _xlpm.k, MP_2[[#This Row],[Kerroin k-arvo]], IF(OR(_xlpm.paine="", _xlpm.k=""), "", _xlpm.k*SQRT(_xlpm.paine)) ), "") ->  | I55: =IF( MP_2[[#This Row],[Lukitse avaus]]<>"", VALUE(MP_2[[#This Row],[Lukitse avaus]]), säätöasento( MP_2[[#This Row],[Päätelaite Mittapiste]], MP_2[[#This Row],[Koko Ød]], MP_2[[#This Row],[Tavoite l/s]], MP_2[[#This Row],[Paine Pa]], Hakemisto[] ) ) ->  | J55: =IFERROR( IF( OR( ISBLANK(MP_2[[#This Row],[Päätelaite Mittapiste]]), ISBLANK(MP_2[[#This Row],[Koko Ød]]), ISBLANK(MP_2[[#This Row],[Avaus mm]]), ISBLANK(MP_2[[#This Row],[Paine Pa]]) ), "", _xlfn.LET( _xlpm.comp, MP_2[[#This Row],[Suunniteltu l/s]]*IF( AND(MP_2[[#This Row],[-]]="P", MP_2[[#This Row],[+]]<>"T"), $H$58*MP_2[[#This Row],[Suunniteltu l/s]], IF( AND(MP_2[[#This Row],[+]]="T", MP_2[[#This Row],[-]]<>"P"), $G$58*MP_2[[#This Row],[Suunniteltu l/s]], IF(AND(MP_2[[#This Row],[-]]="P", MP_2[[#This Row],[+]]="T"), "T/P", "") ) )/SQRT(MP_2[[#This Row],[Paine Pa]]), _xlpm.filt, _xlfn._xlws.FILTER( Hakemisto[], (Hakemisto[Tyyppi]=MP_2[[#This Row],[Päätelaite Mittapiste]]) * (Hakemisto[Koko]=MP_2[[#This Row],[Koko Ød]]) * (IFERROR(--Hakemisto[asento], -1E+99) = IFERROR(--MP_2[[#This Row],[Avaus mm]], -1E+99)) ), _xlpm.colIndex, MATCH("k-arvo", Hakemisto[#Headers], 0), _xlpm.kValues, INDEX(_xlpm.filt, 0, _xlpm.colIndex), _xlpm.diffs, ABS(_xlpm.kValues - _xlpm.comp), _xlpm.minDiff, MIN(_xlpm.diffs), INDEX(_xlpm.kValues, MATCH(_xlpm.minDiff, _xlpm.diffs, 0)) ) ), "" ) ->  | K55: =_xlfn.LET(_xlpm.suunniteltu, INDIRECT("F"&ROW()), _xlpm.mitattu, INDIRECT("H"&ROW()), IF(OR(_xlpm.suunniteltu="", _xlpm.mitattu="", _xlpm.mitattu=0), " ", (_xlpm.mitattu/_xlpm.suunniteltu))) ->  | L55: =IFERROR(IF(AND(MP_2[[#This Row],[-]]="P", MP_2[[#This Row],[+]]<>"T"), $H$58*MP_2[[#This Row],[Suunniteltu l/s]]/100, IF(AND(MP_2[[#This Row],[+]]="T", MP_2[[#This Row],[-]]<>"P"), $G$58*MP_2[[#This Row],[Suunniteltu l/s]]/100, IF(AND(MP_2[[#This Row],[-]]="P", MP_2[[#This Row],[+]]="T"), "T/P", "") ) ),"") ->  | M55: =IFERROR(IF(MP_2[[#This Row],[tulo]]=TRUE,"T",""),"") ->  | N55: =IFERROR(IF(MP_2[[#This Row],[poisto]]=TRUE,"P",""),"") ->  | O55: =IFERROR(IF( ISBLANK(MP_2[[#This Row],[Päätelaite Mittapiste]]), "", IF( SUM( _xlfn._xlws.FILTER( (Hakemisto[Tyyppi]=MP_2[[#This Row],[Päätelaite Mittapiste]]) * (Hakemisto[Koko]=MP_2[[#This Row],[Koko Ød]]) * ((Hakemisto[Tulo]="x") + (Hakemisto[Tulo]=1)), (Hakemisto[Tyyppi]=MP_2[[#This Row],[Päätelaite Mittapiste]]) ) ) > 0, TRUE, FALSE ) ),"") ->  | P55: =IFERROR(IF( ISBLANK(MP_2[[#This Row],[Päätelaite Mittapiste]]), "", IF( SUM( _xlfn._xlws.FILTER( (Hakemisto[Tyyppi]=MP_2[[#This Row],[Päätelaite Mittapiste]]) * (Hakemisto[Koko]=MP_2[[#This Row],[Koko Ød]]) * ((Hakemisto[Poisto]="x") + (Hakemisto[Poisto]=1)), (Hakemisto[Tyyppi]=MP_2[[#This Row],[Päätelaite Mittapiste]]) ) ) > 0, TRUE, FALSE ) ),"") ->  | R55: =IF((MP_2[[#This Row],[★]]=""),"",MP_2[[#This Row],[★]]) -> 
E56: =IFERROR( _xlfn.LET( _xlpm.mit, SUMIFS( MP_2[Mitattu l/s], MP_2[-], "P" ), _xlpm.suu, SUMIFS( MP_2[Suunniteltu l/s], MP_2[-], "P" ), _xlpm.diff, IF(_xlpm.suu<>0, (_xlpm.mit / _xlpm.suu), ""), _xlpm.r, ROUND(_xlpm.diff*100, 1), IF(_xlpm.r<>"", _xlpm.r & " (P%)", "") ), "" ) ->  | F56: =IFERROR( _xlfn.LET( _xlpm.s, SUMIFS( MP_2[Suunniteltu l/s], MP_2[-], "P" ), _xlpm.r, ROUND(_xlpm.s, 1), IF(_xlpm.r>0, _xlpm.r & " l/s (Poisto suunnit.)", "") ), "" ) ->  | H56: =IFERROR( _xlfn.LET( _xlpm.s, SUMIFS( MP_2[Mitattu l/s], MP_2[-], "P" ), _xlpm.r, ROUND(_xlpm.s, 1), IF(_xlpm.r>0, _xlpm.r & " l/s (Poisto mitattu)", "") ), "" ) -> 
B57: 2 | C57: ↑ | D57: =IFERROR( _xlfn.LET( _xlpm.s, SUMIFS( MP_2[Mitattu l/s], MP_2[+], "", MP_2[-], "" ) + SUMIFS( MP_2[Mitattu l/s], MP_2[+], "T", MP_2[-], "P" ), _xlpm.r, ROUND(_xlpm.s, 1), IF(_xlpm.r>0, "tarkista T/P " & _xlpm.r & " l/s", "") ), "" ) ->  | E57: =IFERROR( _xlfn.LET( _xlpm.mit, SUMIFS( MP_2[Mitattu l/s], MP_2[+], "T" ), _xlpm.suu, SUMIFS( MP_2[Suunniteltu l/s], MP_2[+], "T" ), _xlpm.diff, IF(_xlpm.suu<>0, (_xlpm.mit / _xlpm.suu), ""), _xlpm.r, ROUND(_xlpm.diff*100, 1), IF(_xlpm.r<>"", _xlpm.r & " (T%)", "") ), "" ) ->  | F57: =IFERROR( _xlfn.LET( _xlpm.s, SUMIFS( MP_2[Suunniteltu l/s], MP_2[+], "T" ), _xlpm.r, ROUND(_xlpm.s, 1), IF(_xlpm.r>0, _xlpm.r & " l/s (Tulo suunnit.)", "") ), "" ) ->  | H57: =IFERROR( _xlfn.LET( _xlpm.s, SUMIFS( MP_2[Mitattu l/s], MP_2[+], "T" ), _xlpm.r, ROUND(_xlpm.s, 1), IF(_xlpm.r>0, _xlpm.r & " l/s (Tulo mitattu)", "") ), "" ) -> 
F58: Tavoite tulo % -> | G58: =IFERROR(INDEX(MP_REF2[Seuranta %]*100, MATCH("RT", MP_REF2[Merkitse RP / RT], 0)),"100") -> 100 | H58: =IFERROR(INDEX(MP_REF2[Seuranta %]*100, MATCH("RP", MP_REF2[Merkitse RP / RT], 0)),"100") -> 100 | I58: <-Tavoite poisto %
C60: Referenssiventtiilin haku | H60: Tulokset | J60: Muut tiedot
A61: KRS № | B61: Huone Tila | C61: Päätelaite Mittapiste | D61: Koko Ød | E61: Paine Pa | F61: Suunniteltu l/s | G61: Merkitse RP / RT | H61: Mitattu l/s | I61: Avaus mm | J61: Kerroin k-arvo | K61: Seuranta % | L61: Tavoite l/s | M61: + | N61: - | O61: tulo | P61: poisto | Q61: ★
A62: 1 | B62: Kylpyhuone | H62: =IFERROR(IF(OR(ISBLANK(MP_REF3[[#This Row],[Paine Pa]]), ISBLANK(MP_REF3[[#This Row],[Kerroin k-arvo]])), "",MP_REF3[[#This Row],[Kerroin k-arvo]]*SQRT(MP_REF3[[#This Row],[Paine Pa]])),"") ->  | J62: =IF(MP_REF3[[#This Row],[Päätelaite Mittapiste]]="", "",_xlfn.XLOOKUP(1,(Hakemisto[Tyyppi]=MP_REF3[[#This Row],[Päätelaite Mittapiste]])*(Hakemisto[Koko]=MP_REF3[[#This Row],[Koko Ød]])*(Hakemisto[asento]=MP_REF3[[#This Row],[Avaus mm]]), Hakemisto[k-arvo], "ei löydy")) ->  | K62: =_xlfn.LET(_xlpm.suunniteltu, INDIRECT("F"&ROW()), _xlpm.mitattu, INDIRECT("H"&ROW()), IF(OR(_xlpm.suunniteltu="", _xlpm.mitattu="", _xlpm.mitattu=0), " ", (_xlpm.mitattu/_xlpm.suunniteltu))) ->  | L62: =IFERROR(IF(AND(MP_REF3[[#This Row],[-]]="P", MP_REF3[[#This Row],[+]]<>"T"), $H$88*MP_REF3[[#This Row],[Suunniteltu l/s]]/100, IF(AND(MP_REF3[[#This Row],[+]]="T", MP_REF3[[#This Row],[-]]<>"P"), $G$88*MP_REF3[[#This Row],[Suunniteltu l/s]]/100, IF(AND(MP_REF3[[#This Row],[-]]="P", MP_REF3[[#This Row],[+]]="T"), "T/P", "") ) ),"") ->  | M62: =IFERROR(IF(MP_REF3[[#This Row],[tulo]]=TRUE,"T",""),"") ->  | N62: =IFERROR(IF(MP_REF3[[#This Row],[poisto]]=TRUE,"P",""),"") ->  | O62: =IFERROR(IF( ISBLANK(MP_REF3[[#This Row],[Päätelaite Mittapiste]]), "", IF( SUM( _xlfn._xlws.FILTER( (Hakemisto[Tyyppi]=MP_REF3[[#This Row],[Päätelaite Mittapiste]]) * (Hakemisto[Koko]=MP_REF3[[#This Row],[Koko Ød]]) * ((Hakemisto[Tulo]="x") + (Hakemisto[Tulo]=1)), (Hakemisto[Tyyppi]=MP_REF3[[#This Row],[Päätelaite Mittapiste]]) ) ) > 0, TRUE, FALSE ) ),"") ->  | P62: =IFERROR(IF( ISBLANK(MP_REF3[[#This Row],[Päätelaite Mittapiste]]), "", IF( SUM( _xlfn._xlws.FILTER( (Hakemisto[Tyyppi]=MP_REF3[[#This Row],[Päätelaite Mittapiste]]) * (Hakemisto[Koko]=MP_REF3[[#This Row],[Koko Ød]]) * ((Hakemisto[Poisto]="x") + (Hakemisto[Poisto]=1)), (Hakemisto[Tyyppi]=MP_REF3[[#This Row],[Päätelaite Mittapiste]]) ) ) > 0, TRUE, FALSE ) ),"") -> 
A63: 1 | B63: KHH | H63: =IFERROR(IF(OR(ISBLANK(MP_REF3[[#This Row],[Paine Pa]]), ISBLANK(MP_REF3[[#This Row],[Kerroin k-arvo]])), "",MP_REF3[[#This Row],[Kerroin k-arvo]]*SQRT(MP_REF3[[#This Row],[Paine Pa]])),"") ->  | J63: =IF(MP_REF3[[#This Row],[Päätelaite Mittapiste]]="", "",_xlfn.XLOOKUP(1,(Hakemisto[Tyyppi]=MP_REF3[[#This Row],[Päätelaite Mittapiste]])*(Hakemisto[Koko]=MP_REF3[[#This Row],[Koko Ød]])*(Hakemisto[asento]=MP_REF3[[#This Row],[Avaus mm]]), Hakemisto[k-arvo], "ei löydy")) ->  | K63: =_xlfn.LET(_xlpm.suunniteltu, INDIRECT("F"&ROW()), _xlpm.mitattu, INDIRECT("H"&ROW()), IF(OR(_xlpm.suunniteltu="", _xlpm.mitattu="", _xlpm.mitattu=0), " ", (_xlpm.mitattu/_xlpm.suunniteltu))) ->  | L63: =IFERROR(IF(AND(MP_REF3[[#This Row],[-]]="P", MP_REF3[[#This Row],[+]]<>"T"), $H$88*MP_REF3[[#This Row],[Suunniteltu l/s]]/100, IF(AND(MP_REF3[[#This Row],[+]]="T", MP_REF3[[#This Row],[-]]<>"P"), $G$88*MP_REF3[[#This Row],[Suunniteltu l/s]]/100, IF(AND(MP_REF3[[#This Row],[-]]="P", MP_REF3[[#This Row],[+]]="T"), "T/P", "") ) ),"") ->  | M63: =IFERROR(IF(MP_REF3[[#This Row],[tulo]]=TRUE,"T",""),"") ->  | N63: =IFERROR(IF(MP_REF3[[#This Row],[poisto]]=TRUE,"P",""),"") ->  | O63: =IFERROR(IF( ISBLANK(MP_REF3[[#This Row],[Päätelaite Mittapiste]]), "", IF( SUM( _xlfn._xlws.FILTER( (Hakemisto[Tyyppi]=MP_REF3[[#This Row],[Päätelaite Mittapiste]]) * (Hakemisto[Koko]=MP_REF3[[#This Row],[Koko Ød]]) * ((Hakemisto[Tulo]="x") + (Hakemisto[Tulo]=1)), (Hakemisto[Tyyppi]=MP_REF3[[#This Row],[Päätelaite Mittapiste]]) ) ) > 0, TRUE, FALSE ) ),"") ->  | P63: =IFERROR(IF( ISBLANK(MP_REF3[[#This Row],[Päätelaite Mittapiste]]), "", IF( SUM( _xlfn._xlws.FILTER( (Hakemisto[Tyyppi]=MP_REF3[[#This Row],[Päätelaite Mittapiste]]) * (Hakemisto[Koko]=MP_REF3[[#This Row],[Koko Ød]]) * ((Hakemisto[Poisto]="x") + (Hakemisto[Poisto]=1)), (Hakemisto[Tyyppi]=MP_REF3[[#This Row],[Päätelaite Mittapiste]]) ) ) > 0, TRUE, FALSE ) ),"") -> 
A64: 1 | B64: Olohuone | H64: =IFERROR(IF(OR(ISBLANK(MP_REF3[[#This Row],[Paine Pa]]), ISBLANK(MP_REF3[[#This Row],[Kerroin k-arvo]])), "",MP_REF3[[#This Row],[Kerroin k-arvo]]*SQRT(MP_REF3[[#This Row],[Paine Pa]])),"") ->  | J64: =IF(MP_REF3[[#This Row],[Päätelaite Mittapiste]]="", "",_xlfn.XLOOKUP(1,(Hakemisto[Tyyppi]=MP_REF3[[#This Row],[Päätelaite Mittapiste]])*(Hakemisto[Koko]=MP_REF3[[#This Row],[Koko Ød]])*(Hakemisto[asento]=MP_REF3[[#This Row],[Avaus mm]]), Hakemisto[k-arvo], "ei löydy")) ->  | K64: =_xlfn.LET(_xlpm.suunniteltu, INDIRECT("F"&ROW()), _xlpm.mitattu, INDIRECT("H"&ROW()), IF(OR(_xlpm.suunniteltu="", _xlpm.mitattu="", _xlpm.mitattu=0), " ", (_xlpm.mitattu/_xlpm.suunniteltu))) ->  | L64: =IFERROR(IF(AND(MP_REF3[[#This Row],[-]]="P", MP_REF3[[#This Row],[+]]<>"T"), $H$88*MP_REF3[[#This Row],[Suunniteltu l/s]]/100, IF(AND(MP_REF3[[#This Row],[+]]="T", MP_REF3[[#This Row],[-]]<>"P"), $G$88*MP_REF3[[#This Row],[Suunniteltu l/s]]/100, IF(AND(MP_REF3[[#This Row],[-]]="P", MP_REF3[[#This Row],[+]]="T"), "T/P", "") ) ),"") ->  | M64: =IFERROR(IF(MP_REF3[[#This Row],[tulo]]=TRUE,"T",""),"") ->  | N64: =IFERROR(IF(MP_REF3[[#This Row],[poisto]]=TRUE,"P",""),"") ->  | O64: =IFERROR(IF( ISBLANK(MP_REF3[[#This Row],[Päätelaite Mittapiste]]), "", IF( SUM( _xlfn._xlws.FILTER( (Hakemisto[Tyyppi]=MP_REF3[[#This Row],[Päätelaite Mittapiste]]) * (Hakemisto[Koko]=MP_REF3[[#This Row],[Koko Ød]]) * ((Hakemisto[Tulo]="x") + (Hakemisto[Tulo]=1)), (Hakemisto[Tyyppi]=MP_REF3[[#This Row],[Päätelaite Mittapiste]]) ) ) > 0, TRUE, FALSE ) ),"") ->  | P64: =IFERROR(IF( ISBLANK(MP_REF3[[#This Row],[Päätelaite Mittapiste]]), "", IF( SUM( _xlfn._xlws.FILTER( (Hakemisto[Tyyppi]=MP_REF3[[#This Row],[Päätelaite Mittapiste]]) * (Hakemisto[Koko]=MP_REF3[[#This Row],[Koko Ød]]) * ((Hakemisto[Poisto]="x") + (Hakemisto[Poisto]=1)), (Hakemisto[Tyyppi]=MP_REF3[[#This Row],[Päätelaite Mittapiste]]) ) ) > 0, TRUE, FALSE ) ),"") -> 
A65: 1 | B65: Makuuhuone | H65: =IFERROR(IF(OR(ISBLANK(MP_REF3[[#This Row],[Paine Pa]]), ISBLANK(MP_REF3[[#This Row],[Kerroin k-arvo]])), "",MP_REF3[[#This Row],[Kerroin k-arvo]]*SQRT(MP_REF3[[#This Row],[Paine Pa]])),"") ->  | J65: =IF(MP_REF3[[#This Row],[Päätelaite Mittapiste]]="", "",_xlfn.XLOOKUP(1,(Hakemisto[Tyyppi]=MP_REF3[[#This Row],[Päätelaite Mittapiste]])*(Hakemisto[Koko]=MP_REF3[[#This Row],[Koko Ød]])*(Hakemisto[asento]=MP_REF3[[#This Row],[Avaus mm]]), Hakemisto[k-arvo], "ei löydy")) ->  | K65: =_xlfn.LET(_xlpm.suunniteltu, INDIRECT("F"&ROW()), _xlpm.mitattu, INDIRECT("H"&ROW()), IF(OR(_xlpm.suunniteltu="", _xlpm.mitattu="", _xlpm.mitattu=0), " ", (_xlpm.mitattu/_xlpm.suunniteltu))) ->  | L65: =IFERROR(IF(AND(MP_REF3[[#This Row],[-]]="P", MP_REF3[[#This Row],[+]]<>"T"), $H$88*MP_REF3[[#This Row],[Suunniteltu l/s]]/100, IF(AND(MP_REF3[[#This Row],[+]]="T", MP_REF3[[#This Row],[-]]<>"P"), $G$88*MP_REF3[[#This Row],[Suunniteltu l/s]]/100, IF(AND(MP_REF3[[#This Row],[-]]="P", MP_REF3[[#This Row],[+]]="T"), "T/P", "") ) ),"") ->  | M65: =IFERROR(IF(MP_REF3[[#This Row],[tulo]]=TRUE,"T",""),"") ->  | N65: =IFERROR(IF(MP_REF3[[#This Row],[poisto]]=TRUE,"P",""),"") ->  | O65: =IFERROR(IF( ISBLANK(MP_REF3[[#This Row],[Päätelaite Mittapiste]]), "", IF( SUM( _xlfn._xlws.FILTER( (Hakemisto[Tyyppi]=MP_REF3[[#This Row],[Päätelaite Mittapiste]]) * (Hakemisto[Koko]=MP_REF3[[#This Row],[Koko Ød]]) * ((Hakemisto[Tulo]="x") + (Hakemisto[Tulo]=1)), (Hakemisto[Tyyppi]=MP_REF3[[#This Row],[Päätelaite Mittapiste]]) ) ) > 0, TRUE, FALSE ) ),"") ->  | P65: =IFERROR(IF( ISBLANK(MP_REF3[[#This Row],[Päätelaite Mittapiste]]), "", IF( SUM( _xlfn._xlws.FILTER( (Hakemisto[Tyyppi]=MP_REF3[[#This Row],[Päätelaite Mittapiste]]) * (Hakemisto[Koko]=MP_REF3[[#This Row],[Koko Ød]]) * ((Hakemisto[Poisto]="x") + (Hakemisto[Poisto]=1)), (Hakemisto[Tyyppi]=MP_REF3[[#This Row],[Päätelaite Mittapiste]]) ) ) > 0, TRUE, FALSE ) ),"") -> 
B67: Minimipaine | C67: Täyttönäkymä | D67: Päätelaitteen minimipaine tarkistus laskuri | H67: Tulokset
B68: Asetus | C68: asetukset | D68: min paine | E68: l/s | F68: laite | G68: Koko | H68: k-arvo >/= | I68: avaus | J68: max ref. paine
B69: 10 | C69: Poisto | D69: 10 | E69: 15 | F69: KSO | G69: 125 | H69: =E69/SQRT(D69) -> 4.74 | I69: =säätöasento(F69,G69,E69,D69,Hakemisto[]) -> 10 | J69: =_xlfn.LET( _xlpm.karvo, IF( F69="", "", _xlfn.XLOOKUP( 1, (Hakemisto[Tyyppi]=F69)* (Hakemisto[Koko]=G69)* (Hakemisto[asento]=I69), Hakemisto[k-arvo], "ei löydy" ) ), IF( OR(_xlpm.karvo="", _xlpm.karvo="ei löydy"), "", (E69/_xlpm.karvo)^2 ) ) -> 14.1
B70: 10 | C70: Tulo | D70: 10 | E70: 10 | F70: KTS | G70: 100 / 180° muovi | H70: =E70/SQRT(D70) -> 3.16 | I70: =säätöasento(F70,G70,E70,D70,Hakemisto[]) -> 11 | J70: =_xlfn.LET( _xlpm.karvo, IF( F70="", "", _xlfn.XLOOKUP( 1, (Hakemisto[Tyyppi]=F70)* (Hakemisto[Koko]=G70)* (Hakemisto[asento]=I70), Hakemisto[k-arvo], "ei löydy" ) ), IF( OR(_xlpm.karvo="", _xlpm.karvo="ei löydy"), "", (E70/_xlpm.karvo)^2 ) ) -> 10.0
A73: Taulukko 3 | C73: Suhteellinen säätö tulo ja poisto | H73: Tulokset | J73: Muut tiedot | R73: Huomiot
A74: KRS № | B74: Huone Tila | C74: Päätelaite Mittapiste | D74: Koko Ød | E74: Paine Pa | F74: Suunniteltu l/s | G74: Lukitse avaus | H74: Mitattu l/s | I74: Avaus mm | J74: Kerroin k-arvo | K74: Seuranta % | L74: Tavoite l/s | M74: + | N74: - | O74: tulo | P74: poisto | Q74: ★ | R74: Huomio nro | S74: Näkyy huomio tulosteessa? | T74: Kuvaus
H75: =IFERROR( _xlfn.LET( _xlpm.paine, MP_3[[#This Row],[Paine Pa]], _xlpm.k, MP_3[[#This Row],[Kerroin k-arvo]], IF(OR(_xlpm.paine="", _xlpm.k=""), "", _xlpm.k*SQRT(_xlpm.paine)) ), "") ->  | I75: =IF( MP_3[[#This Row],[Lukitse avaus]]<>"", VALUE(MP_3[[#This Row],[Lukitse avaus]]), säätöasento( MP_3[[#This Row],[Päätelaite Mittapiste]], MP_3[[#This Row],[Koko Ød]], MP_3[[#This Row],[Tavoite l/s]], MP_3[[#This Row],[Paine Pa]], Hakemisto[] ) ) ->  | J75: =IFERROR( IF( OR( ISBLANK(MP_3[[#This Row],[Päätelaite Mittapiste]]), ISBLANK(MP_3[[#This Row],[Koko Ød]]), ISBLANK(MP_3[[#This Row],[Avaus mm]]), ISBLANK(MP_3[[#This Row],[Paine Pa]]) ), "", _xlfn.LET( _xlpm.comp, MP_3[[#This Row],[Suunniteltu l/s]]*IF( AND(MP_3[[#This Row],[-]]="P", MP_3[[#This Row],[+]]<>"T"), $H$88*MP_3[[#This Row],[Suunniteltu l/s]], IF( AND(MP_3[[#This Row],[+]]="T", MP_3[[#This Row],[-]]<>"P"), $G$88*MP_3[[#This Row],[Suunniteltu l/s]], IF(AND(MP_3[[#This Row],[-]]="P", MP_3[[#This Row],[+]]="T"), "T/P", "") ) )/SQRT(MP_3[[#This Row],[Paine Pa]]), _xlpm.filt, _xlfn._xlws.FILTER( Hakemisto[], (Hakemisto[Tyyppi]=MP_3[[#This Row],[Päätelaite Mittapiste]]) * (Hakemisto[Koko]=MP_3[[#This Row],[Koko Ød]]) * (IFERROR(--Hakemisto[asento], -1E+99) = IFERROR(--MP_3[[#This Row],[Avaus mm]], -1E+99)) ), _xlpm.colIndex, MATCH("k-arvo", Hakemisto[#Headers], 0), _xlpm.kValues, INDEX(_xlpm.filt, 0, _xlpm.colIndex), _xlpm.diffs, ABS(_xlpm.kValues - _xlpm.comp), _xlpm.minDiff, MIN(_xlpm.diffs), INDEX(_xlpm.kValues, MATCH(_xlpm.minDiff, _xlpm.diffs, 0)) ) ), "" ) ->  | K75: =_xlfn.LET(_xlpm.suunniteltu, INDIRECT("F"&ROW()), _xlpm.mitattu, INDIRECT("H"&ROW()), IF(OR(_xlpm.suunniteltu="", _xlpm.mitattu="", _xlpm.mitattu=0), " ", (_xlpm.mitattu/_xlpm.suunniteltu))) ->  | L75: =IFERROR(IF(AND(MP_3[[#This Row],[-]]="P", MP_3[[#This Row],[+]]<>"T"), $H$88*MP_3[[#This Row],[Suunniteltu l/s]]/100, IF(AND(MP_3[[#This Row],[+]]="T", MP_3[[#This Row],[-]]<>"P"), $G$88*MP_3[[#This Row],[Suunniteltu l/s]]/100, IF(AND(MP_3[[#This Row],[-]]="P", MP_3[[#This Row],[+]]="T"), "T/P", "") ) ),"") ->  | M75: =IFERROR(IF(MP_3[[#This Row],[tulo]]=TRUE,"T",""),"") ->  | N75: =IFERROR(IF(MP_3[[#This Row],[poisto]]=TRUE,"P",""),"") ->  | O75: =IFERROR(IF( ISBLANK(MP_3[[#This Row],[Päätelaite Mittapiste]]), "", IF( SUM( _xlfn._xlws.FILTER( (Hakemisto[Tyyppi]=MP_3[[#This Row],[Päätelaite Mittapiste]]) * (Hakemisto[Koko]=MP_3[[#This Row],[Koko Ød]]) * ((Hakemisto[Tulo]="x") + (Hakemisto[Tulo]=1)), (Hakemisto[Tyyppi]=MP_3[[#This Row],[Päätelaite Mittapiste]]) ) ) > 0, TRUE, FALSE ) ),"") ->  | P75: =IFERROR(IF( ISBLANK(MP_3[[#This Row],[Päätelaite Mittapiste]]), "", IF( SUM( _xlfn._xlws.FILTER( (Hakemisto[Tyyppi]=MP_3[[#This Row],[Päätelaite Mittapiste]]) * (Hakemisto[Koko]=MP_3[[#This Row],[Koko Ød]]) * ((Hakemisto[Poisto]="x") + (Hakemisto[Poisto]=1)), (Hakemisto[Tyyppi]=MP_3[[#This Row],[Päätelaite Mittapiste]]) ) ) > 0, TRUE, FALSE ) ),"") ->  | R75: =IF((MP_3[[#This Row],[★]]=""),"",MP_3[[#This Row],[★]]) -> 
H76: =IFERROR( _xlfn.LET( _xlpm.paine, MP_3[[#This Row],[Paine Pa]], _xlpm.k, MP_3[[#This Row],[Kerroin k-arvo]], IF(OR(_xlpm.paine="", _xlpm.k=""), "", _xlpm.k*SQRT(_xlpm.paine)) ), "") ->  | I76: =IF( MP_3[[#This Row],[Lukitse avaus]]<>"", VALUE(MP_3[[#This Row],[Lukitse avaus]]), säätöasento( MP_3[[#This Row],[Päätelaite Mittapiste]], MP_3[[#This Row],[Koko Ød]], MP_3[[#This Row],[Tavoite l/s]], MP_3[[#This Row],[Paine Pa]], Hakemisto[] ) ) ->  | J76: =IFERROR( IF( OR( ISBLANK(MP_3[[#This Row],[Päätelaite Mittapiste]]), ISBLANK(MP_3[[#This Row],[Koko Ød]]), ISBLANK(MP_3[[#This Row],[Avaus mm]]), ISBLANK(MP_3[[#This Row],[Paine Pa]]) ), "", _xlfn.LET( _xlpm.comp, MP_3[[#This Row],[Suunniteltu l/s]]*IF( AND(MP_3[[#This Row],[-]]="P", MP_3[[#This Row],[+]]<>"T"), $H$88*MP_3[[#This Row],[Suunniteltu l/s]], IF( AND(MP_3[[#This Row],[+]]="T", MP_3[[#This Row],[-]]<>"P"), $G$88*MP_3[[#This Row],[Suunniteltu l/s]], IF(AND(MP_3[[#This Row],[-]]="P", MP_3[[#This Row],[+]]="T"), "T/P", "") ) )/SQRT(MP_3[[#This Row],[Paine Pa]]), _xlpm.filt, _xlfn._xlws.FILTER( Hakemisto[], (Hakemisto[Tyyppi]=MP_3[[#This Row],[Päätelaite Mittapiste]]) * (Hakemisto[Koko]=MP_3[[#This Row],[Koko Ød]]) * (IFERROR(--Hakemisto[asento], -1E+99) = IFERROR(--MP_3[[#This Row],[Avaus mm]], -1E+99)) ), _xlpm.colIndex, MATCH("k-arvo", Hakemisto[#Headers], 0), _xlpm.kValues, INDEX(_xlpm.filt, 0, _xlpm.colIndex), _xlpm.diffs, ABS(_xlpm.kValues - _xlpm.comp), _xlpm.minDiff, MIN(_xlpm.diffs), INDEX(_xlpm.kValues, MATCH(_xlpm.minDiff, _xlpm.diffs, 0)) ) ), "" ) ->  | K76: =_xlfn.LET(_xlpm.suunniteltu, INDIRECT("F"&ROW()), _xlpm.mitattu, INDIRECT("H"&ROW()), IF(OR(_xlpm.suunniteltu="", _xlpm.mitattu="", _xlpm.mitattu=0), " ", (_xlpm.mitattu/_xlpm.suunniteltu))) ->  | L76: =IFERROR(IF(AND(MP_3[[#This Row],[-]]="P", MP_3[[#This Row],[+]]<>"T"), $H$88*MP_3[[#This Row],[Suunniteltu l/s]]/100, IF(AND(MP_3[[#This Row],[+]]="T", MP_3[[#This Row],[-]]<>"P"), $G$88*MP_3[[#This Row],[Suunniteltu l/s]]/100, IF(AND(MP_3[[#This Row],[-]]="P", MP_3[[#This Row],[+]]="T"), "T/P", "") ) ),"") ->  | M76: =IFERROR(IF(MP_3[[#This Row],[tulo]]=TRUE,"T",""),"") ->  | N76: =IFERROR(IF(MP_3[[#This Row],[poisto]]=TRUE,"P",""),"") ->  | O76: =IFERROR(IF( ISBLANK(MP_3[[#This Row],[Päätelaite Mittapiste]]), "", IF( SUM( _xlfn._xlws.FILTER( (Hakemisto[Tyyppi]=MP_3[[#This Row],[Päätelaite Mittapiste]]) * (Hakemisto[Koko]=MP_3[[#This Row],[Koko Ød]]) * ((Hakemisto[Tulo]="x") + (Hakemisto[Tulo]=1)), (Hakemisto[Tyyppi]=MP_3[[#This Row],[Päätelaite Mittapiste]]) ) ) > 0, TRUE, FALSE ) ),"") ->  | P76: =IFERROR(IF( ISBLANK(MP_3[[#This Row],[Päätelaite Mittapiste]]), "", IF( SUM( _xlfn._xlws.FILTER( (Hakemisto[Tyyppi]=MP_3[[#This Row],[Päätelaite Mittapiste]]) * (Hakemisto[Koko]=MP_3[[#This Row],[Koko Ød]]) * ((Hakemisto[Poisto]="x") + (Hakemisto[Poisto]=1)), (Hakemisto[Tyyppi]=MP_3[[#This Row],[Päätelaite Mittapiste]]) ) ) > 0, TRUE, FALSE ) ),"") ->  | R76: =IF((MP_3[[#This Row],[★]]=""),"",MP_3[[#This Row],[★]]) -> 
H77: =IFERROR( _xlfn.LET( _xlpm.paine, MP_3[[#This Row],[Paine Pa]], _xlpm.k, MP_3[[#This Row],[Kerroin k-arvo]], IF(OR(_xlpm.paine="", _xlpm.k=""), "", _xlpm.k*SQRT(_xlpm.paine)) ), "") ->  | I77: =IF( MP_3[[#This Row],[Lukitse avaus]]<>"", VALUE(MP_3[[#This Row],[Lukitse avaus]]), säätöasento( MP_3[[#This Row],[Päätelaite Mittapiste]], MP_3[[#This Row],[Koko Ød]], MP_3[[#This Row],[Tavoite l/s]], MP_3[[#This Row],[Paine Pa]], Hakemisto[] ) ) ->  | J77: =IFERROR( IF( OR( ISBLANK(MP_3[[#This Row],[Päätelaite Mittapiste]]), ISBLANK(MP_3[[#This Row],[Koko Ød]]), ISBLANK(MP_3[[#This Row],[Avaus mm]]), ISBLANK(MP_3[[#This Row],[Paine Pa]]) ), "", _xlfn.LET( _xlpm.comp, MP_3[[#This Row],[Suunniteltu l/s]]*IF( AND(MP_3[[#This Row],[-]]="P", MP_3[[#This Row],[+]]<>"T"), $H$88*MP_3[[#This Row],[Suunniteltu l/s]], IF( AND(MP_3[[#This Row],[+]]="T", MP_3[[#This Row],[-]]<>"P"), $G$88*MP_3[[#This Row],[Suunniteltu l/s]], IF(AND(MP_3[[#This Row],[-]]="P", MP_3[[#This Row],[+]]="T"), "T/P", "") ) )/SQRT(MP_3[[#This Row],[Paine Pa]]), _xlpm.filt, _xlfn._xlws.FILTER( Hakemisto[], (Hakemisto[Tyyppi]=MP_3[[#This Row],[Päätelaite Mittapiste]]) * (Hakemisto[Koko]=MP_3[[#This Row],[Koko Ød]]) * (IFERROR(--Hakemisto[asento], -1E+99) = IFERROR(--MP_3[[#This Row],[Avaus mm]], -1E+99)) ), _xlpm.colIndex, MATCH("k-arvo", Hakemisto[#Headers], 0), _xlpm.kValues, INDEX(_xlpm.filt, 0, _xlpm.colIndex), _xlpm.diffs, ABS(_xlpm.kValues - _xlpm.comp), _xlpm.minDiff, MIN(_xlpm.diffs), INDEX(_xlpm.kValues, MATCH(_xlpm.minDiff, _xlpm.diffs, 0)) ) ), "" ) ->  | K77: =_xlfn.LET(_xlpm.suunniteltu, INDIRECT("F"&ROW()), _xlpm.mitattu, INDIRECT("H"&ROW()), IF(OR(_xlpm.suunniteltu="", _xlpm.mitattu="", _xlpm.mitattu=0), " ", (_xlpm.mitattu/_xlpm.suunniteltu))) ->  | L77: =IFERROR(IF(AND(MP_3[[#This Row],[-]]="P", MP_3[[#This Row],[+]]<>"T"), $H$88*MP_3[[#This Row],[Suunniteltu l/s]]/100, IF(AND(MP_3[[#This Row],[+]]="T", MP_3[[#This Row],[-]]<>"P"), $G$88*MP_3[[#This Row],[Suunniteltu l/s]]/100, IF(AND(MP_3[[#This Row],[-]]="P", MP_3[[#This Row],[+]]="T"), "T/P", "") ) ),"") ->  | M77: =IFERROR(IF(MP_3[[#This Row],[tulo]]=TRUE,"T",""),"") ->  | N77: =IFERROR(IF(MP_3[[#This Row],[poisto]]=TRUE,"P",""),"") ->  | O77: =IFERROR(IF( ISBLANK(MP_3[[#This Row],[Päätelaite Mittapiste]]), "", IF( SUM( _xlfn._xlws.FILTER( (Hakemisto[Tyyppi]=MP_3[[#This Row],[Päätelaite Mittapiste]]) * (Hakemisto[Koko]=MP_3[[#This Row],[Koko Ød]]) * ((Hakemisto[Tulo]="x") + (Hakemisto[Tulo]=1)), (Hakemisto[Tyyppi]=MP_3[[#This Row],[Päätelaite Mittapiste]]) ) ) > 0, TRUE, FALSE ) ),"") ->  | P77: =IFERROR(IF( ISBLANK(MP_3[[#This Row],[Päätelaite Mittapiste]]), "", IF( SUM( _xlfn._xlws.FILTER( (Hakemisto[Tyyppi]=MP_3[[#This Row],[Päätelaite Mittapiste]]) * (Hakemisto[Koko]=MP_3[[#This Row],[Koko Ød]]) * ((Hakemisto[Poisto]="x") + (Hakemisto[Poisto]=1)), (Hakemisto[Tyyppi]=MP_3[[#This Row],[Päätelaite Mittapiste]]) ) ) > 0, TRUE, FALSE ) ),"") ->  | R77: =IF((MP_3[[#This Row],[★]]=""),"",MP_3[[#This Row],[★]]) -> 
H78: =IFERROR( _xlfn.LET( _xlpm.paine, MP_3[[#This Row],[Paine Pa]], _xlpm.k, MP_3[[#This Row],[Kerroin k-arvo]], IF(OR(_xlpm.paine="", _xlpm.k=""), "", _xlpm.k*SQRT(_xlpm.paine)) ), "") ->  | I78: =IF( MP_3[[#This Row],[Lukitse avaus]]<>"", VALUE(MP_3[[#This Row],[Lukitse avaus]]), säätöasento( MP_3[[#This Row],[Päätelaite Mittapiste]], MP_3[[#This Row],[Koko Ød]], MP_3[[#This Row],[Tavoite l/s]], MP_3[[#This Row],[Paine Pa]], Hakemisto[] ) ) ->  | J78: =IFERROR( IF( OR( ISBLANK(MP_3[[#This Row],[Päätelaite Mittapiste]]), ISBLANK(MP_3[[#This Row],[Koko Ød]]), ISBLANK(MP_3[[#This Row],[Avaus mm]]), ISBLANK(MP_3[[#This Row],[Paine Pa]]) ), "", _xlfn.LET( _xlpm.comp, MP_3[[#This Row],[Suunniteltu l/s]]*IF( AND(MP_3[[#This Row],[-]]="P", MP_3[[#This Row],[+]]<>"T"), $H$88*MP_3[[#This Row],[Suunniteltu l/s]], IF( AND(MP_3[[#This Row],[+]]="T", MP_3[[#This Row],[-]]<>"P"), $G$88*MP_3[[#This Row],[Suunniteltu l/s]], IF(AND(MP_3[[#This Row],[-]]="P", MP_3[[#This Row],[+]]="T"), "T/P", "") ) )/SQRT(MP_3[[#This Row],[Paine Pa]]), _xlpm.filt, _xlfn._xlws.FILTER( Hakemisto[], (Hakemisto[Tyyppi]=MP_3[[#This Row],[Päätelaite Mittapiste]]) * (Hakemisto[Koko]=MP_3[[#This Row],[Koko Ød]]) * (IFERROR(--Hakemisto[asento], -1E+99) = IFERROR(--MP_3[[#This Row],[Avaus mm]], -1E+99)) ), _xlpm.colIndex, MATCH("k-arvo", Hakemisto[#Headers], 0), _xlpm.kValues, INDEX(_xlpm.filt, 0, _xlpm.colIndex), _xlpm.diffs, ABS(_xlpm.kValues - _xlpm.comp), _xlpm.minDiff, MIN(_xlpm.diffs), INDEX(_xlpm.kValues, MATCH(_xlpm.minDiff, _xlpm.diffs, 0)) ) ), "" ) ->  | K78: =_xlfn.LET(_xlpm.suunniteltu, INDIRECT("F"&ROW()), _xlpm.mitattu, INDIRECT("H"&ROW()), IF(OR(_xlpm.suunniteltu="", _xlpm.mitattu="", _xlpm.mitattu=0), " ", (_xlpm.mitattu/_xlpm.suunniteltu))) ->  | L78: =IFERROR(IF(AND(MP_3[[#This Row],[-]]="P", MP_3[[#This Row],[+]]<>"T"), $H$88*MP_3[[#This Row],[Suunniteltu l/s]]/100, IF(AND(MP_3[[#This Row],[+]]="T", MP_3[[#This Row],[-]]<>"P"), $G$88*MP_3[[#This Row],[Suunniteltu l/s]]/100, IF(AND(MP_3[[#This Row],[-]]="P", MP_3[[#This Row],[+]]="T"), "T/P", "") ) ),"") ->  | M78: =IFERROR(IF(MP_3[[#This Row],[tulo]]=TRUE,"T",""),"") ->  | N78: =IFERROR(IF(MP_3[[#This Row],[poisto]]=TRUE,"P",""),"") ->  | O78: =IFERROR(IF( ISBLANK(MP_3[[#This Row],[Päätelaite Mittapiste]]), "", IF( SUM( _xlfn._xlws.FILTER( (Hakemisto[Tyyppi]=MP_3[[#This Row],[Päätelaite Mittapiste]]) * (Hakemisto[Koko]=MP_3[[#This Row],[Koko Ød]]) * ((Hakemisto[Tulo]="x") + (Hakemisto[Tulo]=1)), (Hakemisto[Tyyppi]=MP_3[[#This Row],[Päätelaite Mittapiste]]) ) ) > 0, TRUE, FALSE ) ),"") ->  | P78: =IFERROR(IF( ISBLANK(MP_3[[#This Row],[Päätelaite Mittapiste]]), "", IF( SUM( _xlfn._xlws.FILTER( (Hakemisto[Tyyppi]=MP_3[[#This Row],[Päätelaite Mittapiste]]) * (Hakemisto[Koko]=MP_3[[#This Row],[Koko Ød]]) * ((Hakemisto[Poisto]="x") + (Hakemisto[Poisto]=1)), (Hakemisto[Tyyppi]=MP_3[[#This Row],[Päätelaite Mittapiste]]) ) ) > 0, TRUE, FALSE ) ),"") ->  | R78: =IF((MP_3[[#This Row],[★]]=""),"",MP_3[[#This Row],[★]]) -> 
H79: =IFERROR( _xlfn.LET( _xlpm.paine, MP_3[[#This Row],[Paine Pa]], _xlpm.k, MP_3[[#This Row],[Kerroin k-arvo]], IF(OR(_xlpm.paine="", _xlpm.k=""), "", _xlpm.k*SQRT(_xlpm.paine)) ), "") ->  | I79: =IF( MP_3[[#This Row],[Lukitse avaus]]<>"", VALUE(MP_3[[#This Row],[Lukitse avaus]]), säätöasento( MP_3[[#This Row],[Päätelaite Mittapiste]], MP_3[[#This Row],[Koko Ød]], MP_3[[#This Row],[Tavoite l/s]], MP_3[[#This Row],[Paine Pa]], Hakemisto[] ) ) ->  | J79: =IFERROR( IF( OR( ISBLANK(MP_3[[#This Row],[Päätelaite Mittapiste]]), ISBLANK(MP_3[[#This Row],[Koko Ød]]), ISBLANK(MP_3[[#This Row],[Avaus mm]]), ISBLANK(MP_3[[#This Row],[Paine Pa]]) ), "", _xlfn.LET( _xlpm.comp, MP_3[[#This Row],[Suunniteltu l/s]]*IF( AND(MP_3[[#This Row],[-]]="P", MP_3[[#This Row],[+]]<>"T"), $H$88*MP_3[[#This Row],[Suunniteltu l/s]], IF( AND(MP_3[[#This Row],[+]]="T", MP_3[[#This Row],[-]]<>"P"), $G$88*MP_3[[#This Row],[Suunniteltu l/s]], IF(AND(MP_3[[#This Row],[-]]="P", MP_3[[#This Row],[+]]="T"), "T/P", "") ) )/SQRT(MP_3[[#This Row],[Paine Pa]]), _xlpm.filt, _xlfn._xlws.FILTER( Hakemisto[], (Hakemisto[Tyyppi]=MP_3[[#This Row],[Päätelaite Mittapiste]]) * (Hakemisto[Koko]=MP_3[[#This Row],[Koko Ød]]) * (IFERROR(--Hakemisto[asento], -1E+99) = IFERROR(--MP_3[[#This Row],[Avaus mm]], -1E+99)) ), _xlpm.colIndex, MATCH("k-arvo", Hakemisto[#Headers], 0), _xlpm.kValues, INDEX(_xlpm.filt, 0, _xlpm.colIndex), _xlpm.diffs, ABS(_xlpm.kValues - _xlpm.comp), _xlpm.minDiff, MIN(_xlpm.diffs), INDEX(_xlpm.kValues, MATCH(_xlpm.minDiff, _xlpm.diffs, 0)) ) ), "" ) ->  | K79: =_xlfn.LET(_xlpm.suunniteltu, INDIRECT("F"&ROW()), _xlpm.mitattu, INDIRECT("H"&ROW()), IF(OR(_xlpm.suunniteltu="", _xlpm.mitattu="", _xlpm.mitattu=0), " ", (_xlpm.mitattu/_xlpm.suunniteltu))) ->  | L79: =IFERROR(IF(AND(MP_3[[#This Row],[-]]="P", MP_3[[#This Row],[+]]<>"T"), $H$88*MP_3[[#This Row],[Suunniteltu l/s]]/100, IF(AND(MP_3[[#This Row],[+]]="T", MP_3[[#This Row],[-]]<>"P"), $G$88*MP_3[[#This Row],[Suunniteltu l/s]]/100, IF(AND(MP_3[[#This Row],[-]]="P", MP_3[[#This Row],[+]]="T"), "T/P", "") ) ),"") ->  | M79: =IFERROR(IF(MP_3[[#This Row],[tulo]]=TRUE,"T",""),"") ->  | N79: =IFERROR(IF(MP_3[[#This Row],[poisto]]=TRUE,"P",""),"") ->  | O79: =IFERROR(IF( ISBLANK(MP_3[[#This Row],[Päätelaite Mittapiste]]), "", IF( SUM( _xlfn._xlws.FILTER( (Hakemisto[Tyyppi]=MP_3[[#This Row],[Päätelaite Mittapiste]]) * (Hakemisto[Koko]=MP_3[[#This Row],[Koko Ød]]) * ((Hakemisto[Tulo]="x") + (Hakemisto[Tulo]=1)), (Hakemisto[Tyyppi]=MP_3[[#This Row],[Päätelaite Mittapiste]]) ) ) > 0, TRUE, FALSE ) ),"") ->  | P79: =IFERROR(IF( ISBLANK(MP_3[[#This Row],[Päätelaite Mittapiste]]), "", IF( SUM( _xlfn._xlws.FILTER( (Hakemisto[Tyyppi]=MP_3[[#This Row],[Päätelaite Mittapiste]]) * (Hakemisto[Koko]=MP_3[[#This Row],[Koko Ød]]) * ((Hakemisto[Poisto]="x") + (Hakemisto[Poisto]=1)), (Hakemisto[Tyyppi]=MP_3[[#This Row],[Päätelaite Mittapiste]]) ) ) > 0, TRUE, FALSE ) ),"") ->  | R79: =IF((MP_3[[#This Row],[★]]=""),"",MP_3[[#This Row],[★]]) -> 
H80: =IFERROR( _xlfn.LET( _xlpm.paine, MP_3[[#This Row],[Paine Pa]], _xlpm.k, MP_3[[#This Row],[Kerroin k-arvo]], IF(OR(_xlpm.paine="", _xlpm.k=""), "", _xlpm.k*SQRT(_xlpm.paine)) ), "") ->  | I80: =IF( MP_3[[#This Row],[Lukitse avaus]]<>"", VALUE(MP_3[[#This Row],[Lukitse avaus]]), säätöasento( MP_3[[#This Row],[Päätelaite Mittapiste]], MP_3[[#This Row],[Koko Ød]], MP_3[[#This Row],[Tavoite l/s]], MP_3[[#This Row],[Paine Pa]], Hakemisto[] ) ) ->  | J80: =IFERROR( IF( OR( ISBLANK(MP_3[[#This Row],[Päätelaite Mittapiste]]), ISBLANK(MP_3[[#This Row],[Koko Ød]]), ISBLANK(MP_3[[#This Row],[Avaus mm]]), ISBLANK(MP_3[[#This Row],[Paine Pa]]) ), "", _xlfn.LET( _xlpm.comp, MP_3[[#This Row],[Suunniteltu l/s]]*IF( AND(MP_3[[#This Row],[-]]="P", MP_3[[#This Row],[+]]<>"T"), $H$88*MP_3[[#This Row],[Suunniteltu l/s]], IF( AND(MP_3[[#This Row],[+]]="T", MP_3[[#This Row],[-]]<>"P"), $G$88*MP_3[[#This Row],[Suunniteltu l/s]], IF(AND(MP_3[[#This Row],[-]]="P", MP_3[[#This Row],[+]]="T"), "T/P", "") ) )/SQRT(MP_3[[#This Row],[Paine Pa]]), _xlpm.filt, _xlfn._xlws.FILTER( Hakemisto[], (Hakemisto[Tyyppi]=MP_3[[#This Row],[Päätelaite Mittapiste]]) * (Hakemisto[Koko]=MP_3[[#This Row],[Koko Ød]]) * (IFERROR(--Hakemisto[asento], -1E+99) = IFERROR(--MP_3[[#This Row],[Avaus mm]], -1E+99)) ), _xlpm.colIndex, MATCH("k-arvo", Hakemisto[#Headers], 0), _xlpm.kValues, INDEX(_xlpm.filt, 0, _xlpm.colIndex), _xlpm.diffs, ABS(_xlpm.kValues - _xlpm.comp), _xlpm.minDiff, MIN(_xlpm.diffs), INDEX(_xlpm.kValues, MATCH(_xlpm.minDiff, _xlpm.diffs, 0)) ) ), "" ) ->  | K80: =_xlfn.LET(_xlpm.suunniteltu, INDIRECT("F"&ROW()), _xlpm.mitattu, INDIRECT("H"&ROW()), IF(OR(_xlpm.suunniteltu="", _xlpm.mitattu="", _xlpm.mitattu=0), " ", (_xlpm.mitattu/_xlpm.suunniteltu))) ->  | L80: =IFERROR(IF(AND(MP_3[[#This Row],[-]]="P", MP_3[[#This Row],[+]]<>"T"), $H$88*MP_3[[#This Row],[Suunniteltu l/s]]/100, IF(AND(MP_3[[#This Row],[+]]="T", MP_3[[#This Row],[-]]<>"P"), $G$88*MP_3[[#This Row],[Suunniteltu l/s]]/100, IF(AND(MP_3[[#This Row],[-]]="P", MP_3[[#This Row],[+]]="T"), "T/P", "") ) ),"") ->  | M80: =IFERROR(IF(MP_3[[#This Row],[tulo]]=TRUE,"T",""),"") ->  | N80: =IFERROR(IF(MP_3[[#This Row],[poisto]]=TRUE,"P",""),"") ->  | O80: =IFERROR(IF( ISBLANK(MP_3[[#This Row],[Päätelaite Mittapiste]]), "", IF( SUM( _xlfn._xlws.FILTER( (Hakemisto[Tyyppi]=MP_3[[#This Row],[Päätelaite Mittapiste]]) * (Hakemisto[Koko]=MP_3[[#This Row],[Koko Ød]]) * ((Hakemisto[Tulo]="x") + (Hakemisto[Tulo]=1)), (Hakemisto[Tyyppi]=MP_3[[#This Row],[Päätelaite Mittapiste]]) ) ) > 0, TRUE, FALSE ) ),"") ->  | P80: =IFERROR(IF( ISBLANK(MP_3[[#This Row],[Päätelaite Mittapiste]]), "", IF( SUM( _xlfn._xlws.FILTER( (Hakemisto[Tyyppi]=MP_3[[#This Row],[Päätelaite Mittapiste]]) * (Hakemisto[Koko]=MP_3[[#This Row],[Koko Ød]]) * ((Hakemisto[Poisto]="x") + (Hakemisto[Poisto]=1)), (Hakemisto[Tyyppi]=MP_3[[#This Row],[Päätelaite Mittapiste]]) ) ) > 0, TRUE, FALSE ) ),"") ->  | R80: =IF((MP_3[[#This Row],[★]]=""),"",MP_3[[#This Row],[★]]) -> 
H81: =IFERROR( _xlfn.LET( _xlpm.paine, MP_3[[#This Row],[Paine Pa]], _xlpm.k, MP_3[[#This Row],[Kerroin k-arvo]], IF(OR(_xlpm.paine="", _xlpm.k=""), "", _xlpm.k*SQRT(_xlpm.paine)) ), "") ->  | I81: =IF( MP_3[[#This Row],[Lukitse avaus]]<>"", VALUE(MP_3[[#This Row],[Lukitse avaus]]), säätöasento( MP_3[[#This Row],[Päätelaite Mittapiste]], MP_3[[#This Row],[Koko Ød]], MP_3[[#This Row],[Tavoite l/s]], MP_3[[#This Row],[Paine Pa]], Hakemisto[] ) ) ->  | J81: =IFERROR( IF( OR( ISBLANK(MP_3[[#This Row],[Päätelaite Mittapiste]]), ISBLANK(MP_3[[#This Row],[Koko Ød]]), ISBLANK(MP_3[[#This Row],[Avaus mm]]), ISBLANK(MP_3[[#This Row],[Paine Pa]]) ), "", _xlfn.LET( _xlpm.comp, MP_3[[#This Row],[Suunniteltu l/s]]*IF( AND(MP_3[[#This Row],[-]]="P", MP_3[[#This Row],[+]]<>"T"), $H$88*MP_3[[#This Row],[Suunniteltu l/s]], IF( AND(MP_3[[#This Row],[+]]="T", MP_3[[#This Row],[-]]<>"P"), $G$88*MP_3[[#This Row],[Suunniteltu l/s]], IF(AND(MP_3[[#This Row],[-]]="P", MP_3[[#This Row],[+]]="T"), "T/P", "") ) )/SQRT(MP_3[[#This Row],[Paine Pa]]), _xlpm.filt, _xlfn._xlws.FILTER( Hakemisto[], (Hakemisto[Tyyppi]=MP_3[[#This Row],[Päätelaite Mittapiste]]) * (Hakemisto[Koko]=MP_3[[#This Row],[Koko Ød]]) * (IFERROR(--Hakemisto[asento], -1E+99) = IFERROR(--MP_3[[#This Row],[Avaus mm]], -1E+99)) ), _xlpm.colIndex, MATCH("k-arvo", Hakemisto[#Headers], 0), _xlpm.kValues, INDEX(_xlpm.filt, 0, _xlpm.colIndex), _xlpm.diffs, ABS(_xlpm.kValues - _xlpm.comp), _xlpm.minDiff, MIN(_xlpm.diffs), INDEX(_xlpm.kValues, MATCH(_xlpm.minDiff, _xlpm.diffs, 0)) ) ), "" ) ->  | K81: =_xlfn.LET(_xlpm.suunniteltu, INDIRECT("F"&ROW()), _xlpm.mitattu, INDIRECT("H"&ROW()), IF(OR(_xlpm.suunniteltu="", _xlpm.mitattu="", _xlpm.mitattu=0), " ", (_xlpm.mitattu/_xlpm.suunniteltu))) ->  | L81: =IFERROR(IF(AND(MP_3[[#This Row],[-]]="P", MP_3[[#This Row],[+]]<>"T"), $H$88*MP_3[[#This Row],[Suunniteltu l/s]]/100, IF(AND(MP_3[[#This Row],[+]]="T", MP_3[[#This Row],[-]]<>"P"), $G$88*MP_3[[#This Row],[Suunniteltu l/s]]/100, IF(AND(MP_3[[#This Row],[-]]="P", MP_3[[#This Row],[+]]="T"), "T/P", "") ) ),"") ->  | M81: =IFERROR(IF(MP_3[[#This Row],[tulo]]=TRUE,"T",""),"") ->  | N81: =IFERROR(IF(MP_3[[#This Row],[poisto]]=TRUE,"P",""),"") ->  | O81: =IFERROR(IF( ISBLANK(MP_3[[#This Row],[Päätelaite Mittapiste]]), "", IF( SUM( _xlfn._xlws.FILTER( (Hakemisto[Tyyppi]=MP_3[[#This Row],[Päätelaite Mittapiste]]) * (Hakemisto[Koko]=MP_3[[#This Row],[Koko Ød]]) * ((Hakemisto[Tulo]="x") + (Hakemisto[Tulo]=1)), (Hakemisto[Tyyppi]=MP_3[[#This Row],[Päätelaite Mittapiste]]) ) ) > 0, TRUE, FALSE ) ),"") ->  | P81: =IFERROR(IF( ISBLANK(MP_3[[#This Row],[Päätelaite Mittapiste]]), "", IF( SUM( _xlfn._xlws.FILTER( (Hakemisto[Tyyppi]=MP_3[[#This Row],[Päätelaite Mittapiste]]) * (Hakemisto[Koko]=MP_3[[#This Row],[Koko Ød]]) * ((Hakemisto[Poisto]="x") + (Hakemisto[Poisto]=1)), (Hakemisto[Tyyppi]=MP_3[[#This Row],[Päätelaite Mittapiste]]) ) ) > 0, TRUE, FALSE ) ),"") ->  | R81: =IF((MP_3[[#This Row],[★]]=""),"",MP_3[[#This Row],[★]]) -> 
H82: =IFERROR( _xlfn.LET( _xlpm.paine, MP_3[[#This Row],[Paine Pa]], _xlpm.k, MP_3[[#This Row],[Kerroin k-arvo]], IF(OR(_xlpm.paine="", _xlpm.k=""), "", _xlpm.k*SQRT(_xlpm.paine)) ), "") ->  | I82: =IF( MP_3[[#This Row],[Lukitse avaus]]<>"", VALUE(MP_3[[#This Row],[Lukitse avaus]]), säätöasento( MP_3[[#This Row],[Päätelaite Mittapiste]], MP_3[[#This Row],[Koko Ød]], MP_3[[#This Row],[Tavoite l/s]], MP_3[[#This Row],[Paine Pa]], Hakemisto[] ) ) ->  | J82: =IFERROR( IF( OR( ISBLANK(MP_3[[#This Row],[Päätelaite Mittapiste]]), ISBLANK(MP_3[[#This Row],[Koko Ød]]), ISBLANK(MP_3[[#This Row],[Avaus mm]]), ISBLANK(MP_3[[#This Row],[Paine Pa]]) ), "", _xlfn.LET( _xlpm.comp, MP_3[[#This Row],[Suunniteltu l/s]]*IF( AND(MP_3[[#This Row],[-]]="P", MP_3[[#This Row],[+]]<>"T"), $H$88*MP_3[[#This Row],[Suunniteltu l/s]], IF( AND(MP_3[[#This Row],[+]]="T", MP_3[[#This Row],[-]]<>"P"), $G$88*MP_3[[#This Row],[Suunniteltu l/s]], IF(AND(MP_3[[#This Row],[-]]="P", MP_3[[#This Row],[+]]="T"), "T/P", "") ) )/SQRT(MP_3[[#This Row],[Paine Pa]]), _xlpm.filt, _xlfn._xlws.FILTER( Hakemisto[], (Hakemisto[Tyyppi]=MP_3[[#This Row],[Päätelaite Mittapiste]]) * (Hakemisto[Koko]=MP_3[[#This Row],[Koko Ød]]) * (IFERROR(--Hakemisto[asento], -1E+99) = IFERROR(--MP_3[[#This Row],[Avaus mm]], -1E+99)) ), _xlpm.colIndex, MATCH("k-arvo", Hakemisto[#Headers], 0), _xlpm.kValues, INDEX(_xlpm.filt, 0, _xlpm.colIndex), _xlpm.diffs, ABS(_xlpm.kValues - _xlpm.comp), _xlpm.minDiff, MIN(_xlpm.diffs), INDEX(_xlpm.kValues, MATCH(_xlpm.minDiff, _xlpm.diffs, 0)) ) ), "" ) ->  | K82: =_xlfn.LET(_xlpm.suunniteltu, INDIRECT("F"&ROW()), _xlpm.mitattu, INDIRECT("H"&ROW()), IF(OR(_xlpm.suunniteltu="", _xlpm.mitattu="", _xlpm.mitattu=0), " ", (_xlpm.mitattu/_xlpm.suunniteltu))) ->  | L82: =IFERROR(IF(AND(MP_3[[#This Row],[-]]="P", MP_3[[#This Row],[+]]<>"T"), $H$88*MP_3[[#This Row],[Suunniteltu l/s]]/100, IF(AND(MP_3[[#This Row],[+]]="T", MP_3[[#This Row],[-]]<>"P"), $G$88*MP_3[[#This Row],[Suunniteltu l/s]]/100, IF(AND(MP_3[[#This Row],[-]]="P", MP_3[[#This Row],[+]]="T"), "T/P", "") ) ),"") ->  | M82: =IFERROR(IF(MP_3[[#This Row],[tulo]]=TRUE,"T",""),"") ->  | N82: =IFERROR(IF(MP_3[[#This Row],[poisto]]=TRUE,"P",""),"") ->  | O82: =IFERROR(IF( ISBLANK(MP_3[[#This Row],[Päätelaite Mittapiste]]), "", IF( SUM( _xlfn._xlws.FILTER( (Hakemisto[Tyyppi]=MP_3[[#This Row],[Päätelaite Mittapiste]]) * (Hakemisto[Koko]=MP_3[[#This Row],[Koko Ød]]) * ((Hakemisto[Tulo]="x") + (Hakemisto[Tulo]=1)), (Hakemisto[Tyyppi]=MP_3[[#This Row],[Päätelaite Mittapiste]]) ) ) > 0, TRUE, FALSE ) ),"") ->  | P82: =IFERROR(IF( ISBLANK(MP_3[[#This Row],[Päätelaite Mittapiste]]), "", IF( SUM( _xlfn._xlws.FILTER( (Hakemisto[Tyyppi]=MP_3[[#This Row],[Päätelaite Mittapiste]]) * (Hakemisto[Koko]=MP_3[[#This Row],[Koko Ød]]) * ((Hakemisto[Poisto]="x") + (Hakemisto[Poisto]=1)), (Hakemisto[Tyyppi]=MP_3[[#This Row],[Päätelaite Mittapiste]]) ) ) > 0, TRUE, FALSE ) ),"") ->  | R82: =IF((MP_3[[#This Row],[★]]=""),"",MP_3[[#This Row],[★]]) -> 
H83: =IFERROR( _xlfn.LET( _xlpm.paine, MP_3[[#This Row],[Paine Pa]], _xlpm.k, MP_3[[#This Row],[Kerroin k-arvo]], IF(OR(_xlpm.paine="", _xlpm.k=""), "", _xlpm.k*SQRT(_xlpm.paine)) ), "") ->  | I83: =IF( MP_3[[#This Row],[Lukitse avaus]]<>"", VALUE(MP_3[[#This Row],[Lukitse avaus]]), säätöasento( MP_3[[#This Row],[Päätelaite Mittapiste]], MP_3[[#This Row],[Koko Ød]], MP_3[[#This Row],[Tavoite l/s]], MP_3[[#This Row],[Paine Pa]], Hakemisto[] ) ) ->  | J83: =IFERROR( IF( OR( ISBLANK(MP_3[[#This Row],[Päätelaite Mittapiste]]), ISBLANK(MP_3[[#This Row],[Koko Ød]]), ISBLANK(MP_3[[#This Row],[Avaus mm]]), ISBLANK(MP_3[[#This Row],[Paine Pa]]) ), "", _xlfn.LET( _xlpm.comp, MP_3[[#This Row],[Suunniteltu l/s]]*IF( AND(MP_3[[#This Row],[-]]="P", MP_3[[#This Row],[+]]<>"T"), $H$88*MP_3[[#This Row],[Suunniteltu l/s]], IF( AND(MP_3[[#This Row],[+]]="T", MP_3[[#This Row],[-]]<>"P"), $G$88*MP_3[[#This Row],[Suunniteltu l/s]], IF(AND(MP_3[[#This Row],[-]]="P", MP_3[[#This Row],[+]]="T"), "T/P", "") ) )/SQRT(MP_3[[#This Row],[Paine Pa]]), _xlpm.filt, _xlfn._xlws.FILTER( Hakemisto[], (Hakemisto[Tyyppi]=MP_3[[#This Row],[Päätelaite Mittapiste]]) * (Hakemisto[Koko]=MP_3[[#This Row],[Koko Ød]]) * (IFERROR(--Hakemisto[asento], -1E+99) = IFERROR(--MP_3[[#This Row],[Avaus mm]], -1E+99)) ), _xlpm.colIndex, MATCH("k-arvo", Hakemisto[#Headers], 0), _xlpm.kValues, INDEX(_xlpm.filt, 0, _xlpm.colIndex), _xlpm.diffs, ABS(_xlpm.kValues - _xlpm.comp), _xlpm.minDiff, MIN(_xlpm.diffs), INDEX(_xlpm.kValues, MATCH(_xlpm.minDiff, _xlpm.diffs, 0)) ) ), "" ) ->  | K83: =_xlfn.LET(_xlpm.suunniteltu, INDIRECT("F"&ROW()), _xlpm.mitattu, INDIRECT("H"&ROW()), IF(OR(_xlpm.suunniteltu="", _xlpm.mitattu="", _xlpm.mitattu=0), " ", (_xlpm.mitattu/_xlpm.suunniteltu))) ->  | L83: =IFERROR(IF(AND(MP_3[[#This Row],[-]]="P", MP_3[[#This Row],[+]]<>"T"), $H$88*MP_3[[#This Row],[Suunniteltu l/s]]/100, IF(AND(MP_3[[#This Row],[+]]="T", MP_3[[#This Row],[-]]<>"P"), $G$88*MP_3[[#This Row],[Suunniteltu l/s]]/100, IF(AND(MP_3[[#This Row],[-]]="P", MP_3[[#This Row],[+]]="T"), "T/P", "") ) ),"") ->  | M83: =IFERROR(IF(MP_3[[#This Row],[tulo]]=TRUE,"T",""),"") ->  | N83: =IFERROR(IF(MP_3[[#This Row],[poisto]]=TRUE,"P",""),"") ->  | O83: =IFERROR(IF( ISBLANK(MP_3[[#This Row],[Päätelaite Mittapiste]]), "", IF( SUM( _xlfn._xlws.FILTER( (Hakemisto[Tyyppi]=MP_3[[#This Row],[Päätelaite Mittapiste]]) * (Hakemisto[Koko]=MP_3[[#This Row],[Koko Ød]]) * ((Hakemisto[Tulo]="x") + (Hakemisto[Tulo]=1)), (Hakemisto[Tyyppi]=MP_3[[#This Row],[Päätelaite Mittapiste]]) ) ) > 0, TRUE, FALSE ) ),"") ->  | P83: =IFERROR(IF( ISBLANK(MP_3[[#This Row],[Päätelaite Mittapiste]]), "", IF( SUM( _xlfn._xlws.FILTER( (Hakemisto[Tyyppi]=MP_3[[#This Row],[Päätelaite Mittapiste]]) * (Hakemisto[Koko]=MP_3[[#This Row],[Koko Ød]]) * ((Hakemisto[Poisto]="x") + (Hakemisto[Poisto]=1)), (Hakemisto[Tyyppi]=MP_3[[#This Row],[Päätelaite Mittapiste]]) ) ) > 0, TRUE, FALSE ) ),"") ->  | R83: =IF((MP_3[[#This Row],[★]]=""),"",MP_3[[#This Row],[★]]) -> 
H84: =IFERROR( _xlfn.LET( _xlpm.paine, MP_3[[#This Row],[Paine Pa]], _xlpm.k, MP_3[[#This Row],[Kerroin k-arvo]], IF(OR(_xlpm.paine="", _xlpm.k=""), "", _xlpm.k*SQRT(_xlpm.paine)) ), "") ->  | I84: =IF( MP_3[[#This Row],[Lukitse avaus]]<>"", VALUE(MP_3[[#This Row],[Lukitse avaus]]), säätöasento( MP_3[[#This Row],[Päätelaite Mittapiste]], MP_3[[#This Row],[Koko Ød]], MP_3[[#This Row],[Tavoite l/s]], MP_3[[#This Row],[Paine Pa]], Hakemisto[] ) ) ->  | J84: =IFERROR( IF( OR( ISBLANK(MP_3[[#This Row],[Päätelaite Mittapiste]]), ISBLANK(MP_3[[#This Row],[Koko Ød]]), ISBLANK(MP_3[[#This Row],[Avaus mm]]), ISBLANK(MP_3[[#This Row],[Paine Pa]]) ), "", _xlfn.LET( _xlpm.comp, MP_3[[#This Row],[Suunniteltu l/s]]*IF( AND(MP_3[[#This Row],[-]]="P", MP_3[[#This Row],[+]]<>"T"), $H$88*MP_3[[#This Row],[Suunniteltu l/s]], IF( AND(MP_3[[#This Row],[+]]="T", MP_3[[#This Row],[-]]<>"P"), $G$88*MP_3[[#This Row],[Suunniteltu l/s]], IF(AND(MP_3[[#This Row],[-]]="P", MP_3[[#This Row],[+]]="T"), "T/P", "") ) )/SQRT(MP_3[[#This Row],[Paine Pa]]), _xlpm.filt, _xlfn._xlws.FILTER( Hakemisto[], (Hakemisto[Tyyppi]=MP_3[[#This Row],[Päätelaite Mittapiste]]) * (Hakemisto[Koko]=MP_3[[#This Row],[Koko Ød]]) * (IFERROR(--Hakemisto[asento], -1E+99) = IFERROR(--MP_3[[#This Row],[Avaus mm]], -1E+99)) ), _xlpm.colIndex, MATCH("k-arvo", Hakemisto[#Headers], 0), _xlpm.kValues, INDEX(_xlpm.filt, 0, _xlpm.colIndex), _xlpm.diffs, ABS(_xlpm.kValues - _xlpm.comp), _xlpm.minDiff, MIN(_xlpm.diffs), INDEX(_xlpm.kValues, MATCH(_xlpm.minDiff, _xlpm.diffs, 0)) ) ), "" ) ->  | K84: =_xlfn.LET(_xlpm.suunniteltu, INDIRECT("F"&ROW()), _xlpm.mitattu, INDIRECT("H"&ROW()), IF(OR(_xlpm.suunniteltu="", _xlpm.mitattu="", _xlpm.mitattu=0), " ", (_xlpm.mitattu/_xlpm.suunniteltu))) ->  | L84: =IFERROR(IF(AND(MP_3[[#This Row],[-]]="P", MP_3[[#This Row],[+]]<>"T"), $H$88*MP_3[[#This Row],[Suunniteltu l/s]]/100, IF(AND(MP_3[[#This Row],[+]]="T", MP_3[[#This Row],[-]]<>"P"), $G$88*MP_3[[#This Row],[Suunniteltu l/s]]/100, IF(AND(MP_3[[#This Row],[-]]="P", MP_3[[#This Row],[+]]="T"), "T/P", "") ) ),"") ->  | M84: =IFERROR(IF(MP_3[[#This Row],[tulo]]=TRUE,"T",""),"") ->  | N84: =IFERROR(IF(MP_3[[#This Row],[poisto]]=TRUE,"P",""),"") ->  | O84: =IFERROR(IF( ISBLANK(MP_3[[#This Row],[Päätelaite Mittapiste]]), "", IF( SUM( _xlfn._xlws.FILTER( (Hakemisto[Tyyppi]=MP_3[[#This Row],[Päätelaite Mittapiste]]) * (Hakemisto[Koko]=MP_3[[#This Row],[Koko Ød]]) * ((Hakemisto[Tulo]="x") + (Hakemisto[Tulo]=1)), (Hakemisto[Tyyppi]=MP_3[[#This Row],[Päätelaite Mittapiste]]) ) ) > 0, TRUE, FALSE ) ),"") ->  | P84: =IFERROR(IF( ISBLANK(MP_3[[#This Row],[Päätelaite Mittapiste]]), "", IF( SUM( _xlfn._xlws.FILTER( (Hakemisto[Tyyppi]=MP_3[[#This Row],[Päätelaite Mittapiste]]) * (Hakemisto[Koko]=MP_3[[#This Row],[Koko Ød]]) * ((Hakemisto[Poisto]="x") + (Hakemisto[Poisto]=1)), (Hakemisto[Tyyppi]=MP_3[[#This Row],[Päätelaite Mittapiste]]) ) ) > 0, TRUE, FALSE ) ),"") ->  | R84: =IF((MP_3[[#This Row],[★]]=""),"",MP_3[[#This Row],[★]]) -> 
H85: =IFERROR( _xlfn.LET( _xlpm.paine, MP_3[[#This Row],[Paine Pa]], _xlpm.k, MP_3[[#This Row],[Kerroin k-arvo]], IF(OR(_xlpm.paine="", _xlpm.k=""), "", _xlpm.k*SQRT(_xlpm.paine)) ), "") ->  | I85: =IF( MP_3[[#This Row],[Lukitse avaus]]<>"", VALUE(MP_3[[#This Row],[Lukitse avaus]]), säätöasento( MP_3[[#This Row],[Päätelaite Mittapiste]], MP_3[[#This Row],[Koko Ød]], MP_3[[#This Row],[Tavoite l/s]], MP_3[[#This Row],[Paine Pa]], Hakemisto[] ) ) ->  | J85: =IFERROR( IF( OR( ISBLANK(MP_3[[#This Row],[Päätelaite Mittapiste]]), ISBLANK(MP_3[[#This Row],[Koko Ød]]), ISBLANK(MP_3[[#This Row],[Avaus mm]]), ISBLANK(MP_3[[#This Row],[Paine Pa]]) ), "", _xlfn.LET( _xlpm.comp, MP_3[[#This Row],[Suunniteltu l/s]]*IF( AND(MP_3[[#This Row],[-]]="P", MP_3[[#This Row],[+]]<>"T"), $H$88*MP_3[[#This Row],[Suunniteltu l/s]], IF( AND(MP_3[[#This Row],[+]]="T", MP_3[[#This Row],[-]]<>"P"), $G$88*MP_3[[#This Row],[Suunniteltu l/s]], IF(AND(MP_3[[#This Row],[-]]="P", MP_3[[#This Row],[+]]="T"), "T/P", "") ) )/SQRT(MP_3[[#This Row],[Paine Pa]]), _xlpm.filt, _xlfn._xlws.FILTER( Hakemisto[], (Hakemisto[Tyyppi]=MP_3[[#This Row],[Päätelaite Mittapiste]]) * (Hakemisto[Koko]=MP_3[[#This Row],[Koko Ød]]) * (IFERROR(--Hakemisto[asento], -1E+99) = IFERROR(--MP_3[[#This Row],[Avaus mm]], -1E+99)) ), _xlpm.colIndex, MATCH("k-arvo", Hakemisto[#Headers], 0), _xlpm.kValues, INDEX(_xlpm.filt, 0, _xlpm.colIndex), _xlpm.diffs, ABS(_xlpm.kValues - _xlpm.comp), _xlpm.minDiff, MIN(_xlpm.diffs), INDEX(_xlpm.kValues, MATCH(_xlpm.minDiff, _xlpm.diffs, 0)) ) ), "" ) ->  | K85: =_xlfn.LET(_xlpm.suunniteltu, INDIRECT("F"&ROW()), _xlpm.mitattu, INDIRECT("H"&ROW()), IF(OR(_xlpm.suunniteltu="", _xlpm.mitattu="", _xlpm.mitattu=0), " ", (_xlpm.mitattu/_xlpm.suunniteltu))) ->  | L85: =IFERROR(IF(AND(MP_3[[#This Row],[-]]="P", MP_3[[#This Row],[+]]<>"T"), $H$88*MP_3[[#This Row],[Suunniteltu l/s]]/100, IF(AND(MP_3[[#This Row],[+]]="T", MP_3[[#This Row],[-]]<>"P"), $G$88*MP_3[[#This Row],[Suunniteltu l/s]]/100, IF(AND(MP_3[[#This Row],[-]]="P", MP_3[[#This Row],[+]]="T"), "T/P", "") ) ),"") ->  | M85: =IFERROR(IF(MP_3[[#This Row],[tulo]]=TRUE,"T",""),"") ->  | N85: =IFERROR(IF(MP_3[[#This Row],[poisto]]=TRUE,"P",""),"") ->  | O85: =IFERROR(IF( ISBLANK(MP_3[[#This Row],[Päätelaite Mittapiste]]), "", IF( SUM( _xlfn._xlws.FILTER( (Hakemisto[Tyyppi]=MP_3[[#This Row],[Päätelaite Mittapiste]]) * (Hakemisto[Koko]=MP_3[[#This Row],[Koko Ød]]) * ((Hakemisto[Tulo]="x") + (Hakemisto[Tulo]=1)), (Hakemisto[Tyyppi]=MP_3[[#This Row],[Päätelaite Mittapiste]]) ) ) > 0, TRUE, FALSE ) ),"") ->  | P85: =IFERROR(IF( ISBLANK(MP_3[[#This Row],[Päätelaite Mittapiste]]), "", IF( SUM( _xlfn._xlws.FILTER( (Hakemisto[Tyyppi]=MP_3[[#This Row],[Päätelaite Mittapiste]]) * (Hakemisto[Koko]=MP_3[[#This Row],[Koko Ød]]) * ((Hakemisto[Poisto]="x") + (Hakemisto[Poisto]=1)), (Hakemisto[Tyyppi]=MP_3[[#This Row],[Päätelaite Mittapiste]]) ) ) > 0, TRUE, FALSE ) ),"") ->  | R85: =IF((MP_3[[#This Row],[★]]=""),"",MP_3[[#This Row],[★]]) -> 
E86: =IFERROR( _xlfn.LET( _xlpm.mit, SUMIFS( MP_3[Mitattu l/s], MP_3[-], "P" ), _xlpm.suu, SUMIFS( MP_3[Suunniteltu l/s], MP_3[-], "P" ), _xlpm.diff, IF(_xlpm.suu<>0, (_xlpm.mit / _xlpm.suu), ""), _xlpm.r, ROUND(_xlpm.diff*100, 1), IF(_xlpm.r<>"", _xlpm.r & " (P%)", "") ), "" ) ->  | F86: =IFERROR( _xlfn.LET( _xlpm.s, SUMIFS( MP_3[Suunniteltu l/s], MP_3[-], "P" ), _xlpm.r, ROUND(_xlpm.s, 1), IF(_xlpm.r>0, _xlpm.r & " l/s (Poisto suunnit.)", "") ), "" ) ->  | H86: =IFERROR( _xlfn.LET( _xlpm.s, SUMIFS( MP_3[Mitattu l/s], MP_3[-], "P" ), _xlpm.r, ROUND(_xlpm.s, 1), IF(_xlpm.r>0, _xlpm.r & " l/s (Poisto mitattu)", "") ), "" ) -> 
B87: 3 | C87: ↑ | D87: =IFERROR( _xlfn.LET( _xlpm.s, SUMIFS( MP_3[Mitattu l/s], MP_3[+], "", MP_3[-], "" ) + SUMIFS( MP_3[Mitattu l/s], MP_3[+], "T", MP_3[-], "P" ), _xlpm.r, ROUND(_xlpm.s, 1), IF(_xlpm.r>0, "tarkista T/P " & _xlpm.r & " l/s", "") ), "" ) ->  | E87: =IFERROR( _xlfn.LET( _xlpm.mit, SUMIFS( MP_3[Mitattu l/s], MP_3[+], "T" ), _xlpm.suu, SUMIFS( MP_3[Suunniteltu l/s], MP_3[+], "T" ), _xlpm.diff, IF(_xlpm.suu<>0, (_xlpm.mit / _xlpm.suu), ""), _xlpm.r, ROUND(_xlpm.diff*100, 1), IF(_xlpm.r<>"", _xlpm.r & " (T%)", "") ), "" ) ->  | F87: =IFERROR( _xlfn.LET( _xlpm.s, SUMIFS( MP_3[Suunniteltu l/s], MP_3[+], "T" ), _xlpm.r, ROUND(_xlpm.s, 1), IF(_xlpm.r>0, _xlpm.r & " l/s (Tulo suunnit.)", "") ), "" ) ->  | H87: =IFERROR( _xlfn.LET( _xlpm.s, SUMIFS( MP_3[Mitattu l/s], MP_3[+], "T" ), _xlpm.r, ROUND(_xlpm.s, 1), IF(_xlpm.r>0, _xlpm.r & " l/s (Tulo mitattu)", "") ), "" ) -> 
F88: Tavoite tulo % -> | G88: =IFERROR(INDEX(MP_REF3[Seuranta %]*100, MATCH("RT", MP_REF3[Merkitse RP / RT], 0)),"100") -> 100 | H88: =IFERROR(INDEX(MP_REF3[Seuranta %]*100, MATCH("RP", MP_REF3[Merkitse RP / RT], 0)),"100") -> 100 | I88: <-Tavoite poisto %
C90: Referenssiventtiilin haku | H90: Tulokset | J90: Muut tiedot
A91: KRS № | B91: Huone Tila | C91: Päätelaite Mittapiste | D91: Koko Ød | E91: Paine Pa | F91: Suunniteltu l/s | G91: Merkitse RP / RT | H91: Mitattu l/s | I91: Avaus mm | J91: Kerroin k-arvo | K91: Seuranta % | L91: Tavoite l/s | M91: + | N91: - | O91: tulo | P91: poisto | Q91: ★
A92: 1 | B92: Kylpyhuone | H92: =IFERROR(IF(OR(ISBLANK(MP_REF4[[#This Row],[Paine Pa]]), ISBLANK(MP_REF4[[#This Row],[Kerroin k-arvo]])), "",MP_REF4[[#This Row],[Kerroin k-arvo]]*SQRT(MP_REF4[[#This Row],[Paine Pa]])),"") ->  | J92: =IF(MP_REF4[[#This Row],[Päätelaite Mittapiste]]="", "",_xlfn.XLOOKUP(1,(Hakemisto[Tyyppi]=MP_REF4[[#This Row],[Päätelaite Mittapiste]])*(Hakemisto[Koko]=MP_REF4[[#This Row],[Koko Ød]])*(Hakemisto[asento]=MP_REF4[[#This Row],[Avaus mm]]), Hakemisto[k-arvo], "ei löydy")) ->  | K92: =_xlfn.LET(_xlpm.suunniteltu, INDIRECT("F"&ROW()), _xlpm.mitattu, INDIRECT("H"&ROW()), IF(OR(_xlpm.suunniteltu="", _xlpm.mitattu="", _xlpm.mitattu=0), " ", (_xlpm.mitattu/_xlpm.suunniteltu))) ->  | L92: =IFERROR(IF(AND(MP_REF4[[#This Row],[-]]="P", MP_REF4[[#This Row],[+]]<>"T"), $H$117*MP_REF4[[#This Row],[Suunniteltu l/s]]/100, IF(AND(MP_REF4[[#This Row],[+]]="T", MP_REF4[[#This Row],[-]]<>"P"), $G$117*MP_REF4[[#This Row],[Suunniteltu l/s]]/100, IF(AND(MP_REF4[[#This Row],[-]]="P", MP_REF4[[#This Row],[+]]="T"), "T/P", "") ) ),"") ->  | M92: =IFERROR(IF(MP_REF4[[#This Row],[tulo]]=TRUE,"T",""),"") ->  | N92: =IFERROR(IF(MP_REF4[[#This Row],[poisto]]=TRUE,"P",""),"") ->  | O92: =IFERROR(IF( ISBLANK(MP_REF4[[#This Row],[Päätelaite Mittapiste]]), "", IF( SUM( _xlfn._xlws.FILTER( (Hakemisto[Tyyppi]=MP_REF4[[#This Row],[Päätelaite Mittapiste]]) * (Hakemisto[Koko]=MP_REF4[[#This Row],[Koko Ød]]) * ((Hakemisto[Tulo]="x") + (Hakemisto[Tulo]=1)), (Hakemisto[Tyyppi]=MP_REF4[[#This Row],[Päätelaite Mittapiste]]) ) ) > 0, TRUE, FALSE ) ),"") ->  | P92: =IFERROR(IF( ISBLANK(MP_REF4[[#This Row],[Päätelaite Mittapiste]]), "", IF( SUM( _xlfn._xlws.FILTER( (Hakemisto[Tyyppi]=MP_REF4[[#This Row],[Päätelaite Mittapiste]]) * (Hakemisto[Koko]=MP_REF4[[#This Row],[Koko Ød]]) * ((Hakemisto[Poisto]="x") + (Hakemisto[Poisto]=1)), (Hakemisto[Tyyppi]=MP_REF4[[#This Row],[Päätelaite Mittapiste]]) ) ) > 0, TRUE, FALSE ) ),"") -> 
A93: 1 | B93: KHH | H93: =IFERROR(IF(OR(ISBLANK(MP_REF4[[#This Row],[Paine Pa]]), ISBLANK(MP_REF4[[#This Row],[Kerroin k-arvo]])), "",MP_REF4[[#This Row],[Kerroin k-arvo]]*SQRT(MP_REF4[[#This Row],[Paine Pa]])),"") ->  | J93: =IF(MP_REF4[[#This Row],[Päätelaite Mittapiste]]="", "",_xlfn.XLOOKUP(1,(Hakemisto[Tyyppi]=MP_REF4[[#This Row],[Päätelaite Mittapiste]])*(Hakemisto[Koko]=MP_REF4[[#This Row],[Koko Ød]])*(Hakemisto[asento]=MP_REF4[[#This Row],[Avaus mm]]), Hakemisto[k-arvo], "ei löydy")) ->  | K93: =_xlfn.LET(_xlpm.suunniteltu, INDIRECT("F"&ROW()), _xlpm.mitattu, INDIRECT("H"&ROW()), IF(OR(_xlpm.suunniteltu="", _xlpm.mitattu="", _xlpm.mitattu=0), " ", (_xlpm.mitattu/_xlpm.suunniteltu))) ->  | L93: =IFERROR(IF(AND(MP_REF4[[#This Row],[-]]="P", MP_REF4[[#This Row],[+]]<>"T"), $H$117*MP_REF4[[#This Row],[Suunniteltu l/s]]/100, IF(AND(MP_REF4[[#This Row],[+]]="T", MP_REF4[[#This Row],[-]]<>"P"), $G$117*MP_REF4[[#This Row],[Suunniteltu l/s]]/100, IF(AND(MP_REF4[[#This Row],[-]]="P", MP_REF4[[#This Row],[+]]="T"), "T/P", "") ) ),"") ->  | M93: =IFERROR(IF(MP_REF4[[#This Row],[tulo]]=TRUE,"T",""),"") ->  | N93: =IFERROR(IF(MP_REF4[[#This Row],[poisto]]=TRUE,"P",""),"") ->  | O93: =IFERROR(IF( ISBLANK(MP_REF4[[#This Row],[Päätelaite Mittapiste]]), "", IF( SUM( _xlfn._xlws.FILTER( (Hakemisto[Tyyppi]=MP_REF4[[#This Row],[Päätelaite Mittapiste]]) * (Hakemisto[Koko]=MP_REF4[[#This Row],[Koko Ød]]) * ((Hakemisto[Tulo]="x") + (Hakemisto[Tulo]=1)), (Hakemisto[Tyyppi]=MP_REF4[[#This Row],[Päätelaite Mittapiste]]) ) ) > 0, TRUE, FALSE ) ),"") ->  | P93: =IFERROR(IF( ISBLANK(MP_REF4[[#This Row],[Päätelaite Mittapiste]]), "", IF( SUM( _xlfn._xlws.FILTER( (Hakemisto[Tyyppi]=MP_REF4[[#This Row],[Päätelaite Mittapiste]]) * (Hakemisto[Koko]=MP_REF4[[#This Row],[Koko Ød]]) * ((Hakemisto[Poisto]="x") + (Hakemisto[Poisto]=1)), (Hakemisto[Tyyppi]=MP_REF4[[#This Row],[Päätelaite Mittapiste]]) ) ) > 0, TRUE, FALSE ) ),"") -> 
A94: 1 | B94: Olohuone | H94: =IFERROR(IF(OR(ISBLANK(MP_REF4[[#This Row],[Paine Pa]]), ISBLANK(MP_REF4[[#This Row],[Kerroin k-arvo]])), "",MP_REF4[[#This Row],[Kerroin k-arvo]]*SQRT(MP_REF4[[#This Row],[Paine Pa]])),"") ->  | J94: =IF(MP_REF4[[#This Row],[Päätelaite Mittapiste]]="", "",_xlfn.XLOOKUP(1,(Hakemisto[Tyyppi]=MP_REF4[[#This Row],[Päätelaite Mittapiste]])*(Hakemisto[Koko]=MP_REF4[[#This Row],[Koko Ød]])*(Hakemisto[asento]=MP_REF4[[#This Row],[Avaus mm]]), Hakemisto[k-arvo], "ei löydy")) ->  | K94: =_xlfn.LET(_xlpm.suunniteltu, INDIRECT("F"&ROW()), _xlpm.mitattu, INDIRECT("H"&ROW()), IF(OR(_xlpm.suunniteltu="", _xlpm.mitattu="", _xlpm.mitattu=0), " ", (_xlpm.mitattu/_xlpm.suunniteltu))) ->  | L94: =IFERROR(IF(AND(MP_REF4[[#This Row],[-]]="P", MP_REF4[[#This Row],[+]]<>"T"), $H$117*MP_REF4[[#This Row],[Suunniteltu l/s]]/100, IF(AND(MP_REF4[[#This Row],[+]]="T", MP_REF4[[#This Row],[-]]<>"P"), $G$117*MP_REF4[[#This Row],[Suunniteltu l/s]]/100, IF(AND(MP_REF4[[#This Row],[-]]="P", MP_REF4[[#This Row],[+]]="T"), "T/P", "") ) ),"") ->  | M94: =IFERROR(IF(MP_REF4[[#This Row],[tulo]]=TRUE,"T",""),"") ->  | N94: =IFERROR(IF(MP_REF4[[#This Row],[poisto]]=TRUE,"P",""),"") ->  | O94: =IFERROR(IF( ISBLANK(MP_REF4[[#This Row],[Päätelaite Mittapiste]]), "", IF( SUM( _xlfn._xlws.FILTER( (Hakemisto[Tyyppi]=MP_REF4[[#This Row],[Päätelaite Mittapiste]]) * (Hakemisto[Koko]=MP_REF4[[#This Row],[Koko Ød]]) * ((Hakemisto[Tulo]="x") + (Hakemisto[Tulo]=1)), (Hakemisto[Tyyppi]=MP_REF4[[#This Row],[Päätelaite Mittapiste]]) ) ) > 0, TRUE, FALSE ) ),"") ->  | P94: =IFERROR(IF( ISBLANK(MP_REF4[[#This Row],[Päätelaite Mittapiste]]), "", IF( SUM( _xlfn._xlws.FILTER( (Hakemisto[Tyyppi]=MP_REF4[[#This Row],[Päätelaite Mittapiste]]) * (Hakemisto[Koko]=MP_REF4[[#This Row],[Koko Ød]]) * ((Hakemisto[Poisto]="x") + (Hakemisto[Poisto]=1)), (Hakemisto[Tyyppi]=MP_REF4[[#This Row],[Päätelaite Mittapiste]]) ) ) > 0, TRUE, FALSE ) ),"") -> 
A95: 1 | B95: Makuuhuone | H95: =IFERROR(IF(OR(ISBLANK(MP_REF4[[#This Row],[Paine Pa]]), ISBLANK(MP_REF4[[#This Row],[Kerroin k-arvo]])), "",MP_REF4[[#This Row],[Kerroin k-arvo]]*SQRT(MP_REF4[[#This Row],[Paine Pa]])),"") ->  | J95: =IF(MP_REF4[[#This Row],[Päätelaite Mittapiste]]="", "",_xlfn.XLOOKUP(1,(Hakemisto[Tyyppi]=MP_REF4[[#This Row],[Päätelaite Mittapiste]])*(Hakemisto[Koko]=MP_REF4[[#This Row],[Koko Ød]])*(Hakemisto[asento]=MP_REF4[[#This Row],[Avaus mm]]), Hakemisto[k-arvo], "ei löydy")) ->  | K95: =_xlfn.LET(_xlpm.suunniteltu, INDIRECT("F"&ROW()), _xlpm.mitattu, INDIRECT("H"&ROW()), IF(OR(_xlpm.suunniteltu="", _xlpm.mitattu="", _xlpm.mitattu=0), " ", (_xlpm.mitattu/_xlpm.suunniteltu))) ->  | L95: =IFERROR(IF(AND(MP_REF4[[#This Row],[-]]="P", MP_REF4[[#This Row],[+]]<>"T"), $H$117*MP_REF4[[#This Row],[Suunniteltu l/s]]/100, IF(AND(MP_REF4[[#This Row],[+]]="T", MP_REF4[[#This Row],[-]]<>"P"), $G$117*MP_REF4[[#This Row],[Suunniteltu l/s]]/100, IF(AND(MP_REF4[[#This Row],[-]]="P", MP_REF4[[#This Row],[+]]="T"), "T/P", "") ) ),"") ->  | M95: =IFERROR(IF(MP_REF4[[#This Row],[tulo]]=TRUE,"T",""),"") ->  | N95: =IFERROR(IF(MP_REF4[[#This Row],[poisto]]=TRUE,"P",""),"") ->  | O95: =IFERROR(IF( ISBLANK(MP_REF4[[#This Row],[Päätelaite Mittapiste]]), "", IF( SUM( _xlfn._xlws.FILTER( (Hakemisto[Tyyppi]=MP_REF4[[#This Row],[Päätelaite Mittapiste]]) * (Hakemisto[Koko]=MP_REF4[[#This Row],[Koko Ød]]) * ((Hakemisto[Tulo]="x") + (Hakemisto[Tulo]=1)), (Hakemisto[Tyyppi]=MP_REF4[[#This Row],[Päätelaite Mittapiste]]) ) ) > 0, TRUE, FALSE ) ),"") ->  | P95: =IFERROR(IF( ISBLANK(MP_REF4[[#This Row],[Päätelaite Mittapiste]]), "", IF( SUM( _xlfn._xlws.FILTER( (Hakemisto[Tyyppi]=MP_REF4[[#This Row],[Päätelaite Mittapiste]]) * (Hakemisto[Koko]=MP_REF4[[#This Row],[Koko Ød]]) * ((Hakemisto[Poisto]="x") + (Hakemisto[Poisto]=1)), (Hakemisto[Tyyppi]=MP_REF4[[#This Row],[Päätelaite Mittapiste]]) ) ) > 0, TRUE, FALSE ) ),"") -> 
B97: Minimipaine | C97: Täyttönäkymä | D97: Päätelaitteen minimipaine tarkistus laskuri | H97: Tulokset
B98: Asetus | C98: asetukset | D98: min paine | E98: l/s | F98: laite | G98: Koko | H98: k-arvo >/= | I98: avaus | J98: max ref. paine
B99: 10 | C99: Poisto | D99: 10 | E99: 15 | F99: KSO | G99: 125 | H99: =E99/SQRT(D99) -> 4.74 | I99: =säätöasento(F99,G99,E99,D99,Hakemisto[]) -> 10 | J99: =_xlfn.LET( _xlpm.karvo, IF( F99="", "", _xlfn.XLOOKUP( 1, (Hakemisto[Tyyppi]=F99)* (Hakemisto[Koko]=G99)* (Hakemisto[asento]=I99), Hakemisto[k-arvo], "ei löydy" ) ), IF( OR(_xlpm.karvo="", _xlpm.karvo="ei löydy"), "", (E99/_xlpm.karvo)^2 ) ) -> 14.1
B100: 10 | C100: Tulo | D100: 10 | E100: 10 | F100: KTS | G100: 100 / 180° muovi | H100: =E100/SQRT(D100) -> 3.16 | I100: =säätöasento(F100,G100,E100,D100,Hakemisto[]) -> 11 | J100: =_xlfn.LET( _xlpm.karvo, IF( F100="", "", _xlfn.XLOOKUP( 1, (Hakemisto[Tyyppi]=F100)* (Hakemisto[Koko]=G100)* (Hakemisto[asento]=I100), Hakemisto[k-arvo], "ei löydy" ) ), IF( OR(_xlpm.karvo="", _xlpm.karvo="ei löydy"), "", (E100/_xlpm.karvo)^2 ) ) -> 10.0
A102: Taulukko 4 | C102: Suhteellinen säätö tulo ja poisto | H102: Tulokset | J102: Muut tiedot | R102: Huomiot
A103: KRS № | B103: Huone Tila | C103: Päätelaite Mittapiste | D103: Koko Ød | E103: Paine Pa | F103: Suunniteltu l/s | G103: Lukitse avaus | H103: Mitattu l/s | I103: Avaus mm | J103: Kerroin k-arvo | K103: Seuranta % | L103: Tavoite l/s | M103: + | N103: - | O103: tulo | P103: poisto | Q103: ★ | R103: Huomio nro | S103: Näkyy huomio tulosteessa? | T103: Kuvaus
H104: =IFERROR( _xlfn.LET( _xlpm.paine, MP_4[[#This Row],[Paine Pa]], _xlpm.k, MP_4[[#This Row],[Kerroin k-arvo]], IF(OR(_xlpm.paine="", _xlpm.k=""), "", _xlpm.k*SQRT(_xlpm.paine)) ), "") ->  | I104: =IF( MP_4[[#This Row],[Lukitse avaus]]<>"", VALUE(MP_4[[#This Row],[Lukitse avaus]]), säätöasento( MP_4[[#This Row],[Päätelaite Mittapiste]], MP_4[[#This Row],[Koko Ød]], MP_4[[#This Row],[Tavoite l/s]], MP_4[[#This Row],[Paine Pa]], Hakemisto[] ) ) ->  | J104: =IFERROR( IF( OR( ISBLANK(MP_4[[#This Row],[Päätelaite Mittapiste]]), ISBLANK(MP_4[[#This Row],[Koko Ød]]), ISBLANK(MP_4[[#This Row],[Avaus mm]]), ISBLANK(MP_4[[#This Row],[Paine Pa]]) ), "", _xlfn.LET( _xlpm.comp, MP_4[[#This Row],[Suunniteltu l/s]]*IF( AND(MP_4[[#This Row],[-]]="P", MP_4[[#This Row],[+]]<>"T"), $H$117*MP_4[[#This Row],[Suunniteltu l/s]], IF( AND(MP_4[[#This Row],[+]]="T", MP_4[[#This Row],[-]]<>"P"), $G$117*MP_4[[#This Row],[Suunniteltu l/s]], IF(AND(MP_4[[#This Row],[-]]="P", MP_4[[#This Row],[+]]="T"), "T/P", "") ) )/SQRT(MP_4[[#This Row],[Paine Pa]]), _xlpm.filt, _xlfn._xlws.FILTER( Hakemisto[], (Hakemisto[Tyyppi]=MP_4[[#This Row],[Päätelaite Mittapiste]]) * (Hakemisto[Koko]=MP_4[[#This Row],[Koko Ød]]) * (IFERROR(--Hakemisto[asento], -1E+99) = IFERROR(--MP_4[[#This Row],[Avaus mm]], -1E+99)) ), _xlpm.colIndex, MATCH("k-arvo", Hakemisto[#Headers], 0), _xlpm.kValues, INDEX(_xlpm.filt, 0, _xlpm.colIndex), _xlpm.diffs, ABS(_xlpm.kValues - _xlpm.comp), _xlpm.minDiff, MIN(_xlpm.diffs), INDEX(_xlpm.kValues, MATCH(_xlpm.minDiff, _xlpm.diffs, 0)) ) ), "" ) ->  | K104: =_xlfn.LET(_xlpm.suunniteltu, INDIRECT("F"&ROW()), _xlpm.mitattu, INDIRECT("H"&ROW()), IF(OR(_xlpm.suunniteltu="", _xlpm.mitattu="", _xlpm.mitattu=0), " ", (_xlpm.mitattu/_xlpm.suunniteltu))) ->  | L104: =IFERROR(IF(AND(MP_4[[#This Row],[-]]="P", MP_4[[#This Row],[+]]<>"T"), $H$117*MP_4[[#This Row],[Suunniteltu l/s]]/100, IF(AND(MP_4[[#This Row],[+]]="T", MP_4[[#This Row],[-]]<>"P"), $G$117*MP_4[[#This Row],[Suunniteltu l/s]]/100, IF(AND(MP_4[[#This Row],[-]]="P", MP_4[[#This Row],[+]]="T"), "T/P", "") ) ),"") ->  | M104: =IFERROR(IF(MP_4[[#This Row],[tulo]]=TRUE,"T",""),"") ->  | N104: =IFERROR(IF(MP_4[[#This Row],[poisto]]=TRUE,"P",""),"") ->  | O104: =IFERROR(IF( ISBLANK(MP_4[[#This Row],[Päätelaite Mittapiste]]), "", IF( SUM( _xlfn._xlws.FILTER( (Hakemisto[Tyyppi]=MP_4[[#This Row],[Päätelaite Mittapiste]]) * (Hakemisto[Koko]=MP_4[[#This Row],[Koko Ød]]) * ((Hakemisto[Tulo]="x") + (Hakemisto[Tulo]=1)), (Hakemisto[Tyyppi]=MP_4[[#This Row],[Päätelaite Mittapiste]]) ) ) > 0, TRUE, FALSE ) ),"") ->  | P104: =IFERROR(IF( ISBLANK(MP_4[[#This Row],[Päätelaite Mittapiste]]), "", IF( SUM( _xlfn._xlws.FILTER( (Hakemisto[Tyyppi]=MP_4[[#This Row],[Päätelaite Mittapiste]]) * (Hakemisto[Koko]=MP_4[[#This Row],[Koko Ød]]) * ((Hakemisto[Poisto]="x") + (Hakemisto[Poisto]=1)), (Hakemisto[Tyyppi]=MP_4[[#This Row],[Päätelaite Mittapiste]]) ) ) > 0, TRUE, FALSE ) ),"") ->  | R104: =IF((MP_4[[#This Row],[★]]=""),"",MP_4[[#This Row],[★]]) -> 
H105: =IFERROR( _xlfn.LET( _xlpm.paine, MP_4[[#This Row],[Paine Pa]], _xlpm.k, MP_4[[#This Row],[Kerroin k-arvo]], IF(OR(_xlpm.paine="", _xlpm.k=""), "", _xlpm.k*SQRT(_xlpm.paine)) ), "") ->  | I105: =IF( MP_4[[#This Row],[Lukitse avaus]]<>"", VALUE(MP_4[[#This Row],[Lukitse avaus]]), säätöasento( MP_4[[#This Row],[Päätelaite Mittapiste]], MP_4[[#This Row],[Koko Ød]], MP_4[[#This Row],[Tavoite l/s]], MP_4[[#This Row],[Paine Pa]], Hakemisto[] ) ) ->  | J105: =IFERROR( IF( OR( ISBLANK(MP_4[[#This Row],[Päätelaite Mittapiste]]), ISBLANK(MP_4[[#This Row],[Koko Ød]]), ISBLANK(MP_4[[#This Row],[Avaus mm]]), ISBLANK(MP_4[[#This Row],[Paine Pa]]) ), "", _xlfn.LET( _xlpm.comp, MP_4[[#This Row],[Suunniteltu l/s]]*IF( AND(MP_4[[#This Row],[-]]="P", MP_4[[#This Row],[+]]<>"T"), $H$117*MP_4[[#This Row],[Suunniteltu l/s]], IF( AND(MP_4[[#This Row],[+]]="T", MP_4[[#This Row],[-]]<>"P"), $G$117*MP_4[[#This Row],[Suunniteltu l/s]], IF(AND(MP_4[[#This Row],[-]]="P", MP_4[[#This Row],[+]]="T"), "T/P", "") ) )/SQRT(MP_4[[#This Row],[Paine Pa]]), _xlpm.filt, _xlfn._xlws.FILTER( Hakemisto[], (Hakemisto[Tyyppi]=MP_4[[#This Row],[Päätelaite Mittapiste]]) * (Hakemisto[Koko]=MP_4[[#This Row],[Koko Ød]]) * (IFERROR(--Hakemisto[asento], -1E+99) = IFERROR(--MP_4[[#This Row],[Avaus mm]], -1E+99)) ), _xlpm.colIndex, MATCH("k-arvo", Hakemisto[#Headers], 0), _xlpm.kValues, INDEX(_xlpm.filt, 0, _xlpm.colIndex), _xlpm.diffs, ABS(_xlpm.kValues - _xlpm.comp), _xlpm.minDiff, MIN(_xlpm.diffs), INDEX(_xlpm.kValues, MATCH(_xlpm.minDiff, _xlpm.diffs, 0)) ) ), "" ) ->  | K105: =_xlfn.LET(_xlpm.suunniteltu, INDIRECT("F"&ROW()), _xlpm.mitattu, INDIRECT("H"&ROW()), IF(OR(_xlpm.suunniteltu="", _xlpm.mitattu="", _xlpm.mitattu=0), " ", (_xlpm.mitattu/_xlpm.suunniteltu))) ->  | L105: =IFERROR(IF(AND(MP_4[[#This Row],[-]]="P", MP_4[[#This Row],[+]]<>"T"), $H$117*MP_4[[#This Row],[Suunniteltu l/s]]/100, IF(AND(MP_4[[#This Row],[+]]="T", MP_4[[#This Row],[-]]<>"P"), $G$117*MP_4[[#This Row],[Suunniteltu l/s]]/100, IF(AND(MP_4[[#This Row],[-]]="P", MP_4[[#This Row],[+]]="T"), "T/P", "") ) ),"") ->  | M105: =IFERROR(IF(MP_4[[#This Row],[tulo]]=TRUE,"T",""),"") ->  | N105: =IFERROR(IF(MP_4[[#This Row],[poisto]]=TRUE,"P",""),"") ->  | O105: =IFERROR(IF( ISBLANK(MP_4[[#This Row],[Päätelaite Mittapiste]]), "", IF( SUM( _xlfn._xlws.FILTER( (Hakemisto[Tyyppi]=MP_4[[#This Row],[Päätelaite Mittapiste]]) * (Hakemisto[Koko]=MP_4[[#This Row],[Koko Ød]]) * ((Hakemisto[Tulo]="x") + (Hakemisto[Tulo]=1)), (Hakemisto[Tyyppi]=MP_4[[#This Row],[Päätelaite Mittapiste]]) ) ) > 0, TRUE, FALSE ) ),"") ->  | P105: =IFERROR(IF( ISBLANK(MP_4[[#This Row],[Päätelaite Mittapiste]]), "", IF( SUM( _xlfn._xlws.FILTER( (Hakemisto[Tyyppi]=MP_4[[#This Row],[Päätelaite Mittapiste]]) * (Hakemisto[Koko]=MP_4[[#This Row],[Koko Ød]]) * ((Hakemisto[Poisto]="x") + (Hakemisto[Poisto]=1)), (Hakemisto[Tyyppi]=MP_4[[#This Row],[Päätelaite Mittapiste]]) ) ) > 0, TRUE, FALSE ) ),"") ->  | R105: =IF((MP_4[[#This Row],[★]]=""),"",MP_4[[#This Row],[★]]) -> 
H106: =IFERROR( _xlfn.LET( _xlpm.paine, MP_4[[#This Row],[Paine Pa]], _xlpm.k, MP_4[[#This Row],[Kerroin k-arvo]], IF(OR(_xlpm.paine="", _xlpm.k=""), "", _xlpm.k*SQRT(_xlpm.paine)) ), "") ->  | I106: =IF( MP_4[[#This Row],[Lukitse avaus]]<>"", VALUE(MP_4[[#This Row],[Lukitse avaus]]), säätöasento( MP_4[[#This Row],[Päätelaite Mittapiste]], MP_4[[#This Row],[Koko Ød]], MP_4[[#This Row],[Tavoite l/s]], MP_4[[#This Row],[Paine Pa]], Hakemisto[] ) ) ->  | J106: =IFERROR( IF( OR( ISBLANK(MP_4[[#This Row],[Päätelaite Mittapiste]]), ISBLANK(MP_4[[#This Row],[Koko Ød]]), ISBLANK(MP_4[[#This Row],[Avaus mm]]), ISBLANK(MP_4[[#This Row],[Paine Pa]]) ), "", _xlfn.LET( _xlpm.comp, MP_4[[#This Row],[Suunniteltu l/s]]*IF( AND(MP_4[[#This Row],[-]]="P", MP_4[[#This Row],[+]]<>"T"), $H$117*MP_4[[#This Row],[Suunniteltu l/s]], IF( AND(MP_4[[#This Row],[+]]="T", MP_4[[#This Row],[-]]<>"P"), $G$117*MP_4[[#This Row],[Suunniteltu l/s]], IF(AND(MP_4[[#This Row],[-]]="P", MP_4[[#This Row],[+]]="T"), "T/P", "") ) )/SQRT(MP_4[[#This Row],[Paine Pa]]), _xlpm.filt, _xlfn._xlws.FILTER( Hakemisto[], (Hakemisto[Tyyppi]=MP_4[[#This Row],[Päätelaite Mittapiste]]) * (Hakemisto[Koko]=MP_4[[#This Row],[Koko Ød]]) * (IFERROR(--Hakemisto[asento], -1E+99) = IFERROR(--MP_4[[#This Row],[Avaus mm]], -1E+99)) ), _xlpm.colIndex, MATCH("k-arvo", Hakemisto[#Headers], 0), _xlpm.kValues, INDEX(_xlpm.filt, 0, _xlpm.colIndex), _xlpm.diffs, ABS(_xlpm.kValues - _xlpm.comp), _xlpm.minDiff, MIN(_xlpm.diffs), INDEX(_xlpm.kValues, MATCH(_xlpm.minDiff, _xlpm.diffs, 0)) ) ), "" ) ->  | K106: =_xlfn.LET(_xlpm.suunniteltu, INDIRECT("F"&ROW()), _xlpm.mitattu, INDIRECT("H"&ROW()), IF(OR(_xlpm.suunniteltu="", _xlpm.mitattu="", _xlpm.mitattu=0), " ", (_xlpm.mitattu/_xlpm.suunniteltu))) ->  | L106: =IFERROR(IF(AND(MP_4[[#This Row],[-]]="P", MP_4[[#This Row],[+]]<>"T"), $H$117*MP_4[[#This Row],[Suunniteltu l/s]]/100, IF(AND(MP_4[[#This Row],[+]]="T", MP_4[[#This Row],[-]]<>"P"), $G$117*MP_4[[#This Row],[Suunniteltu l/s]]/100, IF(AND(MP_4[[#This Row],[-]]="P", MP_4[[#This Row],[+]]="T"), "T/P", "") ) ),"") ->  | M106: =IFERROR(IF(MP_4[[#This Row],[tulo]]=TRUE,"T",""),"") ->  | N106: =IFERROR(IF(MP_4[[#This Row],[poisto]]=TRUE,"P",""),"") ->  | O106: =IFERROR(IF( ISBLANK(MP_4[[#This Row],[Päätelaite Mittapiste]]), "", IF( SUM( _xlfn._xlws.FILTER( (Hakemisto[Tyyppi]=MP_4[[#This Row],[Päätelaite Mittapiste]]) * (Hakemisto[Koko]=MP_4[[#This Row],[Koko Ød]]) * ((Hakemisto[Tulo]="x") + (Hakemisto[Tulo]=1)), (Hakemisto[Tyyppi]=MP_4[[#This Row],[Päätelaite Mittapiste]]) ) ) > 0, TRUE, FALSE ) ),"") ->  | P106: =IFERROR(IF( ISBLANK(MP_4[[#This Row],[Päätelaite Mittapiste]]), "", IF( SUM( _xlfn._xlws.FILTER( (Hakemisto[Tyyppi]=MP_4[[#This Row],[Päätelaite Mittapiste]]) * (Hakemisto[Koko]=MP_4[[#This Row],[Koko Ød]]) * ((Hakemisto[Poisto]="x") + (Hakemisto[Poisto]=1)), (Hakemisto[Tyyppi]=MP_4[[#This Row],[Päätelaite Mittapiste]]) ) ) > 0, TRUE, FALSE ) ),"") ->  | R106: =IF((MP_4[[#This Row],[★]]=""),"",MP_4[[#This Row],[★]]) -> 
H107: =IFERROR( _xlfn.LET( _xlpm.paine, MP_4[[#This Row],[Paine Pa]], _xlpm.k, MP_4[[#This Row],[Kerroin k-arvo]], IF(OR(_xlpm.paine="", _xlpm.k=""), "", _xlpm.k*SQRT(_xlpm.paine)) ), "") ->  | I107: =IF( MP_4[[#This Row],[Lukitse avaus]]<>"", VALUE(MP_4[[#This Row],[Lukitse avaus]]), säätöasento( MP_4[[#This Row],[Päätelaite Mittapiste]], MP_4[[#This Row],[Koko Ød]], MP_4[[#This Row],[Tavoite l/s]], MP_4[[#This Row],[Paine Pa]], Hakemisto[] ) ) ->  | J107: =IFERROR( IF( OR( ISBLANK(MP_4[[#This Row],[Päätelaite Mittapiste]]), ISBLANK(MP_4[[#This Row],[Koko Ød]]), ISBLANK(MP_4[[#This Row],[Avaus mm]]), ISBLANK(MP_4[[#This Row],[Paine Pa]]) ), "", _xlfn.LET( _xlpm.comp, MP_4[[#This Row],[Suunniteltu l/s]]*IF( AND(MP_4[[#This Row],[-]]="P", MP_4[[#This Row],[+]]<>"T"), $H$117*MP_4[[#This Row],[Suunniteltu l/s]], IF( AND(MP_4[[#This Row],[+]]="T", MP_4[[#This Row],[-]]<>"P"), $G$117*MP_4[[#This Row],[Suunniteltu l/s]], IF(AND(MP_4[[#This Row],[-]]="P", MP_4[[#This Row],[+]]="T"), "T/P", "") ) )/SQRT(MP_4[[#This Row],[Paine Pa]]), _xlpm.filt, _xlfn._xlws.FILTER( Hakemisto[], (Hakemisto[Tyyppi]=MP_4[[#This Row],[Päätelaite Mittapiste]]) * (Hakemisto[Koko]=MP_4[[#This Row],[Koko Ød]]) * (IFERROR(--Hakemisto[asento], -1E+99) = IFERROR(--MP_4[[#This Row],[Avaus mm]], -1E+99)) ), _xlpm.colIndex, MATCH("k-arvo", Hakemisto[#Headers], 0), _xlpm.kValues, INDEX(_xlpm.filt, 0, _xlpm.colIndex), _xlpm.diffs, ABS(_xlpm.kValues - _xlpm.comp), _xlpm.minDiff, MIN(_xlpm.diffs), INDEX(_xlpm.kValues, MATCH(_xlpm.minDiff, _xlpm.diffs, 0)) ) ), "" ) ->  | K107: =_xlfn.LET(_xlpm.suunniteltu, INDIRECT("F"&ROW()), _xlpm.mitattu, INDIRECT("H"&ROW()), IF(OR(_xlpm.suunniteltu="", _xlpm.mitattu="", _xlpm.mitattu=0), " ", (_xlpm.mitattu/_xlpm.suunniteltu))) ->  | L107: =IFERROR(IF(AND(MP_4[[#This Row],[-]]="P", MP_4[[#This Row],[+]]<>"T"), $H$117*MP_4[[#This Row],[Suunniteltu l/s]]/100, IF(AND(MP_4[[#This Row],[+]]="T", MP_4[[#This Row],[-]]<>"P"), $G$117*MP_4[[#This Row],[Suunniteltu l/s]]/100, IF(AND(MP_4[[#This Row],[-]]="P", MP_4[[#This Row],[+]]="T"), "T/P", "") ) ),"") ->  | M107: =IFERROR(IF(MP_4[[#This Row],[tulo]]=TRUE,"T",""),"") ->  | N107: =IFERROR(IF(MP_4[[#This Row],[poisto]]=TRUE,"P",""),"") ->  | O107: =IFERROR(IF( ISBLANK(MP_4[[#This Row],[Päätelaite Mittapiste]]), "", IF( SUM( _xlfn._xlws.FILTER( (Hakemisto[Tyyppi]=MP_4[[#This Row],[Päätelaite Mittapiste]]) * (Hakemisto[Koko]=MP_4[[#This Row],[Koko Ød]]) * ((Hakemisto[Tulo]="x") + (Hakemisto[Tulo]=1)), (Hakemisto[Tyyppi]=MP_4[[#This Row],[Päätelaite Mittapiste]]) ) ) > 0, TRUE, FALSE ) ),"") ->  | P107: =IFERROR(IF( ISBLANK(MP_4[[#This Row],[Päätelaite Mittapiste]]), "", IF( SUM( _xlfn._xlws.FILTER( (Hakemisto[Tyyppi]=MP_4[[#This Row],[Päätelaite Mittapiste]]) * (Hakemisto[Koko]=MP_4[[#This Row],[Koko Ød]]) * ((Hakemisto[Poisto]="x") + (Hakemisto[Poisto]=1)), (Hakemisto[Tyyppi]=MP_4[[#This Row],[Päätelaite Mittapiste]]) ) ) > 0, TRUE, FALSE ) ),"") ->  | R107: =IF((MP_4[[#This Row],[★]]=""),"",MP_4[[#This Row],[★]]) -> 
H108: =IFERROR( _xlfn.LET( _xlpm.paine, MP_4[[#This Row],[Paine Pa]], _xlpm.k, MP_4[[#This Row],[Kerroin k-arvo]], IF(OR(_xlpm.paine="", _xlpm.k=""), "", _xlpm.k*SQRT(_xlpm.paine)) ), "") ->  | I108: =IF( MP_4[[#This Row],[Lukitse avaus]]<>"", VALUE(MP_4[[#This Row],[Lukitse avaus]]), säätöasento( MP_4[[#This Row],[Päätelaite Mittapiste]], MP_4[[#This Row],[Koko Ød]], MP_4[[#This Row],[Tavoite l/s]], MP_4[[#This Row],[Paine Pa]], Hakemisto[] ) ) ->  | J108: =IFERROR( IF( OR( ISBLANK(MP_4[[#This Row],[Päätelaite Mittapiste]]), ISBLANK(MP_4[[#This Row],[Koko Ød]]), ISBLANK(MP_4[[#This Row],[Avaus mm]]), ISBLANK(MP_4[[#This Row],[Paine Pa]]) ), "", _xlfn.LET( _xlpm.comp, MP_4[[#This Row],[Suunniteltu l/s]]*IF( AND(MP_4[[#This Row],[-]]="P", MP_4[[#This Row],[+]]<>"T"), $H$117*MP_4[[#This Row],[Suunniteltu l/s]], IF( AND(MP_4[[#This Row],[+]]="T", MP_4[[#This Row],[-]]<>"P"), $G$117*MP_4[[#This Row],[Suunniteltu l/s]], IF(AND(MP_4[[#This Row],[-]]="P", MP_4[[#This Row],[+]]="T"), "T/P", "") ) )/SQRT(MP_4[[#This Row],[Paine Pa]]), _xlpm.filt, _xlfn._xlws.FILTER( Hakemisto[], (Hakemisto[Tyyppi]=MP_4[[#This Row],[Päätelaite Mittapiste]]) * (Hakemisto[Koko]=MP_4[[#This Row],[Koko Ød]]) * (IFERROR(--Hakemisto[asento], -1E+99) = IFERROR(--MP_4[[#This Row],[Avaus mm]], -1E+99)) ), _xlpm.colIndex, MATCH("k-arvo", Hakemisto[#Headers], 0), _xlpm.kValues, INDEX(_xlpm.filt, 0, _xlpm.colIndex), _xlpm.diffs, ABS(_xlpm.kValues - _xlpm.comp), _xlpm.minDiff, MIN(_xlpm.diffs), INDEX(_xlpm.kValues, MATCH(_xlpm.minDiff, _xlpm.diffs, 0)) ) ), "" ) ->  | K108: =_xlfn.LET(_xlpm.suunniteltu, INDIRECT("F"&ROW()), _xlpm.mitattu, INDIRECT("H"&ROW()), IF(OR(_xlpm.suunniteltu="", _xlpm.mitattu="", _xlpm.mitattu=0), " ", (_xlpm.mitattu/_xlpm.suunniteltu))) ->  | L108: =IFERROR(IF(AND(MP_4[[#This Row],[-]]="P", MP_4[[#This Row],[+]]<>"T"), $H$117*MP_4[[#This Row],[Suunniteltu l/s]]/100, IF(AND(MP_4[[#This Row],[+]]="T", MP_4[[#This Row],[-]]<>"P"), $G$117*MP_4[[#This Row],[Suunniteltu l/s]]/100, IF(AND(MP_4[[#This Row],[-]]="P", MP_4[[#This Row],[+]]="T"), "T/P", "") ) ),"") ->  | M108: =IFERROR(IF(MP_4[[#This Row],[tulo]]=TRUE,"T",""),"") ->  | N108: =IFERROR(IF(MP_4[[#This Row],[poisto]]=TRUE,"P",""),"") ->  | O108: =IFERROR(IF( ISBLANK(MP_4[[#This Row],[Päätelaite Mittapiste]]), "", IF( SUM( _xlfn._xlws.FILTER( (Hakemisto[Tyyppi]=MP_4[[#This Row],[Päätelaite Mittapiste]]) * (Hakemisto[Koko]=MP_4[[#This Row],[Koko Ød]]) * ((Hakemisto[Tulo]="x") + (Hakemisto[Tulo]=1)), (Hakemisto[Tyyppi]=MP_4[[#This Row],[Päätelaite Mittapiste]]) ) ) > 0, TRUE, FALSE ) ),"") ->  | P108: =IFERROR(IF( ISBLANK(MP_4[[#This Row],[Päätelaite Mittapiste]]), "", IF( SUM( _xlfn._xlws.FILTER( (Hakemisto[Tyyppi]=MP_4[[#This Row],[Päätelaite Mittapiste]]) * (Hakemisto[Koko]=MP_4[[#This Row],[Koko Ød]]) * ((Hakemisto[Poisto]="x") + (Hakemisto[Poisto]=1)), (Hakemisto[Tyyppi]=MP_4[[#This Row],[Päätelaite Mittapiste]]) ) ) > 0, TRUE, FALSE ) ),"") ->  | R108: =IF((MP_4[[#This Row],[★]]=""),"",MP_4[[#This Row],[★]]) -> 
H109: =IFERROR( _xlfn.LET( _xlpm.paine, MP_4[[#This Row],[Paine Pa]], _xlpm.k, MP_4[[#This Row],[Kerroin k-arvo]], IF(OR(_xlpm.paine="", _xlpm.k=""), "", _xlpm.k*SQRT(_xlpm.paine)) ), "") ->  | I109: =IF( MP_4[[#This Row],[Lukitse avaus]]<>"", VALUE(MP_4[[#This Row],[Lukitse avaus]]), säätöasento( MP_4[[#This Row],[Päätelaite Mittapiste]], MP_4[[#This Row],[Koko Ød]], MP_4[[#This Row],[Tavoite l/s]], MP_4[[#This Row],[Paine Pa]], Hakemisto[] ) ) ->  | J109: =IFERROR( IF( OR( ISBLANK(MP_4[[#This Row],[Päätelaite Mittapiste]]), ISBLANK(MP_4[[#This Row],[Koko Ød]]), ISBLANK(MP_4[[#This Row],[Avaus mm]]), ISBLANK(MP_4[[#This Row],[Paine Pa]]) ), "", _xlfn.LET( _xlpm.comp, MP_4[[#This Row],[Suunniteltu l/s]]*IF( AND(MP_4[[#This Row],[-]]="P", MP_4[[#This Row],[+]]<>"T"), $H$117*MP_4[[#This Row],[Suunniteltu l/s]], IF( AND(MP_4[[#This Row],[+]]="T", MP_4[[#This Row],[-]]<>"P"), $G$117*MP_4[[#This Row],[Suunniteltu l/s]], IF(AND(MP_4[[#This Row],[-]]="P", MP_4[[#This Row],[+]]="T"), "T/P", "") ) )/SQRT(MP_4[[#This Row],[Paine Pa]]), _xlpm.filt, _xlfn._xlws.FILTER( Hakemisto[], (Hakemisto[Tyyppi]=MP_4[[#This Row],[Päätelaite Mittapiste]]) * (Hakemisto[Koko]=MP_4[[#This Row],[Koko Ød]]) * (IFERROR(--Hakemisto[asento], -1E+99) = IFERROR(--MP_4[[#This Row],[Avaus mm]], -1E+99)) ), _xlpm.colIndex, MATCH("k-arvo", Hakemisto[#Headers], 0), _xlpm.kValues, INDEX(_xlpm.filt, 0, _xlpm.colIndex), _xlpm.diffs, ABS(_xlpm.kValues - _xlpm.comp), _xlpm.minDiff, MIN(_xlpm.diffs), INDEX(_xlpm.kValues, MATCH(_xlpm.minDiff, _xlpm.diffs, 0)) ) ), "" ) ->  | K109: =_xlfn.LET(_xlpm.suunniteltu, INDIRECT("F"&ROW()), _xlpm.mitattu, INDIRECT("H"&ROW()), IF(OR(_xlpm.suunniteltu="", _xlpm.mitattu="", _xlpm.mitattu=0), " ", (_xlpm.mitattu/_xlpm.suunniteltu))) ->  | L109: =IFERROR(IF(AND(MP_4[[#This Row],[-]]="P", MP_4[[#This Row],[+]]<>"T"), $H$117*MP_4[[#This Row],[Suunniteltu l/s]]/100, IF(AND(MP_4[[#This Row],[+]]="T", MP_4[[#This Row],[-]]<>"P"), $G$117*MP_4[[#This Row],[Suunniteltu l/s]]/100, IF(AND(MP_4[[#This Row],[-]]="P", MP_4[[#This Row],[+]]="T"), "T/P", "") ) ),"") ->  | M109: =IFERROR(IF(MP_4[[#This Row],[tulo]]=TRUE,"T",""),"") ->  | N109: =IFERROR(IF(MP_4[[#This Row],[poisto]]=TRUE,"P",""),"") ->  | O109: =IFERROR(IF( ISBLANK(MP_4[[#This Row],[Päätelaite Mittapiste]]), "", IF( SUM( _xlfn._xlws.FILTER( (Hakemisto[Tyyppi]=MP_4[[#This Row],[Päätelaite Mittapiste]]) * (Hakemisto[Koko]=MP_4[[#This Row],[Koko Ød]]) * ((Hakemisto[Tulo]="x") + (Hakemisto[Tulo]=1)), (Hakemisto[Tyyppi]=MP_4[[#This Row],[Päätelaite Mittapiste]]) ) ) > 0, TRUE, FALSE ) ),"") ->  | P109: =IFERROR(IF( ISBLANK(MP_4[[#This Row],[Päätelaite Mittapiste]]), "", IF( SUM( _xlfn._xlws.FILTER( (Hakemisto[Tyyppi]=MP_4[[#This Row],[Päätelaite Mittapiste]]) * (Hakemisto[Koko]=MP_4[[#This Row],[Koko Ød]]) * ((Hakemisto[Poisto]="x") + (Hakemisto[Poisto]=1)), (Hakemisto[Tyyppi]=MP_4[[#This Row],[Päätelaite Mittapiste]]) ) ) > 0, TRUE, FALSE ) ),"") ->  | R109: =IF((MP_4[[#This Row],[★]]=""),"",MP_4[[#This Row],[★]]) -> 
H110: =IFERROR( _xlfn.LET( _xlpm.paine, MP_4[[#This Row],[Paine Pa]], _xlpm.k, MP_4[[#This Row],[Kerroin k-arvo]], IF(OR(_xlpm.paine="", _xlpm.k=""), "", _xlpm.k*SQRT(_xlpm.paine)) ), "") ->  | I110: =IF( MP_4[[#This Row],[Lukitse avaus]]<>"", VALUE(MP_4[[#This Row],[Lukitse avaus]]), säätöasento( MP_4[[#This Row],[Päätelaite Mittapiste]], MP_4[[#This Row],[Koko Ød]], MP_4[[#This Row],[Tavoite l/s]], MP_4[[#This Row],[Paine Pa]], Hakemisto[] ) ) ->  | J110: =IFERROR( IF( OR( ISBLANK(MP_4[[#This Row],[Päätelaite Mittapiste]]), ISBLANK(MP_4[[#This Row],[Koko Ød]]), ISBLANK(MP_4[[#This Row],[Avaus mm]]), ISBLANK(MP_4[[#This Row],[Paine Pa]]) ), "", _xlfn.LET( _xlpm.comp, MP_4[[#This Row],[Suunniteltu l/s]]*IF( AND(MP_4[[#This Row],[-]]="P", MP_4[[#This Row],[+]]<>"T"), $H$117*MP_4[[#This Row],[Suunniteltu l/s]], IF( AND(MP_4[[#This Row],[+]]="T", MP_4[[#This Row],[-]]<>"P"), $G$117*MP_4[[#This Row],[Suunniteltu l/s]], IF(AND(MP_4[[#This Row],[-]]="P", MP_4[[#This Row],[+]]="T"), "T/P", "") ) )/SQRT(MP_4[[#This Row],[Paine Pa]]), _xlpm.filt, _xlfn._xlws.FILTER( Hakemisto[], (Hakemisto[Tyyppi]=MP_4[[#This Row],[Päätelaite Mittapiste]]) * (Hakemisto[Koko]=MP_4[[#This Row],[Koko Ød]]) * (IFERROR(--Hakemisto[asento], -1E+99) = IFERROR(--MP_4[[#This Row],[Avaus mm]], -1E+99)) ), _xlpm.colIndex, MATCH("k-arvo", Hakemisto[#Headers], 0), _xlpm.kValues, INDEX(_xlpm.filt, 0, _xlpm.colIndex), _xlpm.diffs, ABS(_xlpm.kValues - _xlpm.comp), _xlpm.minDiff, MIN(_xlpm.diffs), INDEX(_xlpm.kValues, MATCH(_xlpm.minDiff, _xlpm.diffs, 0)) ) ), "" ) ->  | K110: =_xlfn.LET(_xlpm.suunniteltu, INDIRECT("F"&ROW()), _xlpm.mitattu, INDIRECT("H"&ROW()), IF(OR(_xlpm.suunniteltu="", _xlpm.mitattu="", _xlpm.mitattu=0), " ", (_xlpm.mitattu/_xlpm.suunniteltu))) ->  | L110: =IFERROR(IF(AND(MP_4[[#This Row],[-]]="P", MP_4[[#This Row],[+]]<>"T"), $H$117*MP_4[[#This Row],[Suunniteltu l/s]]/100, IF(AND(MP_4[[#This Row],[+]]="T", MP_4[[#This Row],[-]]<>"P"), $G$117*MP_4[[#This Row],[Suunniteltu l/s]]/100, IF(AND(MP_4[[#This Row],[-]]="P", MP_4[[#This Row],[+]]="T"), "T/P", "") ) ),"") ->  | M110: =IFERROR(IF(MP_4[[#This Row],[tulo]]=TRUE,"T",""),"") ->  | N110: =IFERROR(IF(MP_4[[#This Row],[poisto]]=TRUE,"P",""),"") ->  | O110: =IFERROR(IF( ISBLANK(MP_4[[#This Row],[Päätelaite Mittapiste]]), "", IF( SUM( _xlfn._xlws.FILTER( (Hakemisto[Tyyppi]=MP_4[[#This Row],[Päätelaite Mittapiste]]) * (Hakemisto[Koko]=MP_4[[#This Row],[Koko Ød]]) * ((Hakemisto[Tulo]="x") + (Hakemisto[Tulo]=1)), (Hakemisto[Tyyppi]=MP_4[[#This Row],[Päätelaite Mittapiste]]) ) ) > 0, TRUE, FALSE ) ),"") ->  | P110: =IFERROR(IF( ISBLANK(MP_4[[#This Row],[Päätelaite Mittapiste]]), "", IF( SUM( _xlfn._xlws.FILTER( (Hakemisto[Tyyppi]=MP_4[[#This Row],[Päätelaite Mittapiste]]) * (Hakemisto[Koko]=MP_4[[#This Row],[Koko Ød]]) * ((Hakemisto[Poisto]="x") + (Hakemisto[Poisto]=1)), (Hakemisto[Tyyppi]=MP_4[[#This Row],[Päätelaite Mittapiste]]) ) ) > 0, TRUE, FALSE ) ),"") ->  | R110: =IF((MP_4[[#This Row],[★]]=""),"",MP_4[[#This Row],[★]]) -> 
H111: =IFERROR( _xlfn.LET( _xlpm.paine, MP_4[[#This Row],[Paine Pa]], _xlpm.k, MP_4[[#This Row],[Kerroin k-arvo]], IF(OR(_xlpm.paine="", _xlpm.k=""), "", _xlpm.k*SQRT(_xlpm.paine)) ), "") ->  | I111: =IF( MP_4[[#This Row],[Lukitse avaus]]<>"", VALUE(MP_4[[#This Row],[Lukitse avaus]]), säätöasento( MP_4[[#This Row],[Päätelaite Mittapiste]], MP_4[[#This Row],[Koko Ød]], MP_4[[#This Row],[Tavoite l/s]], MP_4[[#This Row],[Paine Pa]], Hakemisto[] ) ) ->  | J111: =IFERROR( IF( OR( ISBLANK(MP_4[[#This Row],[Päätelaite Mittapiste]]), ISBLANK(MP_4[[#This Row],[Koko Ød]]), ISBLANK(MP_4[[#This Row],[Avaus mm]]), ISBLANK(MP_4[[#This Row],[Paine Pa]]) ), "", _xlfn.LET( _xlpm.comp, MP_4[[#This Row],[Suunniteltu l/s]]*IF( AND(MP_4[[#This Row],[-]]="P", MP_4[[#This Row],[+]]<>"T"), $H$117*MP_4[[#This Row],[Suunniteltu l/s]], IF( AND(MP_4[[#This Row],[+]]="T", MP_4[[#This Row],[-]]<>"P"), $G$117*MP_4[[#This Row],[Suunniteltu l/s]], IF(AND(MP_4[[#This Row],[-]]="P", MP_4[[#This Row],[+]]="T"), "T/P", "") ) )/SQRT(MP_4[[#This Row],[Paine Pa]]), _xlpm.filt, _xlfn._xlws.FILTER( Hakemisto[], (Hakemisto[Tyyppi]=MP_4[[#This Row],[Päätelaite Mittapiste]]) * (Hakemisto[Koko]=MP_4[[#This Row],[Koko Ød]]) * (IFERROR(--Hakemisto[asento], -1E+99) = IFERROR(--MP_4[[#This Row],[Avaus mm]], -1E+99)) ), _xlpm.colIndex, MATCH("k-arvo", Hakemisto[#Headers], 0), _xlpm.kValues, INDEX(_xlpm.filt, 0, _xlpm.colIndex), _xlpm.diffs, ABS(_xlpm.kValues - _xlpm.comp), _xlpm.minDiff, MIN(_xlpm.diffs), INDEX(_xlpm.kValues, MATCH(_xlpm.minDiff, _xlpm.diffs, 0)) ) ), "" ) ->  | K111: =_xlfn.LET(_xlpm.suunniteltu, INDIRECT("F"&ROW()), _xlpm.mitattu, INDIRECT("H"&ROW()), IF(OR(_xlpm.suunniteltu="", _xlpm.mitattu="", _xlpm.mitattu=0), " ", (_xlpm.mitattu/_xlpm.suunniteltu))) ->  | L111: =IFERROR(IF(AND(MP_4[[#This Row],[-]]="P", MP_4[[#This Row],[+]]<>"T"), $H$117*MP_4[[#This Row],[Suunniteltu l/s]]/100, IF(AND(MP_4[[#This Row],[+]]="T", MP_4[[#This Row],[-]]<>"P"), $G$117*MP_4[[#This Row],[Suunniteltu l/s]]/100, IF(AND(MP_4[[#This Row],[-]]="P", MP_4[[#This Row],[+]]="T"), "T/P", "") ) ),"") ->  | M111: =IFERROR(IF(MP_4[[#This Row],[tulo]]=TRUE,"T",""),"") ->  | N111: =IFERROR(IF(MP_4[[#This Row],[poisto]]=TRUE,"P",""),"") ->  | O111: =IFERROR(IF( ISBLANK(MP_4[[#This Row],[Päätelaite Mittapiste]]), "", IF( SUM( _xlfn._xlws.FILTER( (Hakemisto[Tyyppi]=MP_4[[#This Row],[Päätelaite Mittapiste]]) * (Hakemisto[Koko]=MP_4[[#This Row],[Koko Ød]]) * ((Hakemisto[Tulo]="x") + (Hakemisto[Tulo]=1)), (Hakemisto[Tyyppi]=MP_4[[#This Row],[Päätelaite Mittapiste]]) ) ) > 0, TRUE, FALSE ) ),"") ->  | P111: =IFERROR(IF( ISBLANK(MP_4[[#This Row],[Päätelaite Mittapiste]]), "", IF( SUM( _xlfn._xlws.FILTER( (Hakemisto[Tyyppi]=MP_4[[#This Row],[Päätelaite Mittapiste]]) * (Hakemisto[Koko]=MP_4[[#This Row],[Koko Ød]]) * ((Hakemisto[Poisto]="x") + (Hakemisto[Poisto]=1)), (Hakemisto[Tyyppi]=MP_4[[#This Row],[Päätelaite Mittapiste]]) ) ) > 0, TRUE, FALSE ) ),"") ->  | R111: =IF((MP_4[[#This Row],[★]]=""),"",MP_4[[#This Row],[★]]) -> 
H112: =IFERROR( _xlfn.LET( _xlpm.paine, MP_4[[#This Row],[Paine Pa]], _xlpm.k, MP_4[[#This Row],[Kerroin k-arvo]], IF(OR(_xlpm.paine="", _xlpm.k=""), "", _xlpm.k*SQRT(_xlpm.paine)) ), "") ->  | I112: =IF( MP_4[[#This Row],[Lukitse avaus]]<>"", VALUE(MP_4[[#This Row],[Lukitse avaus]]), säätöasento( MP_4[[#This Row],[Päätelaite Mittapiste]], MP_4[[#This Row],[Koko Ød]], MP_4[[#This Row],[Tavoite l/s]], MP_4[[#This Row],[Paine Pa]], Hakemisto[] ) ) ->  | J112: =IFERROR( IF( OR( ISBLANK(MP_4[[#This Row],[Päätelaite Mittapiste]]), ISBLANK(MP_4[[#This Row],[Koko Ød]]), ISBLANK(MP_4[[#This Row],[Avaus mm]]), ISBLANK(MP_4[[#This Row],[Paine Pa]]) ), "", _xlfn.LET( _xlpm.comp, MP_4[[#This Row],[Suunniteltu l/s]]*IF( AND(MP_4[[#This Row],[-]]="P", MP_4[[#This Row],[+]]<>"T"), $H$117*MP_4[[#This Row],[Suunniteltu l/s]], IF( AND(MP_4[[#This Row],[+]]="T", MP_4[[#This Row],[-]]<>"P"), $G$117*MP_4[[#This Row],[Suunniteltu l/s]], IF(AND(MP_4[[#This Row],[-]]="P", MP_4[[#This Row],[+]]="T"), "T/P", "") ) )/SQRT(MP_4[[#This Row],[Paine Pa]]), _xlpm.filt, _xlfn._xlws.FILTER( Hakemisto[], (Hakemisto[Tyyppi]=MP_4[[#This Row],[Päätelaite Mittapiste]]) * (Hakemisto[Koko]=MP_4[[#This Row],[Koko Ød]]) * (IFERROR(--Hakemisto[asento], -1E+99) = IFERROR(--MP_4[[#This Row],[Avaus mm]], -1E+99)) ), _xlpm.colIndex, MATCH("k-arvo", Hakemisto[#Headers], 0), _xlpm.kValues, INDEX(_xlpm.filt, 0, _xlpm.colIndex), _xlpm.diffs, ABS(_xlpm.kValues - _xlpm.comp), _xlpm.minDiff, MIN(_xlpm.diffs), INDEX(_xlpm.kValues, MATCH(_xlpm.minDiff, _xlpm.diffs, 0)) ) ), "" ) ->  | K112: =_xlfn.LET(_xlpm.suunniteltu, INDIRECT("F"&ROW()), _xlpm.mitattu, INDIRECT("H"&ROW()), IF(OR(_xlpm.suunniteltu="", _xlpm.mitattu="", _xlpm.mitattu=0), " ", (_xlpm.mitattu/_xlpm.suunniteltu))) ->  | L112: =IFERROR(IF(AND(MP_4[[#This Row],[-]]="P", MP_4[[#This Row],[+]]<>"T"), $H$117*MP_4[[#This Row],[Suunniteltu l/s]]/100, IF(AND(MP_4[[#This Row],[+]]="T", MP_4[[#This Row],[-]]<>"P"), $G$117*MP_4[[#This Row],[Suunniteltu l/s]]/100, IF(AND(MP_4[[#This Row],[-]]="P", MP_4[[#This Row],[+]]="T"), "T/P", "") ) ),"") ->  | M112: =IFERROR(IF(MP_4[[#This Row],[tulo]]=TRUE,"T",""),"") ->  | N112: =IFERROR(IF(MP_4[[#This Row],[poisto]]=TRUE,"P",""),"") ->  | O112: =IFERROR(IF( ISBLANK(MP_4[[#This Row],[Päätelaite Mittapiste]]), "", IF( SUM( _xlfn._xlws.FILTER( (Hakemisto[Tyyppi]=MP_4[[#This Row],[Päätelaite Mittapiste]]) * (Hakemisto[Koko]=MP_4[[#This Row],[Koko Ød]]) * ((Hakemisto[Tulo]="x") + (Hakemisto[Tulo]=1)), (Hakemisto[Tyyppi]=MP_4[[#This Row],[Päätelaite Mittapiste]]) ) ) > 0, TRUE, FALSE ) ),"") ->  | P112: =IFERROR(IF( ISBLANK(MP_4[[#This Row],[Päätelaite Mittapiste]]), "", IF( SUM( _xlfn._xlws.FILTER( (Hakemisto[Tyyppi]=MP_4[[#This Row],[Päätelaite Mittapiste]]) * (Hakemisto[Koko]=MP_4[[#This Row],[Koko Ød]]) * ((Hakemisto[Poisto]="x") + (Hakemisto[Poisto]=1)), (Hakemisto[Tyyppi]=MP_4[[#This Row],[Päätelaite Mittapiste]]) ) ) > 0, TRUE, FALSE ) ),"") ->  | R112: =IF((MP_4[[#This Row],[★]]=""),"",MP_4[[#This Row],[★]]) -> 
H113: =IFERROR( _xlfn.LET( _xlpm.paine, MP_4[[#This Row],[Paine Pa]], _xlpm.k, MP_4[[#This Row],[Kerroin k-arvo]], IF(OR(_xlpm.paine="", _xlpm.k=""), "", _xlpm.k*SQRT(_xlpm.paine)) ), "") ->  | I113: =IF( MP_4[[#This Row],[Lukitse avaus]]<>"", VALUE(MP_4[[#This Row],[Lukitse avaus]]), säätöasento( MP_4[[#This Row],[Päätelaite Mittapiste]], MP_4[[#This Row],[Koko Ød]], MP_4[[#This Row],[Tavoite l/s]], MP_4[[#This Row],[Paine Pa]], Hakemisto[] ) ) ->  | J113: =IFERROR( IF( OR( ISBLANK(MP_4[[#This Row],[Päätelaite Mittapiste]]), ISBLANK(MP_4[[#This Row],[Koko Ød]]), ISBLANK(MP_4[[#This Row],[Avaus mm]]), ISBLANK(MP_4[[#This Row],[Paine Pa]]) ), "", _xlfn.LET( _xlpm.comp, MP_4[[#This Row],[Suunniteltu l/s]]*IF( AND(MP_4[[#This Row],[-]]="P", MP_4[[#This Row],[+]]<>"T"), $H$117*MP_4[[#This Row],[Suunniteltu l/s]], IF( AND(MP_4[[#This Row],[+]]="T", MP_4[[#This Row],[-]]<>"P"), $G$117*MP_4[[#This Row],[Suunniteltu l/s]], IF(AND(MP_4[[#This Row],[-]]="P", MP_4[[#This Row],[+]]="T"), "T/P", "") ) )/SQRT(MP_4[[#This Row],[Paine Pa]]), _xlpm.filt, _xlfn._xlws.FILTER( Hakemisto[], (Hakemisto[Tyyppi]=MP_4[[#This Row],[Päätelaite Mittapiste]]) * (Hakemisto[Koko]=MP_4[[#This Row],[Koko Ød]]) * (IFERROR(--Hakemisto[asento], -1E+99) = IFERROR(--MP_4[[#This Row],[Avaus mm]], -1E+99)) ), _xlpm.colIndex, MATCH("k-arvo", Hakemisto[#Headers], 0), _xlpm.kValues, INDEX(_xlpm.filt, 0, _xlpm.colIndex), _xlpm.diffs, ABS(_xlpm.kValues - _xlpm.comp), _xlpm.minDiff, MIN(_xlpm.diffs), INDEX(_xlpm.kValues, MATCH(_xlpm.minDiff, _xlpm.diffs, 0)) ) ), "" ) ->  | K113: =_xlfn.LET(_xlpm.suunniteltu, INDIRECT("F"&ROW()), _xlpm.mitattu, INDIRECT("H"&ROW()), IF(OR(_xlpm.suunniteltu="", _xlpm.mitattu="", _xlpm.mitattu=0), " ", (_xlpm.mitattu/_xlpm.suunniteltu))) ->  | L113: =IFERROR(IF(AND(MP_4[[#This Row],[-]]="P", MP_4[[#This Row],[+]]<>"T"), $H$117*MP_4[[#This Row],[Suunniteltu l/s]]/100, IF(AND(MP_4[[#This Row],[+]]="T", MP_4[[#This Row],[-]]<>"P"), $G$117*MP_4[[#This Row],[Suunniteltu l/s]]/100, IF(AND(MP_4[[#This Row],[-]]="P", MP_4[[#This Row],[+]]="T"), "T/P", "") ) ),"") ->  | M113: =IFERROR(IF(MP_4[[#This Row],[tulo]]=TRUE,"T",""),"") ->  | N113: =IFERROR(IF(MP_4[[#This Row],[poisto]]=TRUE,"P",""),"") ->  | O113: =IFERROR(IF( ISBLANK(MP_4[[#This Row],[Päätelaite Mittapiste]]), "", IF( SUM( _xlfn._xlws.FILTER( (Hakemisto[Tyyppi]=MP_4[[#This Row],[Päätelaite Mittapiste]]) * (Hakemisto[Koko]=MP_4[[#This Row],[Koko Ød]]) * ((Hakemisto[Tulo]="x") + (Hakemisto[Tulo]=1)), (Hakemisto[Tyyppi]=MP_4[[#This Row],[Päätelaite Mittapiste]]) ) ) > 0, TRUE, FALSE ) ),"") ->  | P113: =IFERROR(IF( ISBLANK(MP_4[[#This Row],[Päätelaite Mittapiste]]), "", IF( SUM( _xlfn._xlws.FILTER( (Hakemisto[Tyyppi]=MP_4[[#This Row],[Päätelaite Mittapiste]]) * (Hakemisto[Koko]=MP_4[[#This Row],[Koko Ød]]) * ((Hakemisto[Poisto]="x") + (Hakemisto[Poisto]=1)), (Hakemisto[Tyyppi]=MP_4[[#This Row],[Päätelaite Mittapiste]]) ) ) > 0, TRUE, FALSE ) ),"") ->  | R113: =IF((MP_4[[#This Row],[★]]=""),"",MP_4[[#This Row],[★]]) -> 
H114: =IFERROR( _xlfn.LET( _xlpm.paine, MP_4[[#This Row],[Paine Pa]], _xlpm.k, MP_4[[#This Row],[Kerroin k-arvo]], IF(OR(_xlpm.paine="", _xlpm.k=""), "", _xlpm.k*SQRT(_xlpm.paine)) ), "") ->  | I114: =IF( MP_4[[#This Row],[Lukitse avaus]]<>"", VALUE(MP_4[[#This Row],[Lukitse avaus]]), säätöasento( MP_4[[#This Row],[Päätelaite Mittapiste]], MP_4[[#This Row],[Koko Ød]], MP_4[[#This Row],[Tavoite l/s]], MP_4[[#This Row],[Paine Pa]], Hakemisto[] ) ) ->  | J114: =IFERROR( IF( OR( ISBLANK(MP_4[[#This Row],[Päätelaite Mittapiste]]), ISBLANK(MP_4[[#This Row],[Koko Ød]]), ISBLANK(MP_4[[#This Row],[Avaus mm]]), ISBLANK(MP_4[[#This Row],[Paine Pa]]) ), "", _xlfn.LET( _xlpm.comp, MP_4[[#This Row],[Suunniteltu l/s]]*IF( AND(MP_4[[#This Row],[-]]="P", MP_4[[#This Row],[+]]<>"T"), $H$117*MP_4[[#This Row],[Suunniteltu l/s]], IF( AND(MP_4[[#This Row],[+]]="T", MP_4[[#This Row],[-]]<>"P"), $G$117*MP_4[[#This Row],[Suunniteltu l/s]], IF(AND(MP_4[[#This Row],[-]]="P", MP_4[[#This Row],[+]]="T"), "T/P", "") ) )/SQRT(MP_4[[#This Row],[Paine Pa]]), _xlpm.filt, _xlfn._xlws.FILTER( Hakemisto[], (Hakemisto[Tyyppi]=MP_4[[#This Row],[Päätelaite Mittapiste]]) * (Hakemisto[Koko]=MP_4[[#This Row],[Koko Ød]]) * (IFERROR(--Hakemisto[asento], -1E+99) = IFERROR(--MP_4[[#This Row],[Avaus mm]], -1E+99)) ), _xlpm.colIndex, MATCH("k-arvo", Hakemisto[#Headers], 0), _xlpm.kValues, INDEX(_xlpm.filt, 0, _xlpm.colIndex), _xlpm.diffs, ABS(_xlpm.kValues - _xlpm.comp), _xlpm.minDiff, MIN(_xlpm.diffs), INDEX(_xlpm.kValues, MATCH(_xlpm.minDiff, _xlpm.diffs, 0)) ) ), "" ) ->  | K114: =_xlfn.LET(_xlpm.suunniteltu, INDIRECT("F"&ROW()), _xlpm.mitattu, INDIRECT("H"&ROW()), IF(OR(_xlpm.suunniteltu="", _xlpm.mitattu="", _xlpm.mitattu=0), " ", (_xlpm.mitattu/_xlpm.suunniteltu))) ->  | L114: =IFERROR(IF(AND(MP_4[[#This Row],[-]]="P", MP_4[[#This Row],[+]]<>"T"), $H$117*MP_4[[#This Row],[Suunniteltu l/s]]/100, IF(AND(MP_4[[#This Row],[+]]="T", MP_4[[#This Row],[-]]<>"P"), $G$117*MP_4[[#This Row],[Suunniteltu l/s]]/100, IF(AND(MP_4[[#This Row],[-]]="P", MP_4[[#This Row],[+]]="T"), "T/P", "") ) ),"") ->  | M114: =IFERROR(IF(MP_4[[#This Row],[tulo]]=TRUE,"T",""),"") ->  | N114: =IFERROR(IF(MP_4[[#This Row],[poisto]]=TRUE,"P",""),"") ->  | O114: =IFERROR(IF( ISBLANK(MP_4[[#This Row],[Päätelaite Mittapiste]]), "", IF( SUM( _xlfn._xlws.FILTER( (Hakemisto[Tyyppi]=MP_4[[#This Row],[Päätelaite Mittapiste]]) * (Hakemisto[Koko]=MP_4[[#This Row],[Koko Ød]]) * ((Hakemisto[Tulo]="x") + (Hakemisto[Tulo]=1)), (Hakemisto[Tyyppi]=MP_4[[#This Row],[Päätelaite Mittapiste]]) ) ) > 0, TRUE, FALSE ) ),"") ->  | P114: =IFERROR(IF( ISBLANK(MP_4[[#This Row],[Päätelaite Mittapiste]]), "", IF( SUM( _xlfn._xlws.FILTER( (Hakemisto[Tyyppi]=MP_4[[#This Row],[Päätelaite Mittapiste]]) * (Hakemisto[Koko]=MP_4[[#This Row],[Koko Ød]]) * ((Hakemisto[Poisto]="x") + (Hakemisto[Poisto]=1)), (Hakemisto[Tyyppi]=MP_4[[#This Row],[Päätelaite Mittapiste]]) ) ) > 0, TRUE, FALSE ) ),"") ->  | R114: =IF((MP_4[[#This Row],[★]]=""),"",MP_4[[#This Row],[★]]) -> 
E115: =IFERROR( _xlfn.LET( _xlpm.mit, SUMIFS( MP_4[Mitattu l/s], MP_4[-], "P" ), _xlpm.suu, SUMIFS( MP_4[Suunniteltu l/s], MP_4[-], "P" ), _xlpm.diff, IF(_xlpm.suu<>0, (_xlpm.mit / _xlpm.suu), ""), _xlpm.r, ROUND(_xlpm.diff*100, 1), IF(_xlpm.r<>"", _xlpm.r & " (P%)", "") ), "" ) ->  | F115: =IFERROR( _xlfn.LET( _xlpm.s, SUMIFS( MP_4[Suunniteltu l/s], MP_4[-], "P" ), _xlpm.r, ROUND(_xlpm.s, 1), IF(_xlpm.r>0, _xlpm.r & " l/s (Poisto suunnit.)", "") ), "" ) ->  | H115: =IFERROR( _xlfn.LET( _xlpm.s, SUMIFS( MP_4[Mitattu l/s], MP_4[-], "P" ), _xlpm.r, ROUND(_xlpm.s, 1), IF(_xlpm.r>0, _xlpm.r & " l/s (Poisto mitattu)", "") ), "" ) -> 
B116: 4 | C116: ↑ | D116: =IFERROR( _xlfn.LET( _xlpm.s, SUMIFS( MP_4[Mitattu l/s], MP_4[+], "", MP_4[-], "" ) + SUMIFS( MP_4[Mitattu l/s], MP_4[+], "T", MP_4[-], "P" ), _xlpm.r, ROUND(_xlpm.s, 1), IF(_xlpm.r>0, "tarkista T/P " & _xlpm.r & " l/s", "") ), "" ) ->  | E116: =IFERROR( _xlfn.LET( _xlpm.mit, SUMIFS( MP_4[Mitattu l/s], MP_4[+], "T" ), _xlpm.suu, SUMIFS( MP_4[Suunniteltu l/s], MP_4[+], "T" ), _xlpm.diff, IF(_xlpm.suu<>0, (_xlpm.mit / _xlpm.suu), ""), _xlpm.r, ROUND(_xlpm.diff*100, 1), IF(_xlpm.r<>"", _xlpm.r & " (T%)", "") ), "" ) ->  | F116: =IFERROR( _xlfn.LET( _xlpm.s, SUMIFS( MP_4[Suunniteltu l/s], MP_4[+], "T" ), _xlpm.r, ROUND(_xlpm.s, 1), IF(_xlpm.r>0, _xlpm.r & " l/s (Tulo suunnit.)", "") ), "" ) ->  | H116: =IFERROR( _xlfn.LET( _xlpm.s, SUMIFS( MP_4[Mitattu l/s], MP_4[+], "T" ), _xlpm.r, ROUND(_xlpm.s, 1), IF(_xlpm.r>0, _xlpm.r & " l/s (Tulo mitattu)", "") ), "" ) -> 
F117: Tavoite tulo % -> | G117: =IFERROR(INDEX(MP_REF4[Seuranta %]*100, MATCH("RT", MP_REF4[Merkitse RP / RT], 0)),"100") -> 100 | H117: =IFERROR(INDEX(MP_REF4[Seuranta %]*100, MATCH("RP", MP_REF4[Merkitse RP / RT], 0)),"100") -> 100 | I117: <-Tavoite poisto %
A119: KRS № | B119: Huone Tila | C119: Päätelaite Mittapiste | D119: Koko Ød | E119: Paine Pa | F119: Suunniteltu l/s | G119: Merkitse RP / RT | H119: Mitattu l/s | I119: Avaus mm | J119: Kerroin k-arvo | K119: Seuranta % | L119: Tavoite l/s | M119: + | N119: - | O119: tulo | P119: poisto | Q119: ★
A120: 1 | B120: Kylpyhuone | H120: =IFERROR(IF(OR(ISBLANK(MP_REF5[[#This Row],[Paine Pa]]), ISBLANK(MP_REF5[[#This Row],[Kerroin k-arvo]])), "",MP_REF5[[#This Row],[Kerroin k-arvo]]*SQRT(MP_REF5[[#This Row],[Paine Pa]])),"") ->  | J120: =IF(MP_REF5[[#This Row],[Päätelaite Mittapiste]]="", "",_xlfn.XLOOKUP(1,(Hakemisto[Tyyppi]=MP_REF5[[#This Row],[Päätelaite Mittapiste]])*(Hakemisto[Koko]=MP_REF5[[#This Row],[Koko Ød]])*(Hakemisto[asento]=MP_REF5[[#This Row],[Avaus mm]]), Hakemisto[k-arvo], "ei löydy")) ->  | K120: =_xlfn.LET(_xlpm.suunniteltu, INDIRECT("F"&ROW()), _xlpm.mitattu, INDIRECT("H"&ROW()), IF(OR(_xlpm.suunniteltu="", _xlpm.mitattu="", _xlpm.mitattu=0), " ", (_xlpm.mitattu/_xlpm.suunniteltu))) ->  | L120: =IFERROR(IF(AND(MP_REF5[[#This Row],[-]]="P", MP_REF5[[#This Row],[+]]<>"T"), $H$145*MP_REF5[[#This Row],[Suunniteltu l/s]]/100, IF(AND(MP_REF5[[#This Row],[+]]="T", MP_REF5[[#This Row],[-]]<>"P"), $G$145*MP_REF5[[#This Row],[Suunniteltu l/s]]/100, IF(AND(MP_REF5[[#This Row],[-]]="P", MP_REF5[[#This Row],[+]]="T"), "T/P", "") ) ),"") ->  | M120: =IFERROR(IF(MP_REF5[[#This Row],[tulo]]=TRUE,"T",""),"") ->  | N120: =IFERROR(IF(MP_REF5[[#This Row],[poisto]]=TRUE,"P",""),"") ->  | O120: =IFERROR(IF( ISBLANK(MP_REF5[[#This Row],[Päätelaite Mittapiste]]), "", IF( SUM( _xlfn._xlws.FILTER( (Hakemisto[Tyyppi]=MP_REF5[[#This Row],[Päätelaite Mittapiste]]) * (Hakemisto[Koko]=MP_REF5[[#This Row],[Koko Ød]]) * ((Hakemisto[Tulo]="x") + (Hakemisto[Tulo]=1)), (Hakemisto[Tyyppi]=MP_REF5[[#This Row],[Päätelaite Mittapiste]]) ) ) > 0, TRUE, FALSE ) ),"") ->  | P120: =IFERROR(IF( ISBLANK(MP_REF5[[#This Row],[Päätelaite Mittapiste]]), "", IF( SUM( _xlfn._xlws.FILTER( (Hakemisto[Tyyppi]=MP_REF5[[#This Row],[Päätelaite Mittapiste]]) * (Hakemisto[Koko]=MP_REF5[[#This Row],[Koko Ød]]) * ((Hakemisto[Poisto]="x") + (Hakemisto[Poisto]=1)), (Hakemisto[Tyyppi]=MP_REF5[[#This Row],[Päätelaite Mittapiste]]) ) ) > 0, TRUE, FALSE ) ),"") -> 
A121: 1 | B121: KHH | H121: =IFERROR(IF(OR(ISBLANK(MP_REF5[[#This Row],[Paine Pa]]), ISBLANK(MP_REF5[[#This Row],[Kerroin k-arvo]])), "",MP_REF5[[#This Row],[Kerroin k-arvo]]*SQRT(MP_REF5[[#This Row],[Paine Pa]])),"") ->  | J121: =IF(MP_REF5[[#This Row],[Päätelaite Mittapiste]]="", "",_xlfn.XLOOKUP(1,(Hakemisto[Tyyppi]=MP_REF5[[#This Row],[Päätelaite Mittapiste]])*(Hakemisto[Koko]=MP_REF5[[#This Row],[Koko Ød]])*(Hakemisto[asento]=MP_REF5[[#This Row],[Avaus mm]]), Hakemisto[k-arvo], "ei löydy")) ->  | K121: =_xlfn.LET(_xlpm.suunniteltu, INDIRECT("F"&ROW()), _xlpm.mitattu, INDIRECT("H"&ROW()), IF(OR(_xlpm.suunniteltu="", _xlpm.mitattu="", _xlpm.mitattu=0), " ", (_xlpm.mitattu/_xlpm.suunniteltu))) ->  | L121: =IFERROR(IF(AND(MP_REF5[[#This Row],[-]]="P", MP_REF5[[#This Row],[+]]<>"T"), $H$145*MP_REF5[[#This Row],[Suunniteltu l/s]]/100, IF(AND(MP_REF5[[#This Row],[+]]="T", MP_REF5[[#This Row],[-]]<>"P"), $G$145*MP_REF5[[#This Row],[Suunniteltu l/s]]/100, IF(AND(MP_REF5[[#This Row],[-]]="P", MP_REF5[[#This Row],[+]]="T"), "T/P", "") ) ),"") ->  | M121: =IFERROR(IF(MP_REF5[[#This Row],[tulo]]=TRUE,"T",""),"") ->  | N121: =IFERROR(IF(MP_REF5[[#This Row],[poisto]]=TRUE,"P",""),"") ->  | O121: =IFERROR(IF( ISBLANK(MP_REF5[[#This Row],[Päätelaite Mittapiste]]), "", IF( SUM( _xlfn._xlws.FILTER( (Hakemisto[Tyyppi]=MP_REF5[[#This Row],[Päätelaite Mittapiste]]) * (Hakemisto[Koko]=MP_REF5[[#This Row],[Koko Ød]]) * ((Hakemisto[Tulo]="x") + (Hakemisto[Tulo]=1)), (Hakemisto[Tyyppi]=MP_REF5[[#This Row],[Päätelaite Mittapiste]]) ) ) > 0, TRUE, FALSE ) ),"") ->  | P121: =IFERROR(IF( ISBLANK(MP_REF5[[#This Row],[Päätelaite Mittapiste]]), "", IF( SUM( _xlfn._xlws.FILTER( (Hakemisto[Tyyppi]=MP_REF5[[#This Row],[Päätelaite Mittapiste]]) * (Hakemisto[Koko]=MP_REF5[[#This Row],[Koko Ød]]) * ((Hakemisto[Poisto]="x") + (Hakemisto[Poisto]=1)), (Hakemisto[Tyyppi]=MP_REF5[[#This Row],[Päätelaite Mittapiste]]) ) ) > 0, TRUE, FALSE ) ),"") -> 
A122: 1 | B122: Olohuone | H122: =IFERROR(IF(OR(ISBLANK(MP_REF5[[#This Row],[Paine Pa]]), ISBLANK(MP_REF5[[#This Row],[Kerroin k-arvo]])), "",MP_REF5[[#This Row],[Kerroin k-arvo]]*SQRT(MP_REF5[[#This Row],[Paine Pa]])),"") ->  | J122: =IF(MP_REF5[[#This Row],[Päätelaite Mittapiste]]="", "",_xlfn.XLOOKUP(1,(Hakemisto[Tyyppi]=MP_REF5[[#This Row],[Päätelaite Mittapiste]])*(Hakemisto[Koko]=MP_REF5[[#This Row],[Koko Ød]])*(Hakemisto[asento]=MP_REF5[[#This Row],[Avaus mm]]), Hakemisto[k-arvo], "ei löydy")) ->  | K122: =_xlfn.LET(_xlpm.suunniteltu, INDIRECT("F"&ROW()), _xlpm.mitattu, INDIRECT("H"&ROW()), IF(OR(_xlpm.suunniteltu="", _xlpm.mitattu="", _xlpm.mitattu=0), " ", (_xlpm.mitattu/_xlpm.suunniteltu))) ->  | L122: =IFERROR(IF(AND(MP_REF5[[#This Row],[-]]="P", MP_REF5[[#This Row],[+]]<>"T"), $H$145*MP_REF5[[#This Row],[Suunniteltu l/s]]/100, IF(AND(MP_REF5[[#This Row],[+]]="T", MP_REF5[[#This Row],[-]]<>"P"), $G$145*MP_REF5[[#This Row],[Suunniteltu l/s]]/100, IF(AND(MP_REF5[[#This Row],[-]]="P", MP_REF5[[#This Row],[+]]="T"), "T/P", "") ) ),"") ->  | M122: =IFERROR(IF(MP_REF5[[#This Row],[tulo]]=TRUE,"T",""),"") ->  | N122: =IFERROR(IF(MP_REF5[[#This Row],[poisto]]=TRUE,"P",""),"") ->  | O122: =IFERROR(IF( ISBLANK(MP_REF5[[#This Row],[Päätelaite Mittapiste]]), "", IF( SUM( _xlfn._xlws.FILTER( (Hakemisto[Tyyppi]=MP_REF5[[#This Row],[Päätelaite Mittapiste]]) * (Hakemisto[Koko]=MP_REF5[[#This Row],[Koko Ød]]) * ((Hakemisto[Tulo]="x") + (Hakemisto[Tulo]=1)), (Hakemisto[Tyyppi]=MP_REF5[[#This Row],[Päätelaite Mittapiste]]) ) ) > 0, TRUE, FALSE ) ),"") ->  | P122: =IFERROR(IF( ISBLANK(MP_REF5[[#This Row],[Päätelaite Mittapiste]]), "", IF( SUM( _xlfn._xlws.FILTER( (Hakemisto[Tyyppi]=MP_REF5[[#This Row],[Päätelaite Mittapiste]]) * (Hakemisto[Koko]=MP_REF5[[#This Row],[Koko Ød]]) * ((Hakemisto[Poisto]="x") + (Hakemisto[Poisto]=1)), (Hakemisto[Tyyppi]=MP_REF5[[#This Row],[Päätelaite Mittapiste]]) ) ) > 0, TRUE, FALSE ) ),"") -> 
A123: 1 | B123: Makuuhuone | H123: =IFERROR(IF(OR(ISBLANK(MP_REF5[[#This Row],[Paine Pa]]), ISBLANK(MP_REF5[[#This Row],[Kerroin k-arvo]])), "",MP_REF5[[#This Row],[Kerroin k-arvo]]*SQRT(MP_REF5[[#This Row],[Paine Pa]])),"") ->  | J123: =IF(MP_REF5[[#This Row],[Päätelaite Mittapiste]]="", "",_xlfn.XLOOKUP(1,(Hakemisto[Tyyppi]=MP_REF5[[#This Row],[Päätelaite Mittapiste]])*(Hakemisto[Koko]=MP_REF5[[#This Row],[Koko Ød]])*(Hakemisto[asento]=MP_REF5[[#This Row],[Avaus mm]]), Hakemisto[k-arvo], "ei löydy")) ->  | K123: =_xlfn.LET(_xlpm.suunniteltu, INDIRECT("F"&ROW()), _xlpm.mitattu, INDIRECT("H"&ROW()), IF(OR(_xlpm.suunniteltu="", _xlpm.mitattu="", _xlpm.mitattu=0), " ", (_xlpm.mitattu/_xlpm.suunniteltu))) ->  | L123: =IFERROR(IF(AND(MP_REF5[[#This Row],[-]]="P", MP_REF5[[#This Row],[+]]<>"T"), $H$145*MP_REF5[[#This Row],[Suunniteltu l/s]]/100, IF(AND(MP_REF5[[#This Row],[+]]="T", MP_REF5[[#This Row],[-]]<>"P"), $G$145*MP_REF5[[#This Row],[Suunniteltu l/s]]/100, IF(AND(MP_REF5[[#This Row],[-]]="P", MP_REF5[[#This Row],[+]]="T"), "T/P", "") ) ),"") ->  | M123: =IFERROR(IF(MP_REF5[[#This Row],[tulo]]=TRUE,"T",""),"") ->  | N123: =IFERROR(IF(MP_REF5[[#This Row],[poisto]]=TRUE,"P",""),"") ->  | O123: =IFERROR(IF( ISBLANK(MP_REF5[[#This Row],[Päätelaite Mittapiste]]), "", IF( SUM( _xlfn._xlws.FILTER( (Hakemisto[Tyyppi]=MP_REF5[[#This Row],[Päätelaite Mittapiste]]) * (Hakemisto[Koko]=MP_REF5[[#This Row],[Koko Ød]]) * ((Hakemisto[Tulo]="x") + (Hakemisto[Tulo]=1)), (Hakemisto[Tyyppi]=MP_REF5[[#This Row],[Päätelaite Mittapiste]]) ) ) > 0, TRUE, FALSE ) ),"") ->  | P123: =IFERROR(IF( ISBLANK(MP_REF5[[#This Row],[Päätelaite Mittapiste]]), "", IF( SUM( _xlfn._xlws.FILTER( (Hakemisto[Tyyppi]=MP_REF5[[#This Row],[Päätelaite Mittapiste]]) * (Hakemisto[Koko]=MP_REF5[[#This Row],[Koko Ød]]) * ((Hakemisto[Poisto]="x") + (Hakemisto[Poisto]=1)), (Hakemisto[Tyyppi]=MP_REF5[[#This Row],[Päätelaite Mittapiste]]) ) ) > 0, TRUE, FALSE ) ),"") -> 
B125: Minimipaine | C125: Täyttönäkymä | D125: Päätelaitteen minimipaine tarkistus laskuri | H125: Tulokset
B126: Asetus | C126: asetukset | D126: min paine | E126: l/s | F126: laite | G126: Koko | H126: k-arvo >/= | I126: avaus | J126: max ref. paine
B127: 10 | C127: Poisto | D127: 10 | E127: 15 | F127: KSO | G127: 125 | H127: =E127/SQRT(D127) -> 4.74 | I127: =säätöasento(F127,G127,E127,D127,Hakemisto[]) -> 10 | J127: =_xlfn.LET( _xlpm.karvo, IF( F127="", "", _xlfn.XLOOKUP( 1, (Hakemisto[Tyyppi]=F127)* (Hakemisto[Koko]=G127)* (Hakemisto[asento]=I127), Hakemisto[k-arvo], "ei löydy" ) ), IF( OR(_xlpm.karvo="", _xlpm.karvo="ei löydy"), "", (E127/_xlpm.karvo)^2 ) ) -> 14.1
B128: 10 | C128: Tulo | D128: 10 | E128: 10 | F128: KTS | G128: 100 / 180° muovi | H128: =E128/SQRT(D128) -> 3.16 | I128: =säätöasento(F128,G128,E128,D128,Hakemisto[]) -> 11 | J128: =_xlfn.LET( _xlpm.karvo, IF( F128="", "", _xlfn.XLOOKUP( 1, (Hakemisto[Tyyppi]=F128)* (Hakemisto[Koko]=G128)* (Hakemisto[asento]=I128), Hakemisto[k-arvo], "ei löydy" ) ), IF( OR(_xlpm.karvo="", _xlpm.karvo="ei löydy"), "", (E128/_xlpm.karvo)^2 ) ) -> 10.0
A130: Taulukko 5 | C130: Suhteellinen säätö tulo ja poisto | H130: Tulokset | J130: Muut tiedot | R130: Huomiot
A131: KRS № | B131: Huone Tila | C131: Päätelaite Mittapiste | D131: Koko Ød | E131: Paine Pa | F131: Suunniteltu l/s | G131: Lukitse avaus | H131: Mitattu l/s | I131: Avaus mm | J131: Kerroin k-arvo | K131: Seuranta % | L131: Tavoite l/s | M131: + | N131: - | O131: tulo | P131: poisto | Q131: ★ | R131: Huomio nro | S131: Näkyy huomio tulosteessa? | T131: Kuvaus
H132: =IFERROR( _xlfn.LET( _xlpm.paine, MP_5[[#This Row],[Paine Pa]], _xlpm.k, MP_5[[#This Row],[Kerroin k-arvo]], IF(OR(_xlpm.paine="", _xlpm.k=""), "", _xlpm.k*SQRT(_xlpm.paine)) ), "") ->  | I132: =IF( MP_5[[#This Row],[Lukitse avaus]]<>"", VALUE(MP_5[[#This Row],[Lukitse avaus]]), säätöasento( MP_5[[#This Row],[Päätelaite Mittapiste]], MP_5[[#This Row],[Koko Ød]], MP_5[[#This Row],[Tavoite l/s]], MP_5[[#This Row],[Paine Pa]], Hakemisto[] ) ) ->  | J132: =IFERROR( IF( OR( ISBLANK(MP_5[[#This Row],[Päätelaite Mittapiste]]), ISBLANK(MP_5[[#This Row],[Koko Ød]]), ISBLANK(MP_5[[#This Row],[Avaus mm]]), ISBLANK(MP_5[[#This Row],[Paine Pa]]) ), "", _xlfn.LET( _xlpm.comp, MP_5[[#This Row],[Suunniteltu l/s]]*IF( AND(MP_5[[#This Row],[-]]="P", MP_5[[#This Row],[+]]<>"T"), $H$145*MP_5[[#This Row],[Suunniteltu l/s]], IF( AND(MP_5[[#This Row],[+]]="T", MP_5[[#This Row],[-]]<>"P"), $G$145*MP_5[[#This Row],[Suunniteltu l/s]], IF(AND(MP_5[[#This Row],[-]]="P", MP_5[[#This Row],[+]]="T"), "T/P", "") ) )/SQRT(MP_5[[#This Row],[Paine Pa]]), _xlpm.filt, _xlfn._xlws.FILTER( Hakemisto[], (Hakemisto[Tyyppi]=MP_5[[#This Row],[Päätelaite Mittapiste]]) * (Hakemisto[Koko]=MP_5[[#This Row],[Koko Ød]]) * (IFERROR(--Hakemisto[asento], -1E+99) = IFERROR(--MP_5[[#This Row],[Avaus mm]], -1E+99)) ), _xlpm.colIndex, MATCH("k-arvo", Hakemisto[#Headers], 0), _xlpm.kValues, INDEX(_xlpm.filt, 0, _xlpm.colIndex), _xlpm.diffs, ABS(_xlpm.kValues - _xlpm.comp), _xlpm.minDiff, MIN(_xlpm.diffs), INDEX(_xlpm.kValues, MATCH(_xlpm.minDiff, _xlpm.diffs, 0)) ) ), "" ) ->  | K132: =_xlfn.LET(_xlpm.suunniteltu, INDIRECT("F"&ROW()), _xlpm.mitattu, INDIRECT("H"&ROW()), IF(OR(_xlpm.suunniteltu="", _xlpm.mitattu="", _xlpm.mitattu=0), " ", (_xlpm.mitattu/_xlpm.suunniteltu))) ->  | L132: =IFERROR(IF(AND(MP_5[[#This Row],[-]]="P", MP_5[[#This Row],[+]]<>"T"), $H$145*MP_5[[#This Row],[Suunniteltu l/s]]/100, IF(AND(MP_5[[#This Row],[+]]="T", MP_5[[#This Row],[-]]<>"P"), $G$145*MP_5[[#This Row],[Suunniteltu l/s]]/100, IF(AND(MP_5[[#This Row],[-]]="P", MP_5[[#This Row],[+]]="T"), "T/P", "") ) ),"") ->  | M132: =IFERROR(IF(MP_5[[#This Row],[tulo]]=TRUE,"T",""),"") ->  | N132: =IFERROR(IF(MP_5[[#This Row],[poisto]]=TRUE,"P",""),"") ->  | O132: =IFERROR(IF( ISBLANK(MP_5[[#This Row],[Päätelaite Mittapiste]]), "", IF( SUM( _xlfn._xlws.FILTER( (Hakemisto[Tyyppi]=MP_5[[#This Row],[Päätelaite Mittapiste]]) * (Hakemisto[Koko]=MP_5[[#This Row],[Koko Ød]]) * ((Hakemisto[Tulo]="x") + (Hakemisto[Tulo]=1)), (Hakemisto[Tyyppi]=MP_5[[#This Row],[Päätelaite Mittapiste]]) ) ) > 0, TRUE, FALSE ) ),"") ->  | P132: =IFERROR(IF( ISBLANK(MP_5[[#This Row],[Päätelaite Mittapiste]]), "", IF( SUM( _xlfn._xlws.FILTER( (Hakemisto[Tyyppi]=MP_5[[#This Row],[Päätelaite Mittapiste]]) * (Hakemisto[Koko]=MP_5[[#This Row],[Koko Ød]]) * ((Hakemisto[Poisto]="x") + (Hakemisto[Poisto]=1)), (Hakemisto[Tyyppi]=MP_5[[#This Row],[Päätelaite Mittapiste]]) ) ) > 0, TRUE, FALSE ) ),"") ->  | R132: =IF((MP_5[[#This Row],[★]]=""),"",MP_5[[#This Row],[★]]) -> 
H133: =IFERROR( _xlfn.LET( _xlpm.paine, MP_5[[#This Row],[Paine Pa]], _xlpm.k, MP_5[[#This Row],[Kerroin k-arvo]], IF(OR(_xlpm.paine="", _xlpm.k=""), "", _xlpm.k*SQRT(_xlpm.paine)) ), "") ->  | I133: =IF( MP_5[[#This Row],[Lukitse avaus]]<>"", VALUE(MP_5[[#This Row],[Lukitse avaus]]), säätöasento( MP_5[[#This Row],[Päätelaite Mittapiste]], MP_5[[#This Row],[Koko Ød]], MP_5[[#This Row],[Tavoite l/s]], MP_5[[#This Row],[Paine Pa]], Hakemisto[] ) ) ->  | J133: =IFERROR( IF( OR( ISBLANK(MP_5[[#This Row],[Päätelaite Mittapiste]]), ISBLANK(MP_5[[#This Row],[Koko Ød]]), ISBLANK(MP_5[[#This Row],[Avaus mm]]), ISBLANK(MP_5[[#This Row],[Paine Pa]]) ), "", _xlfn.LET( _xlpm.comp, MP_5[[#This Row],[Suunniteltu l/s]]*IF( AND(MP_5[[#This Row],[-]]="P", MP_5[[#This Row],[+]]<>"T"), $H$145*MP_5[[#This Row],[Suunniteltu l/s]], IF( AND(MP_5[[#This Row],[+]]="T", MP_5[[#This Row],[-]]<>"P"), $G$145*MP_5[[#This Row],[Suunniteltu l/s]], IF(AND(MP_5[[#This Row],[-]]="P", MP_5[[#This Row],[+]]="T"), "T/P", "") ) )/SQRT(MP_5[[#This Row],[Paine Pa]]), _xlpm.filt, _xlfn._xlws.FILTER( Hakemisto[], (Hakemisto[Tyyppi]=MP_5[[#This Row],[Päätelaite Mittapiste]]) * (Hakemisto[Koko]=MP_5[[#This Row],[Koko Ød]]) * (IFERROR(--Hakemisto[asento], -1E+99) = IFERROR(--MP_5[[#This Row],[Avaus mm]], -1E+99)) ), _xlpm.colIndex, MATCH("k-arvo", Hakemisto[#Headers], 0), _xlpm.kValues, INDEX(_xlpm.filt, 0, _xlpm.colIndex), _xlpm.diffs, ABS(_xlpm.kValues - _xlpm.comp), _xlpm.minDiff, MIN(_xlpm.diffs), INDEX(_xlpm.kValues, MATCH(_xlpm.minDiff, _xlpm.diffs, 0)) ) ), "" ) ->  | K133: =_xlfn.LET(_xlpm.suunniteltu, INDIRECT("F"&ROW()), _xlpm.mitattu, INDIRECT("H"&ROW()), IF(OR(_xlpm.suunniteltu="", _xlpm.mitattu="", _xlpm.mitattu=0), " ", (_xlpm.mitattu/_xlpm.suunniteltu))) ->  | L133: =IFERROR(IF(AND(MP_5[[#This Row],[-]]="P", MP_5[[#This Row],[+]]<>"T"), $H$145*MP_5[[#This Row],[Suunniteltu l/s]]/100, IF(AND(MP_5[[#This Row],[+]]="T", MP_5[[#This Row],[-]]<>"P"), $G$145*MP_5[[#This Row],[Suunniteltu l/s]]/100, IF(AND(MP_5[[#This Row],[-]]="P", MP_5[[#This Row],[+]]="T"), "T/P", "") ) ),"") ->  | M133: =IFERROR(IF(MP_5[[#This Row],[tulo]]=TRUE,"T",""),"") ->  | N133: =IFERROR(IF(MP_5[[#This Row],[poisto]]=TRUE,"P",""),"") ->  | O133: =IFERROR(IF( ISBLANK(MP_5[[#This Row],[Päätelaite Mittapiste]]), "", IF( SUM( _xlfn._xlws.FILTER( (Hakemisto[Tyyppi]=MP_5[[#This Row],[Päätelaite Mittapiste]]) * (Hakemisto[Koko]=MP_5[[#This Row],[Koko Ød]]) * ((Hakemisto[Tulo]="x") + (Hakemisto[Tulo]=1)), (Hakemisto[Tyyppi]=MP_5[[#This Row],[Päätelaite Mittapiste]]) ) ) > 0, TRUE, FALSE ) ),"") ->  | P133: =IFERROR(IF( ISBLANK(MP_5[[#This Row],[Päätelaite Mittapiste]]), "", IF( SUM( _xlfn._xlws.FILTER( (Hakemisto[Tyyppi]=MP_5[[#This Row],[Päätelaite Mittapiste]]) * (Hakemisto[Koko]=MP_5[[#This Row],[Koko Ød]]) * ((Hakemisto[Poisto]="x") + (Hakemisto[Poisto]=1)), (Hakemisto[Tyyppi]=MP_5[[#This Row],[Päätelaite Mittapiste]]) ) ) > 0, TRUE, FALSE ) ),"") ->  | R133: =IF((MP_5[[#This Row],[★]]=""),"",MP_5[[#This Row],[★]]) -> 
H134: =IFERROR( _xlfn.LET( _xlpm.paine, MP_5[[#This Row],[Paine Pa]], _xlpm.k, MP_5[[#This Row],[Kerroin k-arvo]], IF(OR(_xlpm.paine="", _xlpm.k=""), "", _xlpm.k*SQRT(_xlpm.paine)) ), "") ->  | I134: =IF( MP_5[[#This Row],[Lukitse avaus]]<>"", VALUE(MP_5[[#This Row],[Lukitse avaus]]), säätöasento( MP_5[[#This Row],[Päätelaite Mittapiste]], MP_5[[#This Row],[Koko Ød]], MP_5[[#This Row],[Tavoite l/s]], MP_5[[#This Row],[Paine Pa]], Hakemisto[] ) ) ->  | J134: =IFERROR( IF( OR( ISBLANK(MP_5[[#This Row],[Päätelaite Mittapiste]]), ISBLANK(MP_5[[#This Row],[Koko Ød]]), ISBLANK(MP_5[[#This Row],[Avaus mm]]), ISBLANK(MP_5[[#This Row],[Paine Pa]]) ), "", _xlfn.LET( _xlpm.comp, MP_5[[#This Row],[Suunniteltu l/s]]*IF( AND(MP_5[[#This Row],[-]]="P", MP_5[[#This Row],[+]]<>"T"), $H$145*MP_5[[#This Row],[Suunniteltu l/s]], IF( AND(MP_5[[#This Row],[+]]="T", MP_5[[#This Row],[-]]<>"P"), $G$145*MP_5[[#This Row],[Suunniteltu l/s]], IF(AND(MP_5[[#This Row],[-]]="P", MP_5[[#This Row],[+]]="T"), "T/P", "") ) )/SQRT(MP_5[[#This Row],[Paine Pa]]), _xlpm.filt, _xlfn._xlws.FILTER( Hakemisto[], (Hakemisto[Tyyppi]=MP_5[[#This Row],[Päätelaite Mittapiste]]) * (Hakemisto[Koko]=MP_5[[#This Row],[Koko Ød]]) * (IFERROR(--Hakemisto[asento], -1E+99) = IFERROR(--MP_5[[#This Row],[Avaus mm]], -1E+99)) ), _xlpm.colIndex, MATCH("k-arvo", Hakemisto[#Headers], 0), _xlpm.kValues, INDEX(_xlpm.filt, 0, _xlpm.colIndex), _xlpm.diffs, ABS(_xlpm.kValues - _xlpm.comp), _xlpm.minDiff, MIN(_xlpm.diffs), INDEX(_xlpm.kValues, MATCH(_xlpm.minDiff, _xlpm.diffs, 0)) ) ), "" ) ->  | K134: =_xlfn.LET(_xlpm.suunniteltu, INDIRECT("F"&ROW()), _xlpm.mitattu, INDIRECT("H"&ROW()), IF(OR(_xlpm.suunniteltu="", _xlpm.mitattu="", _xlpm.mitattu=0), " ", (_xlpm.mitattu/_xlpm.suunniteltu))) ->  | L134: =IFERROR(IF(AND(MP_5[[#This Row],[-]]="P", MP_5[[#This Row],[+]]<>"T"), $H$145*MP_5[[#This Row],[Suunniteltu l/s]]/100, IF(AND(MP_5[[#This Row],[+]]="T", MP_5[[#This Row],[-]]<>"P"), $G$145*MP_5[[#This Row],[Suunniteltu l/s]]/100, IF(AND(MP_5[[#This Row],[-]]="P", MP_5[[#This Row],[+]]="T"), "T/P", "") ) ),"") ->  | M134: =IFERROR(IF(MP_5[[#This Row],[tulo]]=TRUE,"T",""),"") ->  | N134: =IFERROR(IF(MP_5[[#This Row],[poisto]]=TRUE,"P",""),"") ->  | O134: =IFERROR(IF( ISBLANK(MP_5[[#This Row],[Päätelaite Mittapiste]]), "", IF( SUM( _xlfn._xlws.FILTER( (Hakemisto[Tyyppi]=MP_5[[#This Row],[Päätelaite Mittapiste]]) * (Hakemisto[Koko]=MP_5[[#This Row],[Koko Ød]]) * ((Hakemisto[Tulo]="x") + (Hakemisto[Tulo]=1)), (Hakemisto[Tyyppi]=MP_5[[#This Row],[Päätelaite Mittapiste]]) ) ) > 0, TRUE, FALSE ) ),"") ->  | P134: =IFERROR(IF( ISBLANK(MP_5[[#This Row],[Päätelaite Mittapiste]]), "", IF( SUM( _xlfn._xlws.FILTER( (Hakemisto[Tyyppi]=MP_5[[#This Row],[Päätelaite Mittapiste]]) * (Hakemisto[Koko]=MP_5[[#This Row],[Koko Ød]]) * ((Hakemisto[Poisto]="x") + (Hakemisto[Poisto]=1)), (Hakemisto[Tyyppi]=MP_5[[#This Row],[Päätelaite Mittapiste]]) ) ) > 0, TRUE, FALSE ) ),"") ->  | R134: =IF((MP_5[[#This Row],[★]]=""),"",MP_5[[#This Row],[★]]) -> 
H135: =IFERROR( _xlfn.LET( _xlpm.paine, MP_5[[#This Row],[Paine Pa]], _xlpm.k, MP_5[[#This Row],[Kerroin k-arvo]], IF(OR(_xlpm.paine="", _xlpm.k=""), "", _xlpm.k*SQRT(_xlpm.paine)) ), "") ->  | I135: =IF( MP_5[[#This Row],[Lukitse avaus]]<>"", VALUE(MP_5[[#This Row],[Lukitse avaus]]), säätöasento( MP_5[[#This Row],[Päätelaite Mittapiste]], MP_5[[#This Row],[Koko Ød]], MP_5[[#This Row],[Tavoite l/s]], MP_5[[#This Row],[Paine Pa]], Hakemisto[] ) ) ->  | J135: =IFERROR( IF( OR( ISBLANK(MP_5[[#This Row],[Päätelaite Mittapiste]]), ISBLANK(MP_5[[#This Row],[Koko Ød]]), ISBLANK(MP_5[[#This Row],[Avaus mm]]), ISBLANK(MP_5[[#This Row],[Paine Pa]]) ), "", _xlfn.LET( _xlpm.comp, MP_5[[#This Row],[Suunniteltu l/s]]*IF( AND(MP_5[[#This Row],[-]]="P", MP_5[[#This Row],[+]]<>"T"), $H$145*MP_5[[#This Row],[Suunniteltu l/s]], IF( AND(MP_5[[#This Row],[+]]="T", MP_5[[#This Row],[-]]<>"P"), $G$145*MP_5[[#This Row],[Suunniteltu l/s]], IF(AND(MP_5[[#This Row],[-]]="P", MP_5[[#This Row],[+]]="T"), "T/P", "") ) )/SQRT(MP_5[[#This Row],[Paine Pa]]), _xlpm.filt, _xlfn._xlws.FILTER( Hakemisto[], (Hakemisto[Tyyppi]=MP_5[[#This Row],[Päätelaite Mittapiste]]) * (Hakemisto[Koko]=MP_5[[#This Row],[Koko Ød]]) * (IFERROR(--Hakemisto[asento], -1E+99) = IFERROR(--MP_5[[#This Row],[Avaus mm]], -1E+99)) ), _xlpm.colIndex, MATCH("k-arvo", Hakemisto[#Headers], 0), _xlpm.kValues, INDEX(_xlpm.filt, 0, _xlpm.colIndex), _xlpm.diffs, ABS(_xlpm.kValues - _xlpm.comp), _xlpm.minDiff, MIN(_xlpm.diffs), INDEX(_xlpm.kValues, MATCH(_xlpm.minDiff, _xlpm.diffs, 0)) ) ), "" ) ->  | K135: =_xlfn.LET(_xlpm.suunniteltu, INDIRECT("F"&ROW()), _xlpm.mitattu, INDIRECT("H"&ROW()), IF(OR(_xlpm.suunniteltu="", _xlpm.mitattu="", _xlpm.mitattu=0), " ", (_xlpm.mitattu/_xlpm.suunniteltu))) ->  | L135: =IFERROR(IF(AND(MP_5[[#This Row],[-]]="P", MP_5[[#This Row],[+]]<>"T"), $H$145*MP_5[[#This Row],[Suunniteltu l/s]]/100, IF(AND(MP_5[[#This Row],[+]]="T", MP_5[[#This Row],[-]]<>"P"), $G$145*MP_5[[#This Row],[Suunniteltu l/s]]/100, IF(AND(MP_5[[#This Row],[-]]="P", MP_5[[#This Row],[+]]="T"), "T/P", "") ) ),"") ->  | M135: =IFERROR(IF(MP_5[[#This Row],[tulo]]=TRUE,"T",""),"") ->  | N135: =IFERROR(IF(MP_5[[#This Row],[poisto]]=TRUE,"P",""),"") ->  | O135: =IFERROR(IF( ISBLANK(MP_5[[#This Row],[Päätelaite Mittapiste]]), "", IF( SUM( _xlfn._xlws.FILTER( (Hakemisto[Tyyppi]=MP_5[[#This Row],[Päätelaite Mittapiste]]) * (Hakemisto[Koko]=MP_5[[#This Row],[Koko Ød]]) * ((Hakemisto[Tulo]="x") + (Hakemisto[Tulo]=1)), (Hakemisto[Tyyppi]=MP_5[[#This Row],[Päätelaite Mittapiste]]) ) ) > 0, TRUE, FALSE ) ),"") ->  | P135: =IFERROR(IF( ISBLANK(MP_5[[#This Row],[Päätelaite Mittapiste]]), "", IF( SUM( _xlfn._xlws.FILTER( (Hakemisto[Tyyppi]=MP_5[[#This Row],[Päätelaite Mittapiste]]) * (Hakemisto[Koko]=MP_5[[#This Row],[Koko Ød]]) * ((Hakemisto[Poisto]="x") + (Hakemisto[Poisto]=1)), (Hakemisto[Tyyppi]=MP_5[[#This Row],[Päätelaite Mittapiste]]) ) ) > 0, TRUE, FALSE ) ),"") ->  | R135: =IF((MP_5[[#This Row],[★]]=""),"",MP_5[[#This Row],[★]]) -> 
H136: =IFERROR( _xlfn.LET( _xlpm.paine, MP_5[[#This Row],[Paine Pa]], _xlpm.k, MP_5[[#This Row],[Kerroin k-arvo]], IF(OR(_xlpm.paine="", _xlpm.k=""), "", _xlpm.k*SQRT(_xlpm.paine)) ), "") ->  | I136: =IF( MP_5[[#This Row],[Lukitse avaus]]<>"", VALUE(MP_5[[#This Row],[Lukitse avaus]]), säätöasento( MP_5[[#This Row],[Päätelaite Mittapiste]], MP_5[[#This Row],[Koko Ød]], MP_5[[#This Row],[Tavoite l/s]], MP_5[[#This Row],[Paine Pa]], Hakemisto[] ) ) ->  | J136: =IFERROR( IF( OR( ISBLANK(MP_5[[#This Row],[Päätelaite Mittapiste]]), ISBLANK(MP_5[[#This Row],[Koko Ød]]), ISBLANK(MP_5[[#This Row],[Avaus mm]]), ISBLANK(MP_5[[#This Row],[Paine Pa]]) ), "", _xlfn.LET( _xlpm.comp, MP_5[[#This Row],[Suunniteltu l/s]]*IF( AND(MP_5[[#This Row],[-]]="P", MP_5[[#This Row],[+]]<>"T"), $H$145*MP_5[[#This Row],[Suunniteltu l/s]], IF( AND(MP_5[[#This Row],[+]]="T", MP_5[[#This Row],[-]]<>"P"), $G$145*MP_5[[#This Row],[Suunniteltu l/s]], IF(AND(MP_5[[#This Row],[-]]="P", MP_5[[#This Row],[+]]="T"), "T/P", "") ) )/SQRT(MP_5[[#This Row],[Paine Pa]]), _xlpm.filt, _xlfn._xlws.FILTER( Hakemisto[], (Hakemisto[Tyyppi]=MP_5[[#This Row],[Päätelaite Mittapiste]]) * (Hakemisto[Koko]=MP_5[[#This Row],[Koko Ød]]) * (IFERROR(--Hakemisto[asento], -1E+99) = IFERROR(--MP_5[[#This Row],[Avaus mm]], -1E+99)) ), _xlpm.colIndex, MATCH("k-arvo", Hakemisto[#Headers], 0), _xlpm.kValues, INDEX(_xlpm.filt, 0, _xlpm.colIndex), _xlpm.diffs, ABS(_xlpm.kValues - _xlpm.comp), _xlpm.minDiff, MIN(_xlpm.diffs), INDEX(_xlpm.kValues, MATCH(_xlpm.minDiff, _xlpm.diffs, 0)) ) ), "" ) ->  | K136: =_xlfn.LET(_xlpm.suunniteltu, INDIRECT("F"&ROW()), _xlpm.mitattu, INDIRECT("H"&ROW()), IF(OR(_xlpm.suunniteltu="", _xlpm.mitattu="", _xlpm.mitattu=0), " ", (_xlpm.mitattu/_xlpm.suunniteltu))) ->  | L136: =IFERROR(IF(AND(MP_5[[#This Row],[-]]="P", MP_5[[#This Row],[+]]<>"T"), $H$145*MP_5[[#This Row],[Suunniteltu l/s]]/100, IF(AND(MP_5[[#This Row],[+]]="T", MP_5[[#This Row],[-]]<>"P"), $G$145*MP_5[[#This Row],[Suunniteltu l/s]]/100, IF(AND(MP_5[[#This Row],[-]]="P", MP_5[[#This Row],[+]]="T"), "T/P", "") ) ),"") ->  | M136: =IFERROR(IF(MP_5[[#This Row],[tulo]]=TRUE,"T",""),"") ->  | N136: =IFERROR(IF(MP_5[[#This Row],[poisto]]=TRUE,"P",""),"") ->  | O136: =IFERROR(IF( ISBLANK(MP_5[[#This Row],[Päätelaite Mittapiste]]), "", IF( SUM( _xlfn._xlws.FILTER( (Hakemisto[Tyyppi]=MP_5[[#This Row],[Päätelaite Mittapiste]]) * (Hakemisto[Koko]=MP_5[[#This Row],[Koko Ød]]) * ((Hakemisto[Tulo]="x") + (Hakemisto[Tulo]=1)), (Hakemisto[Tyyppi]=MP_5[[#This Row],[Päätelaite Mittapiste]]) ) ) > 0, TRUE, FALSE ) ),"") ->  | P136: =IFERROR(IF( ISBLANK(MP_5[[#This Row],[Päätelaite Mittapiste]]), "", IF( SUM( _xlfn._xlws.FILTER( (Hakemisto[Tyyppi]=MP_5[[#This Row],[Päätelaite Mittapiste]]) * (Hakemisto[Koko]=MP_5[[#This Row],[Koko Ød]]) * ((Hakemisto[Poisto]="x") + (Hakemisto[Poisto]=1)), (Hakemisto[Tyyppi]=MP_5[[#This Row],[Päätelaite Mittapiste]]) ) ) > 0, TRUE, FALSE ) ),"") ->  | R136: =IF((MP_5[[#This Row],[★]]=""),"",MP_5[[#This Row],[★]]) -> 
H137: =IFERROR( _xlfn.LET( _xlpm.paine, MP_5[[#This Row],[Paine Pa]], _xlpm.k, MP_5[[#This Row],[Kerroin k-arvo]], IF(OR(_xlpm.paine="", _xlpm.k=""), "", _xlpm.k*SQRT(_xlpm.paine)) ), "") ->  | I137: =IF( MP_5[[#This Row],[Lukitse avaus]]<>"", VALUE(MP_5[[#This Row],[Lukitse avaus]]), säätöasento( MP_5[[#This Row],[Päätelaite Mittapiste]], MP_5[[#This Row],[Koko Ød]], MP_5[[#This Row],[Tavoite l/s]], MP_5[[#This Row],[Paine Pa]], Hakemisto[] ) ) ->  | J137: =IFERROR( IF( OR( ISBLANK(MP_5[[#This Row],[Päätelaite Mittapiste]]), ISBLANK(MP_5[[#This Row],[Koko Ød]]), ISBLANK(MP_5[[#This Row],[Avaus mm]]), ISBLANK(MP_5[[#This Row],[Paine Pa]]) ), "", _xlfn.LET( _xlpm.comp, MP_5[[#This Row],[Suunniteltu l/s]]*IF( AND(MP_5[[#This Row],[-]]="P", MP_5[[#This Row],[+]]<>"T"), $H$145*MP_5[[#This Row],[Suunniteltu l/s]], IF( AND(MP_5[[#This Row],[+]]="T", MP_5[[#This Row],[-]]<>"P"), $G$145*MP_5[[#This Row],[Suunniteltu l/s]], IF(AND(MP_5[[#This Row],[-]]="P", MP_5[[#This Row],[+]]="T"), "T/P", "") ) )/SQRT(MP_5[[#This Row],[Paine Pa]]), _xlpm.filt, _xlfn._xlws.FILTER( Hakemisto[], (Hakemisto[Tyyppi]=MP_5[[#This Row],[Päätelaite Mittapiste]]) * (Hakemisto[Koko]=MP_5[[#This Row],[Koko Ød]]) * (IFERROR(--Hakemisto[asento], -1E+99) = IFERROR(--MP_5[[#This Row],[Avaus mm]], -1E+99)) ), _xlpm.colIndex, MATCH("k-arvo", Hakemisto[#Headers], 0), _xlpm.kValues, INDEX(_xlpm.filt, 0, _xlpm.colIndex), _xlpm.diffs, ABS(_xlpm.kValues - _xlpm.comp), _xlpm.minDiff, MIN(_xlpm.diffs), INDEX(_xlpm.kValues, MATCH(_xlpm.minDiff, _xlpm.diffs, 0)) ) ), "" ) ->  | K137: =_xlfn.LET(_xlpm.suunniteltu, INDIRECT("F"&ROW()), _xlpm.mitattu, INDIRECT("H"&ROW()), IF(OR(_xlpm.suunniteltu="", _xlpm.mitattu="", _xlpm.mitattu=0), " ", (_xlpm.mitattu/_xlpm.suunniteltu))) ->  | L137: =IFERROR(IF(AND(MP_5[[#This Row],[-]]="P", MP_5[[#This Row],[+]]<>"T"), $H$145*MP_5[[#This Row],[Suunniteltu l/s]]/100, IF(AND(MP_5[[#This Row],[+]]="T", MP_5[[#This Row],[-]]<>"P"), $G$145*MP_5[[#This Row],[Suunniteltu l/s]]/100, IF(AND(MP_5[[#This Row],[-]]="P", MP_5[[#This Row],[+]]="T"), "T/P", "") ) ),"") ->  | M137: =IFERROR(IF(MP_5[[#This Row],[tulo]]=TRUE,"T",""),"") ->  | N137: =IFERROR(IF(MP_5[[#This Row],[poisto]]=TRUE,"P",""),"") ->  | O137: =IFERROR(IF( ISBLANK(MP_5[[#This Row],[Päätelaite Mittapiste]]), "", IF( SUM( _xlfn._xlws.FILTER( (Hakemisto[Tyyppi]=MP_5[[#This Row],[Päätelaite Mittapiste]]) * (Hakemisto[Koko]=MP_5[[#This Row],[Koko Ød]]) * ((Hakemisto[Tulo]="x") + (Hakemisto[Tulo]=1)), (Hakemisto[Tyyppi]=MP_5[[#This Row],[Päätelaite Mittapiste]]) ) ) > 0, TRUE, FALSE ) ),"") ->  | P137: =IFERROR(IF( ISBLANK(MP_5[[#This Row],[Päätelaite Mittapiste]]), "", IF( SUM( _xlfn._xlws.FILTER( (Hakemisto[Tyyppi]=MP_5[[#This Row],[Päätelaite Mittapiste]]) * (Hakemisto[Koko]=MP_5[[#This Row],[Koko Ød]]) * ((Hakemisto[Poisto]="x") + (Hakemisto[Poisto]=1)), (Hakemisto[Tyyppi]=MP_5[[#This Row],[Päätelaite Mittapiste]]) ) ) > 0, TRUE, FALSE ) ),"") ->  | R137: =IF((MP_5[[#This Row],[★]]=""),"",MP_5[[#This Row],[★]]) -> 
H138: =IFERROR( _xlfn.LET( _xlpm.paine, MP_5[[#This Row],[Paine Pa]], _xlpm.k, MP_5[[#This Row],[Kerroin k-arvo]], IF(OR(_xlpm.paine="", _xlpm.k=""), "", _xlpm.k*SQRT(_xlpm.paine)) ), "") ->  | I138: =IF( MP_5[[#This Row],[Lukitse avaus]]<>"", VALUE(MP_5[[#This Row],[Lukitse avaus]]), säätöasento( MP_5[[#This Row],[Päätelaite Mittapiste]], MP_5[[#This Row],[Koko Ød]], MP_5[[#This Row],[Tavoite l/s]], MP_5[[#This Row],[Paine Pa]], Hakemisto[] ) ) ->  | J138: =IFERROR( IF( OR( ISBLANK(MP_5[[#This Row],[Päätelaite Mittapiste]]), ISBLANK(MP_5[[#This Row],[Koko Ød]]), ISBLANK(MP_5[[#This Row],[Avaus mm]]), ISBLANK(MP_5[[#This Row],[Paine Pa]]) ), "", _xlfn.LET( _xlpm.comp, MP_5[[#This Row],[Suunniteltu l/s]]*IF( AND(MP_5[[#This Row],[-]]="P", MP_5[[#This Row],[+]]<>"T"), $H$145*MP_5[[#This Row],[Suunniteltu l/s]], IF( AND(MP_5[[#This Row],[+]]="T", MP_5[[#This Row],[-]]<>"P"), $G$145*MP_5[[#This Row],[Suunniteltu l/s]], IF(AND(MP_5[[#This Row],[-]]="P", MP_5[[#This Row],[+]]="T"), "T/P", "") ) )/SQRT(MP_5[[#This Row],[Paine Pa]]), _xlpm.filt, _xlfn._xlws.FILTER( Hakemisto[], (Hakemisto[Tyyppi]=MP_5[[#This Row],[Päätelaite Mittapiste]]) * (Hakemisto[Koko]=MP_5[[#This Row],[Koko Ød]]) * (IFERROR(--Hakemisto[asento], -1E+99) = IFERROR(--MP_5[[#This Row],[Avaus mm]], -1E+99)) ), _xlpm.colIndex, MATCH("k-arvo", Hakemisto[#Headers], 0), _xlpm.kValues, INDEX(_xlpm.filt, 0, _xlpm.colIndex), _xlpm.diffs, ABS(_xlpm.kValues - _xlpm.comp), _xlpm.minDiff, MIN(_xlpm.diffs), INDEX(_xlpm.kValues, MATCH(_xlpm.minDiff, _xlpm.diffs, 0)) ) ), "" ) ->  | K138: =_xlfn.LET(_xlpm.suunniteltu, INDIRECT("F"&ROW()), _xlpm.mitattu, INDIRECT("H"&ROW()), IF(OR(_xlpm.suunniteltu="", _xlpm.mitattu="", _xlpm.mitattu=0), " ", (_xlpm.mitattu/_xlpm.suunniteltu))) ->  | L138: =IFERROR(IF(AND(MP_5[[#This Row],[-]]="P", MP_5[[#This Row],[+]]<>"T"), $H$145*MP_5[[#This Row],[Suunniteltu l/s]]/100, IF(AND(MP_5[[#This Row],[+]]="T", MP_5[[#This Row],[-]]<>"P"), $G$145*MP_5[[#This Row],[Suunniteltu l/s]]/100, IF(AND(MP_5[[#This Row],[-]]="P", MP_5[[#This Row],[+]]="T"), "T/P", "") ) ),"") ->  | M138: =IFERROR(IF(MP_5[[#This Row],[tulo]]=TRUE,"T",""),"") ->  | N138: =IFERROR(IF(MP_5[[#This Row],[poisto]]=TRUE,"P",""),"") ->  | O138: =IFERROR(IF( ISBLANK(MP_5[[#This Row],[Päätelaite Mittapiste]]), "", IF( SUM( _xlfn._xlws.FILTER( (Hakemisto[Tyyppi]=MP_5[[#This Row],[Päätelaite Mittapiste]]) * (Hakemisto[Koko]=MP_5[[#This Row],[Koko Ød]]) * ((Hakemisto[Tulo]="x") + (Hakemisto[Tulo]=1)), (Hakemisto[Tyyppi]=MP_5[[#This Row],[Päätelaite Mittapiste]]) ) ) > 0, TRUE, FALSE ) ),"") ->  | P138: =IFERROR(IF( ISBLANK(MP_5[[#This Row],[Päätelaite Mittapiste]]), "", IF( SUM( _xlfn._xlws.FILTER( (Hakemisto[Tyyppi]=MP_5[[#This Row],[Päätelaite Mittapiste]]) * (Hakemisto[Koko]=MP_5[[#This Row],[Koko Ød]]) * ((Hakemisto[Poisto]="x") + (Hakemisto[Poisto]=1)), (Hakemisto[Tyyppi]=MP_5[[#This Row],[Päätelaite Mittapiste]]) ) ) > 0, TRUE, FALSE ) ),"") ->  | R138: =IF((MP_5[[#This Row],[★]]=""),"",MP_5[[#This Row],[★]]) -> 
H139: =IFERROR( _xlfn.LET( _xlpm.paine, MP_5[[#This Row],[Paine Pa]], _xlpm.k, MP_5[[#This Row],[Kerroin k-arvo]], IF(OR(_xlpm.paine="", _xlpm.k=""), "", _xlpm.k*SQRT(_xlpm.paine)) ), "") ->  | I139: =IF( MP_5[[#This Row],[Lukitse avaus]]<>"", VALUE(MP_5[[#This Row],[Lukitse avaus]]), säätöasento( MP_5[[#This Row],[Päätelaite Mittapiste]], MP_5[[#This Row],[Koko Ød]], MP_5[[#This Row],[Tavoite l/s]], MP_5[[#This Row],[Paine Pa]], Hakemisto[] ) ) ->  | J139: =IFERROR( IF( OR( ISBLANK(MP_5[[#This Row],[Päätelaite Mittapiste]]), ISBLANK(MP_5[[#This Row],[Koko Ød]]), ISBLANK(MP_5[[#This Row],[Avaus mm]]), ISBLANK(MP_5[[#This Row],[Paine Pa]]) ), "", _xlfn.LET( _xlpm.comp, MP_5[[#This Row],[Suunniteltu l/s]]*IF( AND(MP_5[[#This Row],[-]]="P", MP_5[[#This Row],[+]]<>"T"), $H$145*MP_5[[#This Row],[Suunniteltu l/s]], IF( AND(MP_5[[#This Row],[+]]="T", MP_5[[#This Row],[-]]<>"P"), $G$145*MP_5[[#This Row],[Suunniteltu l/s]], IF(AND(MP_5[[#This Row],[-]]="P", MP_5[[#This Row],[+]]="T"), "T/P", "") ) )/SQRT(MP_5[[#This Row],[Paine Pa]]), _xlpm.filt, _xlfn._xlws.FILTER( Hakemisto[], (Hakemisto[Tyyppi]=MP_5[[#This Row],[Päätelaite Mittapiste]]) * (Hakemisto[Koko]=MP_5[[#This Row],[Koko Ød]]) * (IFERROR(--Hakemisto[asento], -1E+99) = IFERROR(--MP_5[[#This Row],[Avaus mm]], -1E+99)) ), _xlpm.colIndex, MATCH("k-arvo", Hakemisto[#Headers], 0), _xlpm.kValues, INDEX(_xlpm.filt, 0, _xlpm.colIndex), _xlpm.diffs, ABS(_xlpm.kValues - _xlpm.comp), _xlpm.minDiff, MIN(_xlpm.diffs), INDEX(_xlpm.kValues, MATCH(_xlpm.minDiff, _xlpm.diffs, 0)) ) ), "" ) ->  | K139: =_xlfn.LET(_xlpm.suunniteltu, INDIRECT("F"&ROW()), _xlpm.mitattu, INDIRECT("H"&ROW()), IF(OR(_xlpm.suunniteltu="", _xlpm.mitattu="", _xlpm.mitattu=0), " ", (_xlpm.mitattu/_xlpm.suunniteltu))) ->  | L139: =IFERROR(IF(AND(MP_5[[#This Row],[-]]="P", MP_5[[#This Row],[+]]<>"T"), $H$145*MP_5[[#This Row],[Suunniteltu l/s]]/100, IF(AND(MP_5[[#This Row],[+]]="T", MP_5[[#This Row],[-]]<>"P"), $G$145*MP_5[[#This Row],[Suunniteltu l/s]]/100, IF(AND(MP_5[[#This Row],[-]]="P", MP_5[[#This Row],[+]]="T"), "T/P", "") ) ),"") ->  | M139: =IFERROR(IF(MP_5[[#This Row],[tulo]]=TRUE,"T",""),"") ->  | N139: =IFERROR(IF(MP_5[[#This Row],[poisto]]=TRUE,"P",""),"") ->  | O139: =IFERROR(IF( ISBLANK(MP_5[[#This Row],[Päätelaite Mittapiste]]), "", IF( SUM( _xlfn._xlws.FILTER( (Hakemisto[Tyyppi]=MP_5[[#This Row],[Päätelaite Mittapiste]]) * (Hakemisto[Koko]=MP_5[[#This Row],[Koko Ød]]) * ((Hakemisto[Tulo]="x") + (Hakemisto[Tulo]=1)), (Hakemisto[Tyyppi]=MP_5[[#This Row],[Päätelaite Mittapiste]]) ) ) > 0, TRUE, FALSE ) ),"") ->  | P139: =IFERROR(IF( ISBLANK(MP_5[[#This Row],[Päätelaite Mittapiste]]), "", IF( SUM( _xlfn._xlws.FILTER( (Hakemisto[Tyyppi]=MP_5[[#This Row],[Päätelaite Mittapiste]]) * (Hakemisto[Koko]=MP_5[[#This Row],[Koko Ød]]) * ((Hakemisto[Poisto]="x") + (Hakemisto[Poisto]=1)), (Hakemisto[Tyyppi]=MP_5[[#This Row],[Päätelaite Mittapiste]]) ) ) > 0, TRUE, FALSE ) ),"") ->  | R139: =IF((MP_5[[#This Row],[★]]=""),"",MP_5[[#This Row],[★]]) -> 
H140: =IFERROR( _xlfn.LET( _xlpm.paine, MP_5[[#This Row],[Paine Pa]], _xlpm.k, MP_5[[#This Row],[Kerroin k-arvo]], IF(OR(_xlpm.paine="", _xlpm.k=""), "", _xlpm.k*SQRT(_xlpm.paine)) ), "") ->  | I140: =IF( MP_5[[#This Row],[Lukitse avaus]]<>"", VALUE(MP_5[[#This Row],[Lukitse avaus]]), säätöasento( MP_5[[#This Row],[Päätelaite Mittapiste]], MP_5[[#This Row],[Koko Ød]], MP_5[[#This Row],[Tavoite l/s]], MP_5[[#This Row],[Paine Pa]], Hakemisto[] ) ) ->  | J140: =IFERROR( IF( OR( ISBLANK(MP_5[[#This Row],[Päätelaite Mittapiste]]), ISBLANK(MP_5[[#This Row],[Koko Ød]]), ISBLANK(MP_5[[#This Row],[Avaus mm]]), ISBLANK(MP_5[[#This Row],[Paine Pa]]) ), "", _xlfn.LET( _xlpm.comp, MP_5[[#This Row],[Suunniteltu l/s]]*IF( AND(MP_5[[#This Row],[-]]="P", MP_5[[#This Row],[+]]<>"T"), $H$145*MP_5[[#This Row],[Suunniteltu l/s]], IF( AND(MP_5[[#This Row],[+]]="T", MP_5[[#This Row],[-]]<>"P"), $G$145*MP_5[[#This Row],[Suunniteltu l/s]], IF(AND(MP_5[[#This Row],[-]]="P", MP_5[[#This Row],[+]]="T"), "T/P", "") ) )/SQRT(MP_5[[#This Row],[Paine Pa]]), _xlpm.filt, _xlfn._xlws.FILTER( Hakemisto[], (Hakemisto[Tyyppi]=MP_5[[#This Row],[Päätelaite Mittapiste]]) * (Hakemisto[Koko]=MP_5[[#This Row],[Koko Ød]]) * (IFERROR(--Hakemisto[asento], -1E+99) = IFERROR(--MP_5[[#This Row],[Avaus mm]], -1E+99)) ), _xlpm.colIndex, MATCH("k-arvo", Hakemisto[#Headers], 0), _xlpm.kValues, INDEX(_xlpm.filt, 0, _xlpm.colIndex), _xlpm.diffs, ABS(_xlpm.kValues - _xlpm.comp), _xlpm.minDiff, MIN(_xlpm.diffs), INDEX(_xlpm.kValues, MATCH(_xlpm.minDiff, _xlpm.diffs, 0)) ) ), "" ) ->  | K140: =_xlfn.LET(_xlpm.suunniteltu, INDIRECT("F"&ROW()), _xlpm.mitattu, INDIRECT("H"&ROW()), IF(OR(_xlpm.suunniteltu="", _xlpm.mitattu="", _xlpm.mitattu=0), " ", (_xlpm.mitattu/_xlpm.suunniteltu))) ->  | L140: =IFERROR(IF(AND(MP_5[[#This Row],[-]]="P", MP_5[[#This Row],[+]]<>"T"), $H$145*MP_5[[#This Row],[Suunniteltu l/s]]/100, IF(AND(MP_5[[#This Row],[+]]="T", MP_5[[#This Row],[-]]<>"P"), $G$145*MP_5[[#This Row],[Suunniteltu l/s]]/100, IF(AND(MP_5[[#This Row],[-]]="P", MP_5[[#This Row],[+]]="T"), "T/P", "") ) ),"") ->  | M140: =IFERROR(IF(MP_5[[#This Row],[tulo]]=TRUE,"T",""),"") ->  | N140: =IFERROR(IF(MP_5[[#This Row],[poisto]]=TRUE,"P",""),"") ->  | O140: =IFERROR(IF( ISBLANK(MP_5[[#This Row],[Päätelaite Mittapiste]]), "", IF( SUM( _xlfn._xlws.FILTER( (Hakemisto[Tyyppi]=MP_5[[#This Row],[Päätelaite Mittapiste]]) * (Hakemisto[Koko]=MP_5[[#This Row],[Koko Ød]]) * ((Hakemisto[Tulo]="x") + (Hakemisto[Tulo]=1)), (Hakemisto[Tyyppi]=MP_5[[#This Row],[Päätelaite Mittapiste]]) ) ) > 0, TRUE, FALSE ) ),"") ->  | P140: =IFERROR(IF( ISBLANK(MP_5[[#This Row],[Päätelaite Mittapiste]]), "", IF( SUM( _xlfn._xlws.FILTER( (Hakemisto[Tyyppi]=MP_5[[#This Row],[Päätelaite Mittapiste]]) * (Hakemisto[Koko]=MP_5[[#This Row],[Koko Ød]]) * ((Hakemisto[Poisto]="x") + (Hakemisto[Poisto]=1)), (Hakemisto[Tyyppi]=MP_5[[#This Row],[Päätelaite Mittapiste]]) ) ) > 0, TRUE, FALSE ) ),"") ->  | R140: =IF((MP_5[[#This Row],[★]]=""),"",MP_5[[#This Row],[★]]) -> 
H141: =IFERROR( _xlfn.LET( _xlpm.paine, MP_5[[#This Row],[Paine Pa]], _xlpm.k, MP_5[[#This Row],[Kerroin k-arvo]], IF(OR(_xlpm.paine="", _xlpm.k=""), "", _xlpm.k*SQRT(_xlpm.paine)) ), "") ->  | I141: =IF( MP_5[[#This Row],[Lukitse avaus]]<>"", VALUE(MP_5[[#This Row],[Lukitse avaus]]), säätöasento( MP_5[[#This Row],[Päätelaite Mittapiste]], MP_5[[#This Row],[Koko Ød]], MP_5[[#This Row],[Tavoite l/s]], MP_5[[#This Row],[Paine Pa]], Hakemisto[] ) ) ->  | J141: =IFERROR( IF( OR( ISBLANK(MP_5[[#This Row],[Päätelaite Mittapiste]]), ISBLANK(MP_5[[#This Row],[Koko Ød]]), ISBLANK(MP_5[[#This Row],[Avaus mm]]), ISBLANK(MP_5[[#This Row],[Paine Pa]]) ), "", _xlfn.LET( _xlpm.comp, MP_5[[#This Row],[Suunniteltu l/s]]*IF( AND(MP_5[[#This Row],[-]]="P", MP_5[[#This Row],[+]]<>"T"), $H$145*MP_5[[#This Row],[Suunniteltu l/s]], IF( AND(MP_5[[#This Row],[+]]="T", MP_5[[#This Row],[-]]<>"P"), $G$145*MP_5[[#This Row],[Suunniteltu l/s]], IF(AND(MP_5[[#This Row],[-]]="P", MP_5[[#This Row],[+]]="T"), "T/P", "") ) )/SQRT(MP_5[[#This Row],[Paine Pa]]), _xlpm.filt, _xlfn._xlws.FILTER( Hakemisto[], (Hakemisto[Tyyppi]=MP_5[[#This Row],[Päätelaite Mittapiste]]) * (Hakemisto[Koko]=MP_5[[#This Row],[Koko Ød]]) * (IFERROR(--Hakemisto[asento], -1E+99) = IFERROR(--MP_5[[#This Row],[Avaus mm]], -1E+99)) ), _xlpm.colIndex, MATCH("k-arvo", Hakemisto[#Headers], 0), _xlpm.kValues, INDEX(_xlpm.filt, 0, _xlpm.colIndex), _xlpm.diffs, ABS(_xlpm.kValues - _xlpm.comp), _xlpm.minDiff, MIN(_xlpm.diffs), INDEX(_xlpm.kValues, MATCH(_xlpm.minDiff, _xlpm.diffs, 0)) ) ), "" ) ->  | K141: =_xlfn.LET(_xlpm.suunniteltu, INDIRECT("F"&ROW()), _xlpm.mitattu, INDIRECT("H"&ROW()), IF(OR(_xlpm.suunniteltu="", _xlpm.mitattu="", _xlpm.mitattu=0), " ", (_xlpm.mitattu/_xlpm.suunniteltu))) ->  | L141: =IFERROR(IF(AND(MP_5[[#This Row],[-]]="P", MP_5[[#This Row],[+]]<>"T"), $H$145*MP_5[[#This Row],[Suunniteltu l/s]]/100, IF(AND(MP_5[[#This Row],[+]]="T", MP_5[[#This Row],[-]]<>"P"), $G$145*MP_5[[#This Row],[Suunniteltu l/s]]/100, IF(AND(MP_5[[#This Row],[-]]="P", MP_5[[#This Row],[+]]="T"), "T/P", "") ) ),"") ->  | M141: =IFERROR(IF(MP_5[[#This Row],[tulo]]=TRUE,"T",""),"") ->  | N141: =IFERROR(IF(MP_5[[#This Row],[poisto]]=TRUE,"P",""),"") ->  | O141: =IFERROR(IF( ISBLANK(MP_5[[#This Row],[Päätelaite Mittapiste]]), "", IF( SUM( _xlfn._xlws.FILTER( (Hakemisto[Tyyppi]=MP_5[[#This Row],[Päätelaite Mittapiste]]) * (Hakemisto[Koko]=MP_5[[#This Row],[Koko Ød]]) * ((Hakemisto[Tulo]="x") + (Hakemisto[Tulo]=1)), (Hakemisto[Tyyppi]=MP_5[[#This Row],[Päätelaite Mittapiste]]) ) ) > 0, TRUE, FALSE ) ),"") ->  | P141: =IFERROR(IF( ISBLANK(MP_5[[#This Row],[Päätelaite Mittapiste]]), "", IF( SUM( _xlfn._xlws.FILTER( (Hakemisto[Tyyppi]=MP_5[[#This Row],[Päätelaite Mittapiste]]) * (Hakemisto[Koko]=MP_5[[#This Row],[Koko Ød]]) * ((Hakemisto[Poisto]="x") + (Hakemisto[Poisto]=1)), (Hakemisto[Tyyppi]=MP_5[[#This Row],[Päätelaite Mittapiste]]) ) ) > 0, TRUE, FALSE ) ),"") ->  | R141: =IF((MP_5[[#This Row],[★]]=""),"",MP_5[[#This Row],[★]]) -> 
H142: =IFERROR( _xlfn.LET( _xlpm.paine, MP_5[[#This Row],[Paine Pa]], _xlpm.k, MP_5[[#This Row],[Kerroin k-arvo]], IF(OR(_xlpm.paine="", _xlpm.k=""), "", _xlpm.k*SQRT(_xlpm.paine)) ), "") ->  | I142: =IF( MP_5[[#This Row],[Lukitse avaus]]<>"", VALUE(MP_5[[#This Row],[Lukitse avaus]]), säätöasento( MP_5[[#This Row],[Päätelaite Mittapiste]], MP_5[[#This Row],[Koko Ød]], MP_5[[#This Row],[Tavoite l/s]], MP_5[[#This Row],[Paine Pa]], Hakemisto[] ) ) ->  | J142: =IFERROR( IF( OR( ISBLANK(MP_5[[#This Row],[Päätelaite Mittapiste]]), ISBLANK(MP_5[[#This Row],[Koko Ød]]), ISBLANK(MP_5[[#This Row],[Avaus mm]]), ISBLANK(MP_5[[#This Row],[Paine Pa]]) ), "", _xlfn.LET( _xlpm.comp, MP_5[[#This Row],[Suunniteltu l/s]]*IF( AND(MP_5[[#This Row],[-]]="P", MP_5[[#This Row],[+]]<>"T"), $H$145*MP_5[[#This Row],[Suunniteltu l/s]], IF( AND(MP_5[[#This Row],[+]]="T", MP_5[[#This Row],[-]]<>"P"), $G$145*MP_5[[#This Row],[Suunniteltu l/s]], IF(AND(MP_5[[#This Row],[-]]="P", MP_5[[#This Row],[+]]="T"), "T/P", "") ) )/SQRT(MP_5[[#This Row],[Paine Pa]]), _xlpm.filt, _xlfn._xlws.FILTER( Hakemisto[], (Hakemisto[Tyyppi]=MP_5[[#This Row],[Päätelaite Mittapiste]]) * (Hakemisto[Koko]=MP_5[[#This Row],[Koko Ød]]) * (IFERROR(--Hakemisto[asento], -1E+99) = IFERROR(--MP_5[[#This Row],[Avaus mm]], -1E+99)) ), _xlpm.colIndex, MATCH("k-arvo", Hakemisto[#Headers], 0), _xlpm.kValues, INDEX(_xlpm.filt, 0, _xlpm.colIndex), _xlpm.diffs, ABS(_xlpm.kValues - _xlpm.comp), _xlpm.minDiff, MIN(_xlpm.diffs), INDEX(_xlpm.kValues, MATCH(_xlpm.minDiff, _xlpm.diffs, 0)) ) ), "" ) ->  | K142: =_xlfn.LET(_xlpm.suunniteltu, INDIRECT("F"&ROW()), _xlpm.mitattu, INDIRECT("H"&ROW()), IF(OR(_xlpm.suunniteltu="", _xlpm.mitattu="", _xlpm.mitattu=0), " ", (_xlpm.mitattu/_xlpm.suunniteltu))) ->  | L142: =IFERROR(IF(AND(MP_5[[#This Row],[-]]="P", MP_5[[#This Row],[+]]<>"T"), $H$145*MP_5[[#This Row],[Suunniteltu l/s]]/100, IF(AND(MP_5[[#This Row],[+]]="T", MP_5[[#This Row],[-]]<>"P"), $G$145*MP_5[[#This Row],[Suunniteltu l/s]]/100, IF(AND(MP_5[[#This Row],[-]]="P", MP_5[[#This Row],[+]]="T"), "T/P", "") ) ),"") ->  | M142: =IFERROR(IF(MP_5[[#This Row],[tulo]]=TRUE,"T",""),"") ->  | N142: =IFERROR(IF(MP_5[[#This Row],[poisto]]=TRUE,"P",""),"") ->  | O142: =IFERROR(IF( ISBLANK(MP_5[[#This Row],[Päätelaite Mittapiste]]), "", IF( SUM( _xlfn._xlws.FILTER( (Hakemisto[Tyyppi]=MP_5[[#This Row],[Päätelaite Mittapiste]]) * (Hakemisto[Koko]=MP_5[[#This Row],[Koko Ød]]) * ((Hakemisto[Tulo]="x") + (Hakemisto[Tulo]=1)), (Hakemisto[Tyyppi]=MP_5[[#This Row],[Päätelaite Mittapiste]]) ) ) > 0, TRUE, FALSE ) ),"") ->  | P142: =IFERROR(IF( ISBLANK(MP_5[[#This Row],[Päätelaite Mittapiste]]), "", IF( SUM( _xlfn._xlws.FILTER( (Hakemisto[Tyyppi]=MP_5[[#This Row],[Päätelaite Mittapiste]]) * (Hakemisto[Koko]=MP_5[[#This Row],[Koko Ød]]) * ((Hakemisto[Poisto]="x") + (Hakemisto[Poisto]=1)), (Hakemisto[Tyyppi]=MP_5[[#This Row],[Päätelaite Mittapiste]]) ) ) > 0, TRUE, FALSE ) ),"") ->  | R142: =IF((MP_5[[#This Row],[★]]=""),"",MP_5[[#This Row],[★]]) -> 
E143: =IFERROR( _xlfn.LET( _xlpm.mit, SUMIFS( MP_5[Mitattu l/s], MP_5[-], "P" ), _xlpm.suu, SUMIFS( MP_5[Suunniteltu l/s], MP_5[-], "P" ), _xlpm.diff, IF(_xlpm.suu<>0, (_xlpm.mit / _xlpm.suu), ""), _xlpm.r, ROUND(_xlpm.diff*100, 1), IF(_xlpm.r<>"", _xlpm.r & " (P%)", "") ), "" ) ->  | F143: =IFERROR( _xlfn.LET( _xlpm.s, SUMIFS( MP_5[Suunniteltu l/s], MP_5[-], "P" ), _xlpm.r, ROUND(_xlpm.s, 1), IF(_xlpm.r>0, _xlpm.r & " l/s (Poisto suunnit.)", "") ), "" ) ->  | H143: =IFERROR( _xlfn.LET( _xlpm.s, SUMIFS( MP_5[Mitattu l/s], MP_5[-], "P" ), _xlpm.r, ROUND(_xlpm.s, 1), IF(_xlpm.r>0, _xlpm.r & " l/s (Poisto mitattu)", "") ), "" ) -> 
B144: 5 | C144: ↑ | D144: =IFERROR( _xlfn.LET( _xlpm.s, SUMIFS( MP_5[Mitattu l/s], MP_5[+], "", MP_5[-], "" ) + SUMIFS( MP_5[Mitattu l/s], MP_5[+], "T", MP_5[-], "P" ), _xlpm.r, ROUND(_xlpm.s, 1), IF(_xlpm.r>0, "tarkista T/P " & _xlpm.r & " l/s", "") ), "" ) ->  | E144: =IFERROR( _xlfn.LET( _xlpm.mit, SUMIFS( MP_5[Mitattu l/s], MP_5[+], "T" ), _xlpm.suu, SUMIFS( MP_5[Suunniteltu l/s], MP_5[+], "T" ), _xlpm.diff, IF(_xlpm.suu<>0, (_xlpm.mit / _xlpm.suu), ""), _xlpm.r, ROUND(_xlpm.diff*100, 1), IF(_xlpm.r<>"", _xlpm.r & " (T%)", "") ), "" ) ->  | F144: =IFERROR( _xlfn.LET( _xlpm.s, SUMIFS( MP_5[Suunniteltu l/s], MP_5[+], "T" ), _xlpm.r, ROUND(_xlpm.s, 1), IF(_xlpm.r>0, _xlpm.r & " l/s (Tulo suunnit.)", "") ), "" ) ->  | H144: =IFERROR( _xlfn.LET( _xlpm.s, SUMIFS( MP_5[Mitattu l/s], MP_5[+], "T" ), _xlpm.r, ROUND(_xlpm.s, 1), IF(_xlpm.r>0, _xlpm.r & " l/s (Tulo mitattu)", "") ), "" ) -> 
F145: Tavoite tulo % -> | G145: =IFERROR(INDEX(MP_REF5[Seuranta %]*100, MATCH("RT", MP_REF5[Merkitse RP / RT], 0)),"100") -> 100 | H145: =IFERROR(INDEX(MP_REF5[Seuranta %]*100, MATCH("RP", MP_REF5[Merkitse RP / RT], 0)),"100") -> 100 | I145: <-Tavoite poisto %
A147: KRS № | B147: Huone Tila | C147: Päätelaite Mittapiste | D147: Koko Ød | E147: Paine Pa | F147: Suunniteltu l/s | G147: Merkitse RP / RT | H147: Mitattu l/s | I147: Avaus mm | J147: Kerroin k-arvo | K147: Seuranta % | L147: Tavoite l/s | M147: + | N147: - | O147: tulo | P147: poisto | Q147: ★
A148: 1 | B148: Kylpyhuone | H148: =IFERROR(IF(OR(ISBLANK(MP_REF6[[#This Row],[Paine Pa]]), ISBLANK(MP_REF6[[#This Row],[Kerroin k-arvo]])), "",MP_REF6[[#This Row],[Kerroin k-arvo]]*SQRT(MP_REF6[[#This Row],[Paine Pa]])),"") ->  | J148: =IF(MP_REF6[[#This Row],[Päätelaite Mittapiste]]="", "",_xlfn.XLOOKUP(1,(Hakemisto[Tyyppi]=MP_REF6[[#This Row],[Päätelaite Mittapiste]])*(Hakemisto[Koko]=MP_REF6[[#This Row],[Koko Ød]])*(Hakemisto[asento]=MP_REF6[[#This Row],[Avaus mm]]), Hakemisto[k-arvo], "ei löydy")) ->  | K148: =_xlfn.LET(_xlpm.suunniteltu, INDIRECT("F"&ROW()), _xlpm.mitattu, INDIRECT("H"&ROW()), IF(OR(_xlpm.suunniteltu="", _xlpm.mitattu="", _xlpm.mitattu=0), " ", (_xlpm.mitattu/_xlpm.suunniteltu))) ->  | L148: =IFERROR(IF(AND(MP_REF6[[#This Row],[-]]="P", MP_REF6[[#This Row],[+]]<>"T"), $H$174*MP_REF6[[#This Row],[Suunniteltu l/s]]/100, IF(AND(MP_REF6[[#This Row],[+]]="T", MP_REF6[[#This Row],[-]]<>"P"), $G$174*MP_REF6[[#This Row],[Suunniteltu l/s]]/100, IF(AND(MP_REF6[[#This Row],[-]]="P", MP_REF6[[#This Row],[+]]="T"), "T/P", "") ) ),"") ->  | M148: =IFERROR(IF(MP_REF6[[#This Row],[tulo]]=TRUE,"T",""),"") ->  | N148: =IFERROR(IF(MP_REF6[[#This Row],[poisto]]=TRUE,"P",""),"") ->  | O148: =IFERROR(IF( ISBLANK(MP_REF6[[#This Row],[Päätelaite Mittapiste]]), "", IF( SUM( _xlfn._xlws.FILTER( (Hakemisto[Tyyppi]=MP_REF6[[#This Row],[Päätelaite Mittapiste]]) * (Hakemisto[Koko]=MP_REF6[[#This Row],[Koko Ød]]) * ((Hakemisto[Tulo]="x") + (Hakemisto[Tulo]=1)), (Hakemisto[Tyyppi]=MP_REF6[[#This Row],[Päätelaite Mittapiste]]) ) ) > 0, TRUE, FALSE ) ),"") ->  | P148: =IFERROR(IF( ISBLANK(MP_REF6[[#This Row],[Päätelaite Mittapiste]]), "", IF( SUM( _xlfn._xlws.FILTER( (Hakemisto[Tyyppi]=MP_REF6[[#This Row],[Päätelaite Mittapiste]]) * (Hakemisto[Koko]=MP_REF6[[#This Row],[Koko Ød]]) * ((Hakemisto[Poisto]="x") + (Hakemisto[Poisto]=1)), (Hakemisto[Tyyppi]=MP_REF6[[#This Row],[Päätelaite Mittapiste]]) ) ) > 0, TRUE, FALSE ) ),"") -> 
A149: 1 | B149: KHH | H149: =IFERROR(IF(OR(ISBLANK(MP_REF6[[#This Row],[Paine Pa]]), ISBLANK(MP_REF6[[#This Row],[Kerroin k-arvo]])), "",MP_REF6[[#This Row],[Kerroin k-arvo]]*SQRT(MP_REF6[[#This Row],[Paine Pa]])),"") ->  | J149: =IF(MP_REF6[[#This Row],[Päätelaite Mittapiste]]="", "",_xlfn.XLOOKUP(1,(Hakemisto[Tyyppi]=MP_REF6[[#This Row],[Päätelaite Mittapiste]])*(Hakemisto[Koko]=MP_REF6[[#This Row],[Koko Ød]])*(Hakemisto[asento]=MP_REF6[[#This Row],[Avaus mm]]), Hakemisto[k-arvo], "ei löydy")) ->  | K149: =_xlfn.LET(_xlpm.suunniteltu, INDIRECT("F"&ROW()), _xlpm.mitattu, INDIRECT("H"&ROW()), IF(OR(_xlpm.suunniteltu="", _xlpm.mitattu="", _xlpm.mitattu=0), " ", (_xlpm.mitattu/_xlpm.suunniteltu))) ->  | L149: =IFERROR(IF(AND(MP_REF6[[#This Row],[-]]="P", MP_REF6[[#This Row],[+]]<>"T"), $H$174*MP_REF6[[#This Row],[Suunniteltu l/s]]/100, IF(AND(MP_REF6[[#This Row],[+]]="T", MP_REF6[[#This Row],[-]]<>"P"), $G$174*MP_REF6[[#This Row],[Suunniteltu l/s]]/100, IF(AND(MP_REF6[[#This Row],[-]]="P", MP_REF6[[#This Row],[+]]="T"), "T/P", "") ) ),"") ->  | M149: =IFERROR(IF(MP_REF6[[#This Row],[tulo]]=TRUE,"T",""),"") ->  | N149: =IFERROR(IF(MP_REF6[[#This Row],[poisto]]=TRUE,"P",""),"") ->  | O149: =IFERROR(IF( ISBLANK(MP_REF6[[#This Row],[Päätelaite Mittapiste]]), "", IF( SUM( _xlfn._xlws.FILTER( (Hakemisto[Tyyppi]=MP_REF6[[#This Row],[Päätelaite Mittapiste]]) * (Hakemisto[Koko]=MP_REF6[[#This Row],[Koko Ød]]) * ((Hakemisto[Tulo]="x") + (Hakemisto[Tulo]=1)), (Hakemisto[Tyyppi]=MP_REF6[[#This Row],[Päätelaite Mittapiste]]) ) ) > 0, TRUE, FALSE ) ),"") ->  | P149: =IFERROR(IF( ISBLANK(MP_REF6[[#This Row],[Päätelaite Mittapiste]]), "", IF( SUM( _xlfn._xlws.FILTER( (Hakemisto[Tyyppi]=MP_REF6[[#This Row],[Päätelaite Mittapiste]]) * (Hakemisto[Koko]=MP_REF6[[#This Row],[Koko Ød]]) * ((Hakemisto[Poisto]="x") + (Hakemisto[Poisto]=1)), (Hakemisto[Tyyppi]=MP_REF6[[#This Row],[Päätelaite Mittapiste]]) ) ) > 0, TRUE, FALSE ) ),"") -> 
A150: 1 | B150: Olohuone | H150: =IFERROR(IF(OR(ISBLANK(MP_REF6[[#This Row],[Paine Pa]]), ISBLANK(MP_REF6[[#This Row],[Kerroin k-arvo]])), "",MP_REF6[[#This Row],[Kerroin k-arvo]]*SQRT(MP_REF6[[#This Row],[Paine Pa]])),"") ->  | J150: =IF(MP_REF6[[#This Row],[Päätelaite Mittapiste]]="", "",_xlfn.XLOOKUP(1,(Hakemisto[Tyyppi]=MP_REF6[[#This Row],[Päätelaite Mittapiste]])*(Hakemisto[Koko]=MP_REF6[[#This Row],[Koko Ød]])*(Hakemisto[asento]=MP_REF6[[#This Row],[Avaus mm]]), Hakemisto[k-arvo], "ei löydy")) ->  | K150: =_xlfn.LET(_xlpm.suunniteltu, INDIRECT("F"&ROW()), _xlpm.mitattu, INDIRECT("H"&ROW()), IF(OR(_xlpm.suunniteltu="", _xlpm.mitattu="", _xlpm.mitattu=0), " ", (_xlpm.mitattu/_xlpm.suunniteltu))) ->  | L150: =IFERROR(IF(AND(MP_REF6[[#This Row],[-]]="P", MP_REF6[[#This Row],[+]]<>"T"), $H$174*MP_REF6[[#This Row],[Suunniteltu l/s]]/100, IF(AND(MP_REF6[[#This Row],[+]]="T", MP_REF6[[#This Row],[-]]<>"P"), $G$174*MP_REF6[[#This Row],[Suunniteltu l/s]]/100, IF(AND(MP_REF6[[#This Row],[-]]="P", MP_REF6[[#This Row],[+]]="T"), "T/P", "") ) ),"") ->  | M150: =IFERROR(IF(MP_REF6[[#This Row],[tulo]]=TRUE,"T",""),"") ->  | N150: =IFERROR(IF(MP_REF6[[#This Row],[poisto]]=TRUE,"P",""),"") ->  | O150: =IFERROR(IF( ISBLANK(MP_REF6[[#This Row],[Päätelaite Mittapiste]]), "", IF( SUM( _xlfn._xlws.FILTER( (Hakemisto[Tyyppi]=MP_REF6[[#This Row],[Päätelaite Mittapiste]]) * (Hakemisto[Koko]=MP_REF6[[#This Row],[Koko Ød]]) * ((Hakemisto[Tulo]="x") + (Hakemisto[Tulo]=1)), (Hakemisto[Tyyppi]=MP_REF6[[#This Row],[Päätelaite Mittapiste]]) ) ) > 0, TRUE, FALSE ) ),"") ->  | P150: =IFERROR(IF( ISBLANK(MP_REF6[[#This Row],[Päätelaite Mittapiste]]), "", IF( SUM( _xlfn._xlws.FILTER( (Hakemisto[Tyyppi]=MP_REF6[[#This Row],[Päätelaite Mittapiste]]) * (Hakemisto[Koko]=MP_REF6[[#This Row],[Koko Ød]]) * ((Hakemisto[Poisto]="x") + (Hakemisto[Poisto]=1)), (Hakemisto[Tyyppi]=MP_REF6[[#This Row],[Päätelaite Mittapiste]]) ) ) > 0, TRUE, FALSE ) ),"") -> 
A151: 1 | B151: Makuuhuone | H151: =IFERROR(IF(OR(ISBLANK(MP_REF6[[#This Row],[Paine Pa]]), ISBLANK(MP_REF6[[#This Row],[Kerroin k-arvo]])), "",MP_REF6[[#This Row],[Kerroin k-arvo]]*SQRT(MP_REF6[[#This Row],[Paine Pa]])),"") ->  | J151: =IF(MP_REF6[[#This Row],[Päätelaite Mittapiste]]="", "",_xlfn.XLOOKUP(1,(Hakemisto[Tyyppi]=MP_REF6[[#This Row],[Päätelaite Mittapiste]])*(Hakemisto[Koko]=MP_REF6[[#This Row],[Koko Ød]])*(Hakemisto[asento]=MP_REF6[[#This Row],[Avaus mm]]), Hakemisto[k-arvo], "ei löydy")) ->  | K151: =_xlfn.LET(_xlpm.suunniteltu, INDIRECT("F"&ROW()), _xlpm.mitattu, INDIRECT("H"&ROW()), IF(OR(_xlpm.suunniteltu="", _xlpm.mitattu="", _xlpm.mitattu=0), " ", (_xlpm.mitattu/_xlpm.suunniteltu))) ->  | L151: =IFERROR(IF(AND(MP_REF6[[#This Row],[-]]="P", MP_REF6[[#This Row],[+]]<>"T"), $H$174*MP_REF6[[#This Row],[Suunniteltu l/s]]/100, IF(AND(MP_REF6[[#This Row],[+]]="T", MP_REF6[[#This Row],[-]]<>"P"), $G$174*MP_REF6[[#This Row],[Suunniteltu l/s]]/100, IF(AND(MP_REF6[[#This Row],[-]]="P", MP_REF6[[#This Row],[+]]="T"), "T/P", "") ) ),"") ->  | M151: =IFERROR(IF(MP_REF6[[#This Row],[tulo]]=TRUE,"T",""),"") ->  | N151: =IFERROR(IF(MP_REF6[[#This Row],[poisto]]=TRUE,"P",""),"") ->  | O151: =IFERROR(IF( ISBLANK(MP_REF6[[#This Row],[Päätelaite Mittapiste]]), "", IF( SUM( _xlfn._xlws.FILTER( (Hakemisto[Tyyppi]=MP_REF6[[#This Row],[Päätelaite Mittapiste]]) * (Hakemisto[Koko]=MP_REF6[[#This Row],[Koko Ød]]) * ((Hakemisto[Tulo]="x") + (Hakemisto[Tulo]=1)), (Hakemisto[Tyyppi]=MP_REF6[[#This Row],[Päätelaite Mittapiste]]) ) ) > 0, TRUE, FALSE ) ),"") ->  | P151: =IFERROR(IF( ISBLANK(MP_REF6[[#This Row],[Päätelaite Mittapiste]]), "", IF( SUM( _xlfn._xlws.FILTER( (Hakemisto[Tyyppi]=MP_REF6[[#This Row],[Päätelaite Mittapiste]]) * (Hakemisto[Koko]=MP_REF6[[#This Row],[Koko Ød]]) * ((Hakemisto[Poisto]="x") + (Hakemisto[Poisto]=1)), (Hakemisto[Tyyppi]=MP_REF6[[#This Row],[Päätelaite Mittapiste]]) ) ) > 0, TRUE, FALSE ) ),"") -> 
B153: Minimipaine | C153: Täyttönäkymä | D153: Päätelaitteen minimipaine tarkistus laskuri | H153: Tulokset
B154: Asetus | C154: asetukset | D154: min paine | E154: l/s | F154: laite | G154: Koko | H154: k-arvo >/= | I154: avaus | J154: max ref. paine
B155: 10 | C155: Poisto | D155: 10 | E155: 15 | F155: KSO | G155: 125 | H155: =E155/SQRT(D155) -> 4.74 | I155: =säätöasento(F155,G155,E155,D155,Hakemisto[]) -> 10 | J155: =_xlfn.LET( _xlpm.karvo, IF( F155="", "", _xlfn.XLOOKUP( 1, (Hakemisto[Tyyppi]=F155)* (Hakemisto[Koko]=G155)* (Hakemisto[asento]=I155), Hakemisto[k-arvo], "ei löydy" ) ), IF( OR(_xlpm.karvo="", _xlpm.karvo="ei löydy"), "", (E155/_xlpm.karvo)^2 ) ) -> 14.1
B156: 10 | C156: Tulo | D156: 10 | E156: 10 | F156: KTS | G156: 100 / 180° muovi | H156: =E156/SQRT(D156) -> 3.16 | I156: =säätöasento(F156,G156,E156,D156,Hakemisto[]) -> 11 | J156: =_xlfn.LET( _xlpm.karvo, IF( F156="", "", _xlfn.XLOOKUP( 1, (Hakemisto[Tyyppi]=F156)* (Hakemisto[Koko]=G156)* (Hakemisto[asento]=I156), Hakemisto[k-arvo], "ei löydy" ) ), IF( OR(_xlpm.karvo="", _xlpm.karvo="ei löydy"), "", (E156/_xlpm.karvo)^2 ) ) -> 10.0
A159: Taulukko 6 | C159: Suhteellinen säätö tulo ja poisto | H159: Tulokset | J159: Muut tiedot | R159: Huomiot
A160: KRS № | B160: Huone Tila | C160: Päätelaite Mittapiste | D160: Koko Ød | E160: Paine Pa | F160: Suunniteltu l/s | G160: Lukitse avaus | H160: Mitattu l/s | I160: Avaus mm | J160: Kerroin k-arvo | K160: Seuranta % | L160: Tavoite l/s | M160: + | N160: - | O160: tulo | P160: poisto | Q160: ★ | R160: Huomio nro | S160: Näkyy huomio tulosteessa? | T160: Kuvaus
H161: =IFERROR( _xlfn.LET( _xlpm.paine, MP_6[[#This Row],[Paine Pa]], _xlpm.k, MP_6[[#This Row],[Kerroin k-arvo]], IF(OR(_xlpm.paine="", _xlpm.k=""), "", _xlpm.k*SQRT(_xlpm.paine)) ), "") ->  | I161: =IF( MP_6[[#This Row],[Lukitse avaus]]<>"", VALUE(MP_6[[#This Row],[Lukitse avaus]]), säätöasento( MP_6[[#This Row],[Päätelaite Mittapiste]], MP_6[[#This Row],[Koko Ød]], MP_6[[#This Row],[Tavoite l/s]], MP_6[[#This Row],[Paine Pa]], Hakemisto[] ) ) ->  | J161: =IFERROR( IF( OR( ISBLANK(MP_6[[#This Row],[Päätelaite Mittapiste]]), ISBLANK(MP_6[[#This Row],[Koko Ød]]), ISBLANK(MP_6[[#This Row],[Avaus mm]]), ISBLANK(MP_6[[#This Row],[Paine Pa]]) ), "", _xlfn.LET( _xlpm.comp, MP_6[[#This Row],[Suunniteltu l/s]]*IF( AND(MP_6[[#This Row],[-]]="P", MP_6[[#This Row],[+]]<>"T"), $H$174*MP_6[[#This Row],[Suunniteltu l/s]], IF( AND(MP_6[[#This Row],[+]]="T", MP_6[[#This Row],[-]]<>"P"), $G$174*MP_6[[#This Row],[Suunniteltu l/s]], IF(AND(MP_6[[#This Row],[-]]="P", MP_6[[#This Row],[+]]="T"), "T/P", "") ) )/SQRT(MP_6[[#This Row],[Paine Pa]]), _xlpm.filt, _xlfn._xlws.FILTER( Hakemisto[], (Hakemisto[Tyyppi]=MP_6[[#This Row],[Päätelaite Mittapiste]]) * (Hakemisto[Koko]=MP_6[[#This Row],[Koko Ød]]) * (IFERROR(--Hakemisto[asento], -1E+99) = IFERROR(--MP_6[[#This Row],[Avaus mm]], -1E+99)) ), _xlpm.colIndex, MATCH("k-arvo", Hakemisto[#Headers], 0), _xlpm.kValues, INDEX(_xlpm.filt, 0, _xlpm.colIndex), _xlpm.diffs, ABS(_xlpm.kValues - _xlpm.comp), _xlpm.minDiff, MIN(_xlpm.diffs), INDEX(_xlpm.kValues, MATCH(_xlpm.minDiff, _xlpm.diffs, 0)) ) ), "" ) ->  | K161: =_xlfn.LET(_xlpm.suunniteltu, INDIRECT("F"&ROW()), _xlpm.mitattu, INDIRECT("H"&ROW()), IF(OR(_xlpm.suunniteltu="", _xlpm.mitattu="", _xlpm.mitattu=0), " ", (_xlpm.mitattu/_xlpm.suunniteltu))) ->  | L161: =IFERROR(IF(AND(MP_6[[#This Row],[-]]="P", MP_6[[#This Row],[+]]<>"T"), $H$174*MP_6[[#This Row],[Suunniteltu l/s]]/100, IF(AND(MP_6[[#This Row],[+]]="T", MP_6[[#This Row],[-]]<>"P"), $G$174*MP_6[[#This Row],[Suunniteltu l/s]]/100, IF(AND(MP_6[[#This Row],[-]]="P", MP_6[[#This Row],[+]]="T"), "T/P", "") ) ),"") ->  | M161: =IFERROR(IF(MP_6[[#This Row],[tulo]]=TRUE,"T",""),"") ->  | N161: =IFERROR(IF(MP_6[[#This Row],[poisto]]=TRUE,"P",""),"") ->  | O161: =IFERROR(IF( ISBLANK(MP_6[[#This Row],[Päätelaite Mittapiste]]), "", IF( SUM( _xlfn._xlws.FILTER( (Hakemisto[Tyyppi]=MP_6[[#This Row],[Päätelaite Mittapiste]]) * (Hakemisto[Koko]=MP_6[[#This Row],[Koko Ød]]) * ((Hakemisto[Tulo]="x") + (Hakemisto[Tulo]=1)), (Hakemisto[Tyyppi]=MP_6[[#This Row],[Päätelaite Mittapiste]]) ) ) > 0, TRUE, FALSE ) ),"") ->  | P161: =IFERROR(IF( ISBLANK(MP_6[[#This Row],[Päätelaite Mittapiste]]), "", IF( SUM( _xlfn._xlws.FILTER( (Hakemisto[Tyyppi]=MP_6[[#This Row],[Päätelaite Mittapiste]]) * (Hakemisto[Koko]=MP_6[[#This Row],[Koko Ød]]) * ((Hakemisto[Poisto]="x") + (Hakemisto[Poisto]=1)), (Hakemisto[Tyyppi]=MP_6[[#This Row],[Päätelaite Mittapiste]]) ) ) > 0, TRUE, FALSE ) ),"") ->  | R161: =IF((MP_6[[#This Row],[★]]=""),"",MP_6[[#This Row],[★]]) -> 
H162: =IFERROR( _xlfn.LET( _xlpm.paine, MP_6[[#This Row],[Paine Pa]], _xlpm.k, MP_6[[#This Row],[Kerroin k-arvo]], IF(OR(_xlpm.paine="", _xlpm.k=""), "", _xlpm.k*SQRT(_xlpm.paine)) ), "") ->  | I162: =IF( MP_6[[#This Row],[Lukitse avaus]]<>"", VALUE(MP_6[[#This Row],[Lukitse avaus]]), säätöasento( MP_6[[#This Row],[Päätelaite Mittapiste]], MP_6[[#This Row],[Koko Ød]], MP_6[[#This Row],[Tavoite l/s]], MP_6[[#This Row],[Paine Pa]], Hakemisto[] ) ) ->  | J162: =IFERROR( IF( OR( ISBLANK(MP_6[[#This Row],[Päätelaite Mittapiste]]), ISBLANK(MP_6[[#This Row],[Koko Ød]]), ISBLANK(MP_6[[#This Row],[Avaus mm]]), ISBLANK(MP_6[[#This Row],[Paine Pa]]) ), "", _xlfn.LET( _xlpm.comp, MP_6[[#This Row],[Suunniteltu l/s]]*IF( AND(MP_6[[#This Row],[-]]="P", MP_6[[#This Row],[+]]<>"T"), $H$174*MP_6[[#This Row],[Suunniteltu l/s]], IF( AND(MP_6[[#This Row],[+]]="T", MP_6[[#This Row],[-]]<>"P"), $G$174*MP_6[[#This Row],[Suunniteltu l/s]], IF(AND(MP_6[[#This Row],[-]]="P", MP_6[[#This Row],[+]]="T"), "T/P", "") ) )/SQRT(MP_6[[#This Row],[Paine Pa]]), _xlpm.filt, _xlfn._xlws.FILTER( Hakemisto[], (Hakemisto[Tyyppi]=MP_6[[#This Row],[Päätelaite Mittapiste]]) * (Hakemisto[Koko]=MP_6[[#This Row],[Koko Ød]]) * (IFERROR(--Hakemisto[asento], -1E+99) = IFERROR(--MP_6[[#This Row],[Avaus mm]], -1E+99)) ), _xlpm.colIndex, MATCH("k-arvo", Hakemisto[#Headers], 0), _xlpm.kValues, INDEX(_xlpm.filt, 0, _xlpm.colIndex), _xlpm.diffs, ABS(_xlpm.kValues - _xlpm.comp), _xlpm.minDiff, MIN(_xlpm.diffs), INDEX(_xlpm.kValues, MATCH(_xlpm.minDiff, _xlpm.diffs, 0)) ) ), "" ) ->  | K162: =_xlfn.LET(_xlpm.suunniteltu, INDIRECT("F"&ROW()), _xlpm.mitattu, INDIRECT("H"&ROW()), IF(OR(_xlpm.suunniteltu="", _xlpm.mitattu="", _xlpm.mitattu=0), " ", (_xlpm.mitattu/_xlpm.suunniteltu))) ->  | L162: =IFERROR(IF(AND(MP_6[[#This Row],[-]]="P", MP_6[[#This Row],[+]]<>"T"), $H$174*MP_6[[#This Row],[Suunniteltu l/s]]/100, IF(AND(MP_6[[#This Row],[+]]="T", MP_6[[#This Row],[-]]<>"P"), $G$174*MP_6[[#This Row],[Suunniteltu l/s]]/100, IF(AND(MP_6[[#This Row],[-]]="P", MP_6[[#This Row],[+]]="T"), "T/P", "") ) ),"") ->  | M162: =IFERROR(IF(MP_6[[#This Row],[tulo]]=TRUE,"T",""),"") ->  | N162: =IFERROR(IF(MP_6[[#This Row],[poisto]]=TRUE,"P",""),"") ->  | O162: =IFERROR(IF( ISBLANK(MP_6[[#This Row],[Päätelaite Mittapiste]]), "", IF( SUM( _xlfn._xlws.FILTER( (Hakemisto[Tyyppi]=MP_6[[#This Row],[Päätelaite Mittapiste]]) * (Hakemisto[Koko]=MP_6[[#This Row],[Koko Ød]]) * ((Hakemisto[Tulo]="x") + (Hakemisto[Tulo]=1)), (Hakemisto[Tyyppi]=MP_6[[#This Row],[Päätelaite Mittapiste]]) ) ) > 0, TRUE, FALSE ) ),"") ->  | P162: =IFERROR(IF( ISBLANK(MP_6[[#This Row],[Päätelaite Mittapiste]]), "", IF( SUM( _xlfn._xlws.FILTER( (Hakemisto[Tyyppi]=MP_6[[#This Row],[Päätelaite Mittapiste]]) * (Hakemisto[Koko]=MP_6[[#This Row],[Koko Ød]]) * ((Hakemisto[Poisto]="x") + (Hakemisto[Poisto]=1)), (Hakemisto[Tyyppi]=MP_6[[#This Row],[Päätelaite Mittapiste]]) ) ) > 0, TRUE, FALSE ) ),"") ->  | R162: =IF((MP_6[[#This Row],[★]]=""),"",MP_6[[#This Row],[★]]) -> 
H163: =IFERROR( _xlfn.LET( _xlpm.paine, MP_6[[#This Row],[Paine Pa]], _xlpm.k, MP_6[[#This Row],[Kerroin k-arvo]], IF(OR(_xlpm.paine="", _xlpm.k=""), "", _xlpm.k*SQRT(_xlpm.paine)) ), "") ->  | I163: =IF( MP_6[[#This Row],[Lukitse avaus]]<>"", VALUE(MP_6[[#This Row],[Lukitse avaus]]), säätöasento( MP_6[[#This Row],[Päätelaite Mittapiste]], MP_6[[#This Row],[Koko Ød]], MP_6[[#This Row],[Tavoite l/s]], MP_6[[#This Row],[Paine Pa]], Hakemisto[] ) ) ->  | J163: =IFERROR( IF( OR( ISBLANK(MP_6[[#This Row],[Päätelaite Mittapiste]]), ISBLANK(MP_6[[#This Row],[Koko Ød]]), ISBLANK(MP_6[[#This Row],[Avaus mm]]), ISBLANK(MP_6[[#This Row],[Paine Pa]]) ), "", _xlfn.LET( _xlpm.comp, MP_6[[#This Row],[Suunniteltu l/s]]*IF( AND(MP_6[[#This Row],[-]]="P", MP_6[[#This Row],[+]]<>"T"), $H$174*MP_6[[#This Row],[Suunniteltu l/s]], IF( AND(MP_6[[#This Row],[+]]="T", MP_6[[#This Row],[-]]<>"P"), $G$174*MP_6[[#This Row],[Suunniteltu l/s]], IF(AND(MP_6[[#This Row],[-]]="P", MP_6[[#This Row],[+]]="T"), "T/P", "") ) )/SQRT(MP_6[[#This Row],[Paine Pa]]), _xlpm.filt, _xlfn._xlws.FILTER( Hakemisto[], (Hakemisto[Tyyppi]=MP_6[[#This Row],[Päätelaite Mittapiste]]) * (Hakemisto[Koko]=MP_6[[#This Row],[Koko Ød]]) * (IFERROR(--Hakemisto[asento], -1E+99) = IFERROR(--MP_6[[#This Row],[Avaus mm]], -1E+99)) ), _xlpm.colIndex, MATCH("k-arvo", Hakemisto[#Headers], 0), _xlpm.kValues, INDEX(_xlpm.filt, 0, _xlpm.colIndex), _xlpm.diffs, ABS(_xlpm.kValues - _xlpm.comp), _xlpm.minDiff, MIN(_xlpm.diffs), INDEX(_xlpm.kValues, MATCH(_xlpm.minDiff, _xlpm.diffs, 0)) ) ), "" ) ->  | K163: =_xlfn.LET(_xlpm.suunniteltu, INDIRECT("F"&ROW()), _xlpm.mitattu, INDIRECT("H"&ROW()), IF(OR(_xlpm.suunniteltu="", _xlpm.mitattu="", _xlpm.mitattu=0), " ", (_xlpm.mitattu/_xlpm.suunniteltu))) ->  | L163: =IFERROR(IF(AND(MP_6[[#This Row],[-]]="P", MP_6[[#This Row],[+]]<>"T"), $H$174*MP_6[[#This Row],[Suunniteltu l/s]]/100, IF(AND(MP_6[[#This Row],[+]]="T", MP_6[[#This Row],[-]]<>"P"), $G$174*MP_6[[#This Row],[Suunniteltu l/s]]/100, IF(AND(MP_6[[#This Row],[-]]="P", MP_6[[#This Row],[+]]="T"), "T/P", "") ) ),"") ->  | M163: =IFERROR(IF(MP_6[[#This Row],[tulo]]=TRUE,"T",""),"") ->  | N163: =IFERROR(IF(MP_6[[#This Row],[poisto]]=TRUE,"P",""),"") ->  | O163: =IFERROR(IF( ISBLANK(MP_6[[#This Row],[Päätelaite Mittapiste]]), "", IF( SUM( _xlfn._xlws.FILTER( (Hakemisto[Tyyppi]=MP_6[[#This Row],[Päätelaite Mittapiste]]) * (Hakemisto[Koko]=MP_6[[#This Row],[Koko Ød]]) * ((Hakemisto[Tulo]="x") + (Hakemisto[Tulo]=1)), (Hakemisto[Tyyppi]=MP_6[[#This Row],[Päätelaite Mittapiste]]) ) ) > 0, TRUE, FALSE ) ),"") ->  | P163: =IFERROR(IF( ISBLANK(MP_6[[#This Row],[Päätelaite Mittapiste]]), "", IF( SUM( _xlfn._xlws.FILTER( (Hakemisto[Tyyppi]=MP_6[[#This Row],[Päätelaite Mittapiste]]) * (Hakemisto[Koko]=MP_6[[#This Row],[Koko Ød]]) * ((Hakemisto[Poisto]="x") + (Hakemisto[Poisto]=1)), (Hakemisto[Tyyppi]=MP_6[[#This Row],[Päätelaite Mittapiste]]) ) ) > 0, TRUE, FALSE ) ),"") ->  | R163: =IF((MP_6[[#This Row],[★]]=""),"",MP_6[[#This Row],[★]]) -> 
H164: =IFERROR( _xlfn.LET( _xlpm.paine, MP_6[[#This Row],[Paine Pa]], _xlpm.k, MP_6[[#This Row],[Kerroin k-arvo]], IF(OR(_xlpm.paine="", _xlpm.k=""), "", _xlpm.k*SQRT(_xlpm.paine)) ), "") ->  | I164: =IF( MP_6[[#This Row],[Lukitse avaus]]<>"", VALUE(MP_6[[#This Row],[Lukitse avaus]]), säätöasento( MP_6[[#This Row],[Päätelaite Mittapiste]], MP_6[[#This Row],[Koko Ød]], MP_6[[#This Row],[Tavoite l/s]], MP_6[[#This Row],[Paine Pa]], Hakemisto[] ) ) ->  | J164: =IFERROR( IF( OR( ISBLANK(MP_6[[#This Row],[Päätelaite Mittapiste]]), ISBLANK(MP_6[[#This Row],[Koko Ød]]), ISBLANK(MP_6[[#This Row],[Avaus mm]]), ISBLANK(MP_6[[#This Row],[Paine Pa]]) ), "", _xlfn.LET( _xlpm.comp, MP_6[[#This Row],[Suunniteltu l/s]]*IF( AND(MP_6[[#This Row],[-]]="P", MP_6[[#This Row],[+]]<>"T"), $H$174*MP_6[[#This Row],[Suunniteltu l/s]], IF( AND(MP_6[[#This Row],[+]]="T", MP_6[[#This Row],[-]]<>"P"), $G$174*MP_6[[#This Row],[Suunniteltu l/s]], IF(AND(MP_6[[#This Row],[-]]="P", MP_6[[#This Row],[+]]="T"), "T/P", "") ) )/SQRT(MP_6[[#This Row],[Paine Pa]]), _xlpm.filt, _xlfn._xlws.FILTER( Hakemisto[], (Hakemisto[Tyyppi]=MP_6[[#This Row],[Päätelaite Mittapiste]]) * (Hakemisto[Koko]=MP_6[[#This Row],[Koko Ød]]) * (IFERROR(--Hakemisto[asento], -1E+99) = IFERROR(--MP_6[[#This Row],[Avaus mm]], -1E+99)) ), _xlpm.colIndex, MATCH("k-arvo", Hakemisto[#Headers], 0), _xlpm.kValues, INDEX(_xlpm.filt, 0, _xlpm.colIndex), _xlpm.diffs, ABS(_xlpm.kValues - _xlpm.comp), _xlpm.minDiff, MIN(_xlpm.diffs), INDEX(_xlpm.kValues, MATCH(_xlpm.minDiff, _xlpm.diffs, 0)) ) ), "" ) ->  | K164: =_xlfn.LET(_xlpm.suunniteltu, INDIRECT("F"&ROW()), _xlpm.mitattu, INDIRECT("H"&ROW()), IF(OR(_xlpm.suunniteltu="", _xlpm.mitattu="", _xlpm.mitattu=0), " ", (_xlpm.mitattu/_xlpm.suunniteltu))) ->  | L164: =IFERROR(IF(AND(MP_6[[#This Row],[-]]="P", MP_6[[#This Row],[+]]<>"T"), $H$174*MP_6[[#This Row],[Suunniteltu l/s]]/100, IF(AND(MP_6[[#This Row],[+]]="T", MP_6[[#This Row],[-]]<>"P"), $G$174*MP_6[[#This Row],[Suunniteltu l/s]]/100, IF(AND(MP_6[[#This Row],[-]]="P", MP_6[[#This Row],[+]]="T"), "T/P", "") ) ),"") ->  | M164: =IFERROR(IF(MP_6[[#This Row],[tulo]]=TRUE,"T",""),"") ->  | N164: =IFERROR(IF(MP_6[[#This Row],[poisto]]=TRUE,"P",""),"") ->  | O164: =IFERROR(IF( ISBLANK(MP_6[[#This Row],[Päätelaite Mittapiste]]), "", IF( SUM( _xlfn._xlws.FILTER( (Hakemisto[Tyyppi]=MP_6[[#This Row],[Päätelaite Mittapiste]]) * (Hakemisto[Koko]=MP_6[[#This Row],[Koko Ød]]) * ((Hakemisto[Tulo]="x") + (Hakemisto[Tulo]=1)), (Hakemisto[Tyyppi]=MP_6[[#This Row],[Päätelaite Mittapiste]]) ) ) > 0, TRUE, FALSE ) ),"") ->  | P164: =IFERROR(IF( ISBLANK(MP_6[[#This Row],[Päätelaite Mittapiste]]), "", IF( SUM( _xlfn._xlws.FILTER( (Hakemisto[Tyyppi]=MP_6[[#This Row],[Päätelaite Mittapiste]]) * (Hakemisto[Koko]=MP_6[[#This Row],[Koko Ød]]) * ((Hakemisto[Poisto]="x") + (Hakemisto[Poisto]=1)), (Hakemisto[Tyyppi]=MP_6[[#This Row],[Päätelaite Mittapiste]]) ) ) > 0, TRUE, FALSE ) ),"") ->  | R164: =IF((MP_6[[#This Row],[★]]=""),"",MP_6[[#This Row],[★]]) -> 
H165: =IFERROR( _xlfn.LET( _xlpm.paine, MP_6[[#This Row],[Paine Pa]], _xlpm.k, MP_6[[#This Row],[Kerroin k-arvo]], IF(OR(_xlpm.paine="", _xlpm.k=""), "", _xlpm.k*SQRT(_xlpm.paine)) ), "") ->  | I165: =IF( MP_6[[#This Row],[Lukitse avaus]]<>"", VALUE(MP_6[[#This Row],[Lukitse avaus]]), säätöasento( MP_6[[#This Row],[Päätelaite Mittapiste]], MP_6[[#This Row],[Koko Ød]], MP_6[[#This Row],[Tavoite l/s]], MP_6[[#This Row],[Paine Pa]], Hakemisto[] ) ) ->  | J165: =IFERROR( IF( OR( ISBLANK(MP_6[[#This Row],[Päätelaite Mittapiste]]), ISBLANK(MP_6[[#This Row],[Koko Ød]]), ISBLANK(MP_6[[#This Row],[Avaus mm]]), ISBLANK(MP_6[[#This Row],[Paine Pa]]) ), "", _xlfn.LET( _xlpm.comp, MP_6[[#This Row],[Suunniteltu l/s]]*IF( AND(MP_6[[#This Row],[-]]="P", MP_6[[#This Row],[+]]<>"T"), $H$174*MP_6[[#This Row],[Suunniteltu l/s]], IF( AND(MP_6[[#This Row],[+]]="T", MP_6[[#This Row],[-]]<>"P"), $G$174*MP_6[[#This Row],[Suunniteltu l/s]], IF(AND(MP_6[[#This Row],[-]]="P", MP_6[[#This Row],[+]]="T"), "T/P", "") ) )/SQRT(MP_6[[#This Row],[Paine Pa]]), _xlpm.filt, _xlfn._xlws.FILTER( Hakemisto[], (Hakemisto[Tyyppi]=MP_6[[#This Row],[Päätelaite Mittapiste]]) * (Hakemisto[Koko]=MP_6[[#This Row],[Koko Ød]]) * (IFERROR(--Hakemisto[asento], -1E+99) = IFERROR(--MP_6[[#This Row],[Avaus mm]], -1E+99)) ), _xlpm.colIndex, MATCH("k-arvo", Hakemisto[#Headers], 0), _xlpm.kValues, INDEX(_xlpm.filt, 0, _xlpm.colIndex), _xlpm.diffs, ABS(_xlpm.kValues - _xlpm.comp), _xlpm.minDiff, MIN(_xlpm.diffs), INDEX(_xlpm.kValues, MATCH(_xlpm.minDiff, _xlpm.diffs, 0)) ) ), "" ) ->  | K165: =_xlfn.LET(_xlpm.suunniteltu, INDIRECT("F"&ROW()), _xlpm.mitattu, INDIRECT("H"&ROW()), IF(OR(_xlpm.suunniteltu="", _xlpm.mitattu="", _xlpm.mitattu=0), " ", (_xlpm.mitattu/_xlpm.suunniteltu))) ->  | L165: =IFERROR(IF(AND(MP_6[[#This Row],[-]]="P", MP_6[[#This Row],[+]]<>"T"), $H$174*MP_6[[#This Row],[Suunniteltu l/s]]/100, IF(AND(MP_6[[#This Row],[+]]="T", MP_6[[#This Row],[-]]<>"P"), $G$174*MP_6[[#This Row],[Suunniteltu l/s]]/100, IF(AND(MP_6[[#This Row],[-]]="P", MP_6[[#This Row],[+]]="T"), "T/P", "") ) ),"") ->  | M165: =IFERROR(IF(MP_6[[#This Row],[tulo]]=TRUE,"T",""),"") ->  | N165: =IFERROR(IF(MP_6[[#This Row],[poisto]]=TRUE,"P",""),"") ->  | O165: =IFERROR(IF( ISBLANK(MP_6[[#This Row],[Päätelaite Mittapiste]]), "", IF( SUM( _xlfn._xlws.FILTER( (Hakemisto[Tyyppi]=MP_6[[#This Row],[Päätelaite Mittapiste]]) * (Hakemisto[Koko]=MP_6[[#This Row],[Koko Ød]]) * ((Hakemisto[Tulo]="x") + (Hakemisto[Tulo]=1)), (Hakemisto[Tyyppi]=MP_6[[#This Row],[Päätelaite Mittapiste]]) ) ) > 0, TRUE, FALSE ) ),"") ->  | P165: =IFERROR(IF( ISBLANK(MP_6[[#This Row],[Päätelaite Mittapiste]]), "", IF( SUM( _xlfn._xlws.FILTER( (Hakemisto[Tyyppi]=MP_6[[#This Row],[Päätelaite Mittapiste]]) * (Hakemisto[Koko]=MP_6[[#This Row],[Koko Ød]]) * ((Hakemisto[Poisto]="x") + (Hakemisto[Poisto]=1)), (Hakemisto[Tyyppi]=MP_6[[#This Row],[Päätelaite Mittapiste]]) ) ) > 0, TRUE, FALSE ) ),"") ->  | R165: =IF((MP_6[[#This Row],[★]]=""),"",MP_6[[#This Row],[★]]) -> 
H166: =IFERROR( _xlfn.LET( _xlpm.paine, MP_6[[#This Row],[Paine Pa]], _xlpm.k, MP_6[[#This Row],[Kerroin k-arvo]], IF(OR(_xlpm.paine="", _xlpm.k=""), "", _xlpm.k*SQRT(_xlpm.paine)) ), "") ->  | I166: =IF( MP_6[[#This Row],[Lukitse avaus]]<>"", VALUE(MP_6[[#This Row],[Lukitse avaus]]), säätöasento( MP_6[[#This Row],[Päätelaite Mittapiste]], MP_6[[#This Row],[Koko Ød]], MP_6[[#This Row],[Tavoite l/s]], MP_6[[#This Row],[Paine Pa]], Hakemisto[] ) ) ->  | J166: =IFERROR( IF( OR( ISBLANK(MP_6[[#This Row],[Päätelaite Mittapiste]]), ISBLANK(MP_6[[#This Row],[Koko Ød]]), ISBLANK(MP_6[[#This Row],[Avaus mm]]), ISBLANK(MP_6[[#This Row],[Paine Pa]]) ), "", _xlfn.LET( _xlpm.comp, MP_6[[#This Row],[Suunniteltu l/s]]*IF( AND(MP_6[[#This Row],[-]]="P", MP_6[[#This Row],[+]]<>"T"), $H$174*MP_6[[#This Row],[Suunniteltu l/s]], IF( AND(MP_6[[#This Row],[+]]="T", MP_6[[#This Row],[-]]<>"P"), $G$174*MP_6[[#This Row],[Suunniteltu l/s]], IF(AND(MP_6[[#This Row],[-]]="P", MP_6[[#This Row],[+]]="T"), "T/P", "") ) )/SQRT(MP_6[[#This Row],[Paine Pa]]), _xlpm.filt, _xlfn._xlws.FILTER( Hakemisto[], (Hakemisto[Tyyppi]=MP_6[[#This Row],[Päätelaite Mittapiste]]) * (Hakemisto[Koko]=MP_6[[#This Row],[Koko Ød]]) * (IFERROR(--Hakemisto[asento], -1E+99) = IFERROR(--MP_6[[#This Row],[Avaus mm]], -1E+99)) ), _xlpm.colIndex, MATCH("k-arvo", Hakemisto[#Headers], 0), _xlpm.kValues, INDEX(_xlpm.filt, 0, _xlpm.colIndex), _xlpm.diffs, ABS(_xlpm.kValues - _xlpm.comp), _xlpm.minDiff, MIN(_xlpm.diffs), INDEX(_xlpm.kValues, MATCH(_xlpm.minDiff, _xlpm.diffs, 0)) ) ), "" ) ->  | K166: =_xlfn.LET(_xlpm.suunniteltu, INDIRECT("F"&ROW()), _xlpm.mitattu, INDIRECT("H"&ROW()), IF(OR(_xlpm.suunniteltu="", _xlpm.mitattu="", _xlpm.mitattu=0), " ", (_xlpm.mitattu/_xlpm.suunniteltu))) ->  | L166: =IFERROR(IF(AND(MP_6[[#This Row],[-]]="P", MP_6[[#This Row],[+]]<>"T"), $H$174*MP_6[[#This Row],[Suunniteltu l/s]]/100, IF(AND(MP_6[[#This Row],[+]]="T", MP_6[[#This Row],[-]]<>"P"), $G$174*MP_6[[#This Row],[Suunniteltu l/s]]/100, IF(AND(MP_6[[#This Row],[-]]="P", MP_6[[#This Row],[+]]="T"), "T/P", "") ) ),"") ->  | M166: =IFERROR(IF(MP_6[[#This Row],[tulo]]=TRUE,"T",""),"") ->  | N166: =IFERROR(IF(MP_6[[#This Row],[poisto]]=TRUE,"P",""),"") ->  | O166: =IFERROR(IF( ISBLANK(MP_6[[#This Row],[Päätelaite Mittapiste]]), "", IF( SUM( _xlfn._xlws.FILTER( (Hakemisto[Tyyppi]=MP_6[[#This Row],[Päätelaite Mittapiste]]) * (Hakemisto[Koko]=MP_6[[#This Row],[Koko Ød]]) * ((Hakemisto[Tulo]="x") + (Hakemisto[Tulo]=1)), (Hakemisto[Tyyppi]=MP_6[[#This Row],[Päätelaite Mittapiste]]) ) ) > 0, TRUE, FALSE ) ),"") ->  | P166: =IFERROR(IF( ISBLANK(MP_6[[#This Row],[Päätelaite Mittapiste]]), "", IF( SUM( _xlfn._xlws.FILTER( (Hakemisto[Tyyppi]=MP_6[[#This Row],[Päätelaite Mittapiste]]) * (Hakemisto[Koko]=MP_6[[#This Row],[Koko Ød]]) * ((Hakemisto[Poisto]="x") + (Hakemisto[Poisto]=1)), (Hakemisto[Tyyppi]=MP_6[[#This Row],[Päätelaite Mittapiste]]) ) ) > 0, TRUE, FALSE ) ),"") ->  | R166: =IF((MP_6[[#This Row],[★]]=""),"",MP_6[[#This Row],[★]]) -> 
H167: =IFERROR( _xlfn.LET( _xlpm.paine, MP_6[[#This Row],[Paine Pa]], _xlpm.k, MP_6[[#This Row],[Kerroin k-arvo]], IF(OR(_xlpm.paine="", _xlpm.k=""), "", _xlpm.k*SQRT(_xlpm.paine)) ), "") ->  | I167: =IF( MP_6[[#This Row],[Lukitse avaus]]<>"", VALUE(MP_6[[#This Row],[Lukitse avaus]]), säätöasento( MP_6[[#This Row],[Päätelaite Mittapiste]], MP_6[[#This Row],[Koko Ød]], MP_6[[#This Row],[Tavoite l/s]], MP_6[[#This Row],[Paine Pa]], Hakemisto[] ) ) ->  | J167: =IFERROR( IF( OR( ISBLANK(MP_6[[#This Row],[Päätelaite Mittapiste]]), ISBLANK(MP_6[[#This Row],[Koko Ød]]), ISBLANK(MP_6[[#This Row],[Avaus mm]]), ISBLANK(MP_6[[#This Row],[Paine Pa]]) ), "", _xlfn.LET( _xlpm.comp, MP_6[[#This Row],[Suunniteltu l/s]]*IF( AND(MP_6[[#This Row],[-]]="P", MP_6[[#This Row],[+]]<>"T"), $H$174*MP_6[[#This Row],[Suunniteltu l/s]], IF( AND(MP_6[[#This Row],[+]]="T", MP_6[[#This Row],[-]]<>"P"), $G$174*MP_6[[#This Row],[Suunniteltu l/s]], IF(AND(MP_6[[#This Row],[-]]="P", MP_6[[#This Row],[+]]="T"), "T/P", "") ) )/SQRT(MP_6[[#This Row],[Paine Pa]]), _xlpm.filt, _xlfn._xlws.FILTER( Hakemisto[], (Hakemisto[Tyyppi]=MP_6[[#This Row],[Päätelaite Mittapiste]]) * (Hakemisto[Koko]=MP_6[[#This Row],[Koko Ød]]) * (IFERROR(--Hakemisto[asento], -1E+99) = IFERROR(--MP_6[[#This Row],[Avaus mm]], -1E+99)) ), _xlpm.colIndex, MATCH("k-arvo", Hakemisto[#Headers], 0), _xlpm.kValues, INDEX(_xlpm.filt, 0, _xlpm.colIndex), _xlpm.diffs, ABS(_xlpm.kValues - _xlpm.comp), _xlpm.minDiff, MIN(_xlpm.diffs), INDEX(_xlpm.kValues, MATCH(_xlpm.minDiff, _xlpm.diffs, 0)) ) ), "" ) ->  | K167: =_xlfn.LET(_xlpm.suunniteltu, INDIRECT("F"&ROW()), _xlpm.mitattu, INDIRECT("H"&ROW()), IF(OR(_xlpm.suunniteltu="", _xlpm.mitattu="", _xlpm.mitattu=0), " ", (_xlpm.mitattu/_xlpm.suunniteltu))) ->  | L167: =IFERROR(IF(AND(MP_6[[#This Row],[-]]="P", MP_6[[#This Row],[+]]<>"T"), $H$174*MP_6[[#This Row],[Suunniteltu l/s]]/100, IF(AND(MP_6[[#This Row],[+]]="T", MP_6[[#This Row],[-]]<>"P"), $G$174*MP_6[[#This Row],[Suunniteltu l/s]]/100, IF(AND(MP_6[[#This Row],[-]]="P", MP_6[[#This Row],[+]]="T"), "T/P", "") ) ),"") ->  | M167: =IFERROR(IF(MP_6[[#This Row],[tulo]]=TRUE,"T",""),"") ->  | N167: =IFERROR(IF(MP_6[[#This Row],[poisto]]=TRUE,"P",""),"") ->  | O167: =IFERROR(IF( ISBLANK(MP_6[[#This Row],[Päätelaite Mittapiste]]), "", IF( SUM( _xlfn._xlws.FILTER( (Hakemisto[Tyyppi]=MP_6[[#This Row],[Päätelaite Mittapiste]]) * (Hakemisto[Koko]=MP_6[[#This Row],[Koko Ød]]) * ((Hakemisto[Tulo]="x") + (Hakemisto[Tulo]=1)), (Hakemisto[Tyyppi]=MP_6[[#This Row],[Päätelaite Mittapiste]]) ) ) > 0, TRUE, FALSE ) ),"") ->  | P167: =IFERROR(IF( ISBLANK(MP_6[[#This Row],[Päätelaite Mittapiste]]), "", IF( SUM( _xlfn._xlws.FILTER( (Hakemisto[Tyyppi]=MP_6[[#This Row],[Päätelaite Mittapiste]]) * (Hakemisto[Koko]=MP_6[[#This Row],[Koko Ød]]) * ((Hakemisto[Poisto]="x") + (Hakemisto[Poisto]=1)), (Hakemisto[Tyyppi]=MP_6[[#This Row],[Päätelaite Mittapiste]]) ) ) > 0, TRUE, FALSE ) ),"") ->  | R167: =IF((MP_6[[#This Row],[★]]=""),"",MP_6[[#This Row],[★]]) -> 
H168: =IFERROR( _xlfn.LET( _xlpm.paine, MP_6[[#This Row],[Paine Pa]], _xlpm.k, MP_6[[#This Row],[Kerroin k-arvo]], IF(OR(_xlpm.paine="", _xlpm.k=""), "", _xlpm.k*SQRT(_xlpm.paine)) ), "") ->  | I168: =IF( MP_6[[#This Row],[Lukitse avaus]]<>"", VALUE(MP_6[[#This Row],[Lukitse avaus]]), säätöasento( MP_6[[#This Row],[Päätelaite Mittapiste]], MP_6[[#This Row],[Koko Ød]], MP_6[[#This Row],[Tavoite l/s]], MP_6[[#This Row],[Paine Pa]], Hakemisto[] ) ) ->  | J168: =IFERROR( IF( OR( ISBLANK(MP_6[[#This Row],[Päätelaite Mittapiste]]), ISBLANK(MP_6[[#This Row],[Koko Ød]]), ISBLANK(MP_6[[#This Row],[Avaus mm]]), ISBLANK(MP_6[[#This Row],[Paine Pa]]) ), "", _xlfn.LET( _xlpm.comp, MP_6[[#This Row],[Suunniteltu l/s]]*IF( AND(MP_6[[#This Row],[-]]="P", MP_6[[#This Row],[+]]<>"T"), $H$174*MP_6[[#This Row],[Suunniteltu l/s]], IF( AND(MP_6[[#This Row],[+]]="T", MP_6[[#This Row],[-]]<>"P"), $G$174*MP_6[[#This Row],[Suunniteltu l/s]], IF(AND(MP_6[[#This Row],[-]]="P", MP_6[[#This Row],[+]]="T"), "T/P", "") ) )/SQRT(MP_6[[#This Row],[Paine Pa]]), _xlpm.filt, _xlfn._xlws.FILTER( Hakemisto[], (Hakemisto[Tyyppi]=MP_6[[#This Row],[Päätelaite Mittapiste]]) * (Hakemisto[Koko]=MP_6[[#This Row],[Koko Ød]]) * (IFERROR(--Hakemisto[asento], -1E+99) = IFERROR(--MP_6[[#This Row],[Avaus mm]], -1E+99)) ), _xlpm.colIndex, MATCH("k-arvo", Hakemisto[#Headers], 0), _xlpm.kValues, INDEX(_xlpm.filt, 0, _xlpm.colIndex), _xlpm.diffs, ABS(_xlpm.kValues - _xlpm.comp), _xlpm.minDiff, MIN(_xlpm.diffs), INDEX(_xlpm.kValues, MATCH(_xlpm.minDiff, _xlpm.diffs, 0)) ) ), "" ) ->  | K168: =_xlfn.LET(_xlpm.suunniteltu, INDIRECT("F"&ROW()), _xlpm.mitattu, INDIRECT("H"&ROW()), IF(OR(_xlpm.suunniteltu="", _xlpm.mitattu="", _xlpm.mitattu=0), " ", (_xlpm.mitattu/_xlpm.suunniteltu))) ->  | L168: =IFERROR(IF(AND(MP_6[[#This Row],[-]]="P", MP_6[[#This Row],[+]]<>"T"), $H$174*MP_6[[#This Row],[Suunniteltu l/s]]/100, IF(AND(MP_6[[#This Row],[+]]="T", MP_6[[#This Row],[-]]<>"P"), $G$174*MP_6[[#This Row],[Suunniteltu l/s]]/100, IF(AND(MP_6[[#This Row],[-]]="P", MP_6[[#This Row],[+]]="T"), "T/P", "") ) ),"") ->  | M168: =IFERROR(IF(MP_6[[#This Row],[tulo]]=TRUE,"T",""),"") ->  | N168: =IFERROR(IF(MP_6[[#This Row],[poisto]]=TRUE,"P",""),"") ->  | O168: =IFERROR(IF( ISBLANK(MP_6[[#This Row],[Päätelaite Mittapiste]]), "", IF( SUM( _xlfn._xlws.FILTER( (Hakemisto[Tyyppi]=MP_6[[#This Row],[Päätelaite Mittapiste]]) * (Hakemisto[Koko]=MP_6[[#This Row],[Koko Ød]]) * ((Hakemisto[Tulo]="x") + (Hakemisto[Tulo]=1)), (Hakemisto[Tyyppi]=MP_6[[#This Row],[Päätelaite Mittapiste]]) ) ) > 0, TRUE, FALSE ) ),"") ->  | P168: =IFERROR(IF( ISBLANK(MP_6[[#This Row],[Päätelaite Mittapiste]]), "", IF( SUM( _xlfn._xlws.FILTER( (Hakemisto[Tyyppi]=MP_6[[#This Row],[Päätelaite Mittapiste]]) * (Hakemisto[Koko]=MP_6[[#This Row],[Koko Ød]]) * ((Hakemisto[Poisto]="x") + (Hakemisto[Poisto]=1)), (Hakemisto[Tyyppi]=MP_6[[#This Row],[Päätelaite Mittapiste]]) ) ) > 0, TRUE, FALSE ) ),"") ->  | R168: =IF((MP_6[[#This Row],[★]]=""),"",MP_6[[#This Row],[★]]) -> 
H169: =IFERROR( _xlfn.LET( _xlpm.paine, MP_6[[#This Row],[Paine Pa]], _xlpm.k, MP_6[[#This Row],[Kerroin k-arvo]], IF(OR(_xlpm.paine="", _xlpm.k=""), "", _xlpm.k*SQRT(_xlpm.paine)) ), "") ->  | I169: =IF( MP_6[[#This Row],[Lukitse avaus]]<>"", VALUE(MP_6[[#This Row],[Lukitse avaus]]), säätöasento( MP_6[[#This Row],[Päätelaite Mittapiste]], MP_6[[#This Row],[Koko Ød]], MP_6[[#This Row],[Tavoite l/s]], MP_6[[#This Row],[Paine Pa]], Hakemisto[] ) ) ->  | J169: =IFERROR( IF( OR( ISBLANK(MP_6[[#This Row],[Päätelaite Mittapiste]]), ISBLANK(MP_6[[#This Row],[Koko Ød]]), ISBLANK(MP_6[[#This Row],[Avaus mm]]), ISBLANK(MP_6[[#This Row],[Paine Pa]]) ), "", _xlfn.LET( _xlpm.comp, MP_6[[#This Row],[Suunniteltu l/s]]*IF( AND(MP_6[[#This Row],[-]]="P", MP_6[[#This Row],[+]]<>"T"), $H$174*MP_6[[#This Row],[Suunniteltu l/s]], IF( AND(MP_6[[#This Row],[+]]="T", MP_6[[#This Row],[-]]<>"P"), $G$174*MP_6[[#This Row],[Suunniteltu l/s]], IF(AND(MP_6[[#This Row],[-]]="P", MP_6[[#This Row],[+]]="T"), "T/P", "") ) )/SQRT(MP_6[[#This Row],[Paine Pa]]), _xlpm.filt, _xlfn._xlws.FILTER( Hakemisto[], (Hakemisto[Tyyppi]=MP_6[[#This Row],[Päätelaite Mittapiste]]) * (Hakemisto[Koko]=MP_6[[#This Row],[Koko Ød]]) * (IFERROR(--Hakemisto[asento], -1E+99) = IFERROR(--MP_6[[#This Row],[Avaus mm]], -1E+99)) ), _xlpm.colIndex, MATCH("k-arvo", Hakemisto[#Headers], 0), _xlpm.kValues, INDEX(_xlpm.filt, 0, _xlpm.colIndex), _xlpm.diffs, ABS(_xlpm.kValues - _xlpm.comp), _xlpm.minDiff, MIN(_xlpm.diffs), INDEX(_xlpm.kValues, MATCH(_xlpm.minDiff, _xlpm.diffs, 0)) ) ), "" ) ->  | K169: =_xlfn.LET(_xlpm.suunniteltu, INDIRECT("F"&ROW()), _xlpm.mitattu, INDIRECT("H"&ROW()), IF(OR(_xlpm.suunniteltu="", _xlpm.mitattu="", _xlpm.mitattu=0), " ", (_xlpm.mitattu/_xlpm.suunniteltu))) ->  | L169: =IFERROR(IF(AND(MP_6[[#This Row],[-]]="P", MP_6[[#This Row],[+]]<>"T"), $H$174*MP_6[[#This Row],[Suunniteltu l/s]]/100, IF(AND(MP_6[[#This Row],[+]]="T", MP_6[[#This Row],[-]]<>"P"), $G$174*MP_6[[#This Row],[Suunniteltu l/s]]/100, IF(AND(MP_6[[#This Row],[-]]="P", MP_6[[#This Row],[+]]="T"), "T/P", "") ) ),"") ->  | M169: =IFERROR(IF(MP_6[[#This Row],[tulo]]=TRUE,"T",""),"") ->  | N169: =IFERROR(IF(MP_6[[#This Row],[poisto]]=TRUE,"P",""),"") ->  | O169: =IFERROR(IF( ISBLANK(MP_6[[#This Row],[Päätelaite Mittapiste]]), "", IF( SUM( _xlfn._xlws.FILTER( (Hakemisto[Tyyppi]=MP_6[[#This Row],[Päätelaite Mittapiste]]) * (Hakemisto[Koko]=MP_6[[#This Row],[Koko Ød]]) * ((Hakemisto[Tulo]="x") + (Hakemisto[Tulo]=1)), (Hakemisto[Tyyppi]=MP_6[[#This Row],[Päätelaite Mittapiste]]) ) ) > 0, TRUE, FALSE ) ),"") ->  | P169: =IFERROR(IF( ISBLANK(MP_6[[#This Row],[Päätelaite Mittapiste]]), "", IF( SUM( _xlfn._xlws.FILTER( (Hakemisto[Tyyppi]=MP_6[[#This Row],[Päätelaite Mittapiste]]) * (Hakemisto[Koko]=MP_6[[#This Row],[Koko Ød]]) * ((Hakemisto[Poisto]="x") + (Hakemisto[Poisto]=1)), (Hakemisto[Tyyppi]=MP_6[[#This Row],[Päätelaite Mittapiste]]) ) ) > 0, TRUE, FALSE ) ),"") ->  | R169: =IF((MP_6[[#This Row],[★]]=""),"",MP_6[[#This Row],[★]]) -> 
H170: =IFERROR( _xlfn.LET( _xlpm.paine, MP_6[[#This Row],[Paine Pa]], _xlpm.k, MP_6[[#This Row],[Kerroin k-arvo]], IF(OR(_xlpm.paine="", _xlpm.k=""), "", _xlpm.k*SQRT(_xlpm.paine)) ), "") ->  | I170: =IF( MP_6[[#This Row],[Lukitse avaus]]<>"", VALUE(MP_6[[#This Row],[Lukitse avaus]]), säätöasento( MP_6[[#This Row],[Päätelaite Mittapiste]], MP_6[[#This Row],[Koko Ød]], MP_6[[#This Row],[Tavoite l/s]], MP_6[[#This Row],[Paine Pa]], Hakemisto[] ) ) ->  | J170: =IFERROR( IF( OR( ISBLANK(MP_6[[#This Row],[Päätelaite Mittapiste]]), ISBLANK(MP_6[[#This Row],[Koko Ød]]), ISBLANK(MP_6[[#This Row],[Avaus mm]]), ISBLANK(MP_6[[#This Row],[Paine Pa]]) ), "", _xlfn.LET( _xlpm.comp, MP_6[[#This Row],[Suunniteltu l/s]]*IF( AND(MP_6[[#This Row],[-]]="P", MP_6[[#This Row],[+]]<>"T"), $H$174*MP_6[[#This Row],[Suunniteltu l/s]], IF( AND(MP_6[[#This Row],[+]]="T", MP_6[[#This Row],[-]]<>"P"), $G$174*MP_6[[#This Row],[Suunniteltu l/s]], IF(AND(MP_6[[#This Row],[-]]="P", MP_6[[#This Row],[+]]="T"), "T/P", "") ) )/SQRT(MP_6[[#This Row],[Paine Pa]]), _xlpm.filt, _xlfn._xlws.FILTER( Hakemisto[], (Hakemisto[Tyyppi]=MP_6[[#This Row],[Päätelaite Mittapiste]]) * (Hakemisto[Koko]=MP_6[[#This Row],[Koko Ød]]) * (IFERROR(--Hakemisto[asento], -1E+99) = IFERROR(--MP_6[[#This Row],[Avaus mm]], -1E+99)) ), _xlpm.colIndex, MATCH("k-arvo", Hakemisto[#Headers], 0), _xlpm.kValues, INDEX(_xlpm.filt, 0, _xlpm.colIndex), _xlpm.diffs, ABS(_xlpm.kValues - _xlpm.comp), _xlpm.minDiff, MIN(_xlpm.diffs), INDEX(_xlpm.kValues, MATCH(_xlpm.minDiff, _xlpm.diffs, 0)) ) ), "" ) ->  | K170: =_xlfn.LET(_xlpm.suunniteltu, INDIRECT("F"&ROW()), _xlpm.mitattu, INDIRECT("H"&ROW()), IF(OR(_xlpm.suunniteltu="", _xlpm.mitattu="", _xlpm.mitattu=0), " ", (_xlpm.mitattu/_xlpm.suunniteltu))) ->  | L170: =IFERROR(IF(AND(MP_6[[#This Row],[-]]="P", MP_6[[#This Row],[+]]<>"T"), $H$174*MP_6[[#This Row],[Suunniteltu l/s]]/100, IF(AND(MP_6[[#This Row],[+]]="T", MP_6[[#This Row],[-]]<>"P"), $G$174*MP_6[[#This Row],[Suunniteltu l/s]]/100, IF(AND(MP_6[[#This Row],[-]]="P", MP_6[[#This Row],[+]]="T"), "T/P", "") ) ),"") ->  | M170: =IFERROR(IF(MP_6[[#This Row],[tulo]]=TRUE,"T",""),"") ->  | N170: =IFERROR(IF(MP_6[[#This Row],[poisto]]=TRUE,"P",""),"") ->  | O170: =IFERROR(IF( ISBLANK(MP_6[[#This Row],[Päätelaite Mittapiste]]), "", IF( SUM( _xlfn._xlws.FILTER( (Hakemisto[Tyyppi]=MP_6[[#This Row],[Päätelaite Mittapiste]]) * (Hakemisto[Koko]=MP_6[[#This Row],[Koko Ød]]) * ((Hakemisto[Tulo]="x") + (Hakemisto[Tulo]=1)), (Hakemisto[Tyyppi]=MP_6[[#This Row],[Päätelaite Mittapiste]]) ) ) > 0, TRUE, FALSE ) ),"") ->  | P170: =IFERROR(IF( ISBLANK(MP_6[[#This Row],[Päätelaite Mittapiste]]), "", IF( SUM( _xlfn._xlws.FILTER( (Hakemisto[Tyyppi]=MP_6[[#This Row],[Päätelaite Mittapiste]]) * (Hakemisto[Koko]=MP_6[[#This Row],[Koko Ød]]) * ((Hakemisto[Poisto]="x") + (Hakemisto[Poisto]=1)), (Hakemisto[Tyyppi]=MP_6[[#This Row],[Päätelaite Mittapiste]]) ) ) > 0, TRUE, FALSE ) ),"") ->  | R170: =IF((MP_6[[#This Row],[★]]=""),"",MP_6[[#This Row],[★]]) -> 
H171: =IFERROR( _xlfn.LET( _xlpm.paine, MP_6[[#This Row],[Paine Pa]], _xlpm.k, MP_6[[#This Row],[Kerroin k-arvo]], IF(OR(_xlpm.paine="", _xlpm.k=""), "", _xlpm.k*SQRT(_xlpm.paine)) ), "") ->  | I171: =IF( MP_6[[#This Row],[Lukitse avaus]]<>"", VALUE(MP_6[[#This Row],[Lukitse avaus]]), säätöasento( MP_6[[#This Row],[Päätelaite Mittapiste]], MP_6[[#This Row],[Koko Ød]], MP_6[[#This Row],[Tavoite l/s]], MP_6[[#This Row],[Paine Pa]], Hakemisto[] ) ) ->  | J171: =IFERROR( IF( OR( ISBLANK(MP_6[[#This Row],[Päätelaite Mittapiste]]), ISBLANK(MP_6[[#This Row],[Koko Ød]]), ISBLANK(MP_6[[#This Row],[Avaus mm]]), ISBLANK(MP_6[[#This Row],[Paine Pa]]) ), "", _xlfn.LET( _xlpm.comp, MP_6[[#This Row],[Suunniteltu l/s]]*IF( AND(MP_6[[#This Row],[-]]="P", MP_6[[#This Row],[+]]<>"T"), $H$174*MP_6[[#This Row],[Suunniteltu l/s]], IF( AND(MP_6[[#This Row],[+]]="T", MP_6[[#This Row],[-]]<>"P"), $G$174*MP_6[[#This Row],[Suunniteltu l/s]], IF(AND(MP_6[[#This Row],[-]]="P", MP_6[[#This Row],[+]]="T"), "T/P", "") ) )/SQRT(MP_6[[#This Row],[Paine Pa]]), _xlpm.filt, _xlfn._xlws.FILTER( Hakemisto[], (Hakemisto[Tyyppi]=MP_6[[#This Row],[Päätelaite Mittapiste]]) * (Hakemisto[Koko]=MP_6[[#This Row],[Koko Ød]]) * (IFERROR(--Hakemisto[asento], -1E+99) = IFERROR(--MP_6[[#This Row],[Avaus mm]], -1E+99)) ), _xlpm.colIndex, MATCH("k-arvo", Hakemisto[#Headers], 0), _xlpm.kValues, INDEX(_xlpm.filt, 0, _xlpm.colIndex), _xlpm.diffs, ABS(_xlpm.kValues - _xlpm.comp), _xlpm.minDiff, MIN(_xlpm.diffs), INDEX(_xlpm.kValues, MATCH(_xlpm.minDiff, _xlpm.diffs, 0)) ) ), "" ) ->  | K171: =_xlfn.LET(_xlpm.suunniteltu, INDIRECT("F"&ROW()), _xlpm.mitattu, INDIRECT("H"&ROW()), IF(OR(_xlpm.suunniteltu="", _xlpm.mitattu="", _xlpm.mitattu=0), " ", (_xlpm.mitattu/_xlpm.suunniteltu))) ->  | L171: =IFERROR(IF(AND(MP_6[[#This Row],[-]]="P", MP_6[[#This Row],[+]]<>"T"), $H$174*MP_6[[#This Row],[Suunniteltu l/s]]/100, IF(AND(MP_6[[#This Row],[+]]="T", MP_6[[#This Row],[-]]<>"P"), $G$174*MP_6[[#This Row],[Suunniteltu l/s]]/100, IF(AND(MP_6[[#This Row],[-]]="P", MP_6[[#This Row],[+]]="T"), "T/P", "") ) ),"") ->  | M171: =IFERROR(IF(MP_6[[#This Row],[tulo]]=TRUE,"T",""),"") ->  | N171: =IFERROR(IF(MP_6[[#This Row],[poisto]]=TRUE,"P",""),"") ->  | O171: =IFERROR(IF( ISBLANK(MP_6[[#This Row],[Päätelaite Mittapiste]]), "", IF( SUM( _xlfn._xlws.FILTER( (Hakemisto[Tyyppi]=MP_6[[#This Row],[Päätelaite Mittapiste]]) * (Hakemisto[Koko]=MP_6[[#This Row],[Koko Ød]]) * ((Hakemisto[Tulo]="x") + (Hakemisto[Tulo]=1)), (Hakemisto[Tyyppi]=MP_6[[#This Row],[Päätelaite Mittapiste]]) ) ) > 0, TRUE, FALSE ) ),"") ->  | P171: =IFERROR(IF( ISBLANK(MP_6[[#This Row],[Päätelaite Mittapiste]]), "", IF( SUM( _xlfn._xlws.FILTER( (Hakemisto[Tyyppi]=MP_6[[#This Row],[Päätelaite Mittapiste]]) * (Hakemisto[Koko]=MP_6[[#This Row],[Koko Ød]]) * ((Hakemisto[Poisto]="x") + (Hakemisto[Poisto]=1)), (Hakemisto[Tyyppi]=MP_6[[#This Row],[Päätelaite Mittapiste]]) ) ) > 0, TRUE, FALSE ) ),"") ->  | R171: =IF((MP_6[[#This Row],[★]]=""),"",MP_6[[#This Row],[★]]) -> 
E172: =IFERROR( _xlfn.LET( _xlpm.mit, SUMIFS( MP_6[Mitattu l/s], MP_6[-], "P" ), _xlpm.suu, SUMIFS( MP_6[Suunniteltu l/s], MP_6[-], "P" ), _xlpm.diff, IF(_xlpm.suu<>0, (_xlpm.mit / _xlpm.suu), ""), _xlpm.r, ROUND(_xlpm.diff*100, 1), IF(_xlpm.r<>"", _xlpm.r & " (P%)", "") ), "" ) ->  | F172: =IFERROR( _xlfn.LET( _xlpm.s, SUMIFS( MP_6[Suunniteltu l/s], MP_6[-], "P" ), _xlpm.r, ROUND(_xlpm.s, 1), IF(_xlpm.r>0, _xlpm.r & " l/s (Poisto suunnit.)", "") ), "" ) ->  | H172: =IFERROR( _xlfn.LET( _xlpm.s, SUMIFS( MP_6[Mitattu l/s], MP_6[-], "P" ), _xlpm.r, ROUND(_xlpm.s, 1), IF(_xlpm.r>0, _xlpm.r & " l/s (Poisto mitattu)", "") ), "" ) -> 
B173: 6 | C173: ↑ | D173: =IFERROR( _xlfn.LET( _xlpm.s, SUMIFS( MP_6[Mitattu l/s], MP_6[+], "", MP_6[-], "" ) + SUMIFS( MP_6[Mitattu l/s], MP_6[+], "T", MP_6[-], "P" ), _xlpm.r, ROUND(_xlpm.s, 1), IF(_xlpm.r>0, "tarkista T/P " & _xlpm.r & " l/s", "") ), "" ) ->  | E173: =IFERROR( _xlfn.LET( _xlpm.mit, SUMIFS( MP_6[Mitattu l/s], MP_6[+], "T" ), _xlpm.suu, SUMIFS( MP_6[Suunniteltu l/s], MP_6[+], "T" ), _xlpm.diff, IF(_xlpm.suu<>0, (_xlpm.mit / _xlpm.suu), ""), _xlpm.r, ROUND(_xlpm.diff*100, 1), IF(_xlpm.r<>"", _xlpm.r & " (T%)", "") ), "" ) ->  | F173: =IFERROR( _xlfn.LET( _xlpm.s, SUMIFS( MP_6[Suunniteltu l/s], MP_6[+], "T" ), _xlpm.r, ROUND(_xlpm.s, 1), IF(_xlpm.r>0, _xlpm.r & " l/s (Tulo suunnit.)", "") ), "" ) ->  | H173: =IFERROR( _xlfn.LET( _xlpm.s, SUMIFS( MP_6[Mitattu l/s], MP_6[+], "T" ), _xlpm.r, ROUND(_xlpm.s, 1), IF(_xlpm.r>0, _xlpm.r & " l/s (Tulo mitattu)", "") ), "" ) -> 
F174: Tavoite tulo % -> | G174: =IFERROR(INDEX(MP_REF6[Seuranta %]*100, MATCH("RT", MP_REF6[Merkitse RP / RT], 0)),"100") -> 100 | H174: =IFERROR(INDEX(MP_REF6[Seuranta %]*100, MATCH("RP", MP_REF6[Merkitse RP / RT], 0)),"100") -> 100 | I174: <-Tavoite poisto %

Sheet Koostenäkymä
D1: ILMANVAIHDON MITTAUSPÖYTÄKIRJA | N1: Kohde: | P1: =IF(E2="","",_xlfn.CONCAT(E2,", ",E3)) ->  | V1: =_xlfn.IFS(J3=0,"",J3>0,J3) -> 
D2: Kohde: | H2: Tilaaja: | N2: =_xlfn.LET( _xlpm.MPdata, IF($AE$4, MP_BLOCK_TBL("MP_1", $AE$6, $AE$7), ""), _xlpm.MP2data, IF($AF$4, MP_BLOCK_TBL("MP_2", $AF$6, $AF$7), ""), _xlpm.MP3data, IF($AG$4, MP_BLOCK_TBL("MP_3", $AG$6, $AG$7), ""), _xlpm.MP4data, IF($AH$4, MP_BLOCK_TBL("MP_4", $AH$6, $AH$7), ""), _xlpm.MP5data, IF($AI$4, MP_BLOCK_TBL("MP_5", $AI$6, $AI$7), ""), _xlpm.MP6data, IF($AJ$4, MP_BLOCK_TBL("MP_6", $AJ$6, $AJ$7), ""), _xlpm.MP1sum, IF(AND($AE$4, $AE$5), MP_SUMMARY_TBL("MP_1", $AE$6, $AE$7), ""), _xlpm.MP2sum, IF(AND($AF$4, $AF$5), MP_SUMMARY_TBL("MP_2", $AF$6, $AF$7), ""), _xlpm.MP3sum, IF(AND($AG$4, $AG$5), MP_SUMMARY_TBL("MP_3", $AG$6, $AG$7), ""), _xlpm.MP4sum, IF(AND($AH$4, $AH$5), MP_SUMMARY_TBL("MP_4", $AH$6, $AH$7), ""), _xlpm.MP5sum, IF(AND($AI$4, $AI$5), MP_SUMMARY_TBL("MP_5", $AI$6, $AI$7), ""), _xlpm.MP6sum, IF(AND($AJ$4, $AJ$5), MP_SUMMARY_TBL("MP_6", $AJ$6, $AJ$7), ""), _xlpm.RefCols, MAX( IFERROR(COLUMNS(_xlpm.MPdata), 0), IFERROR(COLUMNS(_xlpm.MP2data), 0), IFERROR(COLUMNS(_xlpm.MP3data), 0), IFERROR(COLUMNS(_xlpm.MP4data), 0), IFERROR(COLUMNS(_xlpm.MP5data), 0), IFERROR(COLUMNS(_xlpm.MP6data), 0), IFERROR(COLUMNS(_xlpm.MP1sum), 0), IFERROR(COLUMNS(_xlpm.MP2sum), 0), IFERROR(COLUMNS(_xlpm.MP3sum), 0), IFERROR(COLUMNS(_xlpm.MP4sum), 0), IFERROR(COLUMNS(_xlpm.MP5sum), 0), IFERROR(COLUMNS(_xlpm.MP6sum), 0), 1 ), _xlpm.Empty, _xlfn.LAMBDA(_xlpm.nCols, _xlfn.MAKEARRAY(1, _xlpm.nCols, _xlfn.LAMBDA(_xlpm.r,_xlpm.c, "")) ), _xlpm.Spacer, _xlfn.MAKEARRAY(1, _xlpm.RefCols, _xlfn.LAMBDA(_xlpm.r,_xlpm.c, IF(_xlpm.c=1, " ", ""))), _xlpm.Pad, _xlfn.LAMBDA(_xlpm.a, _xlfn.LET( _xlpm.r, IFERROR(ROWS(_xlpm.a), 0), _xlpm.c, IFERROR(COLUMNS(_xlpm.a), 0), _xlpm.d, _xlpm.RefCols - _xlpm.c, IF( OR(_xlpm.r=0, _xlpm.c=0), _xlpm.Empty(_xlpm.RefCols), IF( _xlpm.d<=0, _xlpm.a, _xlfn.HSTACK( _xlpm.a, _xlfn.MAKEARRAY(_xlpm.r, _xlpm.d, _xlfn.LAMBDA(_xlpm.rr,_xlpm.cc, "")) ) ) ) ) ), _xlpm.HasMP1data, AND($AE$4, IFERROR(ROWS(_xlpm.MPdata), 0)>1), _xlpm.HasMP2data, AND($AF$4, IFERROR(ROWS(_xlpm.MP2data), 0)>1), _xlpm.HasMP3data, AND($AG$4, IFERROR(ROWS(_xlpm.MP3data), 0)>1), _xlpm.HasMP4data, AND($AH$4, IFERROR(ROWS(_xlpm.MP4data), 0)>1), _xlpm.HasMP5data, AND($AI$4, IFERROR(ROWS(_xlpm.MP5data), 0)>1), _xlpm.HasMP6data, AND($AJ$4, IFERROR(ROWS(_xlpm.MP6data), 0)>1), _xlpm.HasMP1sum, AND($AE$4, $AE$5, IFERROR(ROWS(_xlpm.MP1sum), 0)>1), _xlpm.HasMP2sum, AND($AF$4, $AF$5, IFERROR(ROWS(_xlpm.MP2sum), 0)>1), _xlpm.HasMP3sum, AND($AG$4, $AG$5, IFERROR(ROWS(_xlpm.MP3sum), 0)>1), _xlpm.HasMP4sum, AND($AH$4, $AH$5, IFERROR(ROWS(_xlpm.MP4sum), 0)>1), _xlpm.HasMP5sum, AND($AI$4, $AI$5, IFERROR(ROWS(_xlpm.MP5sum), 0)>1), _xlpm.HasMP6sum, AND($AJ$4, $AJ$5, IFERROR(ROWS(_xlpm.MP6sum), 0)>1), _xlpm.Block1, IF($AE$4, _xlfn.VSTACK( IF(_xlpm.HasMP1data, _xlpm.Pad(_xlpm.MPdata), _xlpm.Empty(_xlpm.RefCols)), IF(AND(_xlpm.HasMP1data, _xlpm.HasMP1sum), _xlpm.Spacer, _xlpm.Empty(_xlpm.RefCols)), IF(_xlpm.HasMP1sum, _xlpm.Pad(_xlpm.MP1sum), _xlpm.Empty(_xlpm.RefCols)), IF(_xlpm.HasMP1sum, _xlpm.Spacer, _xlpm.Empty(_xlpm.RefCols)) ), _xlpm.Empty(_xlpm.RefCols) ), _xlpm.Block2, IF($AF$4, _xlfn.VSTACK( IF(_xlpm.HasMP2data, _xlpm.Pad(_xlpm.MP2data), _xlpm.Empty(_xlpm.RefCols)), IF(AND(_xlpm.HasMP2data, _xlpm.HasMP2sum), _xlpm.Spacer, _xlpm.Empty(_xlpm.RefCols)), IF(_xlpm.HasMP2sum, _xlpm.Pad(_xlpm.MP2sum), _xlpm.Empty(_xlpm.RefCols)), IF(_xlpm.HasMP2sum, _xlpm.Spacer, _xlpm.Empty(_xlpm.RefCols)) ), _xlpm.Empty(_xlpm.RefCols) ), _xlpm.Block3, IF($AG$4, _xlfn.VSTACK( IF(_xlpm.HasMP3data, _xlpm.Pad(_xlpm.MP3data), _xlpm.Empty(_xlpm.RefCols)), IF(AND(_xlpm.HasMP3data, _xlpm.HasMP3sum), _xlpm.Spacer, _xlpm.Empty(_xlpm.RefCols)), IF(_xlpm.HasMP3sum, _xlpm.Pad(_xlpm.MP3sum), _xlpm.Empty(_xlpm.RefCols)), IF(_xlpm.HasMP3sum, _xlpm.Spacer, _xlpm.Empty(_xlpm.RefCols)) ), _xlpm.Empty(_xlpm.RefCols) ), _xlpm.Block4, IF($AH$4, _xlfn.VSTACK( IF(_xlpm.HasMP4data, _xlpm.Pad(_xlpm.MP4data), _xlpm.Empty(_xlpm.RefCols)), IF(AND(_xlpm.HasMP4data, _xlpm.HasMP4sum), _xlpm.Spacer, _xlpm.Empty(_xlpm.RefCols)), IF(_xlpm.HasMP4sum, _xlpm.Pad(_xlpm.MP4sum), _xlpm.Empty(_xlpm.RefCols)), IF(_xlpm.HasMP4sum, _xlpm.Spacer, _xlpm.Empty(_xlpm.RefCols)) ), _xlpm.Empty(_xlpm.RefCols) ), _xlpm.Block5, IF($AI$4, _xlfn.VSTACK( IF(_xlpm.HasMP5data, _xlpm.Pad(_xlpm.MP5data), _xlpm.Empty(_xlpm.RefCols)), IF(AND(_xlpm.HasMP5data, _xlpm.HasMP5sum), _xlpm.Spacer, _xlpm.Empty(_xlpm.RefCols)), IF(_xlpm.HasMP5sum, _xlpm.Pad(_xlpm.MP5sum), _xlpm.Empty(_xlpm.RefCols)), IF(_xlpm.HasMP5sum, _xlpm.Spacer, _xlpm.Empty(_xlpm.RefCols)) ), _xlpm.Empty(_xlpm.RefCols) ), _xlpm.Block6, IF($AJ$4, _xlfn.VSTACK( IF(_xlpm.HasMP6data, _xlpm.Pad(_xlpm.MP6data), _xlpm.Empty(_xlpm.RefCols)), IF(AND(_xlpm.HasMP6data, _xlpm.HasMP6sum), _xlpm.Spacer, _xlpm.Empty(_xlpm.RefCols)), IF(_xlpm.HasMP6sum, _xlpm.Pad(_xlpm.MP6sum), _xlpm.Empty(_xlpm.RefCols)), IF(_xlpm.HasMP6sum, _xlpm.Spacer, _xlpm.Empty(_xlpm.RefCols)) ), _xlpm.Empty(_xlpm.RefCols) ), _xlpm.MPout, _xlfn.VSTACK(_xlpm.Block1, _xlpm.Block2, _xlpm.Block3, _xlpm.Block4, _xlpm.Block5, _xlpm.Block6), MP_CLEAN_ROWS(_xlpm.MPout) ) -> KRS № | O2: Huone Tila | P2: Päätelaite Mittapiste | Q2: Koko Ød | R2: Paine Pa | S2: Suunniteltu l/s | T2: Mitattu l/s | U2: Avaus mm | V2: Kerroin k-arvo | W2: Ero l/s | X2: Ero % | Y2: ★ | AA2: Näytä taulukot ja huomiot: | AB2: ON
D3: Osoite: | H3: Pöytäkirja pvm: | N3: 1 | O3: Olohuone | P3: KSO | Q3: 125 | R3: 20 | S3: 25.0 | T3: 17.9 | U3: 10.0 | V3: 4.0 | W3: -7.1 | X3: -28.4 | AE3: 1 | AF3: 2 | AG3: 3 | AH3: 4 | AI3: 5 | AJ3: 6
D4: Postinro: | H4: Mittaaja: | N4: 1 | O4: KHH | P4: ULA | Q4: 125/ 180° t-haara | R4: 8 | S4: 25.0 | T4: 12.6 | U4: 12.0 | V4: 4.5 | W4: -12.4 | X4: -49.5 | AD4: taulukko | AE4: =AND($AB$2="ON", _xlfn.XLOOKUP(1, Näyttö_asetukset[Taulukko], Näyttö_asetukset[Näytä]="ON", FALSE)) -> TRUE | AF4: =AND($AB$2="ON", _xlfn.XLOOKUP(2, Näyttö_asetukset[Taulukko], Näyttö_asetukset[Näytä]="ON", FALSE)) -> FALSE | AG4: =AND($AB$2="ON", _xlfn.XLOOKUP(3, Näyttö_asetukset[Taulukko], Näyttö_asetukset[Näytä]="ON", FALSE)) -> FALSE | AH4: =AND($AB$2="ON", _xlfn.XLOOKUP(4, Näyttö_asetukset[Taulukko], Näyttö_asetukset[Näytä]="ON", FALSE)) -> FALSE | AI4: =AND($AB$2="ON", _xlfn.XLOOKUP(5, Näyttö_asetukset[Taulukko], Näyttö_asetukset[Näytä]="ON", FALSE)) -> FALSE | AJ4: =AND($AB$2="ON", _xlfn.XLOOKUP(6, Näyttö_asetukset[Taulukko], Näyttö_asetukset[Näytä]="ON", FALSE)) -> FALSE
D5: Toimipaikka: | H5: Puhelin: | AD5: yhteenveto | AE5: =AND($AB$2="ON", _xlfn.XLOOKUP(1, Näyttö_asetukset[Taulukko], Näyttö_asetukset[Yhteenveto]="ON", FALSE)) -> TRUE | AF5: =AND($AB$2="ON", _xlfn.XLOOKUP(2, Näyttö_asetukset[Taulukko], Näyttö_asetukset[Yhteenveto]="ON", FALSE)) -> TRUE | AG5: =AND($AB$2="ON", _xlfn.XLOOKUP(3, Näyttö_asetukset[Taulukko], Näyttö_asetukset[Yhteenveto]="ON", FALSE)) -> TRUE | AH5: =AND($AB$2="ON", _xlfn.XLOOKUP(4, Näyttö_asetukset[Taulukko], Näyttö_asetukset[Yhteenveto]="ON", FALSE)) -> TRUE | AI5: =AND($AB$2="ON", _xlfn.XLOOKUP(5, Näyttö_asetukset[Taulukko], Näyttö_asetukset[Yhteenveto]="ON", FALSE)) -> TRUE | AJ5: =AND($AB$2="ON", _xlfn.XLOOKUP(6, Näyttö_asetukset[Taulukko], Näyttö_asetukset[Yhteenveto]="ON", FALSE)) -> FALSE
D6: Kiinteistötunnus: | H6: Sähköposti: | R6: KRS | S6: Poisto | T6: Poisto | U6: Tulo | V6: Tulo | W6: ΔT | X6: ΔP | AD6: tulot | AE6: =AND($AB$2="ON", _xlfn.XLOOKUP(1, Näyttö_asetukset[Taulukko], Näyttö_asetukset[Tulo]="ON", FALSE)) -> TRUE | AF6: =AND($AB$2="ON", _xlfn.XLOOKUP(2, Näyttö_asetukset[Taulukko], Näyttö_asetukset[Tulo]="ON", FALSE)) -> TRUE | AG6: =AND($AB$2="ON", _xlfn.XLOOKUP(3, Näyttö_asetukset[Taulukko], Näyttö_asetukset[Tulo]="ON", FALSE)) -> TRUE | AH6: =AND($AB$2="ON", _xlfn.XLOOKUP(4, Näyttö_asetukset[Taulukko], Näyttö_asetukset[Tulo]="ON", FALSE)) -> TRUE | AI6: =AND($AB$2="ON", _xlfn.XLOOKUP(5, Näyttö_asetukset[Taulukko], Näyttö_asetukset[Tulo]="ON", FALSE)) -> TRUE | AJ6: =AND($AB$2="ON", _xlfn.XLOOKUP(6, Näyttö_asetukset[Taulukko], Näyttö_asetukset[Tulo]="ON", FALSE)) -> FALSE
R7: № | S7: mitattu | T7: suun. | U7: mitattu | V7: suun. | W7: % | X7: % | AD7: poistot | AE7: =AND($AB$2="ON", _xlfn.XLOOKUP(1, Näyttö_asetukset[Taulukko], Näyttö_asetukset[Poisto]="ON", FALSE)) -> TRUE | AF7: =AND($AB$2="ON", _xlfn.XLOOKUP(2, Näyttö_asetukset[Taulukko], Näyttö_asetukset[Poisto]="ON", FALSE)) -> TRUE | AG7: =AND($AB$2="ON", _xlfn.XLOOKUP(3, Näyttö_asetukset[Taulukko], Näyttö_asetukset[Poisto]="ON", FALSE)) -> TRUE | AH7: =AND($AB$2="ON", _xlfn.XLOOKUP(4, Näyttö_asetukset[Taulukko], Näyttö_asetukset[Poisto]="ON", FALSE)) -> TRUE | AI7: =AND($AB$2="ON", _xlfn.XLOOKUP(5, Näyttö_asetukset[Taulukko], Näyttö_asetukset[Poisto]="ON", FALSE)) -> TRUE | AJ7: =AND($AB$2="ON", _xlfn.XLOOKUP(6, Näyttö_asetukset[Taulukko], Näyttö_asetukset[Poisto]="ON", FALSE)) -> FALSE
A8: Mittausasetukset ja olosuhteet | F8: Mittauspäivä(t): | R8: 1 | S8: -17.9 | T8: -25.0 | U8: 12.6 | V8: 25.0 | W8: -49.5 | X8: -28.4
A9: asetuksen kuvaus | C9: Tulo , % | D9: Poisto, % | E9: Asetus | F9: Suodattimet vaihdettu, pvm: | R9: Yht: | S9: -17.9 | T9: -25.0 | U9: 12.6 | V9: 25.0
A10: Poissa: | C10: - | D10: - | E10: 1 | F10: Suunniteltu ilmavirtaero +/-: | R10: %: | S10: 71,6% | U10: 50,5%
A11: (asetusarvo, varaus): | C11: - | D11: - | E11: 2 | F11: Huoneiston paine-ero ulkoilmaan:
A12: Kotona: | C12: - | D12: - | E12: 3 | F12: Mittalaitteena käytetty: | AA12: Koostenäkymän
A13: (asetusarvo, varaus): | C13: - | D13: - | E13: 4 | F13: Mittalaitteen tarkkuus: | AA13: asetukset
A14: Tehostus: | C14: - | D14: - | E14: 5 | F14: Mittarin kalibrointipäivämäärä: | AA14: 10 | AB14: Matala säätöpaine
A15: Liesikuvun kompensointi: | C15: - | D15: - | E15: - | F15: Lämpötila ja tuulen nopeus: | AA15: -
AA16: 20 % | AB16: Suurin hyväksyttävä poikkeama, ero %
A17: Mittauspöytäkirjan tiedot asetuksella:
B18: Muut asetusarvot: | H18: Paine-erot vaipan yli mitattuna: | AB18: Taulukko | AC18: Näytä | AD18: Yhteenveto | AE18: Tulo | AF18: Poisto
B19: Konemalli: | H19: sijainti: | I19: ulko-ovi | J19: takaovi | K19: yläkerta | AB19: 1 | AC19: ON | AD19: ON | AE19: ON | AF19: ON
B20: C02 raja-arvot: | H20: Poissa: | AB20: 2 | AC20: OFF | AD20: ON | AE20: ON | AF20: ON
B21: Lämpötila aset. (Tulo): | H21: Kotona: | AB21: 3 | AC21: OFF | AD21: ON | AE21: ON | AF21: ON
B22: Kosteus raja-arvo: | H22: Tehostus: | AB22: 4 | AC22: OFF | AD22: ON | AE22: ON | AF22: ON
B23: Aikaohjelma: | H23: Liesikupu auki: | AB23: 5 | AC23: OFF | AD23: ON | AE23: ON | AF23: ON
A24: Nro: | B24: Huomiot: | C24: Huomiot ja havainnot
A25: =_xlfn.LET( _xlpm.trig, $AB$2="ON", IF( NOT(_xlpm.trig), "", _xlfn.LET( _xlpm.r, _xlfn.VSTACK( MP_HUOMIO_BLOCK("MP_1"), MP_HUOMIO_BLOCK("MP_2"), MP_HUOMIO_BLOCK("MP_3"), MP_HUOMIO_BLOCK("MP_4"), MP_HUOMIO_BLOCK("MP_5"), MP_HUOMIO_BLOCK("MP_6") ), IFERROR( _xlfn._xlws.FILTER( _xlpm.r, _xlfn.BYROW(_xlpm.r, _xlfn.LAMBDA(_xlpm.x, SUM(--(_xlpm.x<>""))>0)) ), "" ) ) ) ) -> 

Sheet k-arvo tietokanta
A1: Mittauspöytäkirjassa käytetyt k-arvot
A2: =IFERROR(_xlfn.VSTACK( {"Päätelaite","Koko Ød","Avaus mm","k-arvo"}, _xlfn._xlws.SORT( _xlfn._xlws.SORT( _xlfn.UNIQUE( _xlfn._xlws.FILTER( _xlfn.VSTACK( CHOOSE({1,2,3,4}, MP_1[Päätelaite Mittapiste], MP_1[Koko Ød], MP_1[Avaus mm], MP_1[Kerroin k-arvo] ), CHOOSE({1,2,3,4},#REF!,#REF!,#REF!,#REF! ) ), (INDEX( _xlfn.VSTACK( MP_1[Päätelaite Mittapiste],#REF! ),, 1 )<>"") * (INDEX( _xlfn.VSTACK( MP_1[Päätelaite Mittapiste],#REF! ),, 1 )<>0) * (INDEX( _xlfn.VSTACK( MP_1[Kerroin k-arvo],#REF! ),, 1 )<>"") ) ), 3,-1 ), 1,-1 ) ),"") -> 
AL59: 2025-05-18
A60: Hakemisto | X60: Sisällysluettelo | AA60: Sisällysluettelo | AE60: Koko tietokanta
AP62: Päätelaitejärjestäjä
A63: valmistaja | B63: Tyyppi | C63: Koko | D63: asento | E63: k-arvo | F63: Tulo | G63: Poisto | M63: =_xlfn.VSTACK( {"Valmistaja","Päätelaite","Koko Ød","Avaus mm","k-arvo","Tulo","Poisto","Kommentti"}, _xlfn.LET( _xlpm.valmistajat, _xlfn._xlws.FILTER(Sisällysluettelo[Valmistaja], Sisällysluettelo[Sisällytä hakemistoon]="x"), _xlpm.päätelaitteet, _xlfn._xlws.FILTER(Sisällysluettelo[Päätelaite], Sisällysluettelo[Sisällytä hakemistoon]="x"), _xlpm.sarakeLkm, COLUMNS(Tietopankki[]), _xlpm.tyhjäRivi, _xlfn.SEQUENCE(1, _xlpm.sarakeLkm, ""), _xlpm.firstMatch, _xlfn.LET( _xlpm.val, INDEX(_xlpm.valmistajat, 1), _xlpm.pt, INDEX(_xlpm.päätelaitteet, 1), IFERROR( _xlfn._xlws.FILTER(Tietopankki[], (Tietopankki[valmistaja]=_xlpm.val) * (Tietopankki[Päätelaite]=_xlpm.pt), ""), _xlpm.tyhjäRivi ) ), _xlpm.yhdistetty, _xlfn.REDUCE(_xlpm.firstMatch, _xlfn.SEQUENCE(ROWS(_xlpm.valmistajat)-1), _xlfn.LAMBDA(_xlpm.acc,_xlpm.i, _xlfn.LET( _xlpm.val, INDEX(_xlpm.valmistajat, _xlpm.i+1), _xlpm.pt, INDEX(_xlpm.päätelaitteet, _xlpm.i+1), _xlpm.uudet, IFERROR( _xlfn._xlws.FILTER(Tietopankki[], (Tietopankki[valmistaja]=_xlpm.val) * (Tietopankki[Päätelaite]=_xlpm.pt), ""), _xlpm.tyhjäRivi ), _xlfn.VSTACK(_xlpm.acc, _xlpm.uudet) ) ) ), _xlpm.data, IFERROR(_xlfn._xlws.FILTER(_xlpm.yhdistetty, INDEX(_xlpm.yhdistetty,,1)<>""), _xlpm.tyhjäRivi), _xlpm.OnPrioriteetti, COUNTA(Päätelaite_valinta[])>0, _xlpm.varaLista, IF(_xlpm.OnPrioriteetti, Päätelaite_valinta[], {""}), _xlpm.Ensisijainen, IFERROR( _xlfn._xlws.FILTER(_xlpm.data, COUNTIF(_xlpm.varaLista, INDEX(_xlpm.data,,2))>0, ""), _xlpm.tyhjäRivi ), _xlpm.Toissijainen, IF(_xlpm.OnPrioriteetti, IFERROR(_xlfn._xlws.FILTER(_xlpm.data, COUNTIF(_xlpm.varaLista, INDEX(_xlpm.data,,2))=0, ""), _xlpm.tyhjäRivi), _xlpm.data ), _xlpm.sortedEnsisijainen, IF(COLUMNS(_xlpm.Ensisijainen)>=4, _xlfn.SORTBY(_xlpm.Ensisijainen, IFERROR(MATCH(INDEX(_xlpm.Ensisijainen,,2), _xlpm.varaLista, 0), 99999), 1, INDEX(_xlpm.Ensisijainen,,3), 1, INDEX(_xlpm.Ensisijainen,,4), -1), _xlpm.Ensisijainen ), _xlpm.sortedToissijainen, IF(COLUMNS(_xlpm.Toissijainen)>=4, _xlfn.SORTBY(_xlpm.Toissijainen, INDEX(_xlpm.Toissijainen,,2), 1, INDEX(_xlpm.Toissijainen,,3), 1, INDEX(_xlpm.Toissijainen,,4), -1), _xlpm.Toissijainen ), IF(_xlpm.OnPrioriteetti, IF(ROWS(_xlpm.Ensisijainen)=0, _xlpm.sortedToissijainen, _xlfn.VSTACK(_xlpm.sortedEnsisijainen, _xlpm.sortedToissijainen) ), _xlpm.sortedToissijainen )) ) -> Valmistaja | N63: Päätelaite | O63: Koko Ød | P63: Avaus mm | Q63: k-arvo | R63: Tulo | S63: Poisto | T63: Kommentti | X63: Sisällytä hakemistoon | Y63: Valmistaja | Z63: Päätelaite | AA63: Valmistaja | AB63: Päätelaite | AE63: valmistaja | AF63: Päätelaite | AG63: Koko + K-arvon määritysvaatimukset (puh.kulma/sektori, suojaet., osa…) | AH63: Säätö-asento | AI63: k-arvo | AJ63: Tulo | AK63: Poisto | AL63: Huomiosarake | AP63: Päätelaite nimi
A64: =IFERROR(IF(INDIRECT("M"&ROW())=0,"",INDIRECT("M"&ROW())),"") -> FläktGroup | B64: =IFERROR(IF(INDIRECT("N"&ROW())=0,"",INDIRECT("N"&ROW())),"") -> KSO | C64: =IFERROR(IF(INDIRECT("O"&ROW())=0,"",INDIRECT("O"&ROW())),"") -> 100 | D64: =IFERROR(IF(INDIRECT("P"&ROW())=0,"0",INDIRECT("P"&ROW())),"") -> 10 | E64: =IFERROR(IF(INDIRECT("Q"&ROW())=0,"",INDIRECT("Q"&ROW())),"") -> 2.8 | F64: =IFERROR(IF(INDIRECT("R"&ROW())=0,"",INDIRECT("R"&ROW())),"") ->  | G64: =IFERROR(IF(INDIRECT("S"&ROW())=0,"",INDIRECT("S"&ROW())),"") -> x | M64: FläktGroup | N64: KSO | O64: 100 | P64: 10 | Q64: 2.8 | R64: 0 | S64: x | T64: 0 | Y64: =IFERROR(IF(INDIRECT("AA"&ROW())=0,"",INDIRECT("AA"&ROW())),"") -> Climecon | Z64: =IFERROR(IF(INDIRECT("AB"&ROW())=0,"",INDIRECT("AB"&ROW())),"") -> AIRA | AA64: =_xlfn._xlws.SORT(_xlfn.UNIQUE(_xlfn._xlws.FILTER(Tietopankki[[valmistaja]:[Päätelaite]], Tietopankki[valmistaja]<>0)), 1, 1, 0) -> Climecon | AB64: AIRA | AE64: FläktGroup | AF64: KSO | AG64: 100 | AH64: 10 | AI64: 2.8 | AJ64: 0 | AK64: x | AL64: 0 | AP64: KSO
A65: =IFERROR(IF(INDIRECT("M"&ROW())=0,"",INDIRECT("M"&ROW())),"") -> FläktGroup | B65: =IFERROR(IF(INDIRECT("N"&ROW())=0,"",INDIRECT("N"&ROW())),"") -> KSO | C65: =IFERROR(IF(INDIRECT("O"&ROW())=0,"",INDIRECT("O"&ROW())),"") -> 100 | D65: =IFERROR(IF(INDIRECT("P"&ROW())=0,"0",INDIRECT("P"&ROW())),"") -> 9 | E65: =IFERROR(IF(INDIRECT("Q"&ROW())=0,"",INDIRECT("Q"&ROW())),"") -> 2.7 | F65: =IFERROR(IF(INDIRECT("R"&ROW())=0,"",INDIRECT("R"&ROW())),"") ->  | G65: =IFERROR(IF(INDIRECT("S"&ROW())=0,"",INDIRECT("S"&ROW())),"") -> x | M65: FläktGroup | N65: KSO | O65: 100 | P65: 9 | Q65: 2.7 | R65: 00:00:00 | S65: x | T65: 00:00:00 | Y65: =IFERROR(IF(INDIRECT("AA"&ROW())=0,"",INDIRECT("AA"&ROW())),"") -> Climecon | Z65: =IFERROR(IF(INDIRECT("AB"&ROW())=0,"",INDIRECT("AB"&ROW())),"") -> BVHR/BVKR | AA65: Climecon | AB65: BVHR/BVKR | AE65: FläktGroup | AF65: KSO | AG65: 100 | AH65: 9 | AI65: 2.7 | AJ65: 0 | AK65: x | AL65: 0 | AP65: KTS
A66: =IFERROR(IF(INDIRECT("M"&ROW())=0,"",INDIRECT("M"&ROW())),"") -> FläktGroup | B66: =IFERROR(IF(INDIRECT("N"&ROW())=0,"",INDIRECT("N"&ROW())),"") -> KSO | C66: =IFERROR(IF(INDIRECT("O"&ROW())=0,"",INDIRECT("O"&ROW())),"") -> 100 | D66: =IFERROR(IF(INDIRECT("P"&ROW())=0,"0",INDIRECT("P"&ROW())),"") -> 8 | E66: =IFERROR(IF(INDIRECT("Q"&ROW())=0,"",INDIRECT("Q"&ROW())),"") -> 2.6 | F66: =IFERROR(IF(INDIRECT("R"&ROW())=0,"",INDIRECT("R"&ROW())),"") ->  | G66: =IFERROR(IF(INDIRECT("S"&ROW())=0,"",INDIRECT("S"&ROW())),"") -> x | M66: FläktGroup | N66: KSO | O66: 100 | P66: 8 | Q66: 2.6 | R66: 0 | S66: x | T66: 0 | X66: x | Y66: =IFERROR(IF(INDIRECT("AA"&ROW())=0,"",INDIRECT("AA"&ROW())),"") -> Climecon | Z66: =IFERROR(IF(INDIRECT("AB"&ROW())=0,"",INDIRECT("AB"&ROW())),"") -> CLIK | AA66: Climecon | AB66: CLIK | AE66: FläktGroup | AF66: KSO | AG66: 100 | AH66: 8 | AI66: 2.6 | AJ66: 0 | AK66: x | AL66: 0 | AP66: KSU
A67: =IFERROR(IF(INDIRECT("M"&ROW())=0,"",INDIRECT("M"&ROW())),"") -> FläktGroup | B67: =IFERROR(IF(INDIRECT("N"&ROW())=0,"",INDIRECT("N"&ROW())),"") -> KSO | C67: =IFERROR(IF(INDIRECT("O"&ROW())=0,"",INDIRECT("O"&ROW())),"") -> 100 | D67: =IFERROR(IF(INDIRECT("P"&ROW())=0,"0",INDIRECT("P"&ROW())),"") -> 7 | E67: =IFERROR(IF(INDIRECT("Q"&ROW())=0,"",INDIRECT("Q"&ROW())),"") -> 2.5 | F67: =IFERROR(IF(INDIRECT("R"&ROW())=0,"",INDIRECT("R"&ROW())),"") ->  | G67: =IFERROR(IF(INDIRECT("S"&ROW())=0,"",INDIRECT("S"&ROW())),"") -> x | M67: FläktGroup | N67: KSO | O67: 100 | P67: 7 | Q67: 2.5 | R67: 0 | S67: x | T67: 0 | Y67: =IFERROR(IF(INDIRECT("AA"&ROW())=0,"",INDIRECT("AA"&ROW())),"") -> Climecon | Z67: =IFERROR(IF(INDIRECT("AB"&ROW())=0,"",INDIRECT("AB"&ROW())),"") -> CLIK-S | AA67: Climecon | AB67: CLIK-S | AE67: FläktGroup | AF67: KSO | AG67: 100 | AH67: 7 | AI67: 2.5 | AJ67: 0 | AK67: x | AL67: 0 | AP67: STQA
A68: =IFERROR(IF(INDIRECT("M"&ROW())=0,"",INDIRECT("M"&ROW())),"") -> FläktGroup | B68: =IFERROR(IF(INDIRECT("N"&ROW())=0,"",INDIRECT("N"&ROW())),"") -> KSO | C68: =IFERROR(IF(INDIRECT("O"&ROW())=0,"",INDIRECT("O"&ROW())),"") -> 100 | D68: =IFERROR(IF(INDIRECT("P"&ROW())=0,"0",INDIRECT("P"&ROW())),"") -> 6 | E68: =IFERROR(IF(INDIRECT("Q"&ROW())=0,"",INDIRECT("Q"&ROW())),"") -> 2.4 | F68: =IFERROR(IF(INDIRECT("R"&ROW())=0,"",INDIRECT("R"&ROW())),"") ->  | G68: =IFERROR(IF(INDIRECT("S"&ROW())=0,"",INDIRECT("S"&ROW())),"") -> x | M68: FläktGroup | N68: KSO | O68: 100 | P68: 6 | Q68: 2.4 | R68: 0 | S68: x | T68: 0 | Y68: =IFERROR(IF(INDIRECT("AA"&ROW())=0,"",INDIRECT("AA"&ROW())),"") -> Climecon | Z68: =IFERROR(IF(INDIRECT("AB"&ROW())=0,"",INDIRECT("AB"&ROW())),"") -> DINO-T | AA68: Climecon | AB68: DINO-T | AE68: FläktGroup | AF68: KSO | AG68: 100 | AH68: 6 | AI68: 2.4 | AJ68: 0 | AK68: x | AL68: 0 | AP68: KIR
A69: =IFERROR(IF(INDIRECT("M"&ROW())=0,"",INDIRECT("M"&ROW())),"") -> FläktGroup | B69: =IFERROR(IF(INDIRECT("N"&ROW())=0,"",INDIRECT("N"&ROW())),"") -> KSO | C69: =IFERROR(IF(INDIRECT("O"&ROW())=0,"",INDIRECT("O"&ROW())),"") -> 100 | D69: =IFERROR(IF(INDIRECT("P"&ROW())=0,"0",INDIRECT("P"&ROW())),"") -> 5 | E69: =IFERROR(IF(INDIRECT("Q"&ROW())=0,"",INDIRECT("Q"&ROW())),"") -> 2.3 | F69: =IFERROR(IF(INDIRECT("R"&ROW())=0,"",INDIRECT("R"&ROW())),"") ->  | G69: =IFERROR(IF(INDIRECT("S"&ROW())=0,"",INDIRECT("S"&ROW())),"") -> x | M69: FläktGroup | N69: KSO | O69: 100 | P69: 5 | Q69: 2.3 | R69: 0 | S69: x | T69: 0 | Y69: =IFERROR(IF(INDIRECT("AA"&ROW())=0,"",INDIRECT("AA"&ROW())),"") -> Climecon | Z69: =IFERROR(IF(INDIRECT("AB"&ROW())=0,"",INDIRECT("AB"&ROW())),"") -> DODS | AA69: Climecon | AB69: DODS | AE69: FläktGroup | AF69: KSO | AG69: 100 | AH69: 5 | AI69: 2.3 | AJ69: 0 | AK69: x | AL69: 0 | AP69: IRIS
A70: =IFERROR(IF(INDIRECT("M"&ROW())=0,"",INDIRECT("M"&ROW())),"") -> FläktGroup | B70: =IFERROR(IF(INDIRECT("N"&ROW())=0,"",INDIRECT("N"&ROW())),"") -> KSO | C70: =IFERROR(IF(INDIRECT("O"&ROW())=0,"",INDIRECT("O"&ROW())),"") -> 100 | D70: =IFERROR(IF(INDIRECT("P"&ROW())=0,"0",INDIRECT("P"&ROW())),"") -> 4 | E70: =IFERROR(IF(INDIRECT("Q"&ROW())=0,"",INDIRECT("Q"&ROW())),"") -> 2.22 | F70: =IFERROR(IF(INDIRECT("R"&ROW())=0,"",INDIRECT("R"&ROW())),"") ->  | G70: =IFERROR(IF(INDIRECT("S"&ROW())=0,"",INDIRECT("S"&ROW())),"") -> x | M70: FläktGroup | N70: KSO | O70: 100 | P70: 4 | Q70: 2.22 | R70: 0 | S70: x | T70: 0 | Y70: =IFERROR(IF(INDIRECT("AA"&ROW())=0,"",INDIRECT("AA"&ROW())),"") -> Climecon | Z70: =IFERROR(IF(INDIRECT("AB"&ROW())=0,"",INDIRECT("AB"&ROW())),"") -> FINO | AA70: Climecon | AB70: FINO | AE70: FläktGroup | AF70: KSO | AG70: 100 | AH70: 4 | AI70: 2.22 | AJ70: 0 | AK70: x | AL70: 0 | AP70: ULA
A71: =IFERROR(IF(INDIRECT("M"&ROW())=0,"",INDIRECT("M"&ROW())),"") -> FläktGroup | B71: =IFERROR(IF(INDIRECT("N"&ROW())=0,"",INDIRECT("N"&ROW())),"") -> KSO | C71: =IFERROR(IF(INDIRECT("O"&ROW())=0,"",INDIRECT("O"&ROW())),"") -> 100 | D71: =IFERROR(IF(INDIRECT("P"&ROW())=0,"0",INDIRECT("P"&ROW())),"") -> 3 | E71: =IFERROR(IF(INDIRECT("Q"&ROW())=0,"",INDIRECT("Q"&ROW())),"") -> 2.14 | F71: =IFERROR(IF(INDIRECT("R"&ROW())=0,"",INDIRECT("R"&ROW())),"") ->  | G71: =IFERROR(IF(INDIRECT("S"&ROW())=0,"",INDIRECT("S"&ROW())),"") -> x | M71: FläktGroup | N71: KSO | O71: 100 | P71: 3 | Q71: 2.14 | R71: 0 | S71: x | T71: 0 | Y71: =IFERROR(IF(INDIRECT("AA"&ROW())=0,"",INDIRECT("AA"&ROW())),"") -> Climecon | Z71: =IFERROR(IF(INDIRECT("AB"&ROW())=0,"",INDIRECT("AB"&ROW())),"") -> FLO | AA71: Climecon | AB71: FLO | AE71: FläktGroup | AF71: KSO | AG71: 100 | AH71: 3 | AI71: 2.14 | AJ71: 0 | AK71: x | AL71: 0 | AP71: CLIK
A72: =IFERROR(IF(INDIRECT("M"&ROW())=0,"",INDIRECT("M"&ROW())),"") -> FläktGroup | B72: =IFERROR(IF(INDIRECT("N"&ROW())=0,"",INDIRECT("N"&ROW())),"") -> KSO | C72: =IFERROR(IF(INDIRECT("O"&ROW())=0,"",INDIRECT("O"&ROW())),"") -> 100 | D72: =IFERROR(IF(INDIRECT("P"&ROW())=0,"0",INDIRECT("P"&ROW())),"") -> 2 | E72: =IFERROR(IF(INDIRECT("Q"&ROW())=0,"",INDIRECT("Q"&ROW())),"") -> 2.06 | F72: =IFERROR(IF(INDIRECT("R"&ROW())=0,"",INDIRECT("R"&ROW())),"") ->  | G72: =IFERROR(IF(INDIRECT("S"&ROW())=0,"",INDIRECT("S"&ROW())),"") -> x | M72: FläktGroup | N72: KSO | O72: 100 | P72: 2 | Q72: 2.06 | R72: 0 | S72: x | T72: 0 | Y72: =IFERROR(IF(INDIRECT("AA"&ROW())=0,"",INDIRECT("AA"&ROW())),"") -> Climecon | Z72: =IFERROR(IF(INDIRECT("AB"&ROW())=0,"",INDIRECT("AB"&ROW())),"") -> LINE | AA72: Climecon | AB72: LINE | AE72: FläktGroup | AF72: KSO | AG72: 100 | AH72: 2 | AI72: 2.06 | AJ72: 0 | AK72: x | AL72: 0
A73: =IFERROR(IF(INDIRECT("M"&ROW())=0,"",INDIRECT("M"&ROW())),"") -> FläktGroup | B73: =IFERROR(IF(INDIRECT("N"&ROW())=0,"",INDIRECT("N"&ROW())),"") -> KSO | C73: =IFERROR(IF(INDIRECT("O"&ROW())=0,"",INDIRECT("O"&ROW())),"") -> 100 | D73: =IFERROR(IF(INDIRECT("P"&ROW())=0,"0",INDIRECT("P"&ROW())),"") -> 1 | E73: =IFERROR(IF(INDIRECT("Q"&ROW())=0,"",INDIRECT("Q"&ROW())),"") -> 1.98 | F73: =IFERROR(IF(INDIRECT("R"&ROW())=0,"",INDIRECT("R"&ROW())),"") ->  | G73: =IFERROR(IF(INDIRECT("S"&ROW())=0,"",INDIRECT("S"&ROW())),"") -> x | M73: FläktGroup | N73: KSO | O73: 100 | P73: 1 | Q73: 1.98 | R73: 0 | S73: x | T73: 0 | Y73: =IFERROR(IF(INDIRECT("AA"&ROW())=0,"",INDIRECT("AA"&ROW())),"") -> Climecon | Z73: =IFERROR(IF(INDIRECT("AB"&ROW())=0,"",INDIRECT("AB"&ROW())),"") -> LINEi | AA73: Climecon | AB73: LINEi | AE73: FläktGroup | AF73: KSO | AG73: 100 | AH73: 1 | AI73: 1.98 | AJ73: 0 | AK73: x | AL73: 0
A74: =IFERROR(IF(INDIRECT("M"&ROW())=0,"",INDIRECT("M"&ROW())),"") -> FläktGroup | B74: =IFERROR(IF(INDIRECT("N"&ROW())=0,"",INDIRECT("N"&ROW())),"") -> KSO | C74: =IFERROR(IF(INDIRECT("O"&ROW())=0,"",INDIRECT("O"&ROW())),"") -> 100 | D74: =IFERROR(IF(INDIRECT("P"&ROW())=0,"0",INDIRECT("P"&ROW())),"") -> 0 | E74: =IFERROR(IF(INDIRECT("Q"&ROW())=0,"",INDIRECT("Q"&ROW())),"") -> 1.9 | F74: =IFERROR(IF(INDIRECT("R"&ROW())=0,"",INDIRECT("R"&ROW())),"") ->  | G74: =IFERROR(IF(INDIRECT("S"&ROW())=0,"",INDIRECT("S"&ROW())),"") -> x | M74: FläktGroup | N74: KSO | O74: 100 | P74: 0 | Q74: 1.9 | R74: 0 | S74: x | T74: 0 | Y74: =IFERROR(IF(INDIRECT("AA"&ROW())=0,"",INDIRECT("AA"&ROW())),"") -> Climecon | Z74: =IFERROR(IF(INDIRECT("AB"&ROW())=0,"",INDIRECT("AB"&ROW())),"") -> MIK | AA74: Climecon | AB74: MIK | AE74: FläktGroup | AF74: KSO | AG74: 100 | AH74: 0 | AI74: 1.9 | AJ74: 0 | AK74: x | AL74: 0
A75: =IFERROR(IF(INDIRECT("M"&ROW())=0,"",INDIRECT("M"&ROW())),"") -> FläktGroup | B75: =IFERROR(IF(INDIRECT("N"&ROW())=0,"",INDIRECT("N"&ROW())),"") -> KSO | C75: =IFERROR(IF(INDIRECT("O"&ROW())=0,"",INDIRECT("O"&ROW())),"") -> 100 | D75: =IFERROR(IF(INDIRECT("P"&ROW())=0,"0",INDIRECT("P"&ROW())),"") -> -1 | E75: =IFERROR(IF(INDIRECT("Q"&ROW())=0,"",INDIRECT("Q"&ROW())),"") -> 1.8 | F75: =IFERROR(IF(INDIRECT("R"&ROW())=0,"",INDIRECT("R"&ROW())),"") ->  | G75: =IFERROR(IF(INDIRECT("S"&ROW())=0,"",INDIRECT("S"&ROW())),"") -> x | M75: FläktGroup | N75: KSO | O75: 100 | P75: -1 | Q75: 1.8 | R75: 0 | S75: x | T75: 0 | Y75: =IFERROR(IF(INDIRECT("AA"&ROW())=0,"",INDIRECT("AA"&ROW())),"") -> Climecon | Z75: =IFERROR(IF(INDIRECT("AB"&ROW())=0,"",INDIRECT("AB"&ROW())),"") -> MIS | AA75: Climecon | AB75: MIS | AE75: FläktGroup | AF75: KSO | AG75: 100 | AH75: -1 | AI75: 1.8 | AJ75: 0 | AK75: x | AL75: 0
A76: =IFERROR(IF(INDIRECT("M"&ROW())=0,"",INDIRECT("M"&ROW())),"") -> FläktGroup | B76: =IFERROR(IF(INDIRECT("N"&ROW())=0,"",INDIRECT("N"&ROW())),"") -> KSO | C76: =IFERROR(IF(INDIRECT("O"&ROW())=0,"",INDIRECT("O"&ROW())),"") -> 100 | D76: =IFERROR(IF(INDIRECT("P"&ROW())=0,"0",INDIRECT("P"&ROW())),"") -> -2 | E76: =IFERROR(IF(INDIRECT("Q"&ROW())=0,"",INDIRECT("Q"&ROW())),"") -> 1.7 | F76: =IFERROR(IF(INDIRECT("R"&ROW())=0,"",INDIRECT("R"&ROW())),"") ->  | G76: =IFERROR(IF(INDIRECT("S"&ROW())=0,"",INDIRECT("S"&ROW())),"") -> x | M76: FläktGroup | N76: KSO | O76: 100 | P76: -2 | Q76: 1.7 | R76: 0 | S76: x | T76: 0 | Y76: =IFERROR(IF(INDIRECT("AA"&ROW())=0,"",INDIRECT("AA"&ROW())),"") -> Climecon | Z76: =IFERROR(IF(INDIRECT("AB"&ROW())=0,"",INDIRECT("AB"&ROW())),"") -> NOP | AA76: Climecon | AB76: NOP | AE76: FläktGroup | AF76: KSO | AG76: 100 | AH76: -2 | AI76: 1.7 | AJ76: 0 | AK76: x | AL76: 0
A77: =IFERROR(IF(INDIRECT("M"&ROW())=0,"",INDIRECT("M"&ROW())),"") -> FläktGroup | B77: =IFERROR(IF(INDIRECT("N"&ROW())=0,"",INDIRECT("N"&ROW())),"") -> KSO | C77: =IFERROR(IF(INDIRECT("O"&ROW())=0,"",INDIRECT("O"&ROW())),"") -> 100 | D77: =IFERROR(IF(INDIRECT("P"&ROW())=0,"0",INDIRECT("P"&ROW())),"") -> -3 | E77: =IFERROR(IF(INDIRECT("Q"&ROW())=0,"",INDIRECT("Q"&ROW())),"") -> 1.6 | F77: =IFERROR(IF(INDIRECT("R"&ROW())=0,"",INDIRECT("R"&ROW())),"") ->  | G77: =IFERROR(IF(INDIRECT("S"&ROW())=0,"",INDIRECT("S"&ROW())),"") -> x | M77: FläktGroup | N77: KSO | O77: 100 | P77: -3 | Q77: 1.6 | R77: 0 | S77: x | T77: 0 | Y77: =IFERROR(IF(INDIRECT("AA"&ROW())=0,"",INDIRECT("AA"&ROW())),"") -> Climecon | Z77: =IFERROR(IF(INDIRECT("AB"&ROW())=0,"",INDIRECT("AB"&ROW())),"") -> NOP-S | AA77: Climecon | AB77: NOP-S | AE77: FläktGroup | AF77: KSO | AG77: 100 | AH77: -3 | AI77: 1.6 | AJ77: 0 | AK77: x | AL77: 0
A78: =IFERROR(IF(INDIRECT("M"&ROW())=0,"",INDIRECT("M"&ROW())),"") -> FläktGroup | B78: =IFERROR(IF(INDIRECT("N"&ROW())=0,"",INDIRECT("N"&ROW())),"") -> KSO | C78: =IFERROR(IF(INDIRECT("O"&ROW())=0,"",INDIRECT("O"&ROW())),"") -> 100 | D78: =IFERROR(IF(INDIRECT("P"&ROW())=0,"0",INDIRECT("P"&ROW())),"") -> -4 | E78: =IFERROR(IF(INDIRECT("Q"&ROW())=0,"",INDIRECT("Q"&ROW())),"") -> 1.5 | F78: =IFERROR(IF(INDIRECT("R"&ROW())=0,"",INDIRECT("R"&ROW())),"") ->  | G78: =IFERROR(IF(INDIRECT("S"&ROW())=0,"",INDIRECT("S"&ROW())),"") -> x | M78: FläktGroup | N78: KSO | O78: 100 | P78: -4 | Q78: 1.5 | R78: 0 | S78: x | T78: 0 | Y78: =IFERROR(IF(INDIRECT("AA"&ROW())=0,"",INDIRECT("AA"&ROW())),"") -> Climecon | Z78: =IFERROR(IF(INDIRECT("AB"&ROW())=0,"",INDIRECT("AB"&ROW())),"") -> NOT | AA78: Climecon | AB78: NOT | AE78: FläktGroup | AF78: KSO | AG78: 100 | AH78: -4 | AI78: 1.5 | AJ78: 0 | AK78: x | AL78: 0
A79: =IFERROR(IF(INDIRECT("M"&ROW())=0,"",INDIRECT("M"&ROW())),"") -> FläktGroup | B79: =IFERROR(IF(INDIRECT("N"&ROW())=0,"",INDIRECT("N"&ROW())),"") -> KSO | C79: =IFERROR(IF(INDIRECT("O"&ROW())=0,"",INDIRECT("O"&ROW())),"") -> 100 | D79: =IFERROR(IF(INDIRECT("P"&ROW())=0,"0",INDIRECT("P"&ROW())),"") -> -5 | E79: =IFERROR(IF(INDIRECT("Q"&ROW())=0,"",INDIRECT("Q"&ROW())),"") -> 1.4 | F79: =IFERROR(IF(INDIRECT("R"&ROW())=0,"",INDIRECT("R"&ROW())),"") ->  | G79: =IFERROR(IF(INDIRECT("S"&ROW())=0,"",INDIRECT("S"&ROW())),"") -> x | M79: FläktGroup | N79: KSO | O79: 100 | P79: -5 | Q79: 1.4 | R79: 0 | S79: x | T79: 0 | Y79: =IFERROR(IF(INDIRECT("AA"&ROW())=0,"",INDIRECT("AA"&ROW())),"") -> Climecon | Z79: =IFERROR(IF(INDIRECT("AB"&ROW())=0,"",INDIRECT("AB"&ROW())),"") -> NOT-S | AA79: Climecon | AB79: NOT-S | AE79: FläktGroup | AF79: KSO | AG79: 100 | AH79: -5 | AI79: 1.4 | AJ79: 0 | AK79: x | AL79: 0
A80: =IFERROR(IF(INDIRECT("M"&ROW())=0,"",INDIRECT("M"&ROW())),"") -> FläktGroup | B80: =IFERROR(IF(INDIRECT("N"&ROW())=0,"",INDIRECT("N"&ROW())),"") -> KSO | C80: =IFERROR(IF(INDIRECT("O"&ROW())=0,"",INDIRECT("O"&ROW())),"") -> 100 | D80: =IFERROR(IF(INDIRECT("P"&ROW())=0,"0",INDIRECT("P"&ROW())),"") -> -6 | E80: =IFERROR(IF(INDIRECT("Q"&ROW())=0,"",INDIRECT("Q"&ROW())),"") -> 1.32 | F80: =IFERROR(IF(INDIRECT("R"&ROW())=0,"",INDIRECT("R"&ROW())),"") ->  | G80: =IFERROR(IF(INDIRECT("S"&ROW())=0,"",INDIRECT("S"&ROW())),"") -> x | M80: FläktGroup | N80: KSO | O80: 100 | P80: -6 | Q80: 1.32 | R80: 0 | S80: x | T80: 0 | Y80: =IFERROR(IF(INDIRECT("AA"&ROW())=0,"",INDIRECT("AA"&ROW())),"") -> Climecon | Z80: =IFERROR(IF(INDIRECT("AB"&ROW())=0,"",INDIRECT("AB"&ROW())),"") -> NOX | AA80: Climecon | AB80: NOX | AE80: FläktGroup | AF80: KSO | AG80: 100 | AH80: -6 | AI80: 1.32 | AJ80: 0 | AK80: x | AL80: 0
A81: =IFERROR(IF(INDIRECT("M"&ROW())=0,"",INDIRECT("M"&ROW())),"") -> FläktGroup | B81: =IFERROR(IF(INDIRECT("N"&ROW())=0,"",INDIRECT("N"&ROW())),"") -> KSO | C81: =IFERROR(IF(INDIRECT("O"&ROW())=0,"",INDIRECT("O"&ROW())),"") -> 100 | D81: =IFERROR(IF(INDIRECT("P"&ROW())=0,"0",INDIRECT("P"&ROW())),"") -> -7 | E81: =IFERROR(IF(INDIRECT("Q"&ROW())=0,"",INDIRECT("Q"&ROW())),"") -> 1.24 | F81: =IFERROR(IF(INDIRECT("R"&ROW())=0,"",INDIRECT("R"&ROW())),"") ->  | G81: =IFERROR(IF(INDIRECT("S"&ROW())=0,"",INDIRECT("S"&ROW())),"") -> x | M81: FläktGroup | N81: KSO | O81: 100 | P81: -7 | Q81: 1.24 | R81: 0 | S81: x | T81: 0 | Y81: =IFERROR(IF(INDIRECT("AA"&ROW())=0,"",INDIRECT("AA"&ROW())),"") -> Climecon | Z81: =IFERROR(IF(INDIRECT("AB"&ROW())=0,"",INDIRECT("AB"&ROW())),"") -> NOX-S | AA81: Climecon | AB81: NOX-S | AE81: FläktGroup | AF81: KSO | AG81: 100 | AH81: -7 | AI81: 1.24 | AJ81: 0 | AK81: x | AL81: 0
